Workbook

Sheet How To Use Guide
A1: How to use Guide for BVMS Checklist (Version 2.0)
A4: Filling in the BVMS checklist for New project
A6: Step 1: Provide the basic information
A16: Step 2: Choose the Cameras/Encoders
A18: The BVMS checklist allow selection of up to 4 different type of Bosch cameras and 1 type of Onvif camera
A29: Tips:
A30: 1. If you have more than 4 type of Bosch cameras, you can combine similar camera into the same group, e.g. DINION starlight 7000 and FLEXIDOME starlight 7000 RD can be combined into the same group
A31: 2. Take note of the Encoding standard, e.g. CPP5 or CPP4 or CPP3. It will decide your bit rate used for storage calculation.
A32: 3. If the camera IVA feature is required, select "Yes" for the option "VCA enabled". It will have some influence on the total storage requirement.
A36: Step 3: Select the required resolution and IPS for each group
A38: The BVMS checklist allow selection of required resolution and frame rate (IPS) depending on the camera/encoder selected.
A51: Tips:
A52: 1. Depending on the camera/encoder selected, the allowable resolution is listed for selection. If the required resolution is not available, please check with the MKR for clarification.
A53: 2. Depending on the camera/encoder selected, there is a limitation of the IPS for each stream. E.g. For 1080p camera, when stream 1 is configured as 30IPS, stream 2 can only configure up to 5IPS
A54: 3. Depending on the camera/encoder selected, certain resolution is only available in stream 2. You can configure stream 1 as live viewing stream and stream 2 as recording stream.
A58: Step 4: Input the quantity of the cameras/encoders
A69: Step 5: Input the bit rate and min retention time of the cameras/encoder for each group
A83: Tips:
A84: 1. Depending on the camera/encoder selected, the bit rate can be selected from the sheet "Bit Rate Quick Guide" and "CPP3 HD Bit Rate Quick Guide"
A85: 2. If the camera audio feature is required, select "Yes" for the option "Audio enabled". It will have some influence on the total storage requirement.
A89: Step 6: Fill in the quiet time hours, video bandwidth if the cameras/encoders recording scene is expected to be quiet at certain hours of the day.
A97: Tips:
A98: 1. BVMS VRM does not support alarm recording as it might consume more storage than continuous recording. Due to block based recording, the customer might end up with more wastage.
A99: 2. Choose the IDNR bit rate from the supported camera in the sheet "Bit Rate Quick Guide". It will help to reduce the storage requirement.
A100: E.g. If the DINION starlight 7000 is mounted in the office where the staff will arrived from 7am and left by 7pm, the camera is looking at a static scene for 12 hours and the estimated iDNR bit rate is 700Kbit/s.
A104: Step 7: Select the camera group to the VRM storage Pool if required
A115: Tips:
A116: 1. The BVMS checklist allow selection up to 4 VRM storage group. If the project required more than 4 VRM storage pool, 2nd BVMS checklist should be filled in.
A120: Step 8: Select from the list of iSCSI storage type for each VRM storage pool that fit the requirement
A144: Tips:
A145: 1. The BVMS checklist is designed to provide calculation with the same type of iSCSI storage.
A146: It is possible to reduce the required storage further by selecting a lower size iSCSI storage when the bandwidth and iSCSI session is sufficient.
A147: E.g. | B147: The required net storage is 79.47TB. The BVMS checklist suggested 7 x DIVAR IP 6000 8x2TB with net storage of 88.5TB.
B148: It is possible to choose 6 x DIVAR IP 6000 8x2TB and 1 x DIVAR IP 6000 4x2TB to further reduce the storage requirement.
A149: E.g. | B149: The required net storage is 202.33TB. The BVMS checklist suggested 4 x E-Series Base + 4 x Expansion Unit with net storage of 240.1TB.
B150: It is possible to choose 4 x E-Series Base + 3 x Expansion Unit to further reduce the storage requirement.
A151: 2. For E-Series storage, it is possible to configure to "RAID 6" if required.
A165: Step 9: Select the type of VRM server, software license, workstation and central server hardware.
A186: Step 10: Fill in the required quantity of Transcoder and decoders.
A194: Tips:
A195: 1. For decoder, it will required the necessary BVMS channel licenses
A199: Step 11: Provide the necessary Audio, IP network and other useful information.
A217: Filling in the BVMS checklist for Existing project
A219: For existing project channels expansion without storage expansion.
A220: 1. Fill in the checklist with the existing channels and the additional channels to check if the existing storage is able to handle the channels expansion.
A222: For existing project channels expansion with storage expansion.
A223: 1. Fill in the checklist with the additional channels only to check if the storage is able to handle the channels expansion.
A225: Filling in the BVMS checklist for Enterprise project
A227: 1. Each BVMS management server require a separated BVMS checklist.
A228: 2. The Enterprise management server required a separate BVMS checklist and should indicate how many sub system and what is the sub system type.
A230: Filling in the BVMS checklist for Dual recording project
A232: 1. Primary and Secondary VRM required separated BVMS checklist.

Sheet BVMS checklist
AA1: Mandatory fields filled in???
V2: Use grouping handle to display replay iSCSI session usage
D15: BVMS approval number:
D17: BVMS approval condition: | F17: Full comply to the latest BVMS Sales Guide
F18: For 3rd party workstation, usage of recommended ATI/Nvidia graphic card is required for full technical support
F19: For BVMS and VRM installed on 3rd party server, it must comply with the minimum requirement stated in the
F20: datasheet and sales guide
F21: NetApp E2700 series als has dual controller variants whichs are in this checklist used for the High Density selfs.
F22: However possible, combinations with Dual controller base units plus 12 disk extensions are not part of this checklist.
D26: BVMS approval Comment:
O36: Input field (Mandatory) | Q36: Not Filled
D37: BVMS project checklist | O37: Input field (Mandatory) | Q37: Filled
D38: Version : v 11.0.73 | O38: Input field (Optional)
D39: PLEASE NOTE: | O39: Output value
D40: Approval of this checklist is in best effort as it includes a storage estimation and a Encoder CPU load estimation. | O40: Warning
D41: The actual scene variations in the project will ensure that the encoder CPU load and/or estimated storage may be different than presented in this checklist. | O41: Not OK
D42: As a result, Bosch Security Systems cannot take resposibilty onto the storage estimations done in this checklist. | O42: OK
D43: Please submit completed forms to: | F43: Your local MKR or next approval level - s. approval training slides | O43: Max 100 concurrent OC
O44: Max 2000 channels
D45: Approval status overview: | F45: =IF(OR(AND(L54<>0,G148>500),N1537>2,OR(J1550>500,J1551>20,N1551>20,N1552>50),S76,AND(S78,NOT(OR(S149,S153)))),"check manually by BU-ESS expert",IF(OR(S149,S153,S79,S80,S75,ISNA(#REF!)),"Not Approved",IF(S85,"HD used, RSO needs to check","OK"))) -> OK | I45: =IF(OR(S149,S153),"Present and future channel/workstation count is over current BVMS system limitations","") ->  | O45: Max 100 Dibos / BRS units
D46: Mandatory fields filled in? | F46: =IF(G47>29,"OK","Not completed") -> Not completed
G47: =COUNTIF(AB1:AB1593,TRUE) -> 10
D48: Name
D49: Office
D50: Project Name
D51: Dealer Name
D53: Installation time of project | G53: Year: | I53: Month | AA53: =NOT(OR($H$53="")) -> FALSE | AB53: =AA53 -> FALSE
D54: Future expected system expansion | G54: Year: | I54: Month | K54: Channels: | M54: Workst: | AA54: =NOT(OR($J$53="")) -> FALSE | AB54: =AA54 -> FALSE
AA55: =NOT(OR($H$54="")) -> FALSE | AB55: FALSE
D56: BVMS license extensions: | G56: Earlier used BVMS approval number: | AA56: =NOT(OR($J$54="")) -> FALSE | AB56: FALSE
D57: Request for extension? | F57: No | G57: << comment here. Fill in the rest of the checklist including the expansion to reflect the new state. | AA57: =NOT(OR($L$54="")) -> FALSE | AB57: FALSE
AA58: =NOT(OR($N$54="")) -> FALSE | AB58: FALSE
I59: Channel exp. Qty: | J59: 0 | L59: Forensics | M59: Qty: | N59: 0
F60: DVR exp. Qty: | G60: 0 | I60: Workstations Qty: | J60: 0 | L60: Keyboards | M60: Qty: | N60: 0
D62: Storage used: | G62: VRM+NVR mixed-mode | Q62: =IF(Q76,"BVMS-NVR cannot record H.264 cameras (H.263 only). Please ignore this message for BRS projects","") -> 
D63: Since BVMS 2.20, the operator client is used capable of both
D65: Camera/encoder selection | G65: Group1 | I65: Group2 | K65: Group3 | M65: Group4 | O65: Group5
D66: Video format - PAL/NTSC,480p,720p,1080p,5MP | G66: none | I66: none | K66: none | M66: none | O66: none | AD66: Standard | AE66: Resolution | AF66: MP
G67: =IF(OR(G66="PAL",G66="NTSC"),"SD",G66) -> none | I67: =IF(OR(I66="PAL",I66="NTSC"),"SD",I66) -> none | K67: =IF(OR(K66="PAL",K66="NTSC"),"SD",K66) -> none | M67: =IF(OR(M66="PAL",M66="NTSC"),"SD",M66) -> none | O67: =IF(OR(O66="PAL",O66="NTSC"),"SD",O66) -> none | AD67: PAL | AE67: 576i | AF67: 0.4 MP
D68: Brand | G68: Bosch | I68: Bosch | K68: Bosch | M68: Bosch | O68: Other brand
D69: Camera/encoder Platform | G69: none | I69: none | K69: none | M69: none | O69: ABC-1234 | AD69: PAL | AE69: 576i | AF69: 0.4 MP
D70: Encoding standard | G70: =G1698 -> - | I70: =G1699 -> - | K70: =G1700 -> - | M70: =G1701 -> - | O70: H.264 | AD70: NTSC | AE70: 480i | AF70: 0.35 MP
G71: =G70&"_str1" -> -_str1 | I71: =I70&"_str1" -> -_str1 | K71: =K70&"_str1" -> -_str1 | M71: =M70&"_str1" -> -_str1
D72: Scene activity | G72: Medium | I72: Medium | K72: Medium | M72: Medium | O72: Medium | AD72: VGA | AE72: 480p | AF72: 0.3 MP
D73: VCA enabled | G73: No | I73: No | K73: No | M73: No | O73: not applicable | AD73: HD ready | AE73: 720p | AF73: 0.9 MP
D74: iSCSI recording | G74: Direct-iSCSI/VRM-iSCSI | I74: Direct-iSCSI/VRM-iSCSI | K74: Direct-iSCSI/VRM-iSCSI | M74: Direct-iSCSI/VRM-iSCSI | O74: =V77&"x VSG instances" -> 0x VSG instances | AD74: Full HD | AE74: 1080p | AF74: 2.0 MP
D75: Active channels | G75: =$F$1698 -> 0 | I75: =$F$1699 -> 0 | K75: =$F$1700 -> 0 | M75: =$F$1701 -> 0 | O75: =MAX(O145,32) -> 32 | R75: NVR an H.264?? | S75: =IF(AND(G62="NVR Operator Client",S84),TRUE,FALSE) -> FALSE | V75: =INT(O146) -> 0
G76: =IF(AND($G$62="NVR",LEFT(G$70,5)="H.264"),TRUE,FALSE) -> FALSE | H76: =$L$1698 -> 0 | I76: =IF(AND($G$62="NVR",LEFT(I$70,5)="H.264"),TRUE,FALSE) -> FALSE | J76: =$L$1699 -> 0 | K76: =IF(AND($G$62="NVR",LEFT(K$70,5)="H.264"),TRUE,FALSE) -> FALSE | L76: =$L$1700 -> 0 | M76: =IF(AND($G$62="NVR",LEFT(M$70,5)="H.264"),TRUE,FALSE) -> FALSE | N76: =$L$1701 -> 0 | Q76: =OR(G76,I76,K76,M76) -> FALSE | R76: RSO/BU check | S76: =IF(AND((G148+L54)>500,(G148)<2001),TRUE,FALSE) -> FALSE | V76: =INT(O75-V75) -> 32
D77: Stream1 | G77: Recording | I77: Recording | K77: Recording | M77: Recording | O77: Comment onto the PC/server hardware running the VSG service(s) in this field… | V77: =(ROUNDUP(O146/O75,0)) -> 0
F78: Resolution stream1 | G78: 720p | H78: =IF(G69="none","group off",IF(OR(ISNA(G80),ISERROR(G80)),"Unsupported",IF(G79>G80+G82,"Overstressed! Decrease resolution/IPS!",IF(G83,"Unsupported resolution","OK")))) -> group off | I78: 1080p | J78: =IF(I69="none","group off",IF(OR(ISNA(I80),ISERROR(I80)),"Unsupported",IF(I79>I80+I82,"Overstressed! Decrease resolution/IPS!",IF(I83,"Unsupported resolution","OK")))) -> group off | K78: 1080p | L78: =IF(K69="none","group off",IF(OR(ISNA(K80),ISERROR(K80)),"Unsupported",IF(K79>K80+K82,"Overstressed! Decrease resolution/IPS!",IF(K83,"Unsupported resolution","OK")))) -> group off | M78: 1080p | N78: =IF(M69="none","group off",IF(OR(ISNA(M80),ISERROR(M80)),"Unsupported",IF(M79>M80+M82,"Overstressed! Decrease resolution/IPS!",IF(M83,"Unsupported resolution","OK")))) -> group off | R78: Needs RSO/BU confirmation | S78: =IF(OR($H$78="Needs RSO/BU confirmation",$J$78="Needs RSO/BU confirmation",$L$78="Needs RSO/BU confirmation",$N$78="Needs RSO/BU confirmation",$H$87="Needs RSO/BU confirmation",$J$87="Needs RSO/BU confirmation",$L$87="Needs RSO/BU confirmation",$N$87="Needs RSO/BU confirmation"),TRUE,FALSE) -> FALSE
F79: IPS stream1 | G79: 30 | I79: 30 | K79: 30 | M79: 30 | R79: Overstressed | S79: =IF(OR($H$78="Overstressed! Decrease resolution/IPS!",$J$78="Overstressed! Decrease resolution/IPS!",$L$78="Overstressed! Decrease resolution/IPS!",$N$78="Overstressed! Decrease resolution/IPS!",$H$87="Overstressed! Decrease resolution/IPS!",$J$87="Overstressed! Decrease resolution/IPS!",$L$87="Overstressed! Decrease resolution/IPS!",$N$87="Overstressed! Decrease resolution/IPS!"),TRUE,FALSE) -> FALSE
F80: Max IPS available | G80: =IF(G$66="NTSC",PALtoNTSC(AB1600),AB1600) ->  | I80: =IF(I$66="NTSC",PALtoNTSC(AB1601),AB1601) ->  | K80: =IF(K$66="NTSC",PALtoNTSC(AB1602),AB1602) ->  | M80: =IF(M$66="NTSC",PALtoNTSC(AB1603),AB1603) ->  | R80: Unsupported resolution | S80: =IF(OR($H$78="Unsupported resolution",$J$78="Unsupported resolution",$L$78="Unsupported resolution",$N$78="Unsupported resolution",$H$87="Unsupported resolution",$J$87="Unsupported resolution",$L$87="Unsupported resolution",$N$87="Unsupported resolution"),TRUE,FALSE) -> FALSE
F81: Unused str1: | G81: =IF(SIGN(G80-G79)=-1,0,G80-G79) ->  | I81: =IF(SIGN(I80-I79)=-1,0,I80-I79) ->  | K81: =IF(SIGN(K80-K79)=-1,0,K80-K79) ->  | M81: =IF(SIGN(M80-M79)=-1,0,M80-M79) ->  | R81: H264 used without ok | S81: =IF(AND(OR(LEFT(G75,4)="H264",LEFT(I75,4)="H264",LEFT(K75,4)="H264",LEFT(M75,4)="H264")=TRUE,#REF!="No"),TRUE,FALSE) -> 
F82: Inherit unused str2: | G82: =ROUNDDOWN(H138/VLOOKUP(G78,$E$100:$F$137,2,FALSE),0) ->  | I82: =ROUNDDOWN(J138/VLOOKUP(I78,$E$100:$F$137,2,FALSE),0) ->  | K82: =ROUNDDOWN(L138/VLOOKUP(K78,$E$100:$F$137,2,FALSE),0) ->  | M82: =ROUNDDOWN(N138/VLOOKUP(M78,$E$100:$F$137,2,FALSE),0) ->  | R82: 2.20 used without ok | S82: =IF(AND(LEFT(G62,4)="2.20",#REF!="No"),TRUE,FALSE) -> 
G83: =IF(OR(ISNA(H83),FALSE),TRUE,FALSE) -> FALSE | H83: =VLOOKUP(G78,INDIRECT(G71),1,FALSE) ->  | I83: =IF(OR(ISNA(J83),FALSE),TRUE,FALSE) -> FALSE | J83: =VLOOKUP(I78,INDIRECT(I71),1,FALSE) ->  | K83: =IF(OR(ISNA(L83),FALSE),TRUE,FALSE) -> FALSE | L83: =VLOOKUP(K78,INDIRECT(K71),1,FALSE) ->  | M83: =IF(OR(ISNA(N83),FALSE),TRUE,FALSE) -> FALSE | N83: =VLOOKUP(M78,INDIRECT(M71),1,FALSE) -> 
H84: =IF(OR(G87="1080p",G87="720p"),IF(G87<>G78,TRUE,FALSE)) -> FALSE | J84: =IF(OR(I87="1080p30",I87="720p60"),IF(I87<>I78,TRUE,FALSE)) -> FALSE | L84: =IF(OR(K87="1080p30",K87="720p60"),IF(K87<>K78,TRUE,FALSE)) -> FALSE | N84: =IF(OR(M87="1080p30",M87="720p60"),IF(M87<>M78,TRUE,FALSE)) -> FALSE | R84: H.264 used | S84: =IF(OR(LEFT(G75,4)="H264",LEFT(I75,4)="H264",LEFT(K75,4)="H264",LEFT(M75,4)="H264")=TRUE,TRUE,FALSE) -> FALSE
R85: HD used | S85: FALSE
D86: Stream2 | G86: Live Viewing | I86: Live Viewing | K86: Live Viewing | M86: Live Viewing
F87: Resolution stream2 | G87: Copy stream1 | H87: =IF(G69="none","group off",IF(OR(ISNA(G89),ISERROR(G89)),"Unsupported",IF(AND(G88>G89+G91,NOT(G89=0)),IF(NOT(G93=TRUE),"Overstressed! Decrease resolution/IPS!","Ok-re-use stream1"),IF(G92,"unsupported resolution","OK")))) -> group off | I87: Copy stream1 | J87: =IF(I69="none","group off",IF(OR(ISNA(I89),ISERROR(I89)),"Unsupported",IF(AND(I88>I89+I91,NOT(I89=0)),IF(NOT(I93=TRUE),"Overstressed! Decrease resolution/IPS!","Ok-re-use stream1"),IF(I92,"unsupported resolution","OK")))) -> group off | K87: Copy stream1 | L87: =IF(K69="none","group off",IF(OR(ISNA(K89),ISERROR(K89)),"Unsupported",IF(AND(K88>K89+K91,NOT(K89=0)),IF(NOT(K93=TRUE),"Overstressed! Decrease resolution/IPS!","Ok-re-use stream1"),IF(K92,"unsupported resolution","OK")))) -> group off | M87: Copy stream1 | N87: =IF(M69="none","group off",IF(OR(ISNA(M89),ISERROR(M89)),"Unsupported",IF(AND(M88>M89+M91,NOT(M89=0)),IF(NOT(M93=TRUE),"Overstressed! Decrease resolution/IPS!","Ok-re-use stream1"),IF(M92,"unsupported resolution","OK")))) -> group off | Q87: not capable resolution
F88: IPS stream2 | G88: 30 | I88: 30 | K88: 30 | M88: 30 | Q88: =IF(ISNA(VLOOKUP(G78,IF(OR(G$75="H264",G$75=H.264_NBC200),$R$1727:$R$1728,$I$1727:$I$1732),1,FALSE)),TRUE,FALSE) -> FALSE
F89: Max IPS available | G89: =IF(G$66="NTSC",PALtoNTSC(AD1600),AD1600) ->  | I89: =IF(I$66="NTSC",PALtoNTSC(AD1601),AD1601) ->  | K89: =IF(K$66="NTSC",PALtoNTSC(AD1602),AD1602) ->  | M89: =IF(M$66="NTSC",PALtoNTSC(AD1603),AD1603) ->  | Q89: =ISERR(VLOOKUP(G78,IF(OR(G$75="H264",G$75=H.264_NBC200),$R$1727:$R$1728,$I$1727:$I$1732),1,FALSE)) -> TRUE
F90: Unused str2: | G90: =IF(SIGN(G89-G88)=-1,0,G89-G88) ->  | I90: =IF(SIGN(I89-I88)=-1,0,I89-I88) ->  | K90: =IF(SIGN(K89-K88)=-1,0,K89-K88) ->  | M90: =IF(SIGN(M89-M88)=-1,0,M89-M88) -> 
F91: Inherit unused str1: | G91: =ROUNDDOWN(G138/VLOOKUP(G87,$E$100:$F$137,2,FALSE),0) ->  | I91: =ROUNDDOWN(I138/VLOOKUP(I87,$E$100:$F$137,2,FALSE),0) ->  | K91: =ROUNDDOWN(K138/VLOOKUP(K87,$E$100:$F$137,2,FALSE),0) ->  | M91: =ROUNDDOWN(M138/VLOOKUP(M87,$E$100:$F$137,2,FALSE),0) -> 
G92: =IF(OR(ISNA(H92),FALSE),TRUE,FALSE) -> FALSE | H92: =VLOOKUP(G87,INDIRECT(G70),1,FALSE) ->  | I92: =IF(OR(ISNA(J92),FALSE),TRUE,FALSE) -> FALSE | J92: =VLOOKUP(I87,INDIRECT(I70),1,FALSE) ->  | K92: =IF(OR(ISNA(L92),FALSE),TRUE,FALSE) -> FALSE | L92: =VLOOKUP(K87,INDIRECT(K70),1,FALSE) ->  | M92: =IF(OR(ISNA(N92),FALSE),TRUE,FALSE) -> FALSE | N92: =VLOOKUP(M87,INDIRECT(M70),1,FALSE) -> 
F93: Same settings? | G93: =IF(OR(NOT(G78=G87),NOT(G79=G88)),FALSE,TRUE) -> FALSE | H93: =IF(OR(G78="1080p",G78="720p"),IF(AND(G78<>G87,G87<>"I-frame str1",G87<>"Copy stream1"),TRUE,FALSE)) -> FALSE | I93: =IF(OR(NOT(I78=I87),NOT(I79=I88)),FALSE,TRUE) -> FALSE | J93: =IF(OR(I78="1080p",I78="720p"),IF(AND(I78<>I87,I87<>"I-frame str1",I87<>"Copy stream1"),TRUE,FALSE)) -> FALSE | K93: =IF(OR(NOT(K78=K87),NOT(K79=K88)),FALSE,TRUE) -> FALSE | L93: =IF(OR(K78="1080p",K78="720p"),IF(AND(K78<>K87,K87<>"I-frame str1",K87<>"Copy stream1"),TRUE,FALSE)) -> FALSE | M93: =IF(OR(NOT(M78=M87),NOT(M79=M88)),FALSE,TRUE) -> FALSE | N93: =IF(OR(M78="1080p",M78="720p"),IF(AND(M78<>M87,M87<>"I-frame str1",M87<>"Copy stream1"),TRUE,FALSE)) -> FALSE
F94: Same resolution: | G94: =IF(G78=G87,TRUE,FALSE) -> FALSE | I94: =IF(I78=I87,TRUE,FALSE) -> FALSE | K94: =IF(K78=K87,TRUE,FALSE) -> FALSE | M94: =IF(M78=M87,TRUE,FALSE) -> FALSE
F95: Same IPS: | G95: =IF(G79=G88,TRUE,FALSE) -> TRUE | I95: =IF(I79=I88,TRUE,FALSE) -> TRUE | K95: =IF(K79=K88,TRUE,FALSE) -> TRUE | M95: =IF(M79=M88,TRUE,FALSE) -> TRUE
F96: HD 1080p selected | G96: =(OR(G66="1080p")) -> FALSE | I96: =(OR(I66="1080p")) -> FALSE | K96: =(OR(K66="1080p")) -> FALSE | M96: =(OR(M66="1080p")) -> FALSE
F97: HD str2? | G97: =(OR(G87="1080p",G87="720p",G87="720p60")) -> FALSE | I97: =(OR(I87="1080p",I87="720p",I87="720p60")) -> FALSE | K97: =(OR(K87="1080p",K87="720p",K87="720p60")) -> FALSE | M97: =(OR(M87="1080p",M87="720p",M87="720p60")) -> FALSE
F98: HD? | G98: =(OR(G66="1080p",G66="720p")) -> FALSE | I98: =(OR(I66="1080p",I66="720p")) -> FALSE | K98: =(OR(K66="1080p",K66="720p")) -> FALSE | M98: =(OR(M66="1080p",M66="720p")) -> FALSE
G99: str1 | H99: str2 | I99: str1 | J99: str2 | K99: str1 | L99: str2 | M99: str1 | N99: str2
E100: n.c | F100: 1 | G100: =IF(G$78=$E100,G$81,0) -> 0 | H100: =IF(G$87=$E100,G$90,0) -> 0 | I100: =IF(I$78=$E100,I$81,0) -> 0 | J100: =IF(I$87=$E100,I$90,0) -> 0 | K100: =IF(K$78=$E100,K$81,0) -> 0 | L100: =IF(K$87=$E100,K$90,0) -> 0 | M100: =IF(M$78=$E100,M$81,0) -> 0 | N100: =IF(M$87=$E100,M$90,0) -> 0
E101: I-frame str1 | F101: 1 | G101: 0 | H101: 0 | I101: 0 | J101: 0 | K101: 0 | L101: 0 | M101: 0 | N101: 0
E102: 480p | F102: 2 | G102: 0 | H102: 0 | I102: 0 | J102: 0 | K102: 0 | L102: 0 | M102: 0 | N102: 0
E103: SD | F103: 8 | G103: 0 | H103: =IF(G$87=$E103,G$90,0) -> 0 | I103: 0 | J103: =IF(I$87=$E103,I$90,0) -> 0 | K103: 0 | L103: =IF(K$87=$E103,K$90,0) -> 0 | M103: 0 | N103: =IF(M$87=$E103,M$90,0) -> 0
E104: 240p | F104: 2 | G104: 0 | H104: 0 | I104: 0 | J104: 0 | K104: 0 | L104: 0 | M104: 0 | N104: 0
E105: QVGA | F105: 1 | G105: 0 | H105: 0 | I105: 0 | J105: 0 | K105: 0 | L105: 0 | M105: 0 | N105: 0
E106: VGA | F106: 2 | G106: 0 | H106: 0 | I106: 0 | J106: 0 | K106: 0 | L106: 0 | M106: 0 | N106: 0
D107: Unused | E107: QCIF | F107: 1 | G107: 0 | H107: =IF(G$87=$E107,G$90,0) -> 0 | I107: 0 | J107: =IF(I$87=$E107,I$90,0) -> 0 | K107: 0 | L107: =IF(K$87=$E107,K$90,0) -> 0 | M107: 0 | N107: =IF(M$87=$E107,M$90,0) -> 0
E108: CIF | F108: 2 | G108: 0 | H108: 0 | I108: 0 | J108: 0 | K108: 0 | L108: 0 | M108: 0 | N108: 0
E109: 2CIF | F109: 4 | G109: 0 | H109: 0 | I109: 0 | J109: 0 | K109: 0 | L109: 0 | M109: 0 | N109: 0
E110: 4CIF | F110: 8 | G110: 0 | H110: 0 | I110: 0 | J110: 0 | K110: 0 | L110: 0 | M110: 0 | N110: 0
E111: HALF-D1 | F111: 2 | G111: 0 | H111: 0 | I111: 0 | J111: 0 | K111: 0 | L111: 0 | M111: 0 | N111: 0
E112: 720p | F112: 1 | H112: 0 | I112: 0 | J112: 0 | K112: 0 | L112: 0 | M112: 0 | N112: 0
E113: Copy stream1 | F113: 1 | G113: 0 | I113: 0 | K113: 0 | M113: 0
E114: 1.3MP (Cropped) | F114: 1 | G114: 0 | H114: 0 | I114: 0 | J114: 0 | K114: 0 | L114: 0 | M114: 0 | N114: 0
E115: 5MP | F115: 1 | G115: 0 | H115: 0 | I115: 0 | J115: 0 | K115: 0 | L115: 0 | M115: 0 | N115: 0
E116: 4MP | F116: 1 | G116: 0 | H116: 0 | I116: 0 | J116: 0 | K116: 0 | L116: 0 | M116: 0 | N116: 0
E117: 3MP | F117: 1 | G117: 0 | H117: 0 | I117: 0 | J117: 0 | K117: 0 | L117: 0 | M117: 0 | N117: 0
E118: 2992x1680 | F118: 1 | G118: 0 | H118: 0 | I118: 0 | J118: 0 | K118: 0 | L118: 0 | M118: 0 | N118: 0
E119: 2704x2032 | F119: 1 | G119: =IF(G$78=$E119,G$81,0) -> 0 | H119: =IF(G$87=$E119,G$90,0) -> 0 | I119: 0 | J119: =IF(I$87=$E119,I$90,0) -> 0 | K119: 0 | L119: =IF(K$87=$E119,K$90,0) -> 0 | M119: 0 | N119: =IF(M$87=$E119,M$90,0) -> 0
E120: 800x600 | F120: 1 | G120: 0 | H120: 0 | I120: 0 | J120: 0 | K120: 0 | L120: 0 | M120: 0 | N120: 0
E121: 1024x768 | F121: 1 | G121: 0 | H121: 0 | I121: 0 | J121: 0 | K121: 0 | L121: 0 | M121: 0 | N121: 0
E122: 1280x960 | F122: 1 | G122: 0 | H122: 0 | I122: 0 | J122: 0 | K122: 0 | L122: 0 | M122: 0 | N122: 0
E123: 1600x1200 | F123: 1 | G123: 0 | H123: 0 | I123: 0 | J123: 0 | K123: 0 | L123: 0 | M123: 0 | N123: 0
E124: 3840x2160 | F124: 1 | G124: 0 | H124: 0 | I124: 0 | J124: 0 | K124: 0 | L124: 0 | M124: 0 | N124: 0
E125: 3584x2016 | F125: 1 | G125: 0 | H125: 0 | I125: 0 | J125: 0 | K125: 0 | L125: 0 | M125: 0 | N125: 0
E126: 4000x3000 | F126: 1 | G126: 0 | H126: 0 | I126: 0 | J126: 0 | K126: 0 | L126: 0 | M126: 0 | N126: 0
E127: 2640x2640 | F127: 1 | G127: 0 | H127: 0 | I127: 0 | J127: 0 | K127: 0 | L127: 0 | M127: 0 | N127: 0
E128: 3648x2160 | F128: 1 | G128: 0 | H128: 0 | I128: 0 | J128: 0 | K128: 0 | L128: 0 | M128: 0 | N128: 0
E129: 800x800 | F129: 0.0001 | G129: 0 | H129: 0 | I129: 0 | J129: 0 | K129: 0 | L129: 0 | M129: 0 | N129: 0
E130: SD ROI | F130: 1 | G130: =IF(G$78=$E130,G$81,0) -> 0 | H130: 0 | I130: 0 | J130: 0 | K130: 0 | L130: 0 | M130: 0 | N130: 0
E131: SD dual ROI | F131: 1 | G131: 0 | H131: 0 | I131: 0 | J131: 0 | K131: 0 | L131: 0 | M131: 0 | N131: 0
E132: 400x720 | F132: 1 | G132: 0 | H132: 0 | I132: 0 | J132: 0 | K132: 0 | L132: 0 | M132: 0 | N132: 0
E133: D1 4:3 | F133: 1 | G133: 0 | H133: 0 | I133: 0 | J133: 0 | K133: 0 | L133: 0 | M133: 0 | N133: 0
E134: 480p ROI | F134: 1 | G134: 0 | H134: 0 | I134: 0 | J134: 0 | K134: 0 | L134: 0 | M134: 0 | N134: 0
E135: 480p 4:3 | F135: 2 | G135: 0 | H135: 0 | I135: 0 | J135: 0 | K135: 0 | L135: 0 | M135: 0 | N135: 0
E136: 1080p | F136: 1 | G136: 0 | H136: 0 | J136: 0 | L136: 0 | N136: 0
E137: 2/3D1 | F137: 6.5 | G137: =IF(G$78=$E137,G$81,0) -> 0 | H137: 0 | I137: 0 | J137: 0 | K137: 0 | L137: 0 | M137: 0 | N137: 0
E138: summarized | G138: =SUM(G100:G137)*VLOOKUP(G78,$E$100:$F$137,2,FALSE) ->  | H138: =SUM(H100:H137)*VLOOKUP(G87,$E$100:$F$137,2,FALSE) ->  | I138: =SUM(I100:I137)*VLOOKUP(I78,$E$100:$F$137,2,FALSE) ->  | J138: =SUM(J100:J137)*VLOOKUP(I87,$E$100:$F$137,2,FALSE) ->  | K138: =SUM(K100:K137)*VLOOKUP(K78,$E$100:$F$137,2,FALSE) ->  | L138: =SUM(L100:L137)*VLOOKUP(K87,$E$100:$F$137,2,FALSE) ->  | M138: =SUM(M100:M137)*VLOOKUP(M78,$E$100:$F$137,2,FALSE) ->  | N138: =SUM(N100:N137)*VLOOKUP(M87,$E$100:$F$137,2,FALSE) -> 
R139: H.264 used | S139: =OR(LEFT(G70,5)="H.264",LEFT(I70,5)="H.264",LEFT(K70,5)="H.264",LEFT(M70,5)="H.264") -> FALSE
G144: Group1 | I144: Group2 | K144: Group3 | M144: Group4 | O144: Group5
D145: Camera / Encoder used | G145: =G69 -> none | I145: =I69 -> none | K145: =K69 -> none | M145: =M69 -> none | O145: =O69 -> ABC-1234
D146: Number of above selected product used | G146: 1 | I146: 0 | K146: 0 | M146: 0 | O146: 0 | Q146: 1
D147: Total number of cameras/channels | G147: =G146*G222 -> 0 | I147: =I146*I222 -> 0 | K147: =K146*K222 -> 0 | M147: =M146*M222 -> 0 | O147: =O146*O222 -> 0
D148: Total number of cameras/channels all groups | G148: =SUM(G147:P147) -> 0
D149: =IF(G148>3000,"Camera count exceeds current BVMS system limit","") ->  | G149: =IF(OR(G145="none", G146=0),"Group off","") -> Group off | I149: =IF(OR(I145="none", I146=0),"Group off","") -> Group off | K149: =IF(OR(K145="none", K146=0),"Group off","") -> Group off | M149: =IF(OR(M145="none", M146=0),"Group off","") -> Group off | O149: =IF(OR(O145="none", O146=0),"Group off","") -> Group off | R149: channel count | S149: =IF((OR((J1550+L54)>3000,(G148>3000))),TRUE,FALSE) -> FALSE
D152: VRM Storage Estimator
D153: Only input value in Purple boxes | R153: Workstations | S153: =IF((J1551+N54)>200,TRUE,FALSE) -> FALSE
G154: =IF(G155=0,"0 - used for NVR?","") ->  | I154: =IF(I155=0,"0 - used for NVR?","") ->  | K154: =IF(K155=0,"0 - used for NVR?","") ->  | M154: =IF(M155=0,"0 - used for NVR?","") -> 
D155: Video bandwidth | F155: Standard scene | G155: 1600 | I155: 1600 | K155: 1600 | M155: 1600 | O155: 0 | Q155: Kbit/s
D156: Audio enabled? | G156: No | I156: No | K156: No | M156: No | O156: not applicable
D157: Metadata (IVA) enabled? | G157: =G73 -> No | I157: =I73 -> No | K157: =K73 -> No | M157: =M73 -> No | O157: not applicable
D158: Recording bandwidth (per camera) | G158: =SUM(G155,IF(G156="Yes(G.711)",150,0),IF(G157="Yes",150,0),IF(G156="Yes(L16)",640,0),IF(G156="Yes(AAC)",80,0)) -> 1600 | I158: =SUM(I155,IF(I156="Yes(G.711)",150,0),IF(I157="Yes",150,0),IF(I156="Yes(L16)",640,0),IF(I156="Yes(AAC)",80,0)) -> 1600 | K158: =SUM(K155,IF(K156="Yes(G.711)",150,0),IF(K157="Yes",150,0),IF(K156="Yes(L16)",640,0),IF(K156="Yes(AAC)",80,0)) -> 1600 | M158: =SUM(M155,IF(M156="Yes(G.711)",150,0),IF(M157="Yes",150,0),IF(M156="Yes(L16)",640,0),IF(M156="Yes(AAC)",80,0)) -> 1600 | O158: =SUM(O155,IF(O156="Yes(G.711)",150,0),IF(O157="Yes",150,0),IF(O156="Yes(L16)",640,0),IF(O156="Yes(AAC)",80,0)) -> 0 | Q158: Kbit/s
D159: Recording bandwidth (per camera) | G159: =G158/1024 -> 1.5625 | I159: =I158/1024 -> 1.5625 | K159: =K158/1024 -> 1.5625 | M159: =M158/1024 -> 1.5625 | O159: =O158/1024 -> 0 | Q159: Mbit/s
D160: Total bandwidth (all cameras in group) | G160: =IF(G149<>"Group off",G159*G222*G146,0) -> 0 | I160: =IF(I149<>"Group off",I159*I222*I146,0) -> 0 | K160: =IF(K149<>"Group off",K159*K222*K146,0) -> 0 | M160: =IF(M149<>"Group off",M159*M222*M146,0) -> 0 | O160: =IF(O149<>"Group off",O159*O222*O146,0) -> 0 | Q160: Mbit/s
D161: Total bandwidth (all cameras in all groups) | G161: =SUM(IF(G149="Group off",0,G146*G159*G222),IF(I149="Group off",0,I146*I159*I222),IF(K149="Group off",0,K146*K159*K222),IF(M149="Group off",0,M146*M159*M222),IF(O149="Group off",0,O146*O159*O222)) -> 0 | Q161: Mbit/s
D163: Min Retention Time | G163: 30 | I163: 30 | K163: 30 | M163: 30 | O163: 0 | Q163: days
D165: Quiet time / Alarm time: hours per day | F165: iDNR | G165: 0 | I165: 0 | K165: 0 | M165: 0 | O165: 0 | Q165: Hours per day
D166: Quiet time / Alarm time: Video bandwidth | F166: iDNR | G166: 0 | I166: 0 | K166: 0 | M166: 0 | O166: 0 | Q166: Kbit/s
D167: Quiet time / Alarm time: Total bandwidth | F167: iDNR | G167: =SUM(G166,IF(G156="Yes",150,0),IF(G157="Yes",150,0)) -> 0 | I167: =SUM(I166,IF(I156="Yes",150,0),IF(I157="Yes",150,0)) -> 0 | K167: =SUM(K166,IF(K156="Yes",150,0),IF(K157="Yes",150,0)) -> 0 | M167: =SUM(M166,IF(M156="Yes",150,0),IF(M157="Yes",150,0)) -> 0 | O167: =SUM(O166,IF(O156="Yes",150,0),IF(O157="Yes",150,0)) -> 0 | Q167: Kbit/s
D168: Quiet time / Alarm time: reduction factor | F168: iDNR | G168: =IF(ISERROR(((G167*G165)+(24-G165)*G158)/(24*G158)),1,((G167*G165)+(24-G165)*G158)/(24*G158)) -> 1 | I168: =IF(ISERROR(((I167*I165)+(24-I165)*I158)/(24*I158)),1,((I167*I165)+(24-I165)*I158)/(24*I158)) -> 1 | K168: =IF(ISERROR(((K167*K165)+(24-K165)*K158)/(24*K158)),1,((K167*K165)+(24-K165)*K158)/(24*K158)) -> 1 | M168: =IF(ISERROR(((M167*M165)+(24-M165)*M158)/(24*M158)),1,((M167*M165)+(24-M165)*M158)/(24*M158)) -> 1 | O168: =IF(ISERROR(((O167*O165)+(24-O165)*O158)/(24*O158)),1,((O167*O165)+(24-O165)*O158)/(24*O158)) -> 1
D170: Sanity Check in Days | G170: 2 | Q170: days
D171: VRM downtime in days | G171: 4 | Q171: days
D173: Basic Capacity Consumption | G173: =IF(G149="Group off",0,(G168*((G159*3600*24)/8)*1.05)/1024) -> 0 | I173: =IF(I149="Group off",0,(I168*((I159*3600*24)/8)*1.05)/1024) -> 0 | K173: =IF(K149="Group off",0,(K168*((K159*3600*24)/8)*1.05)/1024) -> 0 | M173: =IF(M149="Group off",0,(M168*((M159*3600*24)/8)*1.05)/1024) -> 0 | O173: =IF(O149="Group off",0,(O168*((O159*3600*24)/8)*1.05)/1024) -> 0 | Q173: GiB/day
D174: Reserved days in device spanlist | G174: =IF(OR(G163<$G$170,G163<$G$171),G163,MAX($G$170,$G$171)) -> 4 | I174: =IF(OR(I163<$G$170,I163<$G$171),I163,MAX($G$170,$G$171)) -> 4 | K174: =IF(OR(K163<$G$170,K163<$G$171),K163,MAX($G$170,$G$171)) -> 4 | M174: =IF(OR(M163<$G$170,M163<$G$171),M163,MAX($G$170,$G$171)) -> 4 | O174: =IF(OR(O163<$G$170,O163<$G$171),O163,MAX($G$170,$G$171)) -> 0 | Q174: Days
D175: Required available reservation for VRM downtime (spanlist) | G175: =ROUNDUP(((G173*G174)/0.75)*G222,0) -> 0 | I175: =ROUNDUP(((I173*I174)/0.75)*I222,0) -> 0 | K175: =ROUNDUP(((K173*K174)/0.75)*K222,0) -> 0 | M175: =ROUNDUP(((M173*M174)/0.75)*M222,0) -> 0 | O175: =ROUNDUP(((O173*G171)/0.75)*O222,0) -> 0 | Q175: Blocks/spans [GiB] | S175: =G175>G177 -> FALSE | T175: =H175>H177 -> FALSE | U175: =I175>I177 -> FALSE | V175: =J175>J177 -> FALSE
D176: Spanlist capability of selected device | G176: =IF(LEFT(G70,5)="H.263",128,IF(LEFT(G70,4)="CPP5",4096,512)) -> 512 | I176: =IF(LEFT(I70,5)="H.263",128,IF(LEFT(I70,4)="CPP5",4096,512)) -> 512 | K176: =IF(LEFT(K70,5)="H.263",128,IF(LEFT(K70,4)="CPP5",4096,512)) -> 512 | M176: =IF(LEFT(M70,5)="H.263",128,IF(LEFT(M70,4)="CPP5",4096,512)) -> 512 | O176: =IF(ISERR(4096/O146),4096,MAX(4096/O146,128)) -> 4096
D177: Possible available reservation for VRM downtime (spanlist) | G177: =IF(MIN(G175,G176)<G222*2,G222*2,MIN(G175,G176)) -> 0 | I177: =IF(MIN(I175,I176)<I222*2,I222*2,MIN(I175,I176)) -> 0 | K177: =IF(MIN(K175,K176)<K222*2,K222*2,MIN(K175,K176)) -> 0 | M177: =IF(MIN(M175,M176)<M222*2,M222*2,MIN(M175,M176)) -> 0 | O177: =IF(MIN(O175,O176)<O222*2,O222*2,MIN(O175,O176)) -> 2 | Q177: Blocks/spans [GiB] | S177: VRM/DLA | T177: Spanlist limit
F178: limit regular
D179: Net Storage requirement | G179: =IF(G149="Group off",0,((G173*G163*G222)+IF(OR($G$62="NVR",G155=0),0,G$177))*G146) -> 0 | I179: =IF(I149="Group off",0,((I173*I163*I222)+IF(OR($G$62="NVR",I155=0),0,I$177))*I146) -> 0 | K179: =IF(K149="Group off",0,((K173*K163*K222)+IF(OR($G$62="NVR",K155=0),0,K$177))*K146) -> 0 | M179: =IF(M149="Group off",0,((M173*M163*M222)+IF(OR($G$62="NVR",M155=0),0,M$177))*M146) -> 0 | O179: =IF(O149="Group off",0,((O173*O163*O222)+IF(OR($G$62="NVR",O155=0),0,O$177))*O146) -> 0 | Q179: GiB for all days
G180: =G179/1024 -> 0 | I180: =I179/1024 -> 0 | K180: =K179/1024 -> 0 | M180: =M179/1024 -> 0 | O180: =O179/1024 -> 0 | Q180: TiB for all days
G181: =SUM(G179:P179) -> 0 | Q181: GiB for all days
G182: =SUM(G180:P180) -> 0 | Q182: TiB for all days
G184: Group1 | I184: Group2 | K184: Group3 | M184: Group4 | O184: Group5
D185: Primary recording: Group to VRM/Storage pool assignment | G185: VRM 1 / Storage Pool 0 | I185: VRM 1 / Storage Pool 0 | K185: VRM 1 / Storage Pool 0 | M185: VRM 1 / Storage Pool 0 | O185: VRM 1 / Storage Pool 0
D186: Selection | G186: =IFERROR(RIGHT(G185,1)+1,0) -> 1 | I186: =IFERROR(RIGHT(I185,1)+1,0) -> 1 | K186: =IFERROR(RIGHT(K185,1)+1,0) -> 1 | M186: =IFERROR(RIGHT(M185,1)+1,0) -> 1 | O186: =IFERROR(RIGHT(O185,1)+1,0) -> 1
D188: Secondary recording: Group to VRM assignment: | G188: none | I188: none | K188: none | M188: none | O188: none | Q188: =IF(OR(G186=G204,I186=I204,K186=K204,M186=M204,O186=O204),"SecondaryVRM cannot be same as primary","") -> 
D189: Video bandwidth | G189: 0 | I189: 0 | K189: 0 | M189: 0 | O189: 0 | Q189: Kbit/s
D190: Number of cameras used (above selected) | G190: 0 | I190: 0 | K190: 0 | M190: 0 | O190: 0
D191: Min Retention Time | G191: 30 | I191: 30 | K191: 30 | M191: 30 | O191: 1 | Q191: days
D192: Quiet time / Alarm time: reduction factor (same as primary rec) | G192: =G168 -> 1 | I192: =I168 -> 1 | K192: =K168 -> 1 | M192: =M168 -> 1 | O192: =O168 -> 1
D193: Net Storage requirement - GiB | G193: =IF(G149="Group off",0,((G205*G191*G222)+IF(OR($G$62="NVR",G189=0),0,G$209))*G190) -> 0 | I193: =IF(I149="Group off",0,((I205*I191*I222)+IF(OR($G$62="NVR",I189=0),0,I$209))*I190) -> 0 | K193: =IF(K149="Group off",0,((K205*K191*K222)+IF(OR($G$62="NVR",K189=0),0,K$209))*K190) -> 0 | M193: =IF(M149="Group off",0,((M205*M191*M222)+IF(OR($G$62="NVR",M189=0),0,M$209))*M190) -> 0 | O193: =IF(O149="Group off",0,((O205*O191*O222)+IF(OR($G$62="NVR",O189=0),0,O$209))*O190) -> 0 | Q193: GiB for all days
D194: Net Storage requirement - TiB | G194: =G193/1024 -> 0 | I194: =I193/1024 -> 0 | K194: =K193/1024 -> 0 | M194: =M193/1024 -> 0 | O194: =O193/1024 -> 0 | Q194: TiB for all days
D197: Audio enabled? | G197: =G156 -> No | I197: =I156 -> No | K197: =K156 -> No | M197: =M156 -> No | O197: not applicable
D198: Metadata (IVA) enabled? | G198: =G110 -> 0 | I198: =I110 -> 0 | K198: =K110 -> 0 | M198: =M110 -> 0 | O198: not applicable
D199: Recording bandwidth (per camera) | G199: =SUM(G189,IF(G197="Yes(G.711)",150,0),IF(G198="Yes",150,0),IF(G197="Yes(L16)",640,0),IF(G197="Yes(AAC)",80,0)) -> 0 | I199: =SUM(I189,IF(I197="Yes(G.711)",150,0),IF(I198="Yes",150,0),IF(I197="Yes(L16)",640,0),IF(I197="Yes(AAC)",80,0)) -> 0 | K199: =SUM(K189,IF(K197="Yes(G.711)",150,0),IF(K198="Yes",150,0),IF(K197="Yes(L16)",640,0),IF(K197="Yes(AAC)",80,0)) -> 0 | M199: =SUM(M189,IF(M197="Yes(G.711)",150,0),IF(M198="Yes",150,0),IF(M197="Yes(L16)",640,0),IF(M197="Yes(AAC)",80,0)) -> 0 | O199: =SUM(O189,IF(O197="Yes(G.711)",150,0),IF(O198="Yes",150,0),IF(O197="Yes(L16)",640,0),IF(O197="Yes(AAC)",80,0)) -> 0 | Q199: Kbit/s
D200: Recording bandwidth (per camera) | G200: =G199/1024 -> 0 | I200: =I199/1024 -> 0 | K200: =K199/1024 -> 0 | M200: =M199/1024 -> 0 | O200: =O199/1024 -> 0 | Q200: Mbit/s
D201: Total bandwidth (all cameras in group) | G201: =IF(G149<>"Group off",G200*G222*G190,0) -> 0 | I201: =IF(I149<>"Group off",I200*I222*I190,0) -> 0 | K201: =IF(K149<>"Group off",K200*K222*K190,0) -> 0 | M201: =IF(M149<>"Group off",M200*M222*M190,0) -> 0 | O201: =IF(O149<>"Group off",O200*O222*O190,0) -> 0 | Q201: Mbit/s
D202: Total bandwidth (all cameras in all groups) | G202: =SUM(IF(G149="Group off",0,G146*G201*G222),IF(I149="Group off",0,I146*I201*I222),IF(K149="Group off",0,K146*K201*K222),IF(M149="Group off",0,M146*M201*M222),IF(O149="Group off",0,O146*O201*O222)) -> 0 | Q202: Mbit/s
D204: Selection | G204: =IFERROR(RIGHT(G188,1)+1,0) -> 0 | I204: =IFERROR(RIGHT(I188,1)+1,0) -> 0 | K204: =IFERROR(RIGHT(K188,1)+1,0) -> 0 | M204: =IFERROR(RIGHT(M188,1)+1,0) -> 0 | O204: =IFERROR(RIGHT(O188,1)+1,0) -> 0
D205: Basic Capacity Consumption | G205: =IF(G149="Group off",0,(G192*((G200*3600*24)/8)*1.05)/1024) -> 0 | I205: =IF(I149="Group off",0,(I192*((I200*3600*24)/8)*1.05)/1024) -> 0 | K205: =IF(K149="Group off",0,(K192*((K200*3600*24)/8)*1.05)/1024) -> 0 | M205: =IF(M149="Group off",0,(M192*((M200*3600*24)/8)*1.05)/1024) -> 0 | O205: =IF(O149="Group off",0,(O192*((O200*3600*24)/8)*1.05)/1024) -> 0 | Q205: GiB/day
D206: Reserved days in device spanlist | G206: =IF(OR(G191<$G$170,G191<$G$171),G191,MAX($G$170,$G$171)) -> 4 | I206: =IF(OR(I191<$G$170,I191<$G$171),I191,MAX($G$170,$G$171)) -> 4 | K206: =IF(OR(K191<$G$170,K191<$G$171),K191,MAX($G$170,$G$171)) -> 4 | M206: =IF(OR(M191<$G$170,M191<$G$171),M191,MAX($G$170,$G$171)) -> 4 | O206: =IF(OR(O191<$G$170,O191<$G$171),O191,MAX($G$170,$G$171)) -> 1 | Q206: Days
D207: Required available reservation for VRM downtime (spanlist) | G207: =ROUNDUP(((G205*G206)/0.75)*G222,0) -> 0 | I207: =ROUNDUP(((I205*I206)/0.75)*I222,0) -> 0 | K207: =ROUNDUP(((K205*K206)/0.75)*K222,0) -> 0 | M207: =ROUNDUP(((M205*M206)/0.75)*M222,0) -> 0 | O207: =ROUNDUP(((O205*G171)/0.75)*O222,0) -> 0 | Q207: Blocks/spans [GiB] | S207: =G207>G209 -> FALSE | T207: =H207>H209 -> FALSE | U207: =I207>I209 -> FALSE | V207: =J207>J209 -> FALSE
D208: Spanlist capability of selected device | G208: =IF(LEFT(G93,5)="H.263",128,IF(LEFT(G93,4)="CPP5",4096,512)) -> 512 | I208: =IF(LEFT(I93,5)="H.263",128,IF(LEFT(I93,4)="CPP5",4096,512)) -> 512 | K208: =IF(LEFT(K93,5)="H.263",128,IF(LEFT(K93,4)="CPP5",4096,512)) -> 512 | M208: =IF(LEFT(M93,5)="H.263",128,IF(LEFT(M93,4)="CPP5",4096,512)) -> 512 | O208: =IF(ISERR(4096/O146),4096,MAX(4096/O146,128)) -> 4096
D209: Possible available reservation for VRM downtime (spanlist) | G209: =IF(MIN(G207,G208)<G222*2,G222*2,MIN(G207,G208)) -> 0 | I209: =IF(MIN(I207,I208)<I222*2,I222*2,MIN(I207,I208)) -> 0 | K209: =IF(MIN(K207,K208)<K222*2,K222*2,MIN(K207,K208)) -> 0 | M209: =IF(MIN(M207,M208)<M222*2,M222*2,MIN(M207,M208)) -> 0 | O209: =IF(MIN(O207,O208)<O222*2,O222*2,MIN(O207,O208)) -> 2 | Q209: Blocks/spans [GiB] | S209: VRM/DLA | T209: Spanlist limit
D211: Quiet time / Alarm time: hours per day | F211: iDNR | G211: =G165 -> 0 | I211: =I165 -> 0 | K211: =K165 -> 0 | M211: =M165 -> 0 | O211: =O165 -> 0 | Q211: Hours per day
D212: Quiet time / Alarm time: Video bandwidth | F212: iDNR | G212: =G166 -> 0 | I212: =I166 -> 0 | K212: =K166 -> 0 | M212: =M166 -> 0 | O212: =O166 -> 0 | Q212: Kbit/s
D213: Quiet time / Alarm time: Total bandwidth | F213: iDNR | G213: =SUM(G212,IF(G156="Yes",150,0),IF(G157="Yes",150,0)) -> 0 | I213: =SUM(I212,IF(I156="Yes",150,0),IF(I157="Yes",150,0)) -> 0 | K213: =SUM(K212,IF(K156="Yes",150,0),IF(K157="Yes",150,0)) -> 0 | M213: =SUM(M212,IF(M156="Yes",150,0),IF(M157="Yes",150,0)) -> 0 | O213: =SUM(O212,IF(O156="Yes",150,0),IF(O157="Yes",150,0)) -> 0 | Q213: Kbit/s
D215: none | G215: Net storage requirement | K215: Net storage requirement | O215: Recording bandwidth:
D216: VRM 1 / Storage Pool 0 | G216: =SUMIF($G$186:$P$186,"=1",$G$179:$P$179)+SUMIF($G$204:$P$204,"=1",$G$193:$P$193) -> 0 | I216: GiB for all days | K216: =SUMIF($G$186:$P$186,"=1",$G$180:$P$180)+SUMIF($G$204:$P$204,"=1",$G$194:$P$194) -> 0 | M216: TiB for all days | O216: =SUMIF($G$186:$P$186,"=1",$G$160:$P$160)+SUMIF($G$204:$P$204,"=1",$G$160:$P$160) -> 0 | Q216: Mbit/s
D217: VRM 2 / Storage Pool 1 | G217: =SUMIF($G$186:$P$186,"=2",$G$179:$P$179)+SUMIF($G$204:$P$204,"=2",$G$193:$P$193) -> 0 | I217: GiB for all days | K217: =SUMIF($G$186:$P$186,"=2",$G$180:$P$180)+SUMIF($G$204:$P$204,"=2",$G$194:$P$194) -> 0 | M217: TiB for all days | O217: =SUMIF($G$186:$P$186,"=2",$G$160:$P$160)+SUMIF($G$204:$P$204,"=2",$G$160:$P$160) -> 0 | Q217: Mbit/s
D218: VRM 3 / Storage Pool 2 | G218: =SUMIF($G$186:$P$186,"=3",$G$179:$P$179)+SUMIF($G$204:$P$204,"=3",$G$193:$P$193) -> 0 | I218: GiB for all days | K218: =SUMIF($G$186:$P$186,"=3",$G$180:$P$180)+SUMIF($G$204:$P$204,"=3",$G$194:$P$194) -> 0 | M218: TiB for all days | O218: =SUMIF($G$186:$P$186,"=3",$G$160:$P$160)+SUMIF($G$204:$P$204,"=3",$G$160:$P$160) -> 0 | Q218: Mbit/s
D219: VRM 4 / Storage Pool 3 | G219: =SUMIF($G$186:$P$186,"=4",$G$179:$P$179)+SUMIF($G$204:$P$204,"=4",$G$193:$P$193) -> 0 | I219: GiB for all days | K219: =SUMIF($G$186:$P$186,"=4",$G$180:$P$180)+SUMIF($G$204:$P$204,"=4",$G$194:$P$194) -> 0 | M219: TiB for all days | O219: =SUMIF($G$186:$P$186,"=4",$G$160:$P$160)+SUMIF($G$204:$P$204,"=4",$G$160:$P$160) -> 0 | Q219: Mbit/s
G221: session | I221: session | K221: session | M221: session | O221: session | Q221: total
D222: Active recording channels on initiator | G222: =IF(G149="Group off",0,$F$1698) -> 0 | I222: =IF(I149="Group off",0,$F$1699) -> 0 | K222: =IF(K149="Group off",0,$F$1700) -> 0 | M222: =IF(M149="Group off",0,$F$1701) -> 0 | O222: 1
D223: Unused input channel(s) per host | G223: 0 | I223: 0 | K223: 0 | M223: 0 | O223: 0
B224: 1 | C224: 1 | D224: 1 arrays - sessions worst case | G224: =IF($T$224,MIN((G$222*2+G$223*2),$B224),MIN((G$222*2+G$223*2),$C224)) -> 0 | I224: =IF($T$224,MIN((I$222*2+I$223*2),$B224),MIN((I$222*2+I$223*2),$C224)) -> 0 | K224: =IF($T$224,MIN((K$222*2+K$223*2),$B224),MIN((K$222*2+K$223*2),$C224)) -> 0 | M224: =IF($T$224,MIN((M$222*2+M$223*2),$B224),MIN((M$222*2+M$223*2),$C224)) -> 0 | O224: =IF($T$224,MIN((O$222*2+O$223*2),$B224),MIN((O$222*2+O$223*2),$C224)) -> 1 | Q224: =$G224*$G$146+$I224*$I$146+$K224*$K$146+$M224*$M$146+$O224*$O$146 -> 0 | S224: auto mode | T224: =IF(F1590="Automatic mode (new since VRM 2.20)",TRUE,FALSE) -> TRUE
B225: 2 | C225: 2 | D225: 2 arrays - sessions worst case | G225: 0 | I225: 0 | K225: 0 | M225: 0 | O225: 2 | Q225: 0
B226: 2 | C226: 3 | D226: 3 arrays - sessions worst case | G226: 0 | I226: 0 | K226: 0 | M226: 0 | O226: 2 | Q226: 0
B227: 2 | C227: 4 | D227: 4 arrays - sessions worst case | G227: 0 | I227: 0 | K227: 0 | M227: 0 | O227: 2 | Q227: 0
B228: 2 | C228: 5 | D228: 5 arrays - sessions worst case | G228: 0 | I228: 0 | K228: 0 | M228: 0 | O228: 2 | Q228: 0
B229: 2 | C229: 6 | D229: 6 arrays - sessions worst case | G229: 0 | I229: 0 | K229: 0 | M229: 0 | O229: 2 | Q229: 0
B230: 2 | C230: 7 | D230: 7 arrays - sessions worst case | G230: 0 | I230: 0 | K230: 0 | M230: 0 | O230: 2 | Q230: 0
B231: 2 | C231: 8 | D231: 8 arrays and more - sessions worst case | G231: 0 | I231: 0 | K231: 0 | M231: 0 | O231: 2 | Q231: 0
G233: group total | I233: group total | K233: group total | M233: group total | O233: group total
G236: =$G$146*G224 -> 0 | I236: =$I224*$I$146 -> 0 | K236: =$K224*$K$146 -> 0 | M236: =$M224*$M$146 -> 0 | O236: =$O224*$O$146 -> 0
G237: 0 | I237: 0 | K237: 0 | M237: 0 | O237: 0
G238: 0 | I238: 0 | K238: 0 | M238: 0 | O238: 0
G239: 0 | I239: 0 | K239: 0 | M239: 0 | O239: 0
G240: 0 | I240: 0 | K240: 0 | M240: 0 | O240: 0
G241: 0 | I241: 0 | K241: 0 | M241: 0 | O241: 0
G242: 0 | I242: 0 | K242: 0 | M242: 0 | O242: 0
G243: 0 | I243: 0 | K243: 0 | M243: 0 | O243: 0
G245: Pool0 total | I245: Pool1 total | K245: Pool2 total | M245: Pool3 total | O245: total
D246: Active recording channels on initiator
D247: Unused input channel(s) per host
C248: 1 | D248: 1 arrays - sessions worst case | G248: =SUMIF($G$186:$P$186,"=1",G236:O236) -> 0 | I248: =SUMIF($G$186:$P$186,"=2",$G236:$O236) -> 0 | K248: =SUMIF($G$186:$P$186,"=3",$G236:$O236) -> 0 | M248: =SUMIF($G$186:$P$186,"=4",$G236:$O236) -> 0 | O248: =SUM(G248:M248) -> 0
C249: 2 | D249: 2 arrays - sessions worst case | G249: 0 | I249: 0 | K249: 0 | M249: 0 | O249: 0
C250: 3 | D250: 3 arrays - sessions worst case | G250: 0 | I250: 0 | K250: 0 | M250: 0 | O250: 0
... 1446 more rows

Sheet Project set up (hidden)
C2: End user/ operator
C3: Investor
C4: General Contractor
C5: Consultant/ Architect
C6: System Integrator
C7: Other
C9: Please use the area below to show the set up (among all involved parties) for this project - including the contractual connection and multiple flows listed at the bottom of this sheet.
F43: Remarks/ Main questions to be considered
C44: 1 | D44: Contractual connection | F44: 1 | G44: Who is contracted by whom? With which of the players would Bosch have a contract?
C45: 2 | D45: Flow of project requirements | F45: 2 | G45: By whom are project requirements for security defined?
C46: 3 | D46: Flow of technical proposal and discussions | F46: 3 | G46: Whith wich party do we have the technical discussions for this project and do we have to convince for our technical solution?
C47: 4 | D47: Flow of quotation | F47: 4 | G47: To whom do we have to provide the quotation and will we have commercial/ financial discussion?

Sheet HD_H.264 Data Rate (hidden)
P2: legenda:
O3: measured
O4: assumption (sometimes based on extrapolation)
O5: average (extrapolated)
B6: I-frame distance | D6: 25 | Q6: input field
Q7: Images Per Second [IPS]
Q8: I-frames in 1 sec [IFPS]
B9: Mains frequency | D9: 60 | J9: =D9/2 -> 30 | O9: IPS basis | Q9: output: Bitrate [kbps]
Q10: output: I-frame only bitrate [kbps]
B12: 720p | R12: 720p
B13: Low activity | R13: medium
B14: I-frame distance | C14: Skip frame ratio | D14: Images Per Second [IPS] | E14: Bitrate target | F14: Bitrate@measurement@25_iframe_dist | G14: I frame size [len] | H14: P-frame size [len] | I14: I/P frame coefficient | J14: I-frames in 1 sec [IFPS] | K14: I-frames in 5 sec [IFP5S] | L14: P-frames in 1 sec [PFPS] | M14: reassembled I-frame only bitrate [kbps] | N14: Verify calculation - check Coeffiecient | O14: Bitrate [kbps] | P14: I-frame only bitrate [kbps] | R14: I-frame distance | S14: Skip frame ratio | T14: Images Per Second [IPS] | U14: Bitrate target | V14: Bitrate@measurement@25_iframe_dist | W14: I frame size [len] | X14: P-frame size [len] | Y14: I/P frame coefficient | Z14: I-frames in 1 sec [IFPS] | AA14: I-frames in 5 sec [IFP5S] | AB14: P-frames in 1 sec [PFPS] | AC14: reassembled I-frame only bitrate [kbps] | AD14: Verify calculation - check Coeffiecient | AE14: Bitrate [kbps] | AF14: I-frame only bitrate [kbps]
I15: measured | J15: calculated constant | K15: calculated constant | L15: calculated constant | M15: calculated from measument | N15: calculated | O15: calculated from measument | P15: calculated from measument | Y15: measured | Z15: calculated constant | AA15: calculated constant | AB15: calculated constant | AC15: calculated from measument | AD15: calculated | AE15: calculated from measument | AF15: calculated from measument
B16: =$D$6 -> 25 | C16: 1 | D16: =$J$9*2/C16 -> 60 | E16: 4500 | F16: =F17*1.5 -> 8221.5 | G16: 74600 | H16: =G16/I16 -> 10657.14286 | I16: 7 | J16: =D16/B16 -> 2.4 | K16: =D16/B16*5 -> 12 | L16: =D16-J16 -> 57.6 | M16: =(G16*8*J16)/1000*(30/$J$9) -> 1432.32 | N16: =((O16)/(J16+(1/I16)*L16))*J16 -> 1432.32 | O16: =(G16*8*J16+H16*8*L16)/1000*30/$J$9 -> 6343.131429 | P16: =((O16)/(J16+(1/I16)*L16))*J16 -> 1432.32 | Q16: =IF(J16<1,"< than 1 IPS","") ->  | R16: =$D$6 -> 25 | S16: 1 | T16: =$J$9*2/S16 -> 60 | U16: 9100 | V16: =V17*1.5 -> 8353.5 | W16: =AVERAGE(W18,W17) -> 115995 | X16: 11500 | Y16: 7.8 | Z16: =T16/R16 -> 2.4 | AA16: =T16/R16*5 -> 12 | AB16: =T16-Z16 -> 57.6 | AC16: =(W16*8*Z16)/1000*(30/$J$9) -> 2227.104 | AD16: =((AE16)/(Z16+(1/Y16)*AB16))*Z16 -> 1846.074566 | AE16: =(W16*8*Z16+X16*8*AB16)/1000*30/$J$9 -> 7526.304 | AF16: =((AE16)/(Z16+(1/Y16)*AB16))*Z16 -> 1846.074566 | AG16: =IF(Z16<1,"< than 1 IPS","") -> 
B17: 25 | C17: 1 | D17: =$J$9/C17 -> 30 | E17: 3700 | F17: 5481 | G17: 74600 | H17: 18758 | I17: =G17/H17 -> 3.976969826 | J17: 1.2 | K17: 6 | L17: 28.8 | M17: 716.16 | N17: =((O17)/(J17+(1/I17)*L17))*J17*30/$J$9 -> 716.16 | O17: 5038.0032 | P17: =((O17)/(J17+(1/I17)*L17))*J17 -> 716.16 | Q17: =IF(J17<1,"< than 1 IPS","") ->  | R17: 25 | S17: 1 | T17: =$J$9/S17 -> 30 | U17: 6000 | V17: 5569 | W17: 118425 | X17: 18828 | Y17: =W17/X17 -> 6.289834289 | Z17: 1.2 | AA17: =T17/R17*5 -> 6 | AB17: 28.8 | AC17: 1136.88 | AD17: 1136.88 | AE17: 5474.8512 | AF17: =((AE17)/(Z17+(1/Y17)*AB17))*Z17 -> 1136.88 | AG17: =IF(Z17<1,"< than 1 IPS","") -> 
B18: 25 | C18: 2 | D18: 15 | E18: 2000 | F18: 2884 | G18: 77475 | H18: 23634 | I18: =G18/H18 -> 3.278116273 | J18: 0.6 | K18: 3 | L18: 14.4 | M18: 371.88 | N18: 371.88 | O18: 3094.5168 | P18: 371.88 | Q18: =IF(J18<1,"< than 1 IFPS","") -> < than 1 IFPS | R18: 25 | S18: 2 | T18: 15 | U18: 3800 | V18: 2962 | W18: 113565 | X18: 28000 | Y18: =W18/X18 -> 4.055892857 | Z18: 0.6 | AA18: 3 | AB18: 14.4 | AC18: 545.112 | AD18: 545.112 | AE18: 3770.712 | AF18: 545.112 | AG18: =IF(Z18<1,"< than 1 IFPS","") -> < than 1 IFPS
B19: 25 | C19: 3 | D19: 10 | E19: 1500 | F19: 1882 | G19: 72717 | H19: 21988 | I19: 3.307122067 | J19: 0.4 | K19: 2 | L19: 9.6 | M19: 232.6944 | N19: 232.6944 | O19: 1921.3728 | P19: 232.6944 | Q19: < than 1 IFPS | R19: 25 | S19: 3 | T19: 10 | U19: 2600 | V19: 1996 | W19: 119160 | X19: 32000 | Y19: 3.72375 | Z19: 0.4 | AA19: 2 | AB19: 9.6 | AC19: 381.312 | AD19: 381.312 | AE19: 2838.912 | AF19: 381.312 | AG19: < than 1 IFPS
B20: 25 | C20: 4 | D20: 7.5 | E20: 1200 | F20: 1283 | G20: 72302 | H20: 22505 | I20: 3.212708287 | J20: 0.3 | K20: 1.5 | L20: 7.2 | M20: 173.5248 | N20: 173.5248 | O20: 1469.8128 | P20: 173.5248 | Q20: < than 1 IFPS | R20: 25 | S20: 4 | T20: 7.5 | U20: 2200 | V20: 1461 | W20: 122509 | X20: 32000 | Y20: 3.82840625 | Z20: 0.3 | AA20: 1.5 | AB20: 7.2 | AC20: 294.0216 | AD20: 294.0216 | AE20: 2137.2216 | AF20: 294.0216 | AG20: < than 1 IFPS
B21: 25 | C21: 5 | D21: 6 | E21: 1000 | F21: =AVERAGE(F20,F22) -> 1106.5 | G21: =AVERAGE(G20,G22) -> 72128 | H21: 22505 | I21: 3.204976672 | J21: 0.24 | K21: 1.2 | L21: 5.76 | M21: 138.48576 | N21: 138.48576 | O21: 1175.51616 | P21: 138.48576 | Q21: < than 1 IFPS | R21: 25 | S21: 5 | T21: 6 | U21: 2000 | V21: =AVERAGE(V20,V22) -> 1417 | W21: =AVERAGE(W20,W22) -> 121900 | X21: 35000 | Y21: 3.482857143 | Z21: 0.24 | AA21: 1.2 | AB21: 5.76 | AC21: 234.048 | AD21: 234.048 | AE21: 1846.848 | AF21: 234.048 | AG21: < than 1 IFPS
B22: 25 | C22: 6 | D22: 5 | E22: =F22 -> 930 | F22: 930 | G22: 71954 | H22: 22505 | I22: 3.197245057 | J22: 0.2 | K22: 1 | L22: 4.8 | M22: 115.1264 | N22: 115.1264 | O22: 979.3184 | P22: 115.1264 | Q22: < than 1 IFPS | R22: 25 | S22: 6 | T22: 5 | U22: =V22 -> 1373 | V22: 1373 | W22: 121291 | X22: 34178 | Y22: 3.548803324 | Z22: 0.2 | AA22: 1 | AB22: 4.8 | AC22: 194.0656 | AD22: 194.0656 | AE22: 1506.5008 | AF22: 194.0656 | AG22: < than 1 IFPS
B23: 25 | C23: 10 | D23: 3 | E23: =F23 -> 567 | F23: 567 | G23: 73365 | H23: 19212 | I23: 3.818707058 | J23: 0.12 | K23: 0.6 | L23: 2.88 | M23: 70.4304 | N23: 70.4304 | O23: 513.07488 | P23: 70.4304 | Q23: < than 1 IFPS | R23: 25 | S23: 10 | T23: 3 | U23: =V23 -> 706 | V23: 706 | W23: 120356 | X23: 25399 | Y23: 4.738611756 | Z23: 0.12 | AA23: 0.6 | AB23: 2.88 | AC23: 115.54176 | AD23: 115.54176 | AE23: 700.73472 | AF23: 115.54176 | AG23: < than 1 IFPS
B24: 25 | C24: =$J$9/2 -> 15 | D24: 2 | E24: =F24 -> 306 | F24: 306 | G24: 68347 | H24: 13508 | I24: 5.059742375 | J24: 0.08 | K24: 0.4 | L24: 1.92 | M24: 43.74208 | N24: 43.74208 | O24: 251.22496 | P24: 43.74208 | Q24: < than 1 IFPS | R24: 25 | S24: =$J$9/2 -> 15 | T24: 2 | U24: =V24 -> 345 | V24: 345 | W24: 125916 | X24: 18957 | Y24: 6.64219022 | Z24: 0.08 | AA24: 0.4 | AB24: 1.92 | AC24: 80.58624 | AD24: 80.58624 | AE24: 371.76576 | AF24: 80.58624 | AG24: < than 1 IFPS
B25: 25 | C25: =$J$9 -> 30 | D25: 1 | E25: =F25 -> 158 | F25: 158 | G25: 67886 | H25: 11391 | I25: 5.959617242 | J25: 0.04 | K25: 0.2 | L25: 0.96 | M25: 21.72352 | N25: 21.72352 | O25: 109.2064 | P25: 21.72352 | Q25: < than 1 IFPS | R25: 25 | S25: =$J$9 -> 30 | T25: 1 | U25: =V25 -> 341 | V25: 341 | W25: 127664 | X25: 28524 | Y25: 4.475669612 | Z25: 0.04 | AA25: 0.2 | AB25: 0.96 | AC25: 40.85248 | AD25: 40.85248 | AE25: 259.9168 | AF25: 40.85248 | AG25: < than 1 IFPS
B29: 1080p | R29: 1080p
B30: Low activity | R30: medium
B31: I-frame distance | C31: Skip frame ratio | D31: Images Per Second [IPS] | E31: Bitrate target | F31: Bitrate@measurement@25_iframe_dist | G31: I frame size [len] | H31: P-frame size [len] | I31: I/P frame coefficient | J31: I-frames in 1 sec [IFPS] | K31: I-frames in 5 sec [IFP5S] | L31: P-frames in 1 sec [PFPS] | M31: reassembled I-frame only bitrate [kbps] | N31: Verify calculation - check Coeffiecient | O31: Bitrate [kbps] | P31: I-frame only bitrate [kbps] | R31: I-frame distance | S31: Skip frame ratio | T31: Images Per Second [IPS] | U31: Bitrate target | V31: Bitrate@measurement@25_iframe_dist | W31: I frame size [len] | X31: P-frame size [len] | Y31: I/P frame coefficient | Z31: I-frames in 1 sec [IFPS] | AA31: I-frames in 5 sec [IFP5S] | AB31: P-frames in 1 sec [PFPS] | AC31: reassembled I-frame only bitrate [kbps] | AD31: Verify calculation - check Coeffiecient | AE31: Bitrate [kbps] | AF31: I-frame only bitrate [kbps]
I32: measured | J32: calculated constant | L32: calculated constant | M32: calculated from measument | N32: calculated | O32: calculated from measument | P32: calculated from measument | Y32: measured | Z32: calculated constant | AB32: calculated constant | AC32: calculated from measument | AD32: calculated | AE32: calculated from measument | AF32: calculated from measument
B33: =$D$6 -> 25 | C33: 1 | D33: =$J$9/C33 -> 30 | E33: 6000 | F33: 6987 | G33: 145572 | H33: =G33/I33 -> 24262 | I33: 6 | J33: =D33/B33 -> 1.2 | K33: =D33/B33*5 -> 6 | L33: =D33-J33 -> 28.8 | M33: =(G33*8*J33)/1000*(30/$J$9) -> 1397.4912 | N33: =((O33)/(J33+(1/I33)*L33))*J33 -> 1397.4912 | O33: =(G33*8*J33+H33*8*L33)/1000*30/$J$9 -> 6987.456 | P33: =((O33)/(J33+(1/I33)*L33))*J33 -> 1397.4912 | Q33: =IF(J33<1,"< than 1 IPS","") ->  | R33: =$D$6 -> 25 | S33: 1 | T33: =$J$9/S33 -> 30 | U33: 10000 | V33: 11034 | W33: 259533 | X33: 37076.14286 | Y33: 7 | Z33: =T33/R33 -> 1.2 | AA33: =T33/R33*5 -> 6 | AB33: =T33-Z33 -> 28.8 | AC33: =(W33*8*Z33)/1000*(30/$J$9) -> 2491.5168 | AD33: =((AE33)/(Z33+(1/Y33)*AB33))*Z33 -> 2491.5168 | AE33: =(W33*8*Z33+X33*8*AB33)/1000*30/$J$9 -> 11033.86011 | AF33: =((AE33)/(Z33+(1/Y33)*AB33))*Z33 -> 2491.5168 | AG33: =IF(Z33<1,"< than 1 IPS","") -> 
B34: 25 | C34: 2 | D34: 15 | E34: 4800 | F34: 5000 | G34: 138404 | H34: 34761 | I34: =G34/H34 -> 3.981588562 | J34: 0.6 | K34: 3 | L34: 14.4 | M34: 664.3392 | N34: 664.3392 | O34: 4668.8064 | P34: =((O34)/(J34+(1/I34)*L34))*J34 -> 664.3392 | Q34: =IF(J34<1,"< than 1 IFPS","") -> < than 1 IFPS | R34: 25 | S34: 2 | T34: 15 | U34: 8700 | V34: 5038 | W34: 259356 | X34: 60315.34884 | Y34: 4.3 | Z34: 0.6 | AA34: =T34/R34*5 -> 3 | AB34: 14.4 | AC34: 1244.9088 | AD34: 1244.9088 | AE34: 8193.236986 | AF34: =((AE34)/(Z34+(1/Y34)*AB34))*Z34 -> 1244.9088 | AG34: =IF(Z34<1,"< than 1 IFPS","") -> < than 1 IFPS
B35: 25 | C35: 3 | D35: 10 | E35: 3900 | F35: 5293 | G35: 144487 | H35: 46000 | I35: =G35/H35 -> 3.141021739 | J35: 0.4 | K35: 2 | L35: 9.6 | M35: 462.3584 | N35: 462.3584 | O35: 3995.1584 | P35: 462.3584 | Q35: < than 1 IFPS | R35: 25 | S35: 3 | T35: 10 | U35: 8700 | V35: 5016 | W35: 259462 | X35: 72000 | Y35: =W35/X35 -> 3.603638889 | Z35: 0.4 | AA35: 2 | AB35: 9.6 | AC35: 830.2784 | AD35: 830.2784 | AE35: 6359.8784 | AF35: 830.2784 | AG35: < than 1 IFPS
B36: 25 | C36: 4 | D36: 7.5 | E36: 3000 | F36: 3517 | G36: 145606 | H36: 54479 | I36: 2.672699572 | J36: 0.3 | K36: 1.5 | L36: 7.2 | M36: 349.4544 | N36: 349.4544 | O36: 3487.4448 | P36: 349.4544 | Q36: < than 1 IFPS | R36: 25 | S36: 4 | T36: 7.5 | U36: 7500 | V36: 5082 | W36: 260634 | X36: 79000 | Y36: 3.299164557 | Z36: 0.3 | AA36: 1.5 | AB36: 7.2 | AC36: 625.5216 | AD36: 625.5216 | AE36: 5175.9216 | AF36: 625.5216 | AG36: < than 1 IFPS
B37: 25 | C37: 5 | D37: 6 | E37: 2000 | F37: =AVERAGE(F36,F38) -> 3082 | G37: 142768 | H37: =AVERAGE(H36,H38) -> 58119.5 | I37: 2.456456095 | J37: 0.24 | K37: 1.2 | L37: 5.76 | M37: 274.11456 | N37: 274.11456 | O37: 2952.26112 | P37: 274.11456 | Q37: < than 1 IFPS | R37: 25 | S37: 5 | T37: 6 | U37: 6200 | V37: =AVERAGE(V36,V38) -> 4566 | W37: =AVERAGE(W36,W38) -> 260746 | X37: 85000 | Y37: 3.0676 | Z37: 0.24 | AA37: 1.2 | AB37: 5.76 | AC37: 500.63232 | AD37: 500.63232 | AE37: 4417.43232 | AF37: 500.63232 | AG37: < than 1 IFPS
B38: 25 | C38: 6 | D38: 5 | E38: =F38 -> 2647 | F38: 2647 | G38: 139930 | H38: 61760 | I38: 2.265705959 | J38: 0.2 | K38: 1 | L38: 4.8 | M38: 223.888 | N38: 223.888 | O38: 2595.472 | P38: 223.888 | Q38: < than 1 IFPS | R38: 25 | S38: 6 | T38: 5 | U38: 4800 | V38: 4050 | W38: 260858 | X38: 91517 | Y38: 2.850377525 | Z38: 0.2 | AA38: 1 | AB38: 4.8 | AC38: 417.3728 | AD38: 417.3728 | AE38: 3931.6256 | AF38: 417.3728 | AG38: < than 1 IFPS
B39: 25 | C39: 10 | D39: 3 | E39: =F39 -> 1388 | F39: 1388 | G39: 143728 | H39: 57026 | I39: 2.520394206 | J39: 0.12 | K39: 0.6 | L39: 2.88 | M39: 137.97888 | N39: 137.97888 | O39: 1451.85792 | P39: 137.97888 | Q39: < than 1 IFPS | R39: 25 | S39: 10 | T39: 3 | U39: =V39 -> 2261 | V39: 2261 | W39: 262164 | X39: 86942 | Y39: 3.01538957 | Z39: 0.12 | AA39: 0.6 | AB39: 2.88 | AC39: 251.67744 | AD39: 251.67744 | AE39: 2254.82112 | AF39: 251.67744 | AG39: < than 1 IFPS
B40: 25 | C40: =$J$9/2 -> 15 | D40: 2 | E40: =F40 -> 179 | F40: 179 | G40: 135299 | H40: 45000 | I40: 3.006644444 | J40: 0.08 | K40: 0.4 | L40: 1.92 | M40: 86.59136 | N40: 86.59136 | O40: 777.79136 | P40: 86.59136 | Q40: < than 1 IFPS | R40: 25 | S40: =$J$9/2 -> 15 | T40: 2 | U40: =V40 -> 259 | V40: 259 | W40: 263164 | X40: 65000 | Y40: 4.048676923 | Z40: 0.08 | AA40: 0.4 | AB40: 1.92 | AC40: 168.42496 | AD40: 168.42496 | AE40: 1166.82496 | AF40: 168.42496 | AG40: < than 1 IFPS
B41: 25 | C41: =$J$9 -> 30 | D41: 1 | E41: =F41 -> 156 | F41: 156 | G41: 139388 | H41: 9125 | I41: 15.27539726 | J41: 0.04 | K41: 0.2 | L41: 0.96 | M41: 44.60416 | N41: 44.60416 | O41: 114.68416 | P41: 44.60416 | Q41: < than 1 IFPS | R41: 25 | S41: =$J$9 -> 30 | T41: 1 | U41: =V41 -> 149 | V41: 149 | W41: 264164 | X41: 10573 | Y41: 24.98477253 | Z41: 0.04 | AA41: 0.2 | AB41: 0.96 | AC41: 84.53248 | AD41: 84.53248 | AE41: 165.73312 | AF41: 84.53248 | AG41: < than 1 IFPS
B44: Notes
B45: 1 | D45: For Dinion 720p & FlexiDome 720p, the Sharpness level was adjusted to -10
B46: 2 | D46: Dinion 720p and Flexidome 720p have FW 4.53 build 10
B47: 3 | D47: Dinion 1080p has FW 5.00 build 46
B48: 4 | D48: Above table gives the reccomended average datarates, the actual datarates at some installation site may vary depending on the scene complexities and illumination level
B49: 5 | D49: At measurement: Target_datarate = 5mbps / Max set to 11Mbps / I frame Quality = auto / P frame quality = auto / I frame distance = 25
B50: 6 | D50: Advised not to use BVMS or BVC at an I-frame playback speed < than 1 IFPS (Intra Frame Per Seconde)

Sheet benchmark_records (hidden)
A1: Used Cameras | L1: Camera 1 | P1: Camera 2 | T1: Camera 3 | X1: Camera 4
E2: Resolution | G2: Video | I2: Video | L2: Encoder 1 | N2: Encoder 2 | P2: Encoder 1 | R2: Encoder 2 | T2: Encoder 1 | V2: Encoder 2 | X2: Encoder 1 | Z2: Encoder 2
A3: 1 | B3: 2 | C3: 3 | D3: 4 | E3: Encoder 1 | F3: Encoder 2 | G3: Standard | H3: Codec | I3: Scene | J3: ISCSI | K3: IVMD | L3: Data Rate | M3: Frame Rate | N3: Data Rate | O3: Frame Rate | P3: Data Rate | Q3: Frame Rate | R3: Data Rate | S3: Frame Rate | T3: Data Rate | U3: Frame Rate | V3: Data Rate | W3: Frame Rate | X3: Data Rate | Y3: Frame Rate | Z3: Data Rate | AA3: Frame Rate
A4: 1 | B4: 0 | C4: 0 | D4: 0 | E4: QCIF | F4: n.c | G4: PAL | H4: H.263 | I4: MEDIUM | J4: 0 | K4: 0 | L4: 119 | M4: 25 | N4: 0 | O4: 0 | P4: 0 | Q4: 0 | R4: 0 | S4: 0 | T4: 0 | U4: 0 | V4: 0 | W4: 0 | X4: 0 | Y4: 0 | Z4: 0 | AA4: 0
A5: 1 | B5: 0 | C5: 0 | D5: 0 | E5: CIF | F5: n.c | G5: PAL | H5: H.263 | I5: MEDIUM | J5: 0 | K5: 0 | L5: 521 | M5: 25 | N5: 0 | O5: 0 | P5: 0 | Q5: 0 | R5: 0 | S5: 0 | T5: 0 | U5: 0 | V5: 0 | W5: 0 | X5: 0 | Y5: 0 | Z5: 0 | AA5: 0
A6: 1 | B6: 0 | C6: 0 | D6: 0 | E6: 2CIF | F6: n.c | G6: PAL | H6: H.263 | I6: MEDIUM | J6: 0 | K6: 0 | L6: 1054 | M6: 25 | N6: 0 | O6: 0 | P6: 0 | Q6: 0 | R6: 0 | S6: 0 | T6: 0 | U6: 0 | V6: 0 | W6: 0 | X6: 0 | Y6: 0 | Z6: 0 | AA6: 0
A7: 1 | B7: 0 | C7: 0 | D7: 0 | E7: 4CIF | F7: n.c | G7: PAL | H7: H.263 | I7: MEDIUM | J7: 0 | K7: 0 | L7: 1880 | M7: 25 | N7: 0 | O7: 0 | P7: 0 | Q7: 0 | R7: 0 | S7: 0 | T7: 0 | U7: 0 | V7: 0 | W7: 0 | X7: 0 | Y7: 0 | Z7: 0 | AA7: 0
A8: 1 | B8: 0 | C8: 0 | D8: 0 | E8: HALF-D1 | F8: n.c | G8: PAL | H8: H.263 | I8: MEDIUM | J8: 0 | K8: 0 | L8: 1140 | M8: 25 | N8: 0 | O8: 0 | P8: 0 | Q8: 0 | R8: 0 | S8: 0 | T8: 0 | U8: 0 | V8: 0 | W8: 0 | X8: 0 | Y8: 0 | Z8: 0 | AA8: 0
A9: 1 | B9: 0 | C9: 0 | D9: 0 | E9: 2/3D1 | F9: n.c | G9: PAL | H9: H.263 | I9: MEDIUM | J9: 0 | K9: 0 | L9: 1395 | M9: 25 | N9: 0 | O9: 0 | P9: 0 | Q9: 0 | R9: 0 | S9: 0 | T9: 0 | U9: 0 | V9: 0 | W9: 0 | X9: 0 | Y9: 0 | Z9: 0 | AA9: 0
A10: 1 | B10: 0 | C10: 0 | D10: 0 | E10: QCIF | F10: QCIF | G10: PAL | H10: H.263 | I10: MEDIUM | J10: 0 | K10: 0 | L10: 113 | M10: 25 | N10: 115 | O10: 25 | P10: 0 | Q10: 0 | R10: 0 | S10: 0 | T10: 0 | U10: 0 | V10: 0 | W10: 0 | X10: 0 | Y10: 0 | Z10: 0 | AA10: 0
A11: 1 | B11: 0 | C11: 0 | D11: 0 | E11: CIF | F11: QCIF | G11: PAL | H11: H.263 | I11: MEDIUM | J11: 0 | K11: 0 | L11: 515 | M11: 25 | N11: 80 | O11: 25 | P11: 0 | Q11: 0 | R11: 0 | S11: 0 | T11: 0 | U11: 0 | V11: 0 | W11: 0 | X11: 0 | Y11: 0 | Z11: 0 | AA11: 0
A12: 1 | B12: 0 | C12: 0 | D12: 0 | E12: 2CIF | F12: QCIF | G12: PAL | H12: H.263 | I12: MEDIUM | J12: 0 | K12: 0 | L12: 1109 | M12: 25 | N12: 118 | O12: 25 | P12: 0 | Q12: 0 | R12: 0 | S12: 0 | T12: 0 | U12: 0 | V12: 0 | W12: 0 | X12: 0 | Y12: 0 | Z12: 0 | AA12: 0
A13: 1 | B13: 0 | C13: 0 | D13: 0 | E13: 4CIF | F13: QCIF | G13: PAL | H13: H.263 | I13: MEDIUM | J13: 0 | K13: 0 | L13: 1865 | M13: 25 | N13: 109 | O13: 25 | P13: 0 | Q13: 0 | R13: 0 | S13: 0 | T13: 0 | U13: 0 | V13: 0 | W13: 0 | X13: 0 | Y13: 0 | Z13: 0 | AA13: 0
A14: 1 | B14: 0 | C14: 0 | D14: 0 | E14: HALF-D1 | F14: QCIF | G14: PAL | H14: H.263 | I14: MEDIUM | J14: 0 | K14: 0 | L14: 1087 | M14: 25 | N14: 88 | O14: 25 | P14: 0 | Q14: 0 | R14: 0 | S14: 0 | T14: 0 | U14: 0 | V14: 0 | W14: 0 | X14: 0 | Y14: 0 | Z14: 0 | AA14: 0
A15: 1 | B15: 0 | C15: 0 | D15: 0 | E15: 2/3D1 | F15: QCIF | G15: PAL | H15: H.263 | I15: MEDIUM | J15: 0 | K15: 0 | L15: 1427 | M15: 25 | N15: 89 | O15: 25 | P15: 0 | Q15: 0 | R15: 0 | S15: 0 | T15: 0 | U15: 0 | V15: 0 | W15: 0 | X15: 0 | Y15: 0 | Z15: 0 | AA15: 0
A16: 1 | B16: 0 | C16: 0 | D16: 0 | E16: QCIF | F16: CIF | G16: PAL | H16: H.263 | I16: MEDIUM | J16: 0 | K16: 0 | L16: 80 | M16: 25 | N16: 522 | O16: 25 | P16: 0 | Q16: 0 | R16: 0 | S16: 0 | T16: 0 | U16: 0 | V16: 0 | W16: 0 | X16: 0 | Y16: 0 | Z16: 0 | AA16: 0
A17: 1 | B17: 0 | C17: 0 | D17: 0 | E17: CIF | F17: CIF | G17: PAL | H17: H.263 | I17: MEDIUM | J17: 0 | K17: 0 | L17: 514 | M17: 25 | N17: 545 | O17: 25 | P17: 0 | Q17: 0 | R17: 0 | S17: 0 | T17: 0 | U17: 0 | V17: 0 | W17: 0 | X17: 0 | Y17: 0 | Z17: 0 | AA17: 0
A18: 1 | B18: 0 | C18: 0 | D18: 0 | E18: 2CIF | F18: CIF | G18: PAL | H18: H.263 | I18: MEDIUM | J18: 0 | K18: 0 | L18: 1087 | M18: 25 | N18: 538 | O18: 25 | P18: 0 | Q18: 0 | R18: 0 | S18: 0 | T18: 0 | U18: 0 | V18: 0 | W18: 0 | X18: 0 | Y18: 0 | Z18: 0 | AA18: 0
A19: 1 | B19: 0 | C19: 0 | D19: 0 | E19: 4CIF | F19: CIF | G19: PAL | H19: H.263 | I19: MEDIUM | J19: 0 | K19: 0 | L19: 1874 | M19: 25 | N19: 508 | O19: 24 | P19: 0 | Q19: 0 | R19: 0 | S19: 0 | T19: 0 | U19: 0 | V19: 0 | W19: 0 | X19: 0 | Y19: 0 | Z19: 0 | AA19: 0
A20: 1 | B20: 0 | C20: 0 | D20: 0 | E20: HALF-D1 | F20: CIF | G20: PAL | H20: H.263 | I20: MEDIUM | J20: 0 | K20: 0 | L20: 1074 | M20: 25 | N20: 556 | O20: 25 | P20: 0 | Q20: 0 | R20: 0 | S20: 0 | T20: 0 | U20: 0 | V20: 0 | W20: 0 | X20: 0 | Y20: 0 | Z20: 0 | AA20: 0
A21: 1 | B21: 0 | C21: 0 | D21: 0 | E21: 2/3D1 | F21: CIF | G21: PAL | H21: H.263 | I21: MEDIUM | J21: 0 | K21: 0 | L21: 1440 | M21: 25 | N21: 513 | O21: 25 | P21: 0 | Q21: 0 | R21: 0 | S21: 0 | T21: 0 | U21: 0 | V21: 0 | W21: 0 | X21: 0 | Y21: 0 | Z21: 0 | AA21: 0
A22: 1 | B22: 0 | C22: 0 | D22: 0 | E22: QCIF | F22: 2CIF | G22: PAL | H22: H.263 | I22: MEDIUM | J22: 0 | K22: 0 | L22: 114 | M22: 25 | N22: 1000 | O22: 25 | P22: 0 | Q22: 0 | R22: 0 | S22: 0 | T22: 0 | U22: 0 | V22: 0 | W22: 0 | X22: 0 | Y22: 0 | Z22: 0 | AA22: 0
A23: 1 | B23: 0 | C23: 0 | D23: 0 | E23: CIF | F23: 2CIF | G23: PAL | H23: H.263 | I23: MEDIUM | J23: 0 | K23: 0 | L23: 535 | M23: 25 | N23: 1027 | O23: 25 | P23: 0 | Q23: 0 | R23: 0 | S23: 0 | T23: 0 | U23: 0 | V23: 0 | W23: 0 | X23: 0 | Y23: 0 | Z23: 0 | AA23: 0
A24: 1 | B24: 0 | C24: 0 | D24: 0 | E24: 2CIF | F24: 2CIF | G24: PAL | H24: H.263 | I24: MEDIUM | J24: 0 | K24: 0 | L24: 1016 | M24: 25 | N24: 1099 | O24: 25 | P24: 0 | Q24: 0 | R24: 0 | S24: 0 | T24: 0 | U24: 0 | V24: 0 | W24: 0 | X24: 0 | Y24: 0 | Z24: 0 | AA24: 0
A25: 1 | B25: 0 | C25: 0 | D25: 0 | E25: 4CIF | F25: 2CIF | G25: PAL | H25: H.263 | I25: MEDIUM | J25: 0 | K25: 0 | L25: 1922 | M25: 25 | N25: 870 | O25: 19 | P25: 0 | Q25: 0 | R25: 0 | S25: 0 | T25: 0 | U25: 0 | V25: 0 | W25: 0 | X25: 0 | Y25: 0 | Z25: 0 | AA25: 0
A26: 1 | B26: 0 | C26: 0 | D26: 0 | E26: HALF-D1 | F26: 2CIF | G26: PAL | H26: H.263 | I26: MEDIUM | J26: 0 | K26: 0 | L26: 1122 | M26: 25 | N26: 1037 | O26: 25 | P26: 0 | Q26: 0 | R26: 0 | S26: 0 | T26: 0 | U26: 0 | V26: 0 | W26: 0 | X26: 0 | Y26: 0 | Z26: 0 | AA26: 0
A27: 1 | B27: 0 | C27: 0 | D27: 0 | E27: 2/3D1 | F27: 2CIF | G27: PAL | H27: H.263 | I27: MEDIUM | J27: 0 | K27: 0 | L27: 1418 | M27: 25 | N27: 1098 | O27: 25 | P27: 0 | Q27: 0 | R27: 0 | S27: 0 | T27: 0 | U27: 0 | V27: 0 | W27: 0 | X27: 0 | Y27: 0 | Z27: 0 | AA27: 0
A28: 1 | B28: 0 | C28: 0 | D28: 0 | E28: QCIF | F28: 4CIF | G28: PAL | H28: H.263 | I28: MEDIUM | J28: 0 | K28: 0 | L28: 121 | M28: 25 | N28: 1856 | O28: 25 | P28: 0 | Q28: 0 | R28: 0 | S28: 0 | T28: 0 | U28: 0 | V28: 0 | W28: 0 | X28: 0 | Y28: 0 | Z28: 0 | AA28: 0
A29: 1 | B29: 0 | C29: 0 | D29: 0 | E29: CIF | F29: 4CIF | G29: PAL | H29: H.263 | I29: MEDIUM | J29: 0 | K29: 0 | L29: 533 | M29: 25 | N29: 1828 | O29: 25 | P29: 0 | Q29: 0 | R29: 0 | S29: 0 | T29: 0 | U29: 0 | V29: 0 | W29: 0 | X29: 0 | Y29: 0 | Z29: 0 | AA29: 0
A30: 1 | B30: 0 | C30: 0 | D30: 0 | E30: 2CIF | F30: 4CIF | G30: PAL | H30: H.263 | I30: MEDIUM | J30: 0 | K30: 0 | L30: 1041 | M30: 25 | N30: 1653 | O30: 22 | P30: 0 | Q30: 0 | R30: 0 | S30: 0 | T30: 0 | U30: 0 | V30: 0 | W30: 0 | X30: 0 | Y30: 0 | Z30: 0 | AA30: 0
A31: 1 | B31: 0 | C31: 0 | D31: 0 | E31: 4CIF | F31: 4CIF | G31: PAL | H31: H.263 | I31: MEDIUM | J31: 0 | K31: 0 | L31: 1896 | M31: 25 | N31: 717 | O31: 9 | P31: 0 | Q31: 0 | R31: 0 | S31: 0 | T31: 0 | U31: 0 | V31: 0 | W31: 0 | X31: 0 | Y31: 0 | Z31: 0 | AA31: 0
A32: 1 | B32: 0 | C32: 0 | D32: 0 | E32: HALF-D1 | F32: 4CIF | G32: PAL | H32: H.263 | I32: MEDIUM | J32: 0 | K32: 0 | L32: 1144 | M32: 25 | N32: 1419 | O32: 19 | P32: 0 | Q32: 0 | R32: 0 | S32: 0 | T32: 0 | U32: 0 | V32: 0 | W32: 0 | X32: 0 | Y32: 0 | Z32: 0 | AA32: 0
A33: 1 | B33: 0 | C33: 0 | D33: 0 | E33: 2/3D1 | F33: 4CIF | G33: PAL | H33: H.263 | I33: MEDIUM | J33: 0 | K33: 0 | L33: 1392 | M33: 25 | N33: 1114 | O33: 14 | P33: 0 | Q33: 0 | R33: 0 | S33: 0 | T33: 0 | U33: 0 | V33: 0 | W33: 0 | X33: 0 | Y33: 0 | Z33: 0 | AA33: 0
A34: 1 | B34: 0 | C34: 0 | D34: 0 | E34: QCIF | F34: HALF-D1 | G34: PAL | H34: H.263 | I34: MEDIUM | J34: 0 | K34: 0 | L34: 81 | M34: 25 | N34: 925 | O34: 25 | P34: 0 | Q34: 0 | R34: 0 | S34: 0 | T34: 0 | U34: 0 | V34: 0 | W34: 0 | X34: 0 | Y34: 0 | Z34: 0 | AA34: 0
A35: 1 | B35: 0 | C35: 0 | D35: 0 | E35: CIF | F35: HALF-D1 | G35: PAL | H35: H.263 | I35: MEDIUM | J35: 0 | K35: 0 | L35: 523 | M35: 25 | N35: 923 | O35: 25 | P35: 0 | Q35: 0 | R35: 0 | S35: 0 | T35: 0 | U35: 0 | V35: 0 | W35: 0 | X35: 0 | Y35: 0 | Z35: 0 | AA35: 0
A36: 1 | B36: 0 | C36: 0 | D36: 0 | E36: 2CIF | F36: HALF-D1 | G36: PAL | H36: H.263 | I36: MEDIUM | J36: 0 | K36: 0 | L36: 1059 | M36: 25 | N36: 926 | O36: 25 | P36: 0 | Q36: 0 | R36: 0 | S36: 0 | T36: 0 | U36: 0 | V36: 0 | W36: 0 | X36: 0 | Y36: 0 | Z36: 0 | AA36: 0
A37: 1 | B37: 0 | C37: 0 | D37: 0 | E37: 4CIF | F37: HALF-D1 | G37: PAL | H37: H.263 | I37: MEDIUM | J37: 0 | K37: 0 | L37: 1856 | M37: 25 | N37: 547 | O37: 15 | P37: 0 | Q37: 0 | R37: 0 | S37: 0 | T37: 0 | U37: 0 | V37: 0 | W37: 0 | X37: 0 | Y37: 0 | Z37: 0 | AA37: 0
A38: 1 | B38: 0 | C38: 0 | D38: 0 | E38: HALF-D1 | F38: HALF-D1 | G38: PAL | H38: H.263 | I38: MEDIUM | J38: 0 | K38: 0 | L38: 1126 | M38: 25 | N38: 932 | O38: 25 | P38: 0 | Q38: 0 | R38: 0 | S38: 0 | T38: 0 | U38: 0 | V38: 0 | W38: 0 | X38: 0 | Y38: 0 | Z38: 0 | AA38: 0
A39: 1 | B39: 0 | C39: 0 | D39: 0 | E39: 2/3D1 | F39: HALF-D1 | G39: PAL | H39: H.263 | I39: MEDIUM | J39: 0 | K39: 0 | L39: 1456 | M39: 25 | N39: 797 | O39: 23 | P39: 0 | Q39: 0 | R39: 0 | S39: 0 | T39: 0 | U39: 0 | V39: 0 | W39: 0 | X39: 0 | Y39: 0 | Z39: 0 | AA39: 0
A40: 1 | B40: 0 | C40: 0 | D40: 0 | E40: QCIF | F40: 2/3D1 | G40: PAL | H40: H.263 | I40: MEDIUM | J40: 0 | K40: 0 | L40: 99 | M40: 25 | N40: 1373 | O40: 25 | P40: 0 | Q40: 0 | R40: 0 | S40: 0 | T40: 0 | U40: 0 | V40: 0 | W40: 0 | X40: 0 | Y40: 0 | Z40: 0 | AA40: 0
A41: 1 | B41: 0 | C41: 0 | D41: 0 | E41: CIF | F41: 2/3D1 | G41: PAL | H41: H.263 | I41: MEDIUM | J41: 0 | K41: 0 | L41: 525 | M41: 25 | N41: 1312 | O41: 25 | P41: 0 | Q41: 0 | R41: 0 | S41: 0 | T41: 0 | U41: 0 | V41: 0 | W41: 0 | X41: 0 | Y41: 0 | Z41: 0 | AA41: 0
A42: 1 | B42: 0 | C42: 0 | D42: 0 | E42: 2CIF | F42: 2/3D1 | G42: PAL | H42: H.263 | I42: MEDIUM | J42: 0 | K42: 0 | L42: 1041 | M42: 25 | N42: 1320 | O42: 25 | P42: 0 | Q42: 0 | R42: 0 | S42: 0 | T42: 0 | U42: 0 | V42: 0 | W42: 0 | X42: 0 | Y42: 0 | Z42: 0 | AA42: 0
A43: 1 | B43: 0 | C43: 0 | D43: 0 | E43: 4CIF | F43: 2/3D1 | G43: PAL | H43: H.263 | I43: MEDIUM | J43: 0 | K43: 0 | L43: 1872 | M43: 25 | N43: 687 | O43: 12 | P43: 0 | Q43: 0 | R43: 0 | S43: 0 | T43: 0 | U43: 0 | V43: 0 | W43: 0 | X43: 0 | Y43: 0 | Z43: 0 | AA43: 0
A44: 1 | B44: 0 | C44: 0 | D44: 0 | E44: HALF-D1 | F44: 2/3D1 | G44: PAL | H44: H.263 | I44: MEDIUM | J44: 0 | K44: 0 | L44: 1057 | M44: 25 | N44: 1288 | O44: 24 | P44: 0 | Q44: 0 | R44: 0 | S44: 0 | T44: 0 | U44: 0 | V44: 0 | W44: 0 | X44: 0 | Y44: 0 | Z44: 0 | AA44: 0
A45: 1 | B45: 0 | C45: 0 | D45: 0 | E45: 2/3D1 | F45: 2/3D1 | G45: PAL | H45: H.263 | I45: MEDIUM | J45: 0 | K45: 0 | L45: 1484 | M45: 25 | N45: 1178 | O45: 23 | P45: 0 | Q45: 0 | R45: 0 | S45: 0 | T45: 0 | U45: 0 | V45: 0 | W45: 0 | X45: 0 | Y45: 0 | Z45: 0 | AA45: 0
A46: 1 | B46: 0 | C46: 1 | D46: 0 | E46: QCIF | F46: n.c | G46: PAL | H46: H.263 | I46: MEDIUM | J46: 0 | K46: 0 | L46: 123 | M46: 25 | N46: 0 | O46: 0 | P46: 0 | Q46: 0 | R46: 0 | S46: 0 | T46: 125 | U46: 25 | V46: 0 | W46: 0 | X46: 0 | Y46: 0 | Z46: 0 | AA46: 0
A47: 1 | B47: 0 | C47: 1 | D47: 0 | E47: CIF | F47: n.c | G47: PAL | H47: H.263 | I47: MEDIUM | J47: 0 | K47: 0 | L47: 542 | M47: 25 | N47: 0 | O47: 0 | P47: 0 | Q47: 0 | R47: 0 | S47: 0 | T47: 549 | U47: 25 | V47: 0 | W47: 0 | X47: 0 | Y47: 0 | Z47: 0 | AA47: 0
A48: 1 | B48: 0 | C48: 1 | D48: 0 | E48: 2CIF | F48: n.c | G48: PAL | H48: H.263 | I48: MEDIUM | J48: 0 | K48: 0 | L48: 1107 | M48: 25 | N48: 0 | O48: 0 | P48: 0 | Q48: 0 | R48: 0 | S48: 0 | T48: 1129 | U48: 25 | V48: 0 | W48: 0 | X48: 0 | Y48: 0 | Z48: 0 | AA48: 0
A49: 1 | B49: 0 | C49: 1 | D49: 0 | E49: 4CIF | F49: n.c | G49: PAL | H49: H.263 | I49: MEDIUM | J49: 0 | K49: 0 | L49: 1891 | M49: 25 | N49: 0 | O49: 0 | P49: 0 | Q49: 0 | R49: 0 | S49: 0 | T49: 1909 | U49: 25 | V49: 0 | W49: 0 | X49: 0 | Y49: 0 | Z49: 0 | AA49: 0
A50: 1 | B50: 0 | C50: 1 | D50: 0 | E50: HALF-D1 | F50: n.c | G50: PAL | H50: H.263 | I50: MEDIUM | J50: 0 | K50: 0 | L50: 1081 | M50: 25 | N50: 0 | O50: 0 | P50: 0 | Q50: 0 | R50: 0 | S50: 0 | T50: 1127 | U50: 25 | V50: 0 | W50: 0 | X50: 0 | Y50: 0 | Z50: 0 | AA50: 0
A51: 1 | B51: 0 | C51: 1 | D51: 0 | E51: 2/3D1 | F51: n.c | G51: PAL | H51: H.263 | I51: MEDIUM | J51: 0 | K51: 0 | L51: 1434 | M51: 25 | N51: 0 | O51: 0 | P51: 0 | Q51: 0 | R51: 0 | S51: 0 | T51: 1442 | U51: 25 | V51: 0 | W51: 0 | X51: 0 | Y51: 0 | Z51: 0 | AA51: 0
A52: 1 | B52: 0 | C52: 1 | D52: 0 | E52: QCIF | F52: QCIF | G52: PAL | H52: H.263 | I52: MEDIUM | J52: 0 | K52: 0 | L52: 122 | M52: 25 | N52: 115 | O52: 25 | P52: 0 | Q52: 0 | R52: 0 | S52: 0 | T52: 115 | U52: 25 | V52: 121 | W52: 25 | X52: 0 | Y52: 0 | Z52: 0 | AA52: 0
A53: 1 | B53: 0 | C53: 1 | D53: 0 | E53: CIF | F53: QCIF | G53: PAL | H53: H.263 | I53: MEDIUM | J53: 0 | K53: 0 | L53: 539 | M53: 25 | N53: 72 | O53: 25 | P53: 0 | Q53: 0 | R53: 0 | S53: 0 | T53: 548 | U53: 25 | V53: 73 | W53: 25 | X53: 0 | Y53: 0 | Z53: 0 | AA53: 0
A54: 1 | B54: 0 | C54: 1 | D54: 0 | E54: 2CIF | F54: QCIF | G54: PAL | H54: H.263 | I54: MEDIUM | J54: 0 | K54: 0 | L54: 1045 | M54: 25 | N54: 115 | O54: 25 | P54: 0 | Q54: 0 | R54: 0 | S54: 0 | T54: 1048 | U54: 25 | V54: 118 | W54: 25 | X54: 0 | Y54: 0 | Z54: 0 | AA54: 0
A55: 1 | B55: 0 | C55: 1 | D55: 0 | E55: 4CIF | F55: QCIF | G55: PAL | H55: H.263 | I55: MEDIUM | J55: 0 | K55: 0 | L55: 1869 | M55: 25 | N55: 111 | O55: 25 | P55: 0 | Q55: 0 | R55: 0 | S55: 0 | T55: 1940 | U55: 25 | V55: 114 | W55: 25 | X55: 0 | Y55: 0 | Z55: 0 | AA55: 0
A56: 1 | B56: 0 | C56: 1 | D56: 0 | E56: HALF-D1 | F56: QCIF | G56: PAL | H56: H.263 | I56: MEDIUM | J56: 0 | K56: 0 | L56: 1129 | M56: 25 | N56: 84 | O56: 25 | P56: 0 | Q56: 0 | R56: 0 | S56: 0 | T56: 1151 | U56: 25 | V56: 86 | W56: 25 | X56: 0 | Y56: 0 | Z56: 0 | AA56: 0
A57: 1 | B57: 0 | C57: 1 | D57: 0 | E57: 2/3D1 | F57: QCIF | G57: PAL | H57: H.263 | I57: MEDIUM | J57: 0 | K57: 0 | L57: 1428 | M57: 25 | N57: 92 | O57: 25 | P57: 0 | Q57: 0 | R57: 0 | S57: 0 | T57: 1479 | U57: 25 | V57: 94 | W57: 25 | X57: 0 | Y57: 0 | Z57: 0 | AA57: 0
A58: 1 | B58: 0 | C58: 1 | D58: 0 | E58: QCIF | F58: CIF | G58: PAL | H58: H.263 | I58: MEDIUM | J58: 0 | K58: 0 | L58: 77 | M58: 25 | N58: 535 | O58: 25 | P58: 0 | Q58: 0 | R58: 0 | S58: 0 | T58: 81 | U58: 25 | V58: 539 | W58: 25 | X58: 0 | Y58: 0 | Z58: 0 | AA58: 0
A59: 1 | B59: 0 | C59: 1 | D59: 0 | E59: CIF | F59: CIF | G59: PAL | H59: H.263 | I59: MEDIUM | J59: 0 | K59: 0 | L59: 519 | M59: 25 | N59: 564 | O59: 25 | P59: 0 | Q59: 0 | R59: 0 | S59: 0 | T59: 529 | U59: 25 | V59: 571 | W59: 25 | X59: 0 | Y59: 0 | Z59: 0 | AA59: 0
A60: 1 | B60: 0 | C60: 1 | D60: 0 | E60: 2CIF | F60: CIF | G60: PAL | H60: H.263 | I60: MEDIUM | J60: 0 | K60: 0 | L60: 1108 | M60: 25 | N60: 525 | O60: 25 | P60: 0 | Q60: 0 | R60: 0 | S60: 0 | T60: 1085 | U60: 25 | V60: 531 | W60: 25 | X60: 0 | Y60: 0 | Z60: 0 | AA60: 0
A61: 1 | B61: 0 | C61: 1 | D61: 0 | E61: 4CIF | F61: CIF | G61: PAL | H61: H.263 | I61: MEDIUM | J61: 0 | K61: 0 | L61: 1904 | M61: 25 | N61: 378 | O61: 18 | P61: 0 | Q61: 0 | R61: 0 | S61: 0 | T61: 1882 | U61: 25 | V61: 568 | W61: 25 | X61: 0 | Y61: 0 | Z61: 0 | AA61: 0
A62: 1 | B62: 0 | C62: 1 | D62: 0 | E62: HALF-D1 | F62: CIF | G62: PAL | H62: H.263 | I62: MEDIUM | J62: 0 | K62: 0 | L62: 1082 | M62: 25 | N62: 549 | O62: 25 | P62: 0 | Q62: 0 | R62: 0 | S62: 0 | T62: 1131 | U62: 25 | V62: 555 | W62: 25 | X62: 0 | Y62: 0 | Z62: 0 | AA62: 0
A63: 1 | B63: 0 | C63: 1 | D63: 0 | E63: 2/3D1 | F63: CIF | G63: PAL | H63: H.263 | I63: MEDIUM | J63: 0 | K63: 0 | L63: 1485 | M63: 25 | N63: 512 | O63: 24 | P63: 0 | Q63: 0 | R63: 0 | S63: 0 | T63: 1455 | U63: 25 | V63: 537 | W63: 25 | X63: 0 | Y63: 0 | Z63: 0 | AA63: 0
A64: 1 | B64: 0 | C64: 1 | D64: 0 | E64: QCIF | F64: 2CIF | G64: PAL | H64: H.263 | I64: MEDIUM | J64: 0 | K64: 0 | L64: 109 | M64: 25 | N64: 1077 | O64: 25 | P64: 0 | Q64: 0 | R64: 0 | S64: 0 | T64: 124 | U64: 25 | V64: 1093 | W64: 25 | X64: 0 | Y64: 0 | Z64: 0 | AA64: 0
A65: 1 | B65: 0 | C65: 1 | D65: 0 | E65: CIF | F65: 2CIF | G65: PAL | H65: H.263 | I65: MEDIUM | J65: 0 | K65: 0 | L65: 538 | M65: 25 | N65: 1059 | O65: 25 | P65: 0 | Q65: 0 | R65: 0 | S65: 0 | T65: 554 | U65: 25 | V65: 1091 | W65: 25 | X65: 0 | Y65: 0 | Z65: 0 | AA65: 0
A66: 1 | B66: 0 | C66: 1 | D66: 0 | E66: 2CIF | F66: 2CIF | G66: PAL | H66: H.263 | I66: MEDIUM | J66: 0 | K66: 0 | L66: 1010 | M66: 25 | N66: 1031 | O66: 25 | P66: 0 | Q66: 0 | R66: 0 | S66: 0 | T66: 1072 | U66: 25 | V66: 1051 | W66: 25 | X66: 0 | Y66: 0 | Z66: 0 | AA66: 0
A67: 1 | B67: 0 | C67: 1 | D67: 0 | E67: 4CIF | F67: 2CIF | G67: PAL | H67: H.263 | I67: MEDIUM | J67: 0 | K67: 0 | L67: 1879 | M67: 25 | N67: 452 | O67: 10 | P67: 0 | Q67: 0 | R67: 0 | S67: 0 | T67: 1885 | U67: 25 | V67: 1082 | W67: 25 | X67: 0 | Y67: 0 | Z67: 0 | AA67: 0
A68: 1 | B68: 0 | C68: 1 | D68: 0 | E68: HALF-D1 | F68: 2CIF | G68: PAL | H68: H.263 | I68: MEDIUM | J68: 0 | K68: 0 | L68: 1092 | M68: 25 | N68: 1070 | O68: 24 | P68: 0 | Q68: 0 | R68: 0 | S68: 0 | T68: 1141 | U68: 25 | V68: 1087 | W68: 25 | X68: 0 | Y68: 0 | Z68: 0 | AA68: 0
A69: 1 | B69: 0 | C69: 1 | D69: 0 | E69: 2/3D1 | F69: 2CIF | G69: PAL | H69: H.263 | I69: MEDIUM | J69: 0 | K69: 0 | L69: 1450 | M69: 25 | N69: 931 | O69: 21 | P69: 0 | Q69: 0 | R69: 0 | S69: 0 | T69: 1546 | U69: 25 | V69: 1084 | W69: 25 | X69: 0 | Y69: 0 | Z69: 0 | AA69: 0
A70: 1 | B70: 0 | C70: 1 | D70: 0 | E70: QCIF | F70: 4CIF | G70: PAL | H70: H.263 | I70: MEDIUM | J70: 0 | K70: 0 | L70: 117 | M70: 25 | N70: 1880 | O70: 25 | P70: 0 | Q70: 0 | R70: 0 | S70: 0 | T70: 122 | U70: 25 | V70: 1916 | W70: 25 | X70: 0 | Y70: 0 | Z70: 0 | AA70: 0
A71: 1 | B71: 0 | C71: 1 | D71: 0 | E71: CIF | F71: 4CIF | G71: PAL | H71: H.263 | I71: MEDIUM | J71: 0 | K71: 0 | L71: 558 | M71: 25 | N71: 1689 | O71: 22 | P71: 0 | Q71: 0 | R71: 0 | S71: 0 | T71: 581 | U71: 25 | V71: 1902 | W71: 25 | X71: 0 | Y71: 0 | Z71: 0 | AA71: 0
A72: 1 | B72: 0 | C72: 1 | D72: 0 | E72: 2CIF | F72: 4CIF | G72: PAL | H72: H.263 | I72: MEDIUM | J72: 0 | K72: 0 | L72: 1089 | M72: 25 | N72: 1410 | O72: 18 | P72: 0 | Q72: 0 | R72: 0 | S72: 0 | T72: 1067 | U72: 25 | V72: 1902 | W72: 25 | X72: 0 | Y72: 0 | Z72: 0 | AA72: 0
A73: 1 | B73: 0 | C73: 1 | D73: 0 | E73: 4CIF | F73: 4CIF | G73: PAL | H73: H.263 | I73: MEDIUM | J73: 0 | K73: 0 | L73: 1865 | M73: 25 | N73: 467 | O73: 6 | P73: 0 | Q73: 0 | R73: 0 | S73: 0 | T73: 1656 | U73: 21 | V73: 1667 | W73: 22 | X73: 0 | Y73: 0 | Z73: 0 | AA73: 0
A74: 1 | B74: 0 | C74: 1 | D74: 0 | E74: HALF-D1 | F74: 4CIF | G74: PAL | H74: H.263 | I74: MEDIUM | J74: 0 | K74: 0 | L74: 1143 | M74: 25 | N74: 1110 | O74: 14 | P74: 0 | Q74: 0 | R74: 0 | S74: 0 | T74: 1152 | U74: 25 | V74: 1889 | W74: 25 | X74: 0 | Y74: 0 | Z74: 0 | AA74: 0
A75: 1 | B75: 0 | C75: 1 | D75: 0 | E75: 2/3D1 | F75: 4CIF | G75: PAL | H75: H.263 | I75: MEDIUM | J75: 0 | K75: 0 | L75: 1523 | M75: 25 | N75: 809 | O75: 11 | P75: 0 | Q75: 0 | R75: 0 | S75: 0 | T75: 1425 | U75: 24 | V75: 1847 | W75: 24 | X75: 0 | Y75: 0 | Z75: 0 | AA75: 0
A76: 1 | B76: 0 | C76: 1 | D76: 0 | E76: QCIF | F76: HALF-D1 | G76: PAL | H76: H.263 | I76: MEDIUM | J76: 0 | K76: 0 | L76: 80 | M76: 25 | N76: 954 | O76: 25 | P76: 0 | Q76: 0 | R76: 0 | S76: 0 | T76: 89 | U76: 25 | V76: 945 | W76: 25 | X76: 0 | Y76: 0 | Z76: 0 | AA76: 0
A77: 1 | B77: 0 | C77: 1 | D77: 0 | E77: CIF | F77: HALF-D1 | G77: PAL | H77: H.263 | I77: MEDIUM | J77: 0 | K77: 0 | L77: 563 | M77: 25 | N77: 943 | O77: 25 | P77: 0 | Q77: 0 | R77: 0 | S77: 0 | T77: 560 | U77: 25 | V77: 950 | W77: 25 | X77: 0 | Y77: 0 | Z77: 0 | AA77: 0
A78: 1 | B78: 0 | C78: 1 | D78: 0 | E78: 2CIF | F78: HALF-D1 | G78: PAL | H78: H.263 | I78: MEDIUM | J78: 0 | K78: 0 | L78: 1119 | M78: 25 | N78: 910 | O78: 24 | P78: 0 | Q78: 0 | R78: 0 | S78: 0 | T78: 1088 | U78: 25 | V78: 950 | W78: 25 | X78: 0 | Y78: 0 | Z78: 0 | AA78: 0
A79: 1 | B79: 0 | C79: 1 | D79: 0 | E79: 4CIF | F79: HALF-D1 | G79: PAL | H79: H.263 | I79: MEDIUM | J79: 0 | K79: 0 | L79: 1871 | M79: 25 | N79: 263 | O79: 7 | P79: 0 | Q79: 0 | R79: 0 | S79: 0 | T79: 1878 | U79: 25 | V79: 924 | W79: 25 | X79: 0 | Y79: 0 | Z79: 0 | AA79: 0
A80: 1 | B80: 0 | C80: 1 | D80: 0 | E80: HALF-D1 | F80: HALF-D1 | G80: PAL | H80: H.263 | I80: MEDIUM | J80: 0 | K80: 0 | L80: 1139 | M80: 25 | N80: 873 | O80: 23 | P80: 0 | Q80: 0 | R80: 0 | S80: 0 | T80: 1123 | U80: 25 | V80: 940 | W80: 25 | X80: 0 | Y80: 0 | Z80: 0 | AA80: 0
A81: 1 | B81: 0 | C81: 1 | D81: 0 | E81: 2/3D1 | F81: HALF-D1 | G81: PAL | H81: H.263 | I81: MEDIUM | J81: 0 | K81: 0 | L81: 1549 | M81: 25 | N81: 515 | O81: 14 | P81: 0 | Q81: 0 | R81: 0 | S81: 0 | T81: 1473 | U81: 25 | V81: 947 | W81: 25 | X81: 0 | Y81: 0 | Z81: 0 | AA81: 0
A82: 1 | B82: 0 | C82: 1 | D82: 0 | E82: QCIF | F82: 2/3D1 | G82: PAL | H82: H.263 | I82: MEDIUM | J82: 0 | K82: 0 | L82: 100 | M82: 25 | N82: 1337 | O82: 25 | P82: 0 | Q82: 0 | R82: 0 | S82: 0 | T82: 106 | U82: 25 | V82: 1373 | W82: 25 | X82: 0 | Y82: 0 | Z82: 0 | AA82: 0
A83: 1 | B83: 0 | C83: 1 | D83: 0 | E83: CIF | F83: 2/3D1 | G83: PAL | H83: H.263 | I83: MEDIUM | J83: 0 | K83: 0 | L83: 535 | M83: 25 | N83: 1322 | O83: 24 | P83: 0 | Q83: 0 | R83: 0 | S83: 0 | T83: 505 | U83: 25 | V83: 1394 | W83: 25 | X83: 0 | Y83: 0 | Z83: 0 | AA83: 0
A84: 1 | B84: 0 | C84: 1 | D84: 0 | E84: 2CIF | F84: 2/3D1 | G84: PAL | H84: H.263 | I84: MEDIUM | J84: 0 | K84: 0 | L84: 1099 | M84: 25 | N84: 1161 | O84: 21 | P84: 0 | Q84: 0 | R84: 0 | S84: 0 | T84: 1067 | U84: 25 | V84: 1368 | W84: 25 | X84: 0 | Y84: 0 | Z84: 0 | AA84: 0
A85: 1 | B85: 0 | C85: 1 | D85: 0 | E85: 4CIF | F85: 2/3D1 | G85: PAL | H85: H.263 | I85: MEDIUM | J85: 0 | K85: 0 | L85: 1861 | M85: 25 | N85: 316 | O85: 6 | P85: 0 | Q85: 0 | R85: 0 | S85: 0 | T85: 1815 | U85: 24 | V85: 1288 | W85: 24 | X85: 0 | Y85: 0 | Z85: 0 | AA85: 0
A86: 1 | B86: 0 | C86: 1 | D86: 0 | E86: HALF-D1 | F86: 2/3D1 | G86: PAL | H86: H.263 | I86: MEDIUM | J86: 0 | K86: 0 | L86: 1120 | M86: 25 | N86: 935 | O86: 17 | P86: 0 | Q86: 0 | R86: 0 | S86: 0 | T86: 1083 | U86: 25 | V86: 1349 | W86: 25 | X86: 0 | Y86: 0 | Z86: 0 | AA86: 0
A87: 1 | B87: 0 | C87: 1 | D87: 0 | E87: 2/3D1 | F87: 2/3D1 | G87: PAL | H87: H.263 | I87: MEDIUM | J87: 0 | K87: 0 | L87: 1547 | M87: 25 | N87: 724 | O87: 13 | P87: 0 | Q87: 0 | R87: 0 | S87: 0 | T87: 1491 | U87: 25 | V87: 1410 | W87: 25 | X87: 0 | Y87: 0 | Z87: 0 | AA87: 0
A88: 1 | B88: 1 | C88: 1 | D88: 1 | E88: QCIF | F88: n.c | G88: PAL | H88: H.263 | I88: MEDIUM | J88: 0 | K88: 0 | L88: 112 | M88: 25 | N88: 0 | O88: 0 | P88: 116 | Q88: 25 | R88: 0 | S88: 0 | T88: 115 | U88: 25 | V88: 0 | W88: 0 | X88: 118 | Y88: 25 | Z88: 0 | AA88: 0
A89: 1 | B89: 1 | C89: 1 | D89: 1 | E89: CIF | F89: n.c | G89: PAL | H89: H.263 | I89: MEDIUM | J89: 0 | K89: 0 | L89: 570 | M89: 25 | N89: 0 | O89: 0 | P89: 578 | Q89: 25 | R89: 0 | S89: 0 | T89: 567 | U89: 25 | V89: 0 | W89: 0 | X89: 573 | Y89: 25 | Z89: 0 | AA89: 0
A90: 1 | B90: 1 | C90: 1 | D90: 1 | E90: 2CIF | F90: n.c | G90: PAL | H90: H.263 | I90: MEDIUM | J90: 0 | K90: 0 | L90: 1094 | M90: 25 | N90: 0 | O90: 0 | P90: 1102 | Q90: 25 | R90: 0 | S90: 0 | T90: 1135 | U90: 25 | V90: 0 | W90: 0 | X90: 1150 | Y90: 25 | Z90: 0 | AA90: 0
A91: 1 | B91: 1 | C91: 1 | D91: 1 | E91: 4CIF | F91: n.c | G91: PAL | H91: H.263 | I91: MEDIUM | J91: 0 | K91: 0 | L91: 1116 | M91: 14 | N91: 0 | O91: 0 | P91: 1114 | Q91: 14 | R91: 0 | S91: 0 | T91: 1655 | U91: 22 | V91: 0 | W91: 0 | X91: 1654 | Y91: 22 | Z91: 0 | AA91: 0
A92: 1 | B92: 1 | C92: 1 | D92: 1 | E92: HALF-D1 | F92: n.c | G92: PAL | H92: H.263 | I92: MEDIUM | J92: 0 | K92: 0 | L92: 1019 | M92: 22 | N92: 0 | O92: 0 | P92: 1046 | Q92: 22 | R92: 0 | S92: 0 | T92: 1166 | U92: 25 | V92: 0 | W92: 0 | X92: 1187 | Y92: 25 | Z92: 0 | AA92: 0
A93: 1 | B93: 1 | C93: 1 | D93: 1 | E93: 2/3D1 | F93: n.c | G93: PAL | H93: H.263 | I93: MEDIUM | J93: 0 | K93: 0 | L93: 1132 | M93: 18 | N93: 0 | O93: 0 | P93: 1131 | Q93: 18 | R93: 0 | S93: 0 | T93: 1519 | U93: 25 | V93: 0 | W93: 0 | X93: 1542 | Y93: 25 | Z93: 0 | AA93: 0
A94: 1 | B94: 1 | C94: 1 | D94: 1 | E94: QCIF | F94: QCIF | G94: PAL | H94: H.263 | I94: MEDIUM | J94: 0 | K94: 0 | L94: 111 | M94: 25 | N94: 118 | O94: 25 | P94: 120 | Q94: 25 | R94: 121 | S94: 25 | T94: 119 | U94: 25 | V94: 116 | W94: 25 | X94: 122 | Y94: 25 | Z94: 120 | AA94: 25
A95: 1 | B95: 1 | C95: 1 | D95: 1 | E95: CIF | F95: QCIF | G95: PAL | H95: H.263 | I95: MEDIUM | J95: 0 | K95: 0 | L95: 543 | M95: 25 | N95: 81 | O95: 25 | P95: 532 | Q95: 25 | R95: 77 | S95: 24 | T95: 533 | U95: 25 | V95: 84 | W95: 25 | X95: 539 | Y95: 25 | Z95: 87 | AA95: 25
A96: 1 | B96: 1 | C96: 1 | D96: 1 | E96: 2CIF | F96: QCIF | G96: PAL | H96: H.263 | I96: MEDIUM | J96: 0 | K96: 0 | L96: 1141 | M96: 25 | N96: 55 | O96: 12 | P96: 1143 | Q96: 25 | R96: 37 | S96: 8 | T96: 1151 | U96: 25 | V96: 122 | W96: 25 | X96: 1173 | Y96: 25 | Z96: 126 | AA96: 25
A97: 1 | B97: 1 | C97: 1 | D97: 1 | E97: 4CIF | F97: QCIF | G97: PAL | H97: H.263 | I97: MEDIUM | J97: 0 | K97: 0 | L97: 1068 | M97: 14 | N97: 6 | O97: 1 | P97: 1068 | Q97: 14 | R97: 7 | S97: 1 | T97: 1463 | U97: 19 | V97: 93 | W97: 19 | X97: 1457 | Y97: 19 | Z97: 95 | AA97: 19
A98: 1 | B98: 1 | C98: 1 | D98: 1 | E98: HALF-D1 | F98: QCIF | G98: PAL | H98: H.263 | I98: MEDIUM | J98: 0 | K98: 0 | L98: 968 | M98: 21 | N98: 7 | O98: 1 | P98: 971 | Q98: 21 | R98: 7 | S98: 1 | T98: 1140 | U98: 25 | V98: 82 | W98: 25 | X98: 1165 | Y98: 25 | Z98: 78 | AA98: 25
A99: 1 | B99: 1 | C99: 1 | D99: 1 | E99: 2/3D1 | F99: QCIF | G99: PAL | H99: H.263 | I99: MEDIUM | J99: 0 | K99: 0 | L99: 1041 | M99: 17 | N99: 7 | O99: 1 | P99: 1042 | Q99: 17 | R99: 7 | S99: 1 | T99: 1414 | U99: 24 | V99: 91 | W99: 23 | X99: 1418 | Y99: 24 | Z99: 94 | AA99: 23
A100: 1 | B100: 1 | C100: 1 | D100: 1 | E100: QCIF | F100: CIF | G100: PAL | H100: H.263 | I100: MEDIUM | J100: 0 | K100: 0 | L100: 80 | M100: 25 | N100: 531 | O100: 25 | P100: 86 | Q100: 25 | R100: 513 | S100: 24 | T100: 78 | U100: 25 | V100: 539 | W100: 25 | X100: 84 | Y100: 25 | Z100: 533 | AA100: 25
A101: 1 | B101: 1 | C101: 1 | D101: 1 | E101: CIF | F101: CIF | G101: PAL | H101: H.263 | I101: MEDIUM | J101: 0 | K101: 0 | L101: 560 | M101: 25 | N101: 341 | O101: 16 | P101: 559 | Q101: 25 | R101: 394 | S101: 18 | T101: 557 | U101: 25 | V101: 551 | W101: 25 | X101: 567 | Y101: 25 | Z101: 560 | AA101: 25
A102: 1 | B102: 1 | C102: 1 | D102: 1 | E102: 2CIF | F102: CIF | G102: PAL | H102: H.263 | I102: MEDIUM | J102: 0 | K102: 0 | L102: 1024 | M102: 25 | N102: 47 | O102: 2 | P102: 1025 | Q102: 24 | R102: 93 | S102: 5 | T102: 1045 | U102: 25 | V102: 550 | W102: 25 | X102: 1061 | Y102: 25 | Z102: 554 | AA102: 25
A103: 1 | B103: 1 | C103: 1 | D103: 1 | E103: 4CIF | F103: CIF | G103: PAL | H103: H.263 | I103: MEDIUM | J103: 0 | K103: 0 | L103: 1040 | M103: 13 | N103: 28 | O103: 1 | P103: 1037 | Q103: 13 | R103: 27 | S103: 1 | T103: 1233 | U103: 16 | V103: 356 | W103: 16 | X103: 1236 | Y103: 16 | Z103: 358 | AA103: 16
A104: 1 | B104: 1 | C104: 1 | D104: 1 | E104: HALF-D1 | F104: CIF | G104: PAL | H104: H.263 | I104: MEDIUM | J104: 0 | K104: 0 | L104: 935 | M104: 20 | N104: 26 | O104: 1 | P104: 938 | Q104: 20 | R104: 26 | S104: 1 | T104: 1092 | U104: 23 | V104: 509 | W104: 24 | X104: 1100 | Y104: 23 | Z104: 510 | AA104: 24
A105: 1 | B105: 1 | C105: 1 | D105: 1 | E105: 2/3D1 | F105: CIF | G105: PAL | H105: H.263 | I105: MEDIUM | J105: 0 | K105: 0 | L105: 1005 | M105: 17 | N105: 27 | O105: 1 | P105: 1011 | Q105: 16 | R105: 26 | S105: 1 | T105: 1185 | U105: 19 | V105: 404 | W105: 19 | X105: 1182 | Y105: 19 | Z105: 409 | AA105: 19
A106: 1 | B106: 1 | C106: 1 | D106: 1 | E106: QCIF | F106: 2CIF | G106: PAL | H106: H.263 | I106: MEDIUM | J106: 0 | K106: 0 | L106: 118 | M106: 25 | N106: 1008 | O106: 24 | P106: 152 | Q106: 25 | R106: 765 | S106: 18 | T106: 113 | U106: 25 | V106: 1052 | W106: 25 | X106: 116 | Y106: 25 | Z106: 1067 | AA106: 25
A107: 1 | B107: 1 | C107: 1 | D107: 1 | E107: CIF | F107: 2CIF | G107: PAL | H107: H.263 | I107: MEDIUM | J107: 0 | K107: 0 | L107: 520 | M107: 25 | N107: 268 | O107: 5 | P107: 521 | Q107: 25 | R107: 470 | S107: 11 | T107: 527 | U107: 25 | V107: 1109 | W107: 25 | X107: 530 | Y107: 25 | Z107: 1119 | AA107: 25
A108: 1 | B108: 1 | C108: 1 | D108: 1 | E108: 2CIF | F108: 2CIF | G108: PAL | H108: H.263 | I108: MEDIUM | J108: 0 | K108: 0 | L108: 1036 | M108: 23 | N108: 90 | O108: 1 | P108: 1035 | Q108: 23 | R108: 99 | S108: 2 | T108: 1011 | U108: 22 | V108: 988 | W108: 22 | X108: 1023 | Y108: 22 | Z108: 990 | AA108: 22
A109: 1 | B109: 1 | C109: 1 | D109: 1 | E109: 4CIF | F109: 2CIF | G109: PAL | H109: H.263 | I109: MEDIUM | J109: 0 | K109: 0 | L109: 977 | M109: 13 | N109: 71 | O109: 1 | P109: 968 | Q109: 12 | R109: 71 | S109: 1 | T109: 1102 | U109: 14 | V109: 685 | W109: 15 | X109: 1101 | Y109: 14 | Z109: 705 | AA109: 14
A110: 1 | B110: 1 | C110: 1 | D110: 1 | E110: HALF-D1 | F110: 2CIF | G110: PAL | H110: H.263 | I110: MEDIUM | J110: 0 | K110: 0 | L110: 853 | M110: 18 | N110: 71 | O110: 1 | P110: 856 | Q110: 19 | R110: 73 | S110: 1 | T110: 883 | U110: 19 | V110: 896 | W110: 19 | X110: 883 | Y110: 19 | Z110: 898 | AA110: 19
A111: 1 | B111: 1 | C111: 1 | D111: 1 | E111: 2/3D1 | F111: 2CIF | G111: PAL | H111: H.263 | I111: MEDIUM | J111: 0 | K111: 0 | L111: 984 | M111: 16 | N111: 68 | O111: 1 | P111: 987 | Q111: 16 | R111: 68 | S111: 1 | T111: 1054 | U111: 17 | V111: 760 | W111: 17 | X111: 1024 | Y111: 17 | Z111: 757 | AA111: 17
A112: 1 | B112: 1 | C112: 1 | D112: 1 | E112: QCIF | F112: 4CIF | G112: PAL | H112: H.263 | I112: MEDIUM | J112: 0 | K112: 0 | L112: 116 | M112: 25 | N112: 904 | O112: 12 | P112: 126 | Q112: 25 | R112: 606 | S112: 8 | T112: 95 | U112: 19 | V112: 1438 | W112: 19 | X112: 95 | Y112: 19 | Z112: 1455 | AA112: 19
A113: 1 | B113: 1 | C113: 1 | D113: 1 | E113: CIF | F113: 4CIF | G113: PAL | H113: H.263 | I113: MEDIUM | J113: 0 | K113: 0 | L113: 544 | M113: 24 | N113: 355 | O113: 4 | P113: 515 | Q113: 24 | R113: 347 | S113: 4 | T113: 359 | U113: 16 | V113: 1220 | W113: 16 | X113: 369 | Y113: 16 | Z113: 1211 | AA113: 16
A114: 1 | B114: 1 | C114: 1 | D114: 1 | E114: 2CIF | F114: 4CIF | G114: PAL | H114: H.263 | I114: MEDIUM | J114: 0 | K114: 0 | L114: 1046 | M114: 24 | N114: 165 | O114: 2 | P114: 1065 | Q114: 24 | R114: 173 | S114: 2 | T114: 710 | U114: 14 | V114: 1086 | W114: 14 | X114: 701 | Y114: 14 | Z114: 1087 | AA114: 14
A115: 1 | B115: 1 | C115: 1 | D115: 1 | E115: 4CIF | F115: 4CIF | G115: PAL | H115: H.263 | I115: MEDIUM | J115: 0 | K115: 0 | L115: 1019 | M115: 13 | N115: 91 | O115: 1 | P115: 1033 | Q115: 13 | R115: 89 | S115: 1 | T115: 832 | U115: 10 | V115: 824 | W115: 10 | X115: 825 | Y115: 10 | Z115: 824 | AA115: 10
A116: 1 | B116: 1 | C116: 1 | D116: 1 | E116: HALF-D1 | F116: 4CIF | G116: PAL | H116: H.263 | I116: MEDIUM | J116: 0 | K116: 0 | L116: 889 | M116: 20 | N116: 92 | O116: 1 | P116: 909 | Q116: 20 | R116: 94 | S116: 1 | T116: 621 | U116: 13 | V116: 1000 | W116: 13 | X116: 637 | Y116: 13 | Z116: 1001 | AA116: 13
A117: 1 | B117: 1 | C117: 1 | D117: 1 | E117: 2/3D1 | F117: 4CIF | G117: PAL | H117: H.263 | I117: MEDIUM | J117: 0 | K117: 0 | L117: 1038 | M117: 17 | N117: 85 | O117: 1 | P117: 1037 | Q117: 16 | R117: 88 | S117: 1 | T117: 784 | U117: 12 | V117: 914 | W117: 12 | X117: 783 | Y117: 12 | Z117: 914 | AA117: 12
A118: 1 | B118: 1 | C118: 1 | D118: 1 | E118: QCIF | F118: HALF-D1 | G118: PAL | H118: H.263 | I118: MEDIUM | J118: 0 | K118: 0 | L118: 158 | M118: 25 | N118: 406 | O118: 10 | P118: 124 | Q118: 25 | R118: 767 | S118: 20 | T118: 81 | U118: 25 | V118: 937 | W118: 25 | X118: 82 | Y118: 25 | Z118: 942 | AA118: 25
A119: 1 | B119: 1 | C119: 1 | D119: 1 | E119: CIF | F119: HALF-D1 | G119: PAL | H119: H.263 | I119: MEDIUM | J119: 0 | K119: 0 | L119: 662 | M119: 25 | N119: 251 | O119: 6 | P119: 675 | Q119: 25 | R119: 272 | S119: 7 | T119: 497 | U119: 22 | V119: 872 | W119: 23 | X119: 523 | Y119: 22 | Z119: 872 | AA119: 23
A120: 1 | B120: 1 | C120: 1 | D120: 1 | E120: 2CIF | F120: HALF-D1 | G120: PAL | H120: H.263 | I120: MEDIUM | J120: 0 | K120: 0 | L120: 1062 | M120: 23 | N120: 72 | O120: 2 | P120: 1046 | Q120: 23 | R120: 78 | S120: 2 | T120: 866 | U120: 18 | V120: 704 | W120: 18 | X120: 869 | Y120: 18 | Z120: 703 | AA120: 18
A121: 1 | B121: 1 | C121: 1 | D121: 1 | E121: 4CIF | F121: HALF-D1 | G121: PAL | H121: H.263 | I121: MEDIUM | J121: 0 | K121: 0 | L121: 1032 | M121: 13 | N121: 53 | O121: 1 | P121: 1037 | Q121: 13 | R121: 50 | S121: 1 | T121: 956 | U121: 12 | V121: 483 | W121: 12 | X121: 954 | Y121: 12 | Z121: 484 | AA121: 12
A122: 1 | B122: 1 | C122: 1 | D122: 1 | E122: HALF-D1 | F122: HALF-D1 | G122: PAL | H122: H.263 | I122: MEDIUM | J122: 0 | K122: 0 | L122: 948 | M122: 20 | N122: 45 | O122: 1 | P122: 956 | Q122: 20 | R122: 49 | S122: 1 | T122: 855 | U122: 18 | V122: 691 | W122: 18 | X122: 878 | Y122: 18 | Z122: 692 | AA122: 18
A123: 1 | B123: 1 | C123: 1 | D123: 1 | E123: 2/3D1 | F123: HALF-D1 | G123: PAL | H123: H.263 | I123: MEDIUM | J123: 0 | K123: 0 | L123: 1029 | M123: 17 | N123: 47 | O123: 1 | P123: 1047 | Q123: 17 | R123: 47 | S123: 1 | T123: 961 | U123: 15 | V123: 564 | W123: 15 | X123: 970 | Y123: 15 | Z123: 561 | AA123: 15
A124: 1 | B124: 1 | C124: 1 | D124: 1 | E124: QCIF | F124: 2/3D1 | G124: PAL | H124: H.263 | I124: MEDIUM | J124: 0 | K124: 0 | L124: 148 | M124: 25 | N124: 292 | O124: 5 | P124: 132 | Q124: 25 | R124: 1099 | S124: 20 | T124: 97 | U124: 22 | V124: 1266 | W124: 22 | X124: 100 | Y124: 23 | Z124: 1269 | AA124: 22
A125: 1 | B125: 1 | C125: 1 | D125: 1 | E125: CIF | F125: 2/3D1 | G125: PAL | H125: H.263 | I125: MEDIUM | J125: 0 | K125: 0 | L125: 535 | M125: 25 | N125: 361 | O125: 6 | P125: 534 | Q125: 25 | R125: 313 | S125: 5 | T125: 391 | U125: 19 | V125: 1033 | W125: 19 | X125: 394 | Y125: 19 | Z125: 1032 | AA125: 19
A126: 1 | B126: 1 | C126: 1 | D126: 1 | E126: 2CIF | F126: 2/3D1 | G126: PAL | H126: H.263 | I126: MEDIUM | J126: 0 | K126: 0 | L126: 1082 | M126: 24 | N126: 137 | O126: 2 | P126: 1093 | Q126: 24 | R126: 114 | S126: 2 | T126: 788 | U126: 17 | V126: 897 | W126: 16 | X126: 810 | Y126: 16 | Z126: 898 | AA126: 16
A127: 1 | B127: 1 | C127: 1 | D127: 1 | E127: 4CIF | F127: 2/3D1 | G127: PAL | H127: H.263 | I127: MEDIUM | J127: 0 | K127: 0 | L127: 1045 | M127: 13 | N127: 59 | O127: 1 | P127: 1049 | Q127: 13 | R127: 65 | S127: 1 | T127: 903 | U127: 11 | V127: 674 | W127: 12 | X127: 924 | Y127: 12 | Z127: 676 | AA127: 12
A128: 1 | B128: 1 | C128: 1 | D128: 1 | E128: HALF-D1 | F128: 2/3D1 | G128: PAL | H128: H.263 | I128: MEDIUM | J128: 0 | K128: 0 | L128: 933 | M128: 20 | N128: 64 | O128: 1 | P128: 935 | Q128: 20 | R128: 65 | S128: 1 | T128: 691 | U128: 15 | V128: 820 | W128: 14 | X128: 693 | Y128: 14 | Z128: 820 | AA128: 14
A129: 1 | B129: 1 | C129: 1 | D129: 1 | E129: 2/3D1 | F129: 2/3D1 | G129: PAL | H129: H.263 | I129: MEDIUM | J129: 0 | K129: 0 | L129: 999 | M129: 17 | N129: 61 | O129: 1 | P129: 1008 | Q129: 17 | R129: 61 | S129: 1 | T129: 893 | U129: 15 | V129: 808 | W129: 15 | X129: 887 | Y129: 15 | Z129: 805 | AA129: 15
A130: 1 | B130: 0 | C130: 0 | D130: 0 | E130: QCIF | F130: n.c | G130: PAL | H130: H.263 | I130: MEDIUM | J130: 2 | K130: 0 | L130: 168 | M130: 25 | N130: 172 | O130: 25 | P130: 0 | Q130: 0 | R130: 0 | S130: 0 | T130: 0 | U130: 0 | V130: 0 | W130: 0 | X130: 0 | Y130: 0 | Z130: 0 | AA130: 0
A131: 1 | B131: 0 | C131: 0 | D131: 0 | E131: CIF | F131: n.c | G131: PAL | H131: H.263 | I131: MEDIUM | J131: 2 | K131: 0 | L131: 645 | M131: 25 | N131: 129 | O131: 25 | P131: 0 | Q131: 0 | R131: 0 | S131: 0 | T131: 0 | U131: 0 | V131: 0 | W131: 0 | X131: 0 | Y131: 0 | Z131: 0 | AA131: 0
A132: 1 | B132: 0 | C132: 0 | D132: 0 | E132: 2CIF | F132: n.c | G132: PAL | H132: H.263 | I132: MEDIUM | J132: 2 | K132: 0 | L132: 1380 | M132: 25 | N132: 164 | O132: 25 | P132: 0 | Q132: 0 | R132: 0 | S132: 0 | T132: 0 | U132: 0 | V132: 0 | W132: 0 | X132: 0 | Y132: 0 | Z132: 0 | AA132: 0
A133: 1 | B133: 0 | C133: 0 | D133: 0 | E133: 4CIF | F133: n.c | G133: PAL | H133: H.263 | I133: MEDIUM | J133: 2 | K133: 0 | L133: 1988 | M133: 25 | N133: 160 | O133: 25 | P133: 0 | Q133: 0 | R133: 0 | S133: 0 | T133: 0 | U133: 0 | V133: 0 | W133: 0 | X133: 0 | Y133: 0 | Z133: 0 | AA133: 0
A134: 1 | B134: 0 | C134: 0 | D134: 0 | E134: HALF-D1 | F134: n.c | G134: PAL | H134: H.263 | I134: MEDIUM | J134: 2 | K134: 0 | L134: 1403 | M134: 25 | N134: 131 | O134: 25 | P134: 0 | Q134: 0 | R134: 0 | S134: 0 | T134: 0 | U134: 0 | V134: 0 | W134: 0 | X134: 0 | Y134: 0 | Z134: 0 | AA134: 0
A135: 1 | B135: 0 | C135: 0 | D135: 0 | E135: 2/3D1 | F135: n.c | G135: PAL | H135: H.263 | I135: MEDIUM | J135: 2 | K135: 0 | L135: 1828 | M135: 25 | N135: 149 | O135: 25 | P135: 0 | Q135: 0 | R135: 0 | S135: 0 | T135: 0 | U135: 0 | V135: 0 | W135: 0 | X135: 0 | Y135: 0 | Z135: 0 | AA135: 0
A136: 1 | B136: 0 | C136: 0 | D136: 0 | E136: QCIF | F136: QCIF | G136: PAL | H136: H.263 | I136: MEDIUM | J136: 2 | K136: 0 | L136: 163 | M136: 25 | N136: 164 | O136: 25 | P136: 0 | Q136: 0 | R136: 0 | S136: 0 | T136: 0 | U136: 0 | V136: 0 | W136: 0 | X136: 0 | Y136: 0 | Z136: 0 | AA136: 0
A137: 1 | B137: 0 | C137: 0 | D137: 0 | E137: CIF | F137: QCIF | G137: PAL | H137: H.263 | I137: MEDIUM | J137: 2 | K137: 0 | L137: 644 | M137: 25 | N137: 127 | O137: 25 | P137: 0 | Q137: 0 | R137: 0 | S137: 0 | T137: 0 | U137: 0 | V137: 0 | W137: 0 | X137: 0 | Y137: 0 | Z137: 0 | AA137: 0
A138: 1 | B138: 0 | C138: 0 | D138: 0 | E138: 2CIF | F138: QCIF | G138: PAL | H138: H.263 | I138: MEDIUM | J138: 2 | K138: 0 | L138: 1322 | M138: 25 | N138: 160 | O138: 25 | P138: 0 | Q138: 0 | R138: 0 | S138: 0 | T138: 0 | U138: 0 | V138: 0 | W138: 0 | X138: 0 | Y138: 0 | Z138: 0 | AA138: 0
A139: 1 | B139: 0 | C139: 0 | D139: 0 | E139: 4CIF | F139: QCIF | G139: PAL | H139: H.263 | I139: MEDIUM | J139: 2 | K139: 0 | L139: 1993 | M139: 25 | N139: 158 | O139: 24 | P139: 0 | Q139: 0 | R139: 0 | S139: 0 | T139: 0 | U139: 0 | V139: 0 | W139: 0 | X139: 0 | Y139: 0 | Z139: 0 | AA139: 0
A140: 1 | B140: 0 | C140: 0 | D140: 0 | E140: HALF-D1 | F140: QCIF | G140: PAL | H140: H.263 | I140: MEDIUM | J140: 2 | K140: 0 | L140: 1365 | M140: 25 | N140: 131 | O140: 25 | P140: 0 | Q140: 0 | R140: 0 | S140: 0 | T140: 0 | U140: 0 | V140: 0 | W140: 0 | X140: 0 | Y140: 0 | Z140: 0 | AA140: 0
A141: 1 | B141: 0 | C141: 0 | D141: 0 | E141: 2/3D1 | F141: QCIF | G141: PAL | H141: H.263 | I141: MEDIUM | J141: 2 | K141: 0 | L141: 1847 | M141: 25 | N141: 147 | O141: 25 | P141: 0 | Q141: 0 | R141: 0 | S141: 0 | T141: 0 | U141: 0 | V141: 0 | W141: 0 | X141: 0 | Y141: 0 | Z141: 0 | AA141: 0
A142: 1 | B142: 0 | C142: 0 | D142: 0 | E142: QCIF | F142: CIF | G142: PAL | H142: H.263 | I142: MEDIUM | J142: 2 | K142: 0 | L142: 130 | M142: 25 | N142: 653 | O142: 25 | P142: 0 | Q142: 0 | R142: 0 | S142: 0 | T142: 0 | U142: 0 | V142: 0 | W142: 0 | X142: 0 | Y142: 0 | Z142: 0 | AA142: 0
A143: 1 | B143: 0 | C143: 0 | D143: 0 | E143: CIF | F143: CIF | G143: PAL | H143: H.263 | I143: MEDIUM | J143: 2 | K143: 0 | L143: 647 | M143: 25 | N143: 647 | O143: 25 | P143: 0 | Q143: 0 | R143: 0 | S143: 0 | T143: 0 | U143: 0 | V143: 0 | W143: 0 | X143: 0 | Y143: 0 | Z143: 0 | AA143: 0
A144: 1 | B144: 0 | C144: 0 | D144: 0 | E144: 2CIF | F144: CIF | G144: PAL | H144: H.263 | I144: MEDIUM | J144: 2 | K144: 0 | L144: 1285 | M144: 25 | N144: 631 | O144: 25 | P144: 0 | Q144: 0 | R144: 0 | S144: 0 | T144: 0 | U144: 0 | V144: 0 | W144: 0 | X144: 0 | Y144: 0 | Z144: 0 | AA144: 0
A145: 1 | B145: 0 | C145: 0 | D145: 0 | E145: 4CIF | F145: CIF | G145: PAL | H145: H.263 | I145: MEDIUM | J145: 2 | K145: 0 | L145: 1976 | M145: 25 | N145: 396 | O145: 15 | P145: 0 | Q145: 0 | R145: 0 | S145: 0 | T145: 0 | U145: 0 | V145: 0 | W145: 0 | X145: 0 | Y145: 0 | Z145: 0 | AA145: 0
A146: 1 | B146: 0 | C146: 0 | D146: 0 | E146: HALF-D1 | F146: CIF | G146: PAL | H146: H.263 | I146: MEDIUM | J146: 2 | K146: 0 | L146: 1391 | M146: 25 | N146: 638 | O146: 25 | P146: 0 | Q146: 0 | R146: 0 | S146: 0 | T146: 0 | U146: 0 | V146: 0 | W146: 0 | X146: 0 | Y146: 0 | Z146: 0 | AA146: 0
A147: 1 | B147: 0 | C147: 0 | D147: 0 | E147: 2/3D1 | F147: CIF | G147: PAL | H147: H.263 | I147: MEDIUM | J147: 2 | K147: 0 | L147: 1821 | M147: 25 | N147: 628 | O147: 25 | P147: 0 | Q147: 0 | R147: 0 | S147: 0 | T147: 0 | U147: 0 | V147: 0 | W147: 0 | X147: 0 | Y147: 0 | Z147: 0 | AA147: 0
A148: 1 | B148: 0 | C148: 0 | D148: 0 | E148: QCIF | F148: 2CIF | G148: PAL | H148: H.263 | I148: MEDIUM | J148: 2 | K148: 0 | L148: 165 | M148: 25 | N148: 1378 | O148: 25 | P148: 0 | Q148: 0 | R148: 0 | S148: 0 | T148: 0 | U148: 0 | V148: 0 | W148: 0 | X148: 0 | Y148: 0 | Z148: 0 | AA148: 0
A149: 1 | B149: 0 | C149: 0 | D149: 0 | E149: CIF | F149: 2CIF | G149: PAL | H149: H.263 | I149: MEDIUM | J149: 2 | K149: 0 | L149: 665 | M149: 25 | N149: 1419 | O149: 25 | P149: 0 | Q149: 0 | R149: 0 | S149: 0 | T149: 0 | U149: 0 | V149: 0 | W149: 0 | X149: 0 | Y149: 0 | Z149: 0 | AA149: 0
A150: 1 | B150: 0 | C150: 0 | D150: 0 | E150: 2CIF | F150: 2CIF | G150: PAL | H150: H.263 | I150: MEDIUM | J150: 2 | K150: 0 | L150: 1333 | M150: 25 | N150: 1336 | O150: 25 | P150: 0 | Q150: 0 | R150: 0 | S150: 0 | T150: 0 | U150: 0 | V150: 0 | W150: 0 | X150: 0 | Y150: 0 | Z150: 0 | AA150: 0
A151: 1 | B151: 0 | C151: 0 | D151: 0 | E151: 4CIF | F151: 2CIF | G151: PAL | H151: H.263 | I151: MEDIUM | J151: 2 | K151: 0 | L151: 2006 | M151: 25 | N151: 742 | O151: 13 | P151: 0 | Q151: 0 | R151: 0 | S151: 0 | T151: 0 | U151: 0 | V151: 0 | W151: 0 | X151: 0 | Y151: 0 | Z151: 0 | AA151: 0
A152: 1 | B152: 0 | C152: 0 | D152: 0 | E152: HALF-D1 | F152: 2CIF | G152: PAL | H152: H.263 | I152: MEDIUM | J152: 2 | K152: 0 | L152: 1394 | M152: 25 | N152: 1356 | O152: 25 | P152: 0 | Q152: 0 | R152: 0 | S152: 0 | T152: 0 | U152: 0 | V152: 0 | W152: 0 | X152: 0 | Y152: 0 | Z152: 0 | AA152: 0
A153: 1 | B153: 0 | C153: 0 | D153: 0 | E153: 2/3D1 | F153: 2CIF | G153: PAL | H153: H.263 | I153: MEDIUM | J153: 2 | K153: 0 | L153: 1815 | M153: 25 | N153: 1192 | O153: 22 | P153: 0 | Q153: 0 | R153: 0 | S153: 0 | T153: 0 | U153: 0 | V153: 0 | W153: 0 | X153: 0 | Y153: 0 | Z153: 0 | AA153: 0
A154: 1 | B154: 0 | C154: 0 | D154: 0 | E154: QCIF | F154: 4CIF | G154: PAL | H154: H.263 | I154: MEDIUM | J154: 2 | K154: 0 | L154: 164 | M154: 25 | N154: 1985 | O154: 25 | P154: 0 | Q154: 0 | R154: 0 | S154: 0 | T154: 0 | U154: 0 | V154: 0 | W154: 0 | X154: 0 | Y154: 0 | Z154: 0 | AA154: 0
A155: 1 | B155: 0 | C155: 0 | D155: 0 | E155: CIF | F155: 4CIF | G155: PAL | H155: H.263 | I155: MEDIUM | J155: 2 | K155: 0 | L155: 654 | M155: 25 | N155: 1795 | O155: 22 | P155: 0 | Q155: 0 | R155: 0 | S155: 0 | T155: 0 | U155: 0 | V155: 0 | W155: 0 | X155: 0 | Y155: 0 | Z155: 0 | AA155: 0
A156: 1 | B156: 0 | C156: 0 | D156: 0 | E156: 2CIF | F156: 4CIF | G156: PAL | H156: H.263 | I156: MEDIUM | J156: 2 | K156: 0 | L156: 1415 | M156: 25 | N156: 1409 | O156: 18 | P156: 0 | Q156: 0 | R156: 0 | S156: 0 | T156: 0 | U156: 0 | V156: 0 | W156: 0 | X156: 0 | Y156: 0 | Z156: 0 | AA156: 0
A157: 1 | B157: 0 | C157: 0 | D157: 0 | E157: 4CIF | F157: 4CIF | G157: PAL | H157: H.263 | I157: MEDIUM | J157: 2 | K157: 0 | L157: 1969 | M157: 25 | N157: 510 | O157: 6 | P157: 0 | Q157: 0 | R157: 0 | S157: 0 | T157: 0 | U157: 0 | V157: 0 | W157: 0 | X157: 0 | Y157: 0 | Z157: 0 | AA157: 0
A158: 1 | B158: 0 | C158: 0 | D158: 0 | E158: HALF-D1 | F158: 4CIF | G158: PAL | H158: H.263 | I158: MEDIUM | J158: 2 | K158: 0 | L158: 1384 | M158: 25 | N158: 1185 | O158: 15 | P158: 0 | Q158: 0 | R158: 0 | S158: 0 | T158: 0 | U158: 0 | V158: 0 | W158: 0 | X158: 0 | Y158: 0 | Z158: 0 | AA158: 0
A159: 1 | B159: 0 | C159: 0 | D159: 0 | E159: 2/3D1 | F159: 4CIF | G159: PAL | H159: H.263 | I159: MEDIUM | J159: 2 | K159: 0 | L159: 1775 | M159: 25 | N159: 930 | O159: 12 | P159: 0 | Q159: 0 | R159: 0 | S159: 0 | T159: 0 | U159: 0 | V159: 0 | W159: 0 | X159: 0 | Y159: 0 | Z159: 0 | AA159: 0
A160: 1 | B160: 0 | C160: 0 | D160: 0 | E160: QCIF | F160: HALF-D1 | G160: PAL | H160: H.263 | I160: MEDIUM | J160: 2 | K160: 0 | L160: 123 | M160: 25 | N160: 1002 | O160: 25 | P160: 0 | Q160: 0 | R160: 0 | S160: 0 | T160: 0 | U160: 0 | V160: 0 | W160: 0 | X160: 0 | Y160: 0 | Z160: 0 | AA160: 0
A161: 1 | B161: 0 | C161: 0 | D161: 0 | E161: CIF | F161: HALF-D1 | G161: PAL | H161: H.263 | I161: MEDIUM | J161: 2 | K161: 0 | L161: 645 | M161: 25 | N161: 994 | O161: 25 | P161: 0 | Q161: 0 | R161: 0 | S161: 0 | T161: 0 | U161: 0 | V161: 0 | W161: 0 | X161: 0 | Y161: 0 | Z161: 0 | AA161: 0
A162: 1 | B162: 0 | C162: 0 | D162: 0 | E162: 2CIF | F162: HALF-D1 | G162: PAL | H162: H.263 | I162: MEDIUM | J162: 2 | K162: 0 | L162: 1400 | M162: 25 | N162: 996 | O162: 25 | P162: 0 | Q162: 0 | R162: 0 | S162: 0 | T162: 0 | U162: 0 | V162: 0 | W162: 0 | X162: 0 | Y162: 0 | Z162: 0 | AA162: 0
A163: 1 | B163: 0 | C163: 0 | D163: 0 | E163: 4CIF | F163: HALF-D1 | G163: PAL | H163: H.263 | I163: MEDIUM | J163: 2 | K163: 0 | L163: 1987 | M163: 25 | N163: 398 | O163: 9 | P163: 0 | Q163: 0 | R163: 0 | S163: 0 | T163: 0 | U163: 0 | V163: 0 | W163: 0 | X163: 0 | Y163: 0 | Z163: 0 | AA163: 0
A164: 1 | B164: 0 | C164: 0 | D164: 0 | E164: HALF-D1 | F164: HALF-D1 | G164: PAL | H164: H.263 | I164: MEDIUM | J164: 2 | K164: 0 | L164: 1383 | M164: 25 | N164: 979 | O164: 25 | P164: 0 | Q164: 0 | R164: 0 | S164: 0 | T164: 0 | U164: 0 | V164: 0 | W164: 0 | X164: 0 | Y164: 0 | Z164: 0 | AA164: 0
A165: 1 | B165: 0 | C165: 0 | D165: 0 | E165: 2/3D1 | F165: HALF-D1 | G165: PAL | H165: H.263 | I165: MEDIUM | J165: 2 | K165: 0 | L165: 1826 | M165: 25 | N165: 716 | O165: 18 | P165: 0 | Q165: 0 | R165: 0 | S165: 0 | T165: 0 | U165: 0 | V165: 0 | W165: 0 | X165: 0 | Y165: 0 | Z165: 0 | AA165: 0
A166: 1 | B166: 0 | C166: 0 | D166: 0 | E166: QCIF | F166: 2/3D1 | G166: PAL | H166: H.263 | I166: MEDIUM | J166: 2 | K166: 0 | L166: 136 | M166: 25 | N166: 1491 | O166: 25 | P166: 0 | Q166: 0 | R166: 0 | S166: 0 | T166: 0 | U166: 0 | V166: 0 | W166: 0 | X166: 0 | Y166: 0 | Z166: 0 | AA166: 0
A167: 1 | B167: 0 | C167: 0 | D167: 0 | E167: CIF | F167: 2/3D1 | G167: PAL | H167: H.263 | I167: MEDIUM | J167: 2 | K167: 0 | L167: 623 | M167: 25 | N167: 1480 | O167: 25 | P167: 0 | Q167: 0 | R167: 0 | S167: 0 | T167: 0 | U167: 0 | V167: 0 | W167: 0 | X167: 0 | Y167: 0 | Z167: 0 | AA167: 0
A168: 1 | B168: 0 | C168: 0 | D168: 0 | E168: 2CIF | F168: 2/3D1 | G168: PAL | H168: H.263 | I168: MEDIUM | J168: 2 | K168: 0 | L168: 1405 | M168: 25 | N168: 1332 | O168: 22 | P168: 0 | Q168: 0 | R168: 0 | S168: 0 | T168: 0 | U168: 0 | V168: 0 | W168: 0 | X168: 0 | Y168: 0 | Z168: 0 | AA168: 0
A169: 1 | B169: 0 | C169: 0 | D169: 0 | E169: 4CIF | F169: 2/3D1 | G169: PAL | H169: H.263 | I169: MEDIUM | J169: 2 | K169: 0 | L169: 1987 | M169: 25 | N169: 459 | O169: 7 | P169: 0 | Q169: 0 | R169: 0 | S169: 0 | T169: 0 | U169: 0 | V169: 0 | W169: 0 | X169: 0 | Y169: 0 | Z169: 0 | AA169: 0
A170: 1 | B170: 0 | C170: 0 | D170: 0 | E170: HALF-D1 | F170: 2/3D1 | G170: PAL | H170: H.263 | I170: MEDIUM | J170: 2 | K170: 0 | L170: 1374 | M170: 25 | N170: 1167 | O170: 19 | P170: 0 | Q170: 0 | R170: 0 | S170: 0 | T170: 0 | U170: 0 | V170: 0 | W170: 0 | X170: 0 | Y170: 0 | Z170: 0 | AA170: 0
A171: 1 | B171: 0 | C171: 0 | D171: 0 | E171: 2/3D1 | F171: 2/3D1 | G171: PAL | H171: H.263 | I171: MEDIUM | J171: 2 | K171: 0 | L171: 1808 | M171: 25 | N171: 969 | O171: 16 | P171: 0 | Q171: 0 | R171: 0 | S171: 0 | T171: 0 | U171: 0 | V171: 0 | W171: 0 | X171: 0 | Y171: 0 | Z171: 0 | AA171: 0
A172: 1 | B172: 0 | C172: 1 | D172: 0 | E172: QCIF | F172: n.c | G172: PAL | H172: H.263 | I172: MEDIUM | J172: 2 | K172: 0 | L172: 112 | M172: 25 | N172: 0 | O172: 0 | P172: 0 | Q172: 0 | R172: 0 | S172: 0 | T172: 114 | U172: 25 | V172: 0 | W172: 0 | X172: 0 | Y172: 0 | Z172: 0 | AA172: 0
A173: 1 | B173: 0 | C173: 1 | D173: 0 | E173: CIF | F173: n.c | G173: PAL | H173: H.263 | I173: MEDIUM | J173: 2 | K173: 0 | L173: 635 | M173: 25 | N173: 124 | O173: 25 | P173: 0 | Q173: 0 | R173: 0 | S173: 0 | T173: 652 | U173: 25 | V173: 129 | W173: 25 | X173: 0 | Y173: 0 | Z173: 0 | AA173: 0
A174: 1 | B174: 0 | C174: 1 | D174: 0 | E174: 2CIF | F174: n.c | G174: PAL | H174: H.263 | I174: MEDIUM | J174: 2 | K174: 0 | L174: 1377 | M174: 25 | N174: 165 | O174: 25 | P174: 0 | Q174: 0 | R174: 0 | S174: 0 | T174: 1398 | U174: 25 | V174: 171 | W174: 25 | X174: 0 | Y174: 0 | Z174: 0 | AA174: 0
A175: 1 | B175: 0 | C175: 1 | D175: 0 | E175: 4CIF | F175: n.c | G175: PAL | H175: H.263 | I175: MEDIUM | J175: 2 | K175: 0 | L175: 1950 | M175: 24 | N175: 60 | O175: 10 | P175: 0 | Q175: 0 | R175: 0 | S175: 0 | T175: 1994 | U175: 25 | V175: 157 | W175: 25 | X175: 0 | Y175: 0 | Z175: 0 | AA175: 0
A176: 1 | B176: 0 | C176: 1 | D176: 0 | E176: HALF-D1 | F176: n.c | G176: PAL | H176: H.263 | I176: MEDIUM | J176: 2 | K176: 0 | L176: 1402 | M176: 25 | N176: 129 | O176: 25 | P176: 0 | Q176: 0 | R176: 0 | S176: 0 | T176: 1387 | U176: 25 | V176: 130 | W176: 25 | X176: 0 | Y176: 0 | Z176: 0 | AA176: 0
A177: 1 | B177: 0 | C177: 1 | D177: 0 | E177: 2/3D1 | F177: n.c | G177: PAL | H177: H.263 | I177: MEDIUM | J177: 2 | K177: 0 | L177: 1817 | M177: 25 | N177: 134 | O177: 24 | P177: 0 | Q177: 0 | R177: 0 | S177: 0 | T177: 1832 | U177: 25 | V177: 141 | W177: 25 | X177: 0 | Y177: 0 | Z177: 0 | AA177: 0
A178: 1 | B178: 0 | C178: 1 | D178: 0 | E178: QCIF | F178: QCIF | G178: PAL | H178: H.263 | I178: MEDIUM | J178: 2 | K178: 0 | L178: 171 | M178: 25 | N178: 170 | O178: 25 | P178: 0 | Q178: 0 | R178: 0 | S178: 0 | T178: 168 | U178: 25 | V178: 169 | W178: 25 | X178: 0 | Y178: 0 | Z178: 0 | AA178: 0
A179: 1 | B179: 0 | C179: 1 | D179: 0 | E179: CIF | F179: QCIF | G179: PAL | H179: H.263 | I179: MEDIUM | J179: 2 | K179: 0 | L179: 653 | M179: 25 | N179: 125 | O179: 25 | P179: 0 | Q179: 0 | R179: 0 | S179: 0 | T179: 657 | U179: 25 | V179: 122 | W179: 25 | X179: 0 | Y179: 0 | Z179: 0 | AA179: 0
A180: 1 | B180: 0 | C180: 1 | D180: 0 | E180: 2CIF | F180: QCIF | G180: PAL | H180: H.263 | I180: MEDIUM | J180: 2 | K180: 0 | L180: 1393 | M180: 25 | N180: 169 | O180: 25 | P180: 0 | Q180: 0 | R180: 0 | S180: 0 | T180: 1365 | U180: 25 | V180: 164 | W180: 25 | X180: 0 | Y180: 0 | Z180: 0 | AA180: 0
A181: 1 | B181: 0 | C181: 1 | D181: 0 | E181: 4CIF | F181: QCIF | G181: PAL | H181: H.263 | I181: MEDIUM | J181: 2 | K181: 0 | L181: 1928 | M181: 24 | N181: 49 | O181: 8 | P181: 0 | Q181: 0 | R181: 0 | S181: 0 | T181: 2004 | U181: 25 | V181: 168 | W181: 25 | X181: 0 | Y181: 0 | Z181: 0 | AA181: 0
A182: 1 | B182: 0 | C182: 1 | D182: 0 | E182: HALF-D1 | F182: QCIF | G182: PAL | H182: H.263 | I182: MEDIUM | J182: 2 | K182: 0 | L182: 1404 | M182: 25 | N182: 132 | O182: 25 | P182: 0 | Q182: 0 | R182: 0 | S182: 0 | T182: 1380 | U182: 25 | V182: 129 | W182: 25 | X182: 0 | Y182: 0 | Z182: 0 | AA182: 0
A183: 1 | B183: 0 | C183: 1 | D183: 0 | E183: 2/3D1 | F183: QCIF | G183: PAL | H183: H.263 | I183: MEDIUM | J183: 2 | K183: 0 | L183: 1868 | M183: 25 | N183: 142 | O183: 24 | P183: 0 | Q183: 0 | R183: 0 | S183: 0 | T183: 1877 | U183: 25 | V183: 147 | W183: 25 | X183: 0 | Y183: 0 | Z183: 0 | AA183: 0
A184: 1 | B184: 0 | C184: 1 | D184: 0 | E184: QCIF | F184: CIF | G184: PAL | H184: H.263 | I184: MEDIUM | J184: 2 | K184: 0 | L184: 124 | M184: 25 | N184: 648 | O184: 25 | P184: 0 | Q184: 0 | R184: 0 | S184: 0 | T184: 129 | U184: 25 | V184: 644 | W184: 25 | X184: 0 | Y184: 0 | Z184: 0 | AA184: 0
A185: 1 | B185: 0 | C185: 1 | D185: 0 | E185: CIF | F185: CIF | G185: PAL | H185: H.263 | I185: MEDIUM | J185: 2 | K185: 0 | L185: 638 | M185: 25 | N185: 642 | O185: 25 | P185: 0 | Q185: 0 | R185: 0 | S185: 0 | T185: 646 | U185: 25 | V185: 662 | W185: 25 | X185: 0 | Y185: 0 | Z185: 0 | AA185: 0
A186: 1 | B186: 0 | C186: 1 | D186: 0 | E186: 2CIF | F186: CIF | G186: PAL | H186: H.263 | I186: MEDIUM | J186: 2 | K186: 0 | L186: 1331 | M186: 25 | N186: 634 | O186: 25 | P186: 0 | Q186: 0 | R186: 0 | S186: 0 | T186: 1365 | U186: 25 | V186: 644 | W186: 25 | X186: 0 | Y186: 0 | Z186: 0 | AA186: 0
A187: 1 | B187: 0 | C187: 1 | D187: 0 | E187: 4CIF | F187: CIF | G187: PAL | H187: H.263 | I187: MEDIUM | J187: 2 | K187: 0 | L187: 1845 | M187: 23 | N187: 75 | O187: 3 | P187: 0 | Q187: 0 | R187: 0 | S187: 0 | T187: 2003 | U187: 25 | V187: 647 | W187: 25 | X187: 0 | Y187: 0 | Z187: 0 | AA187: 0
A188: 1 | B188: 0 | C188: 1 | D188: 0 | E188: HALF-D1 | F188: CIF | G188: PAL | H188: H.263 | I188: MEDIUM | J188: 2 | K188: 0 | L188: 1405 | M188: 25 | N188: 649 | O188: 25 | P188: 0 | Q188: 0 | R188: 0 | S188: 0 | T188: 1441 | U188: 25 | V188: 665 | W188: 25 | X188: 0 | Y188: 0 | Z188: 0 | AA188: 0
A189: 1 | B189: 0 | C189: 1 | D189: 0 | E189: 2/3D1 | F189: CIF | G189: PAL | H189: H.263 | I189: MEDIUM | J189: 2 | K189: 0 | L189: 1764 | M189: 25 | N189: 382 | O189: 16 | P189: 0 | Q189: 0 | R189: 0 | S189: 0 | T189: 1783 | U189: 25 | V189: 647 | W189: 25 | X189: 0 | Y189: 0 | Z189: 0 | AA189: 0
A190: 1 | B190: 0 | C190: 1 | D190: 0 | E190: QCIF | F190: 2CIF | G190: PAL | H190: H.263 | I190: MEDIUM | J190: 2 | K190: 0 | L190: 161 | M190: 25 | N190: 1355 | O190: 25 | P190: 0 | Q190: 0 | R190: 0 | S190: 0 | T190: 163 | U190: 25 | V190: 1337 | W190: 25 | X190: 0 | Y190: 0 | Z190: 0 | AA190: 0
A191: 1 | B191: 0 | C191: 1 | D191: 0 | E191: CIF | F191: 2CIF | G191: PAL | H191: H.263 | I191: MEDIUM | J191: 2 | K191: 0 | L191: 640 | M191: 25 | N191: 1344 | O191: 25 | P191: 0 | Q191: 0 | R191: 0 | S191: 0 | T191: 658 | U191: 25 | V191: 1373 | W191: 25 | X191: 0 | Y191: 0 | Z191: 0 | AA191: 0
A192: 1 | B192: 0 | C192: 1 | D192: 0 | E192: 2CIF | F192: 2CIF | G192: PAL | H192: H.263 | I192: MEDIUM | J192: 2 | K192: 0 | L192: 1378 | M192: 25 | N192: 1165 | O192: 21 | P192: 0 | Q192: 0 | R192: 0 | S192: 0 | T192: 1440 | U192: 25 | V192: 1416 | W192: 25 | X192: 0 | Y192: 0 | Z192: 0 | AA192: 0
A193: 1 | B193: 0 | C193: 1 | D193: 0 | E193: 4CIF | F193: 2CIF | G193: PAL | H193: H.263 | I193: MEDIUM | J193: 2 | K193: 0 | L193: 1786 | M193: 22 | N193: 117 | O193: 2 | P193: 0 | Q193: 0 | R193: 0 | S193: 0 | T193: 1990 | U193: 25 | V193: 1385 | W193: 25 | X193: 0 | Y193: 0 | Z193: 0 | AA193: 0
A194: 1 | B194: 0 | C194: 1 | D194: 0 | E194: HALF-D1 | F194: 2CIF | G194: PAL | H194: H.263 | I194: MEDIUM | J194: 2 | K194: 0 | L194: 1391 | M194: 25 | N194: 868 | O194: 15 | P194: 0 | Q194: 0 | R194: 0 | S194: 0 | T194: 1413 | U194: 25 | V194: 1392 | W194: 25 | X194: 0 | Y194: 0 | Z194: 0 | AA194: 0
A195: 1 | B195: 0 | C195: 1 | D195: 0 | E195: 2/3D1 | F195: 2CIF | G195: PAL | H195: H.263 | I195: MEDIUM | J195: 2 | K195: 0 | L195: 1761 | M195: 24 | N195: 450 | O195: 7 | P195: 0 | Q195: 0 | R195: 0 | S195: 0 | T195: 1816 | U195: 25 | V195: 1366 | W195: 25 | X195: 0 | Y195: 0 | Z195: 0 | AA195: 0
A196: 1 | B196: 0 | C196: 1 | D196: 0 | E196: QCIF | F196: 4CIF | G196: PAL | H196: H.263 | I196: MEDIUM | J196: 2 | K196: 0 | L196: 174 | M196: 25 | N196: 1604 | O196: 20 | P196: 0 | Q196: 0 | R196: 0 | S196: 0 | T196: 168 | U196: 25 | V196: 2004 | W196: 25 | X196: 0 | Y196: 0 | Z196: 0 | AA196: 0
A197: 1 | B197: 0 | C197: 1 | D197: 0 | E197: CIF | F197: 4CIF | G197: PAL | H197: H.263 | I197: MEDIUM | J197: 2 | K197: 0 | L197: 661 | M197: 25 | N197: 1135 | O197: 14 | P197: 0 | Q197: 0 | R197: 0 | S197: 0 | T197: 650 | U197: 25 | V197: 1980 | W197: 25 | X197: 0 | Y197: 0 | Z197: 0 | AA197: 0
A198: 1 | B198: 0 | C198: 1 | D198: 0 | E198: 2CIF | F198: 4CIF | G198: PAL | H198: H.263 | I198: MEDIUM | J198: 2 | K198: 0 | L198: 1333 | M198: 24 | N198: 766 | O198: 9 | P198: 0 | Q198: 0 | R198: 0 | S198: 0 | T198: 1382 | U198: 25 | V198: 1990 | W198: 25 | X198: 0 | Y198: 0 | Z198: 0 | AA198: 0
A199: 1 | B199: 0 | C199: 1 | D199: 0 | E199: 4CIF | F199: 4CIF | G199: PAL | H199: H.263 | I199: MEDIUM | J199: 2 | K199: 0 | L199: 1646 | M199: 21 | N199: 123 | O199: 1 | P199: 0 | Q199: 0 | R199: 0 | S199: 0 | T199: 1618 | U199: 20 | V199: 1640 | W199: 21 | X199: 0 | Y199: 0 | Z199: 0 | AA199: 0
A200: 1 | B200: 0 | C200: 1 | D200: 0 | E200: HALF-D1 | F200: 4CIF | G200: PAL | H200: H.263 | I200: MEDIUM | J200: 2 | K200: 0 | L200: 1333 | M200: 23 | N200: 550 | O200: 7 | P200: 0 | Q200: 0 | R200: 0 | S200: 0 | T200: 1343 | U200: 25 | V200: 1949 | W200: 24 | X200: 0 | Y200: 0 | Z200: 0 | AA200: 0
... 767 more rows

Sheet Bit Rate Guide new !!!!
C2: BVMS Standard Profiles
C3: Please select one of the standard profiles, that are available in a BVMS system. Use bit rate optimized profiles for maxmimum storage savings, please consider limitation in live and playback due to long GOP structures. Use balanced profiles for medium storage savings and standard live and playback behaviour. Use imaged optimized profiles for maximum image quality and maximum storage consumption. Select per recording profile an expected scene type over the default averaging time of 1 day, the platform, resolution and frame rate:
C4: quiet: 89% static, 10% normal, 1% busy, 0% crowded
C5: standard: 54% static, 35% normal, 0% busy, 11% crowded
C6: busy: 30% static, 0% normal, 55% busy, 15% crowded
C8: Links to example videos related to the scene types (located on the Bosch internal Presales community page):
C9: Example scene 1 static
C10: Example scene 2 normal
C11: Example scene 3 busy
C12: Example scene 4 crowded
C13: For customers: Please ask your local Bosch contact partner to download the scene example videos as .zip package from the Bosch internal BVMS Presales community:
C14: Download .zip for customers from BVMS Presales Community
C15: Use the recommended target bitrate for storage calculation!
D17: Profile | E17: balanced standard
D18: Platform | E18: CPP_7
D19: Codec | E19: h_264 | F19: =IF(E46=0,"not supported","supported") -> supported
D20: Resolution | E20: SD | F20: =IF(E38=0,"not supported","supported") -> supported | G20: =IF(E36="704288","Note: only 2 CIF supported","") ->  | I20: test resolution | J20: 1080p
D21: Frame Rate | E21: 30 | F21: =IF(E47=1,"not supported","supported") -> supported
D22: Recommended target bandwidth corrected for special cases, like target bitrate = max bitrate / target bitrate > 90% of max bitrate | E22: =IF(E48=1,E25*0.89,IF(E49=1,E25*0.89,HO54)) -> 731740.1883
D23: Recommended target bandwidth from list | E23: =HO54 -> 731740.1883 | F23: bit/s
D24: Recommended target bandwidth | E24: =E22/1000 -> 731.7401883 | F24: kbit/s
D25: Recommended max bandwidth | E25: =HQ54 -> 1835478.165 | F25: bit/s
D26: Recommended max bandwidth | E26: =E25/1000 -> 1835.478165 | F26: kbit/s
D28: Profile Settings:
D29: Bitrate reduction mode | E29: =P54 -> medium
D30: GOP structure | E30: =G54 -> IBP
D31: I-Frame distance | E31: =H54 -> 60
D32: Recommended max bandwidth | E32: =E25/1000 -> 1835.478165 | J32: =IF(E37="704288CPP_5",2000000,E25/1000) -> 1835.478165
J33: =IF(E48=1,E25*0.89,IF(E49=1,E25*0.89,HO54)) -> 731740.1883
D34: aux01 | E34: =VLOOKUP(E17,F88:G96,2,FALSE) -> mediumBalanced
D35: aux02 | E35: =E18 -> CPP_7 | J35: =IF(E48=1,E25*0.89,IF(E49=1,E25*0.89,HO54)) -> 731740.1883
D36: aux03 | E36: =IF(E51=1,VLOOKUP(E50,A171:I224,9,FALSE),VLOOKUP(E20,L82:M87,2,FALSE)) -> 768432 | G36: =IF(E51=1,VLOOKUP(E50,A171:I224,9,FALSE),VLOOKUP(E20,L82:M87,2,FALSE)) -> 768432
D37: aux05 | E37: =E36&E35 -> 768432CPP_7
D38: aux06 is resolution in list | E38: =COUNTIF(G99:G135,E37) -> 1
D39: aux07 | E39: =E21&E36&E35 -> 30768432CPP_7
D40: aux09 | E40: =VLOOKUP(E17,F88:I96,3,FALSE) -> medium
D41: aux10 | E41: =VLOOKUP(E17,F88:I96,4,FALSE) -> balanced
D42: aux11 if profile and resolution is in exception list, use form exception list, otherwise from table resolution_new | E42: =IF(E51=1,VLOOKUP(E50,A171:I224,5,FALSE),VLOOKUP(E20,L82:O87,3,FALSE)) -> 768
D43: aux12 if profile and resolution is in exception list, use form exception list, otherwise from table resolution_new | E43: =IF(E51=1,VLOOKUP(E50,A171:I224,6,FALSE),VLOOKUP(E20,L82:O87,4,FALSE)) -> 432
D44: aux 13 for H265 | E44: =IF(E18="CPP_7_3",1,0) -> 0
D45: aux14 for h265 | E45: =E18&E19 -> CPP_7h_264
D46: aux15 | E46: =COUNTIF(H160:H166,E45) -> 1
D47: aux16 | E47: =COUNTIF(G138:G153,E39) -> 0 | G47: =IF(E47="1"&E35="CPP4",12,"not supported") -> not supported
D48: aux19 if target = max und bitrate optimization off | E48: =IF(AND(E23=E25,HS54="OFF"),1,0) -> 0 | G48: =IF(AND(E23=E25>0.9,HS54="OFF"),1,0) -> 0 | H48: =IF(E23=E25,1,0) -> 0
D49: aux20 if target >90 of max | E49: =IF(AND(E23/E25>0.9,HS54="OFF"),1,0) -> 0 | G49: =IF(AND(E23/E25>0.9,HS54="OFF"),1,0) -> 0
D50: aux21 if SD is selected create all necessary information | E50: =E17&E18&E20 -> balanced standardCPP_7SD
D51: aux22 check if E39 is in exception list, used to provide the right resolution | E51: =COUNTIF(A171:A224,E50) -> 1
J52: =IF(AND(E21=30,OR(E50="balanced standardCPP_5SD",E50="balanced busyCPP_5SD",E50="image optimized quietCPP_5SD",E50="image optimized standardCPP_5SD",E50="image optimized busyCPP_5SD")),1,0) -> 0
C53: Scene profiles | D53: Recording quality | E53: isThermal | F53: static scene Type | G53: GOP Type | H53: I-Frame distance | I53: Framerate | J53: Width | K53: Height | L53: VideoStandard | M53: Platform | O53: dynamic scene type | P53: Bitrate reduction mode | R53: static scene Type | S53: GOP Type | T53: I-Frame distance | U53: Framerate | V53: Width | W53: Height | X53: VideoStandard | Y53: Platform | Z53: special camera | AB53: I-Frames/sec | AC53: Framesize Base | AD53: Modified by Bitrate red mode | AE53: Modified I-Framesize | AF53: noise base | AG53: is special Camera | AH53: overrule noise base | AI53: noise offset | AJ53: Framesize Base | AK53: Modified by bitrate red mode | AL53: Modified by dynamic scene | AM53: I-Frame size | AN53: P-Frames/sec | AO53: Framesize Base | AP53: Framesize Base | AQ53: Prediction Distance | AR53: Framerate modifier | AS53: Modified by Bitrate red mode | AT53: Modified Frame Size | AU53: Framesize Base | AV53: Modified by bitrate red mode | AW53: Modified by dynamic scene | AX53: Modified Frame Size | AY53: P-Frame Size | AZ53: B-Frames/sec | BA53: Framesize Base | BB53: Framesize Base | BC53: Prediction Distance | BD53: Framerate modifier | BE53: Modified by Bitrate red mode | BF53: Modified Frame Size | BG53: Framesize Base | BH53: Modified by bitrate red mode | BI53: Modified by dynamic scene | BJ53: Modified Frame Size | BK53: B-Framesize | BL53: static modifier | BM53: dynamic modifier | BN53: Bitrate | BO53: Resolution modifier | BP53: video standard modifier | BR53: Bitrate | BU53: dynamic scene type | BV53: Bitrate reduction mode | BX53: static scene Type | BY53: GOP Type | BZ53: I-Frame distance | CA53: Framerate | CB53: Width | CC53: Height | CD53: VideoStandard | CE53: Platform | CF53: special camera | CH53: I-Frames/sec | CI53: Framesize Base | CJ53: Modified by Bitrate red mode | CK53: Modified I-Framesize | CL53: noise base | CM53: is special Camera | CN53: overrule noise base | CO53: noise offset | CP53: Framesize Base | CQ53: Modified by bitrate red mode | CR53: Modified by dynamic scene | CS53: I-Frame size | CT53: P-Frames/sec | CU53: Framesize Base | CV53: Framesize Base | CW53: Prediction Distance | CX53: Framerate modifier | CY53: Modified by Bitrate red mode | CZ53: Modified Frame Size | DA53: Framesize Base | DB53: Modified by bitrate red mode | DC53: Modified by dynamic scene | DD53: Modified Frame Size | DE53: P-Frame Size | DF53: B-Frames/sec | DG53: Framesize Base | DH53: Framesize Base | DI53: Prediction Distance | DJ53: Framerate modifier | DK53: Modified by Bitrate red mode | DL53: Modified Frame Size | DM53: Framesize Base | DN53: Modified by bitrate red mode | DO53: Modified by dynamic scene | DP53: Modified Frame Size | DQ53: B-Framesize | DR53: static modifier | DS53: dynamic modifier | DT53: Bitrate | DU53: Resolution modifier | DV53: video standard modifier | DX53: Bitrate | EA53: dynamic scene type | EB53: Bitrate reduction mode | ED53: static scene Type | EE53: GOP Type | EF53: I-Frame distance | EG53: Framerate | EH53: Width | EI53: Height | EJ53: VideoStandard | EK53: Platform | EL53: special camera | EN53: I-Frames/sec | EO53: Framesize Base | EP53: Modified by Bitrate red mode | EQ53: Modified I-Framesize | ER53: noise base | ES53: is special Camera | ET53: overrule noise base | EU53: noise offset | EV53: Framesize Base | EW53: Modified by bitrate red mode | EX53: Modified by dynamic scene | EY53: I-Frame size | EZ53: P-Frames/sec | FA53: Framesize Base | FB53: Framesize Base | FC53: Prediction Distance | FD53: Framerate modifier | FE53: Modified by Bitrate red mode | FF53: Modified Frame Size | FG53: Framesize Base | FH53: Modified by bitrate red mode | FI53: Modified by dynamic scene | FJ53: Modified Frame Size | FK53: P-Frame Size | FL53: B-Frames/sec | FM53: Framesize Base | FN53: Framesize Base | FO53: Prediction Distance | FP53: Framerate modifier | FQ53: Modified by Bitrate red mode | FR53: Modified Frame Size | FS53: Framesize Base | FT53: Modified by bitrate red mode | FU53: Modified by dynamic scene | FV53: Modified Frame Size | FW53: B-Framesize | FX53: static modifier | FY53: dynamic modifier | FZ53: Bitrate | GA53: Resolution modifier | GB53: video standard modifier | GD53: Bitrate | GG53: Anteil Typ 0 | GH53: Anteil Typ 1 | GI53: Anteil Typ 2 | GK53: Bitrate Typ0 | GM53: Bitrate Typ1 | GO53: Bitrate Typ2 | GR53: expected Bitrate | GU53: maximum Bitrate | GW53: support long term rate control | GY53: max relation | GZ53: saftey factor | HA53: maximum platform bitrate | HD53: expected bitrate | HG53: quality driven mode is supported | HH53: target bitrate | HJ53: max bitrate | HL53: bitrate reduction mode | HM53: Averaging time | HO53: target bitrate | HQ53: max bitrate | HS53: bitrate reduction mode | HT53: Averaging time
C54: =E40 -> medium | D54: =E41 -> balanced | F54: normale z.B. typische parkplatz Straßenszene | G54: =IF(D54="bitrate optimized","IBBP",IF(D54="balanced","IBP",IF(D54="image optimized","IP","Error"))) -> IBP | H54: =IF(D54="bitrate optimized","255",IF(D54="balanced","60",IF(D54="image optimized","30","Error"))) -> 60 | I54: =E21 -> 30 | J54: =E42 -> 768 | K54: =E43 -> 432 | L54: =E19 -> h_264 | M54: =E18 -> CPP_7 | O54: =IF(C54=DataBase!$J$49,DataBase!$K$49,IF(C54=DataBase!$J$50,DataBase!$K$50,IF(C54=DataBase!$J$51,DataBase!$K$51,IF(C54=DataBase!$J$52,DataBase!$K$52)))) -> static | P54: =IF(D54="bitrate optimized","medium",IF(D54="balanced","medium",IF(D54="image optimized","high qual","Error"))) -> medium | R54: =$F54 -> normale z.B. typische parkplatz Straßenszene | S54: =$G54 -> IBP | T54: =$H54 -> 60 | U54: =$I54 -> 30 | V54: =$J54 -> 768 | W54: =$K54 -> 432 | X54: =$L54 -> h_264 | Y54: =$M54 -> CPP_7 | Z54: =$E54 -> 0 | AB54: =1/T54*U54 -> 0.5 | AC54: =IF(R54=DataBase!$B$14,DataBase!$C$14,IF(R54=DataBase!$B$15,DataBase!$C$15,IF(R54=DataBase!$B$16,DataBase!$C$16))) -> 300000 | AD54: =IF(P54=DataBase!$B$30,DataBase!$C$30,IF(P54=DataBase!$B$31,DataBase!$C$31,IF(P54=DataBase!$B$32,DataBase!$C$32,IF(P54=DataBase!$B$33,DataBase!$C$33,IF(P54=DataBase!$B$34,DataBase!$C$34))))) -> 1 | AE54: =AC54*AD54 -> 300000 | AF54: =IF(R54=DataBase!$B$14,DataBase!$G$14,IF(R54=DataBase!$B$15,DataBase!$G$15,IF(R54=DataBase!$B$16,DataBase!$G$16))) -> 200 | AG54: =IF(Z54=DataBase!$K$20,1,IF(Z54=DataBase!$K$21,1,0)) -> 0 | AH54: =IF(Z54=DataBase!$K$20,DataBase!$M$20,IF(Z54=DataBase!$K$21,DataBase!$M$21,0)) -> 0 | AI54: =IF(AG54=1,IF(AH54<>0,AH54,AF54),AF54) -> 200 | AJ54: =IF(P54=DataBase!$B$30,DataBase!$H$30,IF(P54=DataBase!$B$31,DataBase!$H$31,IF(P54=DataBase!$B$32,DataBase!$H$32,IF(P54=DataBase!$B$33,DataBase!$H$33,IF(P54=DataBase!$B$34,DataBase!$H$34))))) -> 1 | AK54: =IF(O54=DataBase!$B$21,DataBase!$G$21,IF(O54=DataBase!$B$22,DataBase!$G$22,IF(O54=DataBase!$B$23,DataBase!$G$23,IF(O54=DataBase!$B$24,DataBase!$G$24,IF(O54=DataBase!$B$25,DataBase!$G$25))))) -> 1 | AL54: =IF(Y54=DataBase!$B$44,DataBase!$G$44,IF($F54=DataBase!$B$45,DataBase!$G$45,IF(Y54=DataBase!$B$46,DataBase!$G$46,IF(Y54=DataBase!$B$47,DataBase!$G$47,IF(Y54=DataBase!$B$48,DataBase!$G$48,IF(Y54=DataBase!$B$49,DataBase!$G$49))))))+AI54*AJ54*AK54 -> 200 | AM54: =AL54+AE54*BL54 -> 300200 | AN54: =((T54-1)/T54)/IF(S54=DataBase!$B$8,DataBase!$C$8,IF(S54=DataBase!$B$9,DataBase!$C$9,IF(S54=DataBase!$B$10,DataBase!$C$10)))*U54 -> 14.75 | AO54: =IF(R54=DataBase!$B$14,DataBase!$E$14,IF(R54=DataBase!$B$15,DataBase!$E$15,IF(R54=DataBase!$B$16,DataBase!$E$16))) -> 125 | AP54: =IF(O54=DataBase!$B$21,DataBase!$E$21,IF(O54=DataBase!$B$22,DataBase!$E$22,IF(O54=DataBase!$B$23,DataBase!$E$23,IF(O54=DataBase!$B$24,DataBase!$E$24,IF(O54=DataBase!$B$25,DataBase!$E$25))))) -> 0 | AQ54: =IF(S54=DataBase!$B$8,DataBase!$C$8,IF(S54=DataBase!$B$9,DataBase!$C$9,IF(S54=DataBase!$B$10,DataBase!$C$10))) -> 2 | AR54: =POWER(U54/((DataBase!$F$5*AQ54)),DataBase!$E$52)*DataBase!$F$5*AQ54/U54 -> 1.25 | AS54: =IF(P54=DataBase!$B$30,DataBase!$F$30,IF(P54=DataBase!$B$31,DataBase!$F$31,IF(P54=DataBase!$B$32,DataBase!$F$32,IF(P54=DataBase!$B$33,DataBase!$F$33,IF(P54=DataBase!$B$34,DataBase!$F$34))))) -> 1 | AT54: =AP54*AR54*AS54*BM54 -> 0 | AU54: =IF(R54=DataBase!$B$14,DataBase!$H$14,IF(R54=DataBase!$B$15,DataBase!$H$15,IF(R54=DataBase!$B$16,DataBase!$H$16)))*AI54 -> 100 | AV54: =IF(P54=DataBase!$B$30,DataBase!$H$30,IF(P54=DataBase!$B$31,DataBase!$H$31,IF(P54=DataBase!$B$32,DataBase!$H$32,IF(P54=DataBase!$B$33,DataBase!$H$33,IF(P54=DataBase!$B$34,DataBase!$H$34))))) -> 1 | AW54: =IF(O54=DataBase!$B$21,DataBase!$G$21,IF(O54=DataBase!$B$22,DataBase!$G$22,IF(O54=DataBase!$B$23,DataBase!$G$23,IF(O54=DataBase!$B$24,DataBase!$G$24,IF(O54=DataBase!$B$25,DataBase!$G$25))))) -> 1 | AX54: =AU54*AV54*AW54+IF(Y54=DataBase!$B$44,DataBase!$G$44,IF(Y54=DataBase!$B$45,DataBase!$G$45,IF(Y54=DataBase!$B$46,DataBase!$G$46,IF(Y54=DataBase!$B$47,DataBase!$G$47,IF(Y54=DataBase!$B$48,DataBase!$G$48,IF(Y54=DataBase!$B$49,DataBase!$G$49)))))) -> 100 | AY54: =AO54+AT54+AX54 -> 225 | AZ54: =IF(S54=DataBase!$B$8,0,((T54-1)/T54)/IF(S54=DataBase!$B$9,2,IF(S54=DataBase!$B$10,3/2))*U54) -> 14.75 | BA54: =IF(R54=DataBase!$B$14,DataBase!$F$14,IF(R54=DataBase!$B$15,DataBase!$F$15,IF(R54=DataBase!$B$16,DataBase!$F$16))) -> 125 | BB54: =IF(O54=DataBase!$B$21,DataBase!$F$21,IF(O54=DataBase!$B$22,DataBase!$F$22,IF(O54=DataBase!$B$23,DataBase!$F$23,IF(O54=DataBase!$B$24,DataBase!$F$24,IF(O54=DataBase!$B$25,DataBase!$F$25))))) -> 0 | BC54: =IF(S54=DataBase!$B$8,DataBase!$E$8,IF(S54=DataBase!$B$9,DataBase!$E$9,IF(S54=DataBase!$B$10,DataBase!$E$10))) -> 1 | BD54: =IF(BC54=0,0,POWER(U54/((DataBase!$F$5*BC54)),DataBase!$E$52)*DataBase!$F$5*BC54/U54) -> 1 | BE54: =IF(P54=DataBase!$B$30,DataBase!$G$30,IF(P54=DataBase!$B$31,DataBase!$G$31,IF(P54=DataBase!$B$32,DataBase!$G$32,IF(P54=DataBase!$B$33,DataBase!$G$33,IF(P54=DataBase!$B$34,DataBase!$G$34))))) -> 1 | BF54: =BB54*BD54*BE54*BM54 -> 0 | BG54: =IF(R54=DataBase!$B$14,DataBase!$J$14,IF(R54=DataBase!$B$15,DataBase!$J$15,IF(R54=DataBase!$B$16,DataBase!$J$16)))*AI54 -> 50 | BH54: =IF(P54=DataBase!$B$30,DataBase!$H$30,IF(P54=DataBase!$B$31,DataBase!$H$31,IF(P54=DataBase!$B$32,DataBase!$H$32,IF(P54=DataBase!$B$33,DataBase!$H$33,IF(P54=DataBase!$B$34,DataBase!$H$34))))) -> 1 | BI54: =IF(O54=DataBase!$B$21,DataBase!$G$21,IF(O54=DataBase!$B$22,DataBase!$G$22,IF(O54=DataBase!$B$23,DataBase!$G$23,IF(O54=DataBase!$B$24,DataBase!$G$24,IF(O54=DataBase!$B$25,DataBase!$G$25))))) -> 1 | BJ54: =BG54*BH54*BI54+IF(Y54=DataBase!$B$44,DataBase!$G$44,IF(Y54=DataBase!$B$45,DataBase!$G$45,IF(Y54=DataBase!$B$46,DataBase!$G$46,IF(Y54=DataBase!$B$47,DataBase!$G$47,IF(Y54=DataBase!$B$48,DataBase!$G$48,IF(Y54=DataBase!$B$49,DataBase!$G$49)))))) -> 50 | BK54: =BA54+BF54+BJ54 -> 175 | BL54: =IF(Y54=DataBase!$B$44,DataBase!$C$44,IF(Y54=DataBase!$B$45,DataBase!$C$45,IF(Y54=DataBase!$B$46,DataBase!$C$46,IF(Y54=DataBase!$B$47,DataBase!$C$47,IF(Y54=DataBase!$B$48,DataBase!$C$48,IF(Y54=DataBase!$B$49,DataBase!$C$49)))))) -> 1 | BM54: =IF(Y54=DataBase!$B$44,DataBase!$D$44,IF(Y54=DataBase!$B$45,DataBase!$D$45,IF(Y54=DataBase!$B$46,DataBase!$D$46,IF(Y54=DataBase!$B$47,DataBase!$D$47,IF(Y54=DataBase!$B$48,DataBase!$D$48,IF(Y54=DataBase!$B$49,DataBase!$D$49)))))) -> 1.1 | BN54: =BK54*8*AZ54+AY54*8*AN54+AM54*AB54*8 -> 1248000 | BO54: =POWER(((DataBase!$C$5*DataBase!$E$5)/(V54*W54)),DataBase!$E$53) -> 0.2113957283 | BP54: =IF(X54=DataBase!$B$37,DataBase!$C$37,IF(X54=DataBase!$B$38,DataBase!$C$38)) -> 1 | BR54: =BP54*BO54*BN54 -> 263821.869 | BS54: bit/s | BU54: =IF(C54=DataBase!$J$49,DataBase!$M$49,IF(C54=DataBase!$J$50,DataBase!$M$50,IF(C54=DataBase!$J$51,DataBase!$M$51,IF(C54=DataBase!$J$52,DataBase!$M$52)))) -> standard | BV54: =IF(D54=DataBase!$J$44,DataBase!$L$44,IF(D54=DataBase!$J$45,DataBase!$L$45,IF(D54=DataBase!$J$46,DataBase!$L$46))) -> medium | BX54: =$F54 -> normale z.B. typische parkplatz Straßenszene | BY54: =$G54 -> IBP | BZ54: =$H54 -> 60 | CA54: =$I54 -> 30 | CB54: =$J54 -> 768 | CC54: =$K54 -> 432 | CD54: =$L54 -> h_264 | CE54: =$M54 -> CPP_7 | CF54: =$E54 -> 0 | CH54: =1/BZ54*CA54 -> 0.5 | CI54: =IF(BX54=DataBase!$B$14,DataBase!$C$14,IF(BX54=DataBase!$B$15,DataBase!$C$15,IF(BX54=DataBase!$B$16,DataBase!$C$16))) -> 300000 | CJ54: =IF(BV54=DataBase!$B$30,DataBase!$C$30,IF(BV54=DataBase!$B$31,DataBase!$C$31,IF(BV54=DataBase!$B$32,DataBase!$C$32,IF(BV54=DataBase!$B$33,DataBase!$C$33,IF(BV54=DataBase!$B$34,DataBase!$C$34))))) -> 1 | CK54: =CI54*CJ54 -> 300000 | CL54: =IF(BX54=DataBase!$B$14,DataBase!$G$14,IF(BX54=DataBase!$B$15,DataBase!$G$15,IF(BX54=DataBase!$B$16,DataBase!$G$16))) -> 200 | CM54: =IF(CF54=DataBase!$K$20,1,IF(CF54=DataBase!$K$21,1,0)) -> 0 | CN54: =IF(CF54=DataBase!$K$20,DataBase!$M$20,IF(CF54=DataBase!$K$21,DataBase!$M$21,0)) -> 0 | CO54: =IF(CM54=1,IF(CN54<>0,CN54,CL54),CL54) -> 200 | CP54: =IF(BV54=DataBase!$B$30,DataBase!$H$30,IF(BV54=DataBase!$B$31,DataBase!$H$31,IF(BV54=DataBase!$B$32,DataBase!$H$32,IF(BV54=DataBase!$B$33,DataBase!$H$33,IF(BV54=DataBase!$B$34,DataBase!$H$34))))) -> 1 | CQ54: =IF(BU54=DataBase!$B$21,DataBase!$G$21,IF(BU54=DataBase!$B$22,DataBase!$G$22,IF(BU54=DataBase!$B$23,DataBase!$G$23,IF(BU54=DataBase!$B$24,DataBase!$G$24,IF(BU54=DataBase!$B$25,DataBase!$G$25))))) -> 1.4 | CR54: =IF(CE54=DataBase!$B$44,DataBase!$G$44,IF($F54=DataBase!$B$45,DataBase!$G$45,IF(CE54=DataBase!$B$46,DataBase!$G$46,IF(CE54=DataBase!$B$47,DataBase!$G$47,IF(CE54=DataBase!$B$48,DataBase!$G$48,IF(CE54=DataBase!$B$49,DataBase!$G$49))))))+CO54*CP54*CQ54 -> 280 | CS54: =CR54+CK54*DR54 -> 300280 | CT54: =((BZ54-1)/BZ54)/IF(BY54=DataBase!$B$8,DataBase!$C$8,IF(BY54=DataBase!$B$9,DataBase!$C$9,IF(BY54=DataBase!$B$10,DataBase!$C$10)))*CA54 -> 14.75 | CU54: =IF(BX54=DataBase!$B$14,DataBase!$E$14,IF(BX54=DataBase!$B$15,DataBase!$E$15,IF(BX54=DataBase!$B$16,DataBase!$E$16))) -> 125 | CV54: =IF(BU54=DataBase!$B$21,DataBase!$E$21,IF(BU54=DataBase!$B$22,DataBase!$E$22,IF(BU54=DataBase!$B$23,DataBase!$E$23,IF(BU54=DataBase!$B$24,DataBase!$E$24,IF(BU54=DataBase!$B$25,DataBase!$E$25))))) -> 2000 | CW54: =IF(BY54=DataBase!$B$8,DataBase!$C$8,IF(BY54=DataBase!$B$9,DataBase!$C$9,IF(BY54=DataBase!$B$10,DataBase!$C$10))) -> 2 | CX54: =POWER(CA54/((DataBase!$F$5*CW54)),DataBase!$E$52)*DataBase!$F$5*CW54/CA54 -> 1.25 | CY54: =IF(BV54=DataBase!$B$30,DataBase!$F$30,IF(BV54=DataBase!$B$31,DataBase!$F$31,IF(BV54=DataBase!$B$32,DataBase!$F$32,IF(BV54=DataBase!$B$33,DataBase!$F$33,IF(BV54=DataBase!$B$34,DataBase!$F$34))))) -> 1 | CZ54: =CV54*CX54*CY54*DS54 -> 2750 | DA54: =IF(BX54=DataBase!$B$14,DataBase!$H$14,IF(BX54=DataBase!$B$15,DataBase!$H$15,IF(BX54=DataBase!$B$16,DataBase!$H$16)))*CO54 -> 100 | DB54: =IF(BV54=DataBase!$B$30,DataBase!$H$30,IF(BV54=DataBase!$B$31,DataBase!$H$31,IF(BV54=DataBase!$B$32,DataBase!$H$32,IF(BV54=DataBase!$B$33,DataBase!$H$33,IF(BV54=DataBase!$B$34,DataBase!$H$34))))) -> 1 | DC54: =IF(BU54=DataBase!$B$21,DataBase!$G$21,IF(BU54=DataBase!$B$22,DataBase!$G$22,IF(BU54=DataBase!$B$23,DataBase!$G$23,IF(BU54=DataBase!$B$24,DataBase!$G$24,IF(BU54=DataBase!$B$25,DataBase!$G$25))))) -> 1.4 | DD54: =DA54*DB54*DC54+IF(CE54=DataBase!$B$44,DataBase!$G$44,IF(CE54=DataBase!$B$45,DataBase!$G$45,IF(CE54=DataBase!$B$46,DataBase!$G$46,IF(CE54=DataBase!$B$47,DataBase!$G$47,IF(CE54=DataBase!$B$48,DataBase!$G$48,IF(CE54=DataBase!$B$49,DataBase!$G$49)))))) -> 140 | DE54: =CU54+CZ54+DD54 -> 3015 | DF54: =IF(BY54=DataBase!$B$8,0,((BZ54-1)/BZ54)/IF(BY54=DataBase!$B$9,2,IF(BY54=DataBase!$B$10,3/2))*CA54) -> 14.75 | DG54: =IF(BX54=DataBase!$B$14,DataBase!$F$14,IF(BX54=DataBase!$B$15,DataBase!$F$15,IF(BX54=DataBase!$B$16,DataBase!$F$16))) -> 125 | DH54: =IF(BU54=DataBase!$B$21,DataBase!$F$21,IF(BU54=DataBase!$B$22,DataBase!$F$22,IF(BU54=DataBase!$B$23,DataBase!$F$23,IF(BU54=DataBase!$B$24,DataBase!$F$24,IF(BU54=DataBase!$B$25,DataBase!$F$25))))) -> 579 | DI54: =IF(BY54=DataBase!$B$8,DataBase!$E$8,IF(BY54=DataBase!$B$9,DataBase!$E$9,IF(BY54=DataBase!$B$10,DataBase!$E$10))) -> 1 | DJ54: =IF(DI54=0,0,POWER(CA54/((DataBase!$F$5*DI54)),DataBase!$E$52)*DataBase!$F$5*DI54/CA54) -> 1 | DK54: =IF(BV54=DataBase!$B$30,DataBase!$G$30,IF(BV54=DataBase!$B$31,DataBase!$G$31,IF(BV54=DataBase!$B$32,DataBase!$G$32,IF(BV54=DataBase!$B$33,DataBase!$G$33,IF(BV54=DataBase!$B$34,DataBase!$G$34))))) -> 1 | DL54: =DH54*DJ54*DK54*DS54 -> 636.9 | DM54: =IF(BX54=DataBase!$B$14,DataBase!$J$14,IF(BX54=DataBase!$B$15,DataBase!$J$15,IF(BX54=DataBase!$B$16,DataBase!$J$16)))*CO54 -> 50 | DN54: =IF(BV54=DataBase!$B$30,DataBase!$H$30,IF(BV54=DataBase!$B$31,DataBase!$H$31,IF(BV54=DataBase!$B$32,DataBase!$H$32,IF(BV54=DataBase!$B$33,DataBase!$H$33,IF(BV54=DataBase!$B$34,DataBase!$H$34))))) -> 1 | DO54: =IF(BU54=DataBase!$B$21,DataBase!$G$21,IF(BU54=DataBase!$B$22,DataBase!$G$22,IF(BU54=DataBase!$B$23,DataBase!$G$23,IF(BU54=DataBase!$B$24,DataBase!$G$24,IF(BU54=DataBase!$B$25,DataBase!$G$25))))) -> 1.4 | DP54: =DM54*DN54*DO54+IF(CE54=DataBase!$B$44,DataBase!$G$44,IF(CE54=DataBase!$B$45,DataBase!$G$45,IF(CE54=DataBase!$B$46,DataBase!$G$46,IF(CE54=DataBase!$B$47,DataBase!$G$47,IF(CE54=DataBase!$B$48,DataBase!$G$48,IF(CE54=DataBase!$B$49,DataBase!$G$49)))))) -> 70 | DQ54: =DG54+DL54+DP54 -> 831.9 | DR54: =IF(CE54=DataBase!$B$44,DataBase!$C$44,IF(CE54=DataBase!$B$45,DataBase!$C$45,IF(CE54=DataBase!$B$46,DataBase!$C$46,IF(CE54=DataBase!$B$47,DataBase!$C$47,IF(CE54=DataBase!$B$48,DataBase!$C$48,IF(CE54=DataBase!$B$49,DataBase!$C$49)))))) -> 1 | DS54: =IF(CE54=DataBase!$B$44,DataBase!$D$44,IF(CE54=DataBase!$B$45,DataBase!$D$45,IF(CE54=DataBase!$B$46,DataBase!$D$46,IF(CE54=DataBase!$B$47,DataBase!$D$47,IF(CE54=DataBase!$B$48,DataBase!$D$48,IF(CE54=DataBase!$B$49,DataBase!$D$49)))))) -> 1.1 | DT54: =DQ54*8*DF54+DE54*8*CT54+CS54*CH54*8 -> 1655054.2 | DU54: =POWER(((DataBase!$C$5*DataBase!$E$5)/(CB54*CC54)),DataBase!$E$53) -> 0.2113957283 | DV54: =IF(CD54=DataBase!$B$37,DataBase!$C$37,IF(CD54=DataBase!$B$38,DataBase!$C$38)) -> 1 | DX54: =DV54*DU54*DT54 -> 349871.3881 | DY54: bit/s | EA54: =IF(C54=DataBase!$J$49,DataBase!$O$49,IF(C54=DataBase!$J$50,DataBase!$O$50,IF(C54=DataBase!$J$51,DataBase!$O$51,IF(C54=DataBase!$J$52,DataBase!$O$52)))) -> crowd | EB54: =IF(D54=DataBase!$J$44,DataBase!$L$44,IF(D54=DataBase!$J$45,DataBase!$L$45,IF(D54=DataBase!$J$46,DataBase!$L$46))) -> medium | ED54: =$F54 -> normale z.B. typische parkplatz Straßenszene | EE54: =$G54 -> IBP | EF54: =$H54 -> 60 | EG54: =$I54 -> 30 | EH54: =$J54 -> 768 | EI54: =$K54 -> 432 | EJ54: =$L54 -> h_264 | EK54: =$M54 -> CPP_7 | EL54: =$E54 -> 0 | EN54: =1/EF54*EG54 -> 0.5 | EO54: =IF(ED54=DataBase!$B$14,DataBase!$C$14,IF(ED54=DataBase!$B$15,DataBase!$C$15,IF(ED54=DataBase!$B$16,DataBase!$C$16))) -> 300000 | EP54: =IF(EB54=DataBase!$B$30,DataBase!$C$30,IF(EB54=DataBase!$B$31,DataBase!$C$31,IF(EB54=DataBase!$B$32,DataBase!$C$32,IF(EB54=DataBase!$B$33,DataBase!$C$33,IF(EB54=DataBase!$B$34,DataBase!$C$34))))) -> 1 | EQ54: =EO54*EP54 -> 300000 | ER54: =IF(ED54=DataBase!$B$14,DataBase!$G$14,IF(ED54=DataBase!$B$15,DataBase!$G$15,IF(ED54=DataBase!$B$16,DataBase!$G$16))) -> 200 | ES54: =IF(EL54=DataBase!$K$20,1,IF(EL54=DataBase!$K$21,1,0)) -> 0 | ET54: =IF(EL54=DataBase!$K$20,DataBase!$M$20,IF(EL54=DataBase!$K$21,DataBase!$M$21,0)) -> 0 | EU54: =IF(ES54=1,IF(ET54<>0,ET54,ER54),ER54) -> 200 | EV54: =IF(EB54=DataBase!$B$30,DataBase!$H$30,IF(EB54=DataBase!$B$31,DataBase!$H$31,IF(EB54=DataBase!$B$32,DataBase!$H$32,IF(EB54=DataBase!$B$33,DataBase!$H$33,IF(EB54=DataBase!$B$34,DataBase!$H$34))))) -> 1 | EW54: =IF(EA54=DataBase!$B$21,DataBase!$G$21,IF(EA54=DataBase!$B$22,DataBase!$G$22,IF(EA54=DataBase!$B$23,DataBase!$G$23,IF(EA54=DataBase!$B$24,DataBase!$G$24,IF(EA54=DataBase!$B$25,DataBase!$G$25))))) -> 2 | EX54: =IF(EK54=DataBase!$B$44,DataBase!$G$44,IF($F54=DataBase!$B$45,DataBase!$G$45,IF(EK54=DataBase!$B$46,DataBase!$G$46,IF(EK54=DataBase!$B$47,DataBase!$G$47,IF(EK54=DataBase!$B$48,DataBase!$G$48,IF(EK54=DataBase!$B$49,DataBase!$G$49))))))+EU54*EV54*EW54 -> 400 | EY54: =EX54+EQ54*FX54 -> 300400 | EZ54: =((EF54-1)/EF54)/IF(EE54=DataBase!$B$8,DataBase!$C$8,IF(EE54=DataBase!$B$9,DataBase!$C$9,IF(EE54=DataBase!$B$10,DataBase!$C$10)))*EG54 -> 14.75 | FA54: =IF(ED54=DataBase!$B$14,DataBase!$E$14,IF(ED54=DataBase!$B$15,DataBase!$E$15,IF(ED54=DataBase!$B$16,DataBase!$E$16))) -> 125 | FB54: =IF(EA54=DataBase!$B$21,DataBase!$E$21,IF(EA54=DataBase!$B$22,DataBase!$E$22,IF(EA54=DataBase!$B$23,DataBase!$E$23,IF(EA54=DataBase!$B$24,DataBase!$E$24,IF(EA54=DataBase!$B$25,DataBase!$E$25))))) -> 15780 | FC54: =IF(EE54=DataBase!$B$8,DataBase!$C$8,IF(EE54=DataBase!$B$9,DataBase!$C$9,IF(EE54=DataBase!$B$10,DataBase!$C$10))) -> 2 | FD54: =POWER(EG54/((DataBase!$F$5*FC54)),DataBase!$E$52)*DataBase!$F$5*FC54/EG54 -> 1.25 | FE54: =IF(EB54=DataBase!$B$30,DataBase!$F$30,IF(EB54=DataBase!$B$31,DataBase!$F$31,IF(EB54=DataBase!$B$32,DataBase!$F$32,IF(EB54=DataBase!$B$33,DataBase!$F$33,IF(EB54=DataBase!$B$34,DataBase!$F$34))))) -> 1 | FF54: =FB54*FD54*FE54*FY54 -> 21697.5 | FG54: =IF(ED54=DataBase!$B$14,DataBase!$H$14,IF(ED54=DataBase!$B$15,DataBase!$H$15,IF(ED54=DataBase!$B$16,DataBase!$H$16)))*EU54 -> 100 | FH54: =IF(EB54=DataBase!$B$30,DataBase!$H$30,IF(EB54=DataBase!$B$31,DataBase!$H$31,IF(EB54=DataBase!$B$32,DataBase!$H$32,IF(EB54=DataBase!$B$33,DataBase!$H$33,IF(EB54=DataBase!$B$34,DataBase!$H$34))))) -> 1 | FI54: =IF(EA54=DataBase!$B$21,DataBase!$G$21,IF(EA54=DataBase!$B$22,DataBase!$G$22,IF(EA54=DataBase!$B$23,DataBase!$G$23,IF(EA54=DataBase!$B$24,DataBase!$G$24,IF(EA54=DataBase!$B$25,DataBase!$G$25))))) -> 2 | FJ54: =FG54*FH54*FI54+IF(EK54=DataBase!$B$44,DataBase!$G$44,IF(EK54=DataBase!$B$45,DataBase!$G$45,IF(EK54=DataBase!$B$46,DataBase!$G$46,IF(EK54=DataBase!$B$47,DataBase!$G$47,IF(EK54=DataBase!$B$48,DataBase!$G$48,IF(EK54=DataBase!$B$49,DataBase!$G$49)))))) -> 200 | FK54: =FA54+FF54+FJ54 -> 22022.5 | FL54: =IF(EE54=DataBase!$B$8,0,((EF54-1)/EF54)/IF(EE54=DataBase!$B$9,2,IF(EE54=DataBase!$B$10,3/2))*EG54) -> 14.75 | FM54: =IF(ED54=DataBase!$B$14,DataBase!$F$14,IF(ED54=DataBase!$B$15,DataBase!$F$15,IF(ED54=DataBase!$B$16,DataBase!$F$16))) -> 125 | FN54: =IF(EA54=DataBase!$B$21,DataBase!$F$21,IF(EA54=DataBase!$B$22,DataBase!$F$22,IF(EA54=DataBase!$B$23,DataBase!$F$23,IF(EA54=DataBase!$B$24,DataBase!$F$24,IF(EA54=DataBase!$B$25,DataBase!$F$25))))) -> 3964 | FO54: =IF(EE54=DataBase!$B$8,DataBase!$E$8,IF(EE54=DataBase!$B$9,DataBase!$E$9,IF(EE54=DataBase!$B$10,DataBase!$E$10))) -> 1 | FP54: =IF(FO54=0,0,POWER(EG54/((DataBase!$F$5*FO54)),DataBase!$E$52)*DataBase!$F$5*FO54/EG54) -> 1 | FQ54: =IF(EB54=DataBase!$B$30,DataBase!$G$30,IF(EB54=DataBase!$B$31,DataBase!$G$31,IF(EB54=DataBase!$B$32,DataBase!$G$32,IF(EB54=DataBase!$B$33,DataBase!$G$33,IF(EB54=DataBase!$B$34,DataBase!$G$34))))) -> 1 | FR54: =FN54*FP54*FQ54*FY54 -> 4360.4 | FS54: =IF(ED54=DataBase!$B$14,DataBase!$J$14,IF(ED54=DataBase!$B$15,DataBase!$J$15,IF(ED54=DataBase!$B$16,DataBase!$J$16)))*EU54 -> 50 | FT54: =IF(EB54=DataBase!$B$30,DataBase!$H$30,IF(EB54=DataBase!$B$31,DataBase!$H$31,IF(EB54=DataBase!$B$32,DataBase!$H$32,IF(EB54=DataBase!$B$33,DataBase!$H$33,IF(EB54=DataBase!$B$34,DataBase!$H$34))))) -> 1 | FU54: =IF(EA54=DataBase!$B$21,DataBase!$G$21,IF(EA54=DataBase!$B$22,DataBase!$G$22,IF(EA54=DataBase!$B$23,DataBase!$G$23,IF(EA54=DataBase!$B$24,DataBase!$G$24,IF(EA54=DataBase!$B$25,DataBase!$G$25))))) -> 2 | FV54: =FS54*FT54*FU54+IF(EK54=DataBase!$B$44,DataBase!$G$44,IF(EK54=DataBase!$B$45,DataBase!$G$45,IF(EK54=DataBase!$B$46,DataBase!$G$46,IF(EK54=DataBase!$B$47,DataBase!$G$47,IF(EK54=DataBase!$B$48,DataBase!$G$48,IF(EK54=DataBase!$B$49,DataBase!$G$49)))))) -> 100 | FW54: =FM54+FR54+FV54 -> 4585.4 | FX54: =IF(EK54=DataBase!$B$44,DataBase!$C$44,IF(EK54=DataBase!$B$45,DataBase!$C$45,IF(EK54=DataBase!$B$46,DataBase!$C$46,IF(EK54=DataBase!$B$47,DataBase!$C$47,IF(EK54=DataBase!$B$48,DataBase!$C$48,IF(EK54=DataBase!$B$49,DataBase!$C$49)))))) -> 1 | FY54: =IF(EK54=DataBase!$B$44,DataBase!$D$44,IF(EK54=DataBase!$B$45,DataBase!$D$45,IF(EK54=DataBase!$B$46,DataBase!$D$46,IF(EK54=DataBase!$B$47,DataBase!$D$47,IF(EK54=DataBase!$B$48,DataBase!$D$48,IF(EK54=DataBase!$B$49,DataBase!$D$49)))))) -> 1.1 | FZ54: =FW54*8*FL54+FK54*8*EZ54+EY54*EN54*8 -> 4341332.2 | GA54: =POWER(((DataBase!$C$5*DataBase!$E$5)/(EH54*EI54)),DataBase!$E$53) -> 0.2113957283 | GB54: =IF(EJ54=DataBase!$B$37,DataBase!$C$37,IF(EJ54=DataBase!$B$38,DataBase!$C$38)) -> 1 | GD54: =GB54*GA54*FZ54 -> 917739.0824 | GE54: bit/s | GG54: =IF($C54=DataBase!$J$49,DataBase!$L$49,IF($C54=DataBase!$J$50,DataBase!$L$50,IF($C54=DataBase!$J$51,DataBase!$L$51,IF($C54=DataBase!$J$52,DataBase!$L$52)))) -> 0.54 | GH54: =IF($C54=DataBase!$J$49,DataBase!$N$49,IF($C54=DataBase!$J$50,DataBase!$N$50,IF($C54=DataBase!$J$51,DataBase!$N$51,IF($C54=DataBase!$J$52,DataBase!$N$52)))) -> 0.35 | GI54: =IF($C54=DataBase!$J$49,DataBase!$P$49,IF($C54=DataBase!$J$50,DataBase!$P$50,IF($C54=DataBase!$J$51,DataBase!$P$51,IF($C54=DataBase!$J$52,DataBase!$P$52)))) -> 0.11 | GK54: =$GG54*BR54 -> 142463.8092 | GL54: bit/s | GM54: =$DX54*GH54 -> 122454.9858 | GN54: bit/s | GO54: =$GD54*GI54 -> 100951.2991 | GP54: bit/s | GR54: =GO54+GM54+GK54 -> 365870.0941 | GS54: bit/s | GU54: =MAX($GD54,$DX54,$BR54) -> 917739.0824 | GV54: bit/s | GW54: =IF($M54=DataBase!$B$44,DataBase!$E$44,IF($M54=DataBase!$B$45,DataBase!$E$45,IF($M54=DataBase!$B$46,DataBase!$E$46,IF($M54=DataBase!$B$47,DataBase!$E$47,IF($M54=DataBase!$B$48,DataBase!$E$48,IF($M54=DataBase!$B$49,DataBase!$E$49)))))) -> 1 | GY54: =IF($D54=DataBase!$J$44,DataBase!$M$44,IF($D54=DataBase!$J$45,DataBase!$M$45,IF($D54=DataBase!$J$46,DataBase!$M$46))) -> 4 | GZ54: =IF($D54=DataBase!$J$44,DataBase!$K$44,IF($D54=DataBase!$J$45,DataBase!$K$45,IF($D54=DataBase!$J$46,DataBase!$K$46))) -> 2 | HA54: =IF($M54=DataBase!$B$44,DataBase!$F$44,IF($M54=DataBase!$B$45,DataBase!$F$45,IF($M54=DataBase!$B$46,DataBase!$F$46,IF($M54=DataBase!$B$47,DataBase!$F$47,IF($M54=DataBase!$B$48,DataBase!$F$48,IF($M54=DataBase!$B$49,DataBase!$F$49)))))) -> 16000000 | HB54: bit/s | HC54: =C54&D54&I54&J54&K54&L54&M54 -> mediumbalanced30768432h_264CPP_7 | HD54: =MIN(HA54,MAX(GZ54*IF(0=GW54,GR54,IF(1=GW54,GR54,IF(2=GW54,GU54))))) -> 731740.1883 | HE54: bit/s | HG54: =IF(GW54=1,"SUPPORTED","NOT SUPPORTED") -> SUPPORTED | HH54: =HJ54 -> 1835478.165 | HI54: bit/s | HJ54: =MIN(HA54,GZ54*IF(GW54=0,2*GR54,GU54)) -> 1835478.165 | HK54: bit/s | HL54: =IF(GW54=1,IF($D54=DataBase!$J$44,DataBase!$L$44,IF($D54=DataBase!$J$45,DataBase!$L$45,IF($D54=DataBase!$J$46,DataBase!$L$46))),"OFF") -> medium | HM54: =0 -> 0 | HO54: =MIN(HA54,MAX(HQ54/GY54,GZ54*IF(0=GW54,GR54,IF(1=GW54,GR54,IF(2=GW54,GU54))))) -> 731740.1883 | HP54: bit/s | HQ54: =MIN(HA54,GZ54*IF(GW54=0,2*GR54,GU54)) -> 1835478.165 | HR54: bit/s | HS54: =IF(GW54=1,IF($D54=DataBase!$J$44,DataBase!$L$44,IF($D54=DataBase!$J$45,DataBase!$L$45,IF($D54=DataBase!$J$46,DataBase!$L$46))),"OFF") -> medium | HT54: =IF(GW54=1,3600*24*GW54,0) -> 86400
C55: =E40 -> medium
C56: Customized Profiles | G56: Target bitrate | H56: maximum bitrate
C57: nicht in BVMS | D57: Static scene type | E57: normale z.B. typische parkplatz Straßenszene | G57: =HO73 ->  | H57: =HQ73 -> 
C58: nicht in BVMS | D58: dynamic scene type | E58: crowded
D59: Safety factor | E59: minimum
C60: wird auf kamera geschrieben | D60: Bit rate optimization | E60: medium
C61: fixer Wert in BVMS | D61: Averaging | E61: 86400
C62: Framerate | D62: Encoding Interval | E62: 60
C63: wird auf kamera geschrieben | D63: GOP Structure | E63: IBBP
C64: wird auf kamera geschrieben | D64: I-Frame distance | E64: 255
C65: für Kalkulation | D65: Resolution | E65: 1080p | F65: Jan Brandstätter schickt noch die Werte für safety factor und max target max
C66: für Kalkulation | D66: Platform | E66: CPP_7_3
C67: für Kalkulation | D67: video codec | E67: h_265
C69: hilf01 | D69: =VLOOKUP(E65,L82:O87,3,0) -> 1920
C70: hilf02 | D70: =VLOOKUP(E65,L82:O87,4,0) -> 1080
C71: hilf03 | D71: =VLOOKUP(E59,G142:I144,2,0) -> 
C72: hilf04 | D72: =VLOOKUP(E59,G142:I144,3,0) -> 
C73: =E58 -> crowded | D73: =E60 -> medium | F73: =E57 -> normale z.B. typische parkplatz Straßenszene | G73: =E63 -> IBBP | H73: =E64 -> 255 | I73: =E62 -> 60 | J73: =D69 -> 1920 | K73: =D70 -> 1080 | L73: =E67 -> h_265 | M73: =E66 -> CPP_7_3 | O73: =IF(C73=DataBase!$J$49,DataBase!$K$49,IF(C73=DataBase!$J$50,DataBase!$K$50,IF(C73=DataBase!$J$51,DataBase!$K$51,IF(C73=DataBase!$J$52,DataBase!$K$52)))) -> standard | P73: =E60 -> medium | R73: =$F73 -> normale z.B. typische parkplatz Straßenszene | S73: =$G73 -> IBBP | T73: =$H73 -> 255 | U73: =$I73 -> 60 | V73: =$J73 -> 1920 | W73: =$K73 -> 1080 | X73: =$L73 -> h_265 | Y73: =$M73 -> CPP_7_3 | Z73: =$E73 -> 0 | AB73: =1/T73*U73 -> 0.2352941176 | AC73: =IF(R73=DataBase!$B$14,DataBase!$C$14,IF(R73=DataBase!$B$15,DataBase!$C$15,IF(R73=DataBase!$B$16,DataBase!$C$16))) -> 300000 | AD73: =IF(P73=DataBase!$B$30,DataBase!$C$30,IF(P73=DataBase!$B$31,DataBase!$C$31,IF(P73=DataBase!$B$32,DataBase!$C$32,IF(P73=DataBase!$B$33,DataBase!$C$33,IF(P73=DataBase!$B$34,DataBase!$C$34))))) -> 1 | AE73: =AC73*AD73 -> 300000 | AF73: =IF(R73=DataBase!$B$14,DataBase!$G$14,IF(R73=DataBase!$B$15,DataBase!$G$15,IF(R73=DataBase!$B$16,DataBase!$G$16))) -> 200 | AG73: =IF(Z73=DataBase!$K$20,1,IF(Z73=DataBase!$K$21,1,0)) -> 0 | AH73: =IF(Z73=DataBase!$K$20,DataBase!$M$20,IF(Z73=DataBase!$K$21,DataBase!$M$21,0)) -> 0 | AI73: =IF(AG73=1,IF(AH73<>0,AH73,AF73),AF73) -> 200 | AJ73: =IF(P73=DataBase!$B$30,DataBase!$H$30,IF(P73=DataBase!$B$31,DataBase!$H$31,IF(P73=DataBase!$B$32,DataBase!$H$32,IF(P73=DataBase!$B$33,DataBase!$H$33,IF(P73=DataBase!$B$34,DataBase!$H$34))))) -> 1 | AK73: =IF(O73=DataBase!$B$21,DataBase!$G$21,IF(O73=DataBase!$B$22,DataBase!$G$22,IF(O73=DataBase!$B$23,DataBase!$G$23,IF(O73=DataBase!$B$24,DataBase!$G$24,IF(O73=DataBase!$B$25,DataBase!$G$25))))) -> 1.4 | AL73: =IF(Y73=DataBase!$B$44,DataBase!$G$44,IF($F73=DataBase!$B$45,DataBase!$G$45,IF(Y73=DataBase!$B$46,DataBase!$G$46,IF(Y73=DataBase!$B$47,DataBase!$G$47,IF(Y73=DataBase!$B$48,DataBase!$G$48,IF(Y73=DataBase!$B$49,DataBase!$G$49))))))+AI73*AJ73*AK73 -> 280 | AM73: =AL73+AE73*BL73 -> 360280 | AN73: =((T73-1)/T73)/IF(S73=DataBase!$B$8,DataBase!$C$8,IF(S73=DataBase!$B$9,DataBase!$C$9,IF(S73=DataBase!$B$10,DataBase!$C$10)))*U73 -> 19.92156863 | AO73: =IF(R73=DataBase!$B$14,DataBase!$E$14,IF(R73=DataBase!$B$15,DataBase!$E$15,IF(R73=DataBase!$B$16,DataBase!$E$16))) -> 125 | AP73: =IF(O73=DataBase!$B$21,DataBase!$E$21,IF(O73=DataBase!$B$22,DataBase!$E$22,IF(O73=DataBase!$B$23,DataBase!$E$23,IF(O73=DataBase!$B$24,DataBase!$E$24,IF(O73=DataBase!$B$25,DataBase!$E$25))))) -> 2000 | AQ73: =IF(S73=DataBase!$B$8,DataBase!$C$8,IF(S73=DataBase!$B$9,DataBase!$C$9,IF(S73=DataBase!$B$10,DataBase!$C$10))) -> 3 | AR73: =POWER(U73/((DataBase!$F$5*AQ73)),DataBase!$E$52)*DataBase!$F$5*AQ73/U73 -> 1.139432817 | AS73: =IF(P73=DataBase!$B$30,DataBase!$F$30,IF(P73=DataBase!$B$31,DataBase!$F$31,IF(P73=DataBase!$B$32,DataBase!$F$32,IF(P73=DataBase!$B$33,DataBase!$F$33,IF(P73=DataBase!$B$34,DataBase!$F$34))))) -> 1 | AT73: =AP73*AR73*AS73*BM73 -> 3190.411888 | AU73: =IF(R73=DataBase!$B$14,DataBase!$H$14,IF(R73=DataBase!$B$15,DataBase!$H$15,IF(R73=DataBase!$B$16,DataBase!$H$16)))*AI73 -> 100 | AV73: =IF(P73=DataBase!$B$30,DataBase!$H$30,IF(P73=DataBase!$B$31,DataBase!$H$31,IF(P73=DataBase!$B$32,DataBase!$H$32,IF(P73=DataBase!$B$33,DataBase!$H$33,IF(P73=DataBase!$B$34,DataBase!$H$34))))) -> 1 | AW73: =IF(O73=DataBase!$B$21,DataBase!$G$21,IF(O73=DataBase!$B$22,DataBase!$G$22,IF(O73=DataBase!$B$23,DataBase!$G$23,IF(O73=DataBase!$B$24,DataBase!$G$24,IF(O73=DataBase!$B$25,DataBase!$G$25))))) -> 1.4 | AX73: =AU73*AV73*AW73+IF(Y73=DataBase!$B$44,DataBase!$G$44,IF(Y73=DataBase!$B$45,DataBase!$G$45,IF(Y73=DataBase!$B$46,DataBase!$G$46,IF(Y73=DataBase!$B$47,DataBase!$G$47,IF(Y73=DataBase!$B$48,DataBase!$G$48,IF(Y73=DataBase!$B$49,DataBase!$G$49)))))) -> 140 | AY73: =AO73+AT73+AX73 -> 3455.411888 | AZ73: =IF(S73=DataBase!$B$8,0,((T73-1)/T73)/IF(S73=DataBase!$B$9,2,IF(S73=DataBase!$B$10,3/2))*U73) -> 39.84313725 | BA73: =IF(R73=DataBase!$B$14,DataBase!$F$14,IF(R73=DataBase!$B$15,DataBase!$F$15,IF(R73=DataBase!$B$16,DataBase!$F$16))) -> 125 | BB73: =IF(O73=DataBase!$B$21,DataBase!$F$21,IF(O73=DataBase!$B$22,DataBase!$F$22,IF(O73=DataBase!$B$23,DataBase!$F$23,IF(O73=DataBase!$B$24,DataBase!$F$24,IF(O73=DataBase!$B$25,DataBase!$F$25))))) -> 579 | BC73: =IF(S73=DataBase!$B$8,DataBase!$E$8,IF(S73=DataBase!$B$9,DataBase!$E$9,IF(S73=DataBase!$B$10,DataBase!$E$10))) -> 2 | BD73: =IF(BC73=0,0,POWER(U73/((DataBase!$F$5*BC73)),DataBase!$E$52)*DataBase!$F$5*BC73/U73) -> 1 | BE73: =IF(P73=DataBase!$B$30,DataBase!$G$30,IF(P73=DataBase!$B$31,DataBase!$G$31,IF(P73=DataBase!$B$32,DataBase!$G$32,IF(P73=DataBase!$B$33,DataBase!$G$33,IF(P73=DataBase!$B$34,DataBase!$G$34))))) -> 1 | BF73: =BB73*BD73*BE73*BM73 -> 810.6 | BG73: =IF(R73=DataBase!$B$14,DataBase!$J$14,IF(R73=DataBase!$B$15,DataBase!$J$15,IF(R73=DataBase!$B$16,DataBase!$J$16)))*AI73 -> 50 | BH73: =IF(P73=DataBase!$B$30,DataBase!$H$30,IF(P73=DataBase!$B$31,DataBase!$H$31,IF(P73=DataBase!$B$32,DataBase!$H$32,IF(P73=DataBase!$B$33,DataBase!$H$33,IF(P73=DataBase!$B$34,DataBase!$H$34))))) -> 1 | BI73: =IF(O73=DataBase!$B$21,DataBase!$G$21,IF(O73=DataBase!$B$22,DataBase!$G$22,IF(O73=DataBase!$B$23,DataBase!$G$23,IF(O73=DataBase!$B$24,DataBase!$G$24,IF(O73=DataBase!$B$25,DataBase!$G$25))))) -> 1.4 | BJ73: =BG73*BH73*BI73+IF(Y73=DataBase!$B$44,DataBase!$G$44,IF(Y73=DataBase!$B$45,DataBase!$G$45,IF(Y73=DataBase!$B$46,DataBase!$G$46,IF(Y73=DataBase!$B$47,DataBase!$G$47,IF(Y73=DataBase!$B$48,DataBase!$G$48,IF(Y73=DataBase!$B$49,DataBase!$G$49)))))) -> 70 | BK73: =BA73+BF73+BJ73 -> 1005.6 | BL73: =IF(Y73=DataBase!$B$44,DataBase!$C$44,IF(Y73=DataBase!$B$45,DataBase!$C$45,IF(Y73=DataBase!$B$46,DataBase!$C$46,IF(Y73=DataBase!$B$47,DataBase!$C$47,IF(Y73=DataBase!$B$48,DataBase!$C$48,IF(Y73=DataBase!$B$49,DataBase!$C$49)))))) -> 1.2 | BM73: =IF(Y73=DataBase!$B$44,DataBase!$D$44,IF(Y73=DataBase!$B$45,DataBase!$D$45,IF(Y73=DataBase!$B$46,DataBase!$D$46,IF(Y73=DataBase!$B$47,DataBase!$D$47,IF(Y73=DataBase!$B$48,DataBase!$D$48,IF(Y73=DataBase!$B$49,DataBase!$D$49)))))) -> 1.4 | BN73: =BK73*8*AZ73+AY73*8*AN73+AM73*AB73*8 -> 1549401.989 | BO73: =POWER(((DataBase!$C$5*DataBase!$E$5)/(V73*W73)),DataBase!$E$53) -> 1 | BP73: =IF(X73=DataBase!$B$37,DataBase!$C$37,IF(X73=DataBase!$B$38,DataBase!$C$38)) -> 0.75 | BR73: =BP73*BO73*BN73 -> 1162051.492 | BS73: bit/s | BU73: =IF(C73=DataBase!$J$49,DataBase!$M$49,IF(C73=DataBase!$J$50,DataBase!$M$50,IF(C73=DataBase!$J$51,DataBase!$M$51,IF(C73=DataBase!$J$52,DataBase!$M$52)))) -> crowd | BV73: =E60 -> medium | BX73: =$F73 -> normale z.B. typische parkplatz Straßenszene | BY73: =$G73 -> IBBP | BZ73: =$H73 -> 255 | CA73: =$I73 -> 60 | CB73: =$J73 -> 1920 | CC73: =$K73 -> 1080 | CD73: =$L73 -> h_265 | CE73: =$M73 -> CPP_7_3 | CF73: =$E73 -> 0 | CH73: =1/BZ73*CA73 -> 0.2352941176 | CI73: =IF(BX73=DataBase!$B$14,DataBase!$C$14,IF(BX73=DataBase!$B$15,DataBase!$C$15,IF(BX73=DataBase!$B$16,DataBase!$C$16))) -> 300000 | CJ73: =IF(BV73=DataBase!$B$30,DataBase!$C$30,IF(BV73=DataBase!$B$31,DataBase!$C$31,IF(BV73=DataBase!$B$32,DataBase!$C$32,IF(BV73=DataBase!$B$33,DataBase!$C$33,IF(BV73=DataBase!$B$34,DataBase!$C$34))))) -> 1 | CK73: =CI73*CJ73 -> 300000 | CL73: =IF(BX73=DataBase!$B$14,DataBase!$G$14,IF(BX73=DataBase!$B$15,DataBase!$G$15,IF(BX73=DataBase!$B$16,DataBase!$G$16))) -> 200 | CM73: =IF(CF73=DataBase!$K$20,1,IF(CF73=DataBase!$K$21,1,0)) -> 0 | CN73: =IF(CF73=DataBase!$K$20,DataBase!$M$20,IF(CF73=DataBase!$K$21,DataBase!$M$21,0)) -> 0 | CO73: =IF(CM73=1,IF(CN73<>0,CN73,CL73),CL73) -> 200 | CP73: =IF(BV73=DataBase!$B$30,DataBase!$H$30,IF(BV73=DataBase!$B$31,DataBase!$H$31,IF(BV73=DataBase!$B$32,DataBase!$H$32,IF(BV73=DataBase!$B$33,DataBase!$H$33,IF(BV73=DataBase!$B$34,DataBase!$H$34))))) -> 1 | CQ73: =IF(BU73=DataBase!$B$21,DataBase!$G$21,IF(BU73=DataBase!$B$22,DataBase!$G$22,IF(BU73=DataBase!$B$23,DataBase!$G$23,IF(BU73=DataBase!$B$24,DataBase!$G$24,IF(BU73=DataBase!$B$25,DataBase!$G$25))))) -> 2 | CR73: =IF(CE73=DataBase!$B$44,DataBase!$G$44,IF($F73=DataBase!$B$45,DataBase!$G$45,IF(CE73=DataBase!$B$46,DataBase!$G$46,IF(CE73=DataBase!$B$47,DataBase!$G$47,IF(CE73=DataBase!$B$48,DataBase!$G$48,IF(CE73=DataBase!$B$49,DataBase!$G$49))))))+CO73*CP73*CQ73 -> 400 | CS73: =CR73+CK73*DR73 -> 360400 | CT73: =((BZ73-1)/BZ73)/IF(BY73=DataBase!$B$8,DataBase!$C$8,IF(BY73=DataBase!$B$9,DataBase!$C$9,IF(BY73=DataBase!$B$10,DataBase!$C$10)))*CA73 -> 19.92156863 | CU73: =IF(BX73=DataBase!$B$14,DataBase!$E$14,IF(BX73=DataBase!$B$15,DataBase!$E$15,IF(BX73=DataBase!$B$16,DataBase!$E$16))) -> 125 | CV73: =IF(BU73=DataBase!$B$21,DataBase!$E$21,IF(BU73=DataBase!$B$22,DataBase!$E$22,IF(BU73=DataBase!$B$23,DataBase!$E$23,IF(BU73=DataBase!$B$24,DataBase!$E$24,IF(BU73=DataBase!$B$25,DataBase!$E$25))))) -> 15780 | CW73: =IF(BY73=DataBase!$B$8,DataBase!$C$8,IF(BY73=DataBase!$B$9,DataBase!$C$9,IF(BY73=DataBase!$B$10,DataBase!$C$10))) -> 3 | CX73: =POWER(CA73/((DataBase!$F$5*CW73)),DataBase!$E$52)*DataBase!$F$5*CW73/CA73 -> 1.139432817 | CY73: =IF(BV73=DataBase!$B$30,DataBase!$F$30,IF(BV73=DataBase!$B$31,DataBase!$F$31,IF(BV73=DataBase!$B$32,DataBase!$F$32,IF(BV73=DataBase!$B$33,DataBase!$F$33,IF(BV73=DataBase!$B$34,DataBase!$F$34))))) -> 1 | CZ73: =CV73*CX73*CY73*DS73 -> 25172.3498 | DA73: =IF(BX73=DataBase!$B$14,DataBase!$H$14,IF(BX73=DataBase!$B$15,DataBase!$H$15,IF(BX73=DataBase!$B$16,DataBase!$H$16)))*CO73 -> 100 | DB73: =IF(BV73=DataBase!$B$30,DataBase!$H$30,IF(BV73=DataBase!$B$31,DataBase!$H$31,IF(BV73=DataBase!$B$32,DataBase!$H$32,IF(BV73=DataBase!$B$33,DataBase!$H$33,IF(BV73=DataBase!$B$34,DataBase!$H$34))))) -> 1 | DC73: =IF(BU73=DataBase!$B$21,DataBase!$G$21,IF(BU73=DataBase!$B$22,DataBase!$G$22,IF(BU73=DataBase!$B$23,DataBase!$G$23,IF(BU73=DataBase!$B$24,DataBase!$G$24,IF(BU73=DataBase!$B$25,DataBase!$G$25))))) -> 2 | DD73: =DA73*DB73*DC73+IF(CE73=DataBase!$B$44,DataBase!$G$44,IF(CE73=DataBase!$B$45,DataBase!$G$45,IF(CE73=DataBase!$B$46,DataBase!$G$46,IF(CE73=DataBase!$B$47,DataBase!$G$47,IF(CE73=DataBase!$B$48,DataBase!$G$48,IF(CE73=DataBase!$B$49,DataBase!$G$49)))))) -> 200 | DE73: =CU73+CZ73+DD73 -> 25497.3498 | DF73: =IF(BY73=DataBase!$B$8,0,((BZ73-1)/BZ73)/IF(BY73=DataBase!$B$9,2,IF(BY73=DataBase!$B$10,3/2))*CA73) -> 39.84313725 | DG73: =IF(BX73=DataBase!$B$14,DataBase!$F$14,IF(BX73=DataBase!$B$15,DataBase!$F$15,IF(BX73=DataBase!$B$16,DataBase!$F$16))) -> 125 | DH73: =IF(BU73=DataBase!$B$21,DataBase!$F$21,IF(BU73=DataBase!$B$22,DataBase!$F$22,IF(BU73=DataBase!$B$23,DataBase!$F$23,IF(BU73=DataBase!$B$24,DataBase!$F$24,IF(BU73=DataBase!$B$25,DataBase!$F$25))))) -> 3964 | DI73: =IF(BY73=DataBase!$B$8,DataBase!$E$8,IF(BY73=DataBase!$B$9,DataBase!$E$9,IF(BY73=DataBase!$B$10,DataBase!$E$10))) -> 2 | DJ73: =IF(DI73=0,0,POWER(CA73/((DataBase!$F$5*DI73)),DataBase!$E$52)*DataBase!$F$5*DI73/CA73) -> 1 | DK73: =IF(BV73=DataBase!$B$30,DataBase!$G$30,IF(BV73=DataBase!$B$31,DataBase!$G$31,IF(BV73=DataBase!$B$32,DataBase!$G$32,IF(BV73=DataBase!$B$33,DataBase!$G$33,IF(BV73=DataBase!$B$34,DataBase!$G$34))))) -> 1 | DL73: =DH73*DJ73*DK73*DS73 -> 5549.6 | DM73: =IF(BX73=DataBase!$B$14,DataBase!$J$14,IF(BX73=DataBase!$B$15,DataBase!$J$15,IF(BX73=DataBase!$B$16,DataBase!$J$16)))*CO73 -> 50 | DN73: =IF(BV73=DataBase!$B$30,DataBase!$H$30,IF(BV73=DataBase!$B$31,DataBase!$H$31,IF(BV73=DataBase!$B$32,DataBase!$H$32,IF(BV73=DataBase!$B$33,DataBase!$H$33,IF(BV73=DataBase!$B$34,DataBase!$H$34))))) -> 1 | DO73: =IF(BU73=DataBase!$B$21,DataBase!$G$21,IF(BU73=DataBase!$B$22,DataBase!$G$22,IF(BU73=DataBase!$B$23,DataBase!$G$23,IF(BU73=DataBase!$B$24,DataBase!$G$24,IF(BU73=DataBase!$B$25,DataBase!$G$25))))) -> 2 | DP73: =DM73*DN73*DO73+IF(CE73=DataBase!$B$44,DataBase!$G$44,IF(CE73=DataBase!$B$45,DataBase!$G$45,IF(CE73=DataBase!$B$46,DataBase!$G$46,IF(CE73=DataBase!$B$47,DataBase!$G$47,IF(CE73=DataBase!$B$48,DataBase!$G$48,IF(CE73=DataBase!$B$49,DataBase!$G$49)))))) -> 100 | DQ73: =DG73+DL73+DP73 -> 5774.6 | DR73: =IF(CE73=DataBase!$B$44,DataBase!$C$44,IF(CE73=DataBase!$B$45,DataBase!$C$45,IF(CE73=DataBase!$B$46,DataBase!$C$46,IF(CE73=DataBase!$B$47,DataBase!$C$47,IF(CE73=DataBase!$B$48,DataBase!$C$48,IF(CE73=DataBase!$B$49,DataBase!$C$49)))))) -> 1.2 | DS73: =IF(CE73=DataBase!$B$44,DataBase!$D$44,IF(CE73=DataBase!$B$45,DataBase!$D$45,IF(CE73=DataBase!$B$46,DataBase!$D$46,IF(CE73=DataBase!$B$47,DataBase!$D$47,IF(CE73=DataBase!$B$48,DataBase!$D$48,IF(CE73=DataBase!$B$49,DataBase!$D$49)))))) -> 1.4 | DT73: =DQ73*8*DF73+DE73*8*CT73+CS73*CH73*8 -> 6582603.074 | DU73: =POWER(((DataBase!$C$5*DataBase!$E$5)/(CB73*CC73)),DataBase!$E$53) -> 1 | DV73: =IF(CD73=DataBase!$B$37,DataBase!$C$37,IF(CD73=DataBase!$B$38,DataBase!$C$38)) -> 0.75 | DX73: =DV73*DU73*DT73 -> 4936952.305 | DY73: bit/s | EA73: =IF(C73=DataBase!$J$49,DataBase!$O$49,IF(C73=DataBase!$J$50,DataBase!$O$50,IF(C73=DataBase!$J$51,DataBase!$O$51,IF(C73=DataBase!$J$52,DataBase!$O$52)))) -> escape | EB73: =E60 -> medium | ED73: =$F73 -> normale z.B. typische parkplatz Straßenszene | EE73: =$G73 -> IBBP | EF73: =$H73 -> 255 | EG73: =$I73 -> 60 | EH73: =$J73 -> 1920 | EI73: =$K73 -> 1080 | EJ73: =$L73 -> h_265 | EK73: =$M73 -> CPP_7_3 | EL73: =$E73 -> 0 | EN73: =1/EF73*EG73 -> 0.2352941176 | EO73: =IF(ED73=DataBase!$B$14,DataBase!$C$14,IF(ED73=DataBase!$B$15,DataBase!$C$15,IF(ED73=DataBase!$B$16,DataBase!$C$16))) -> 300000 | EP73: =IF(EB73=DataBase!$B$30,DataBase!$C$30,IF(EB73=DataBase!$B$31,DataBase!$C$31,IF(EB73=DataBase!$B$32,DataBase!$C$32,IF(EB73=DataBase!$B$33,DataBase!$C$33,IF(EB73=DataBase!$B$34,DataBase!$C$34))))) -> 1 | EQ73: =EO73*EP73 -> 300000 | ER73: =IF(ED73=DataBase!$B$14,DataBase!$G$14,IF(ED73=DataBase!$B$15,DataBase!$G$15,IF(ED73=DataBase!$B$16,DataBase!$G$16))) -> 200 | ES73: =IF(EL73=DataBase!$K$20,1,IF(EL73=DataBase!$K$21,1,0)) -> 0 | ET73: =IF(EL73=DataBase!$K$20,DataBase!$M$20,IF(EL73=DataBase!$K$21,DataBase!$M$21,0)) -> 0 | EU73: =IF(ES73=1,IF(ET73<>0,ET73,ER73),ER73) -> 200 | EV73: =IF(EB73=DataBase!$B$30,DataBase!$H$30,IF(EB73=DataBase!$B$31,DataBase!$H$31,IF(EB73=DataBase!$B$32,DataBase!$H$32,IF(EB73=DataBase!$B$33,DataBase!$H$33,IF(EB73=DataBase!$B$34,DataBase!$H$34))))) -> 1 | EW73: =IF(EA73=DataBase!$B$21,DataBase!$G$21,IF(EA73=DataBase!$B$22,DataBase!$G$22,IF(EA73=DataBase!$B$23,DataBase!$G$23,IF(EA73=DataBase!$B$24,DataBase!$G$24,IF(EA73=DataBase!$B$25,DataBase!$G$25))))) -> 2 | EX73: =IF(EK73=DataBase!$B$44,DataBase!$G$44,IF($F73=DataBase!$B$45,DataBase!$G$45,IF(EK73=DataBase!$B$46,DataBase!$G$46,IF(EK73=DataBase!$B$47,DataBase!$G$47,IF(EK73=DataBase!$B$48,DataBase!$G$48,IF(EK73=DataBase!$B$49,DataBase!$G$49))))))+EU73*EV73*EW73 -> 400 | EY73: =EX73+EQ73*FX73 -> 360400 | EZ73: =((EF73-1)/EF73)/IF(EE73=DataBase!$B$8,DataBase!$C$8,IF(EE73=DataBase!$B$9,DataBase!$C$9,IF(EE73=DataBase!$B$10,DataBase!$C$10)))*EG73 -> 19.92156863 | FA73: =IF(ED73=DataBase!$B$14,DataBase!$E$14,IF(ED73=DataBase!$B$15,DataBase!$E$15,IF(ED73=DataBase!$B$16,DataBase!$E$16))) -> 125 | FB73: =IF(EA73=DataBase!$B$21,DataBase!$E$21,IF(EA73=DataBase!$B$22,DataBase!$E$22,IF(EA73=DataBase!$B$23,DataBase!$E$23,IF(EA73=DataBase!$B$24,DataBase!$E$24,IF(EA73=DataBase!$B$25,DataBase!$E$25))))) -> 34839 | FC73: =IF(EE73=DataBase!$B$8,DataBase!$C$8,IF(EE73=DataBase!$B$9,DataBase!$C$9,IF(EE73=DataBase!$B$10,DataBase!$C$10))) -> 3 | FD73: =POWER(EG73/((DataBase!$F$5*FC73)),DataBase!$E$52)*DataBase!$F$5*FC73/EG73 -> 1.139432817 | FE73: =IF(EB73=DataBase!$B$30,DataBase!$F$30,IF(EB73=DataBase!$B$31,DataBase!$F$31,IF(EB73=DataBase!$B$32,DataBase!$F$32,IF(EB73=DataBase!$B$33,DataBase!$F$33,IF(EB73=DataBase!$B$34,DataBase!$F$34))))) -> 1 | FF73: =FB73*FD73*FE73*FY73 -> 55575.37988 | FG73: =IF(ED73=DataBase!$B$14,DataBase!$H$14,IF(ED73=DataBase!$B$15,DataBase!$H$15,IF(ED73=DataBase!$B$16,DataBase!$H$16)))*EU73 -> 100 | FH73: =IF(EB73=DataBase!$B$30,DataBase!$H$30,IF(EB73=DataBase!$B$31,DataBase!$H$31,IF(EB73=DataBase!$B$32,DataBase!$H$32,IF(EB73=DataBase!$B$33,DataBase!$H$33,IF(EB73=DataBase!$B$34,DataBase!$H$34))))) -> 1 | FI73: =IF(EA73=DataBase!$B$21,DataBase!$G$21,IF(EA73=DataBase!$B$22,DataBase!$G$22,IF(EA73=DataBase!$B$23,DataBase!$G$23,IF(EA73=DataBase!$B$24,DataBase!$G$24,IF(EA73=DataBase!$B$25,DataBase!$G$25))))) -> 2 | FJ73: =FG73*FH73*FI73+IF(EK73=DataBase!$B$44,DataBase!$G$44,IF(EK73=DataBase!$B$45,DataBase!$G$45,IF(EK73=DataBase!$B$46,DataBase!$G$46,IF(EK73=DataBase!$B$47,DataBase!$G$47,IF(EK73=DataBase!$B$48,DataBase!$G$48,IF(EK73=DataBase!$B$49,DataBase!$G$49)))))) -> 200 | FK73: =FA73+FF73+FJ73 -> 55900.37988 | FL73: =IF(EE73=DataBase!$B$8,0,((EF73-1)/EF73)/IF(EE73=DataBase!$B$9,2,IF(EE73=DataBase!$B$10,3/2))*EG73) -> 39.84313725 | FM73: =IF(ED73=DataBase!$B$14,DataBase!$F$14,IF(ED73=DataBase!$B$15,DataBase!$F$15,IF(ED73=DataBase!$B$16,DataBase!$F$16))) -> 125 | FN73: =IF(EA73=DataBase!$B$21,DataBase!$F$21,IF(EA73=DataBase!$B$22,DataBase!$F$22,IF(EA73=DataBase!$B$23,DataBase!$F$23,IF(EA73=DataBase!$B$24,DataBase!$F$24,IF(EA73=DataBase!$B$25,DataBase!$F$25))))) -> 11264 | FO73: =IF(EE73=DataBase!$B$8,DataBase!$E$8,IF(EE73=DataBase!$B$9,DataBase!$E$9,IF(EE73=DataBase!$B$10,DataBase!$E$10))) -> 2 | FP73: =IF(FO73=0,0,POWER(EG73/((DataBase!$F$5*FO73)),DataBase!$E$52)*DataBase!$F$5*FO73/EG73) -> 1 | FQ73: =IF(EB73=DataBase!$B$30,DataBase!$G$30,IF(EB73=DataBase!$B$31,DataBase!$G$31,IF(EB73=DataBase!$B$32,DataBase!$G$32,IF(EB73=DataBase!$B$33,DataBase!$G$33,IF(EB73=DataBase!$B$34,DataBase!$G$34))))) -> 1 | FR73: =FN73*FP73*FQ73*FY73 -> 15769.6 | FS73: =IF(ED73=DataBase!$B$14,DataBase!$J$14,IF(ED73=DataBase!$B$15,DataBase!$J$15,IF(ED73=DataBase!$B$16,DataBase!$J$16)))*EU73 -> 50 | FT73: =IF(EB73=DataBase!$B$30,DataBase!$H$30,IF(EB73=DataBase!$B$31,DataBase!$H$31,IF(EB73=DataBase!$B$32,DataBase!$H$32,IF(EB73=DataBase!$B$33,DataBase!$H$33,IF(EB73=DataBase!$B$34,DataBase!$H$34))))) -> 1 | FU73: =IF(EA73=DataBase!$B$21,DataBase!$G$21,IF(EA73=DataBase!$B$22,DataBase!$G$22,IF(EA73=DataBase!$B$23,DataBase!$G$23,IF(EA73=DataBase!$B$24,DataBase!$G$24,IF(EA73=DataBase!$B$25,DataBase!$G$25))))) -> 2 | FV73: =FS73*FT73*FU73+IF(EK73=DataBase!$B$44,DataBase!$G$44,IF(EK73=DataBase!$B$45,DataBase!$G$45,IF(EK73=DataBase!$B$46,DataBase!$G$46,IF(EK73=DataBase!$B$47,DataBase!$G$47,IF(EK73=DataBase!$B$48,DataBase!$G$48,IF(EK73=DataBase!$B$49,DataBase!$G$49)))))) -> 100 | FW73: =FM73+FR73+FV73 -> 15994.6 | FX73: =IF(EK73=DataBase!$B$44,DataBase!$C$44,IF(EK73=DataBase!$B$45,DataBase!$C$45,IF(EK73=DataBase!$B$46,DataBase!$C$46,IF(EK73=DataBase!$B$47,DataBase!$C$47,IF(EK73=DataBase!$B$48,DataBase!$C$48,IF(EK73=DataBase!$B$49,DataBase!$C$49)))))) -> 1.2 | FY73: =IF(EK73=DataBase!$B$44,DataBase!$D$44,IF(EK73=DataBase!$B$45,DataBase!$D$45,IF(EK73=DataBase!$B$46,DataBase!$D$46,IF(EK73=DataBase!$B$47,DataBase!$D$47,IF(EK73=DataBase!$B$48,DataBase!$D$48,IF(EK73=DataBase!$B$49,DataBase!$D$49)))))) -> 1.4 | FZ73: =FW73*8*FL73+FK73*8*EZ73+EY73*EN73*8 -> 14685586.38 | GA73: =POWER(((DataBase!$C$5*DataBase!$E$5)/(EH73*EI73)),DataBase!$E$53) -> 1 | GB73: =IF(EJ73=DataBase!$B$37,DataBase!$C$37,IF(EJ73=DataBase!$B$38,DataBase!$C$38)) -> 0.75 | GD73: =GB73*GA73*FZ73 -> 11014189.78 | GE73: bit/s | GG73: =IF($C73=DataBase!$J$49,DataBase!$L$49,IF($C73=DataBase!$J$50,DataBase!$L$50,IF($C73=DataBase!$J$51,DataBase!$L$51,IF($C73=DataBase!$J$52,DataBase!$L$52)))) -> 0.3 | GH73: =IF($C73=DataBase!$J$49,DataBase!$N$49,IF($C73=DataBase!$J$50,DataBase!$N$50,IF($C73=DataBase!$J$51,DataBase!$N$51,IF($C73=DataBase!$J$52,DataBase!$N$52)))) -> 0.3 | GI73: =IF($C73=DataBase!$J$49,DataBase!$P$49,IF($C73=DataBase!$J$50,DataBase!$P$50,IF($C73=DataBase!$J$51,DataBase!$P$51,IF($C73=DataBase!$J$52,DataBase!$P$52)))) -> 0.4 | GK73: =$GG73*BR73 -> 348615.4475 | GL73: bit/s | GM73: =$DX73*GH73 -> 1481085.692 | GN73: bit/s | GO73: =$GD73*GI73 -> 4405675.914 | GP73: bit/s | GR73: =GO73+GM73+GK73 -> 6235377.053 | GS73: bit/s | GU73: =MAX($GD73,$DX73,$BR73) -> 11014189.78 | GV73: bit/s | GW73: =IF($M73=DataBase!$B$44,DataBase!$E$44,IF($M73=DataBase!$B$45,DataBase!$E$45,IF($M73=DataBase!$B$46,DataBase!$E$46,IF($M73=DataBase!$B$47,DataBase!$E$47,IF($M73=DataBase!$B$48,DataBase!$E$48,IF($M73=DataBase!$B$49,DataBase!$E$49)))))) -> 1 | GY73: =D71 ->  | GZ73: =D72 ->  | HA73: =IF($M73=DataBase!$B$44,DataBase!$F$44,IF($M73=DataBase!$B$45,DataBase!$F$45,IF($M73=DataBase!$B$46,DataBase!$F$46,IF($M73=DataBase!$B$47,DataBase!$F$47,IF($M73=DataBase!$B$48,DataBase!$F$48,IF($M73=DataBase!$B$49,DataBase!$F$49)))))) -> 32000000 | HB73: bit/s | HC73: =C73&D73&I73&J73&K73&M73 -> crowdedmedium6019201080CPP_7_3 | HD73: =MIN(HA73,MAX(GZ73*IF(0=GW73,GR73,IF(1=GW73,GR73,IF(2=GW73,GU73))))) ->  | HE73: bit/s | HG73: =IF(GW73=1,"SUPPORTED","NOT SUPPORTED") -> SUPPORTED | HH73: =HJ73 ->  | HI73: bit/s | HJ73: =MIN(HA73,GZ73*IF(GW73=0,2*GR73,GU73)) ->  | HK73: bit/s | HL73: =E60 -> medium | HM73: =0 -> 0 | HO73: =MIN(HA73,MAX(HQ73/GY73,GZ73*IF(0=GW73,GR73,IF(1=GW73,GR73,IF(2=GW73,GU73))))) ->  | HP73: bit/s | HQ73: =MIN(HA73,GZ73*IF(GW73=0,2*GR73,GU73)) ->  | HR73: bit/s | HS73: =E60 -> medium | HT73: =IF(GW73=1,3600*24*GW73,0) -> 86400
C75: static | D75: bitrate optimized | F75: normale z.B. typische parkplatz Straßenszene | G75: IBBP | H75: 255 | I75: 30 | J75: 1920 | K75: 1080 | L75: h_264 | M75: CPP_7_3 | O75: =IF(C75=DataBase!$J$49,DataBase!$K$49,IF(C75=DataBase!$J$50,DataBase!$K$50,IF(C75=DataBase!$J$51,DataBase!$K$51,IF(C75=DataBase!$J$52,DataBase!$K$52)))) -> static | P75: =IF(D75=DataBase!$J$44,DataBase!$L$44,IF(D75=DataBase!$J$45,DataBase!$L$45,IF(D75=DataBase!$J$46,DataBase!$L$46))) -> medium | R75: =$F75 -> normale z.B. typische parkplatz Straßenszene | S75: =$G75 -> IBBP | T75: =$H75 -> 255 | U75: =$I75 -> 30 | V75: =$J75 -> 1920 | W75: =$K75 -> 1080 | X75: =$L75 -> h_264 | Y75: =$M75 -> CPP_7_3 | Z75: =$E75 -> 0 | AB75: =1/T75*U75 -> 0.1176470588 | AC75: =IF(R75=DataBase!$B$14,DataBase!$C$14,IF(R75=DataBase!$B$15,DataBase!$C$15,IF(R75=DataBase!$B$16,DataBase!$C$16))) -> 300000 | AD75: =IF(P75=DataBase!$B$30,DataBase!$C$30,IF(P75=DataBase!$B$31,DataBase!$C$31,IF(P75=DataBase!$B$32,DataBase!$C$32,IF(P75=DataBase!$B$33,DataBase!$C$33,IF(P75=DataBase!$B$34,DataBase!$C$34))))) -> 1 | AE75: =AC75*AD75 -> 300000 | AF75: =IF(R75=DataBase!$B$14,DataBase!$G$14,IF(R75=DataBase!$B$15,DataBase!$G$15,IF(R75=DataBase!$B$16,DataBase!$G$16))) -> 200 | AG75: =IF(Z75=DataBase!$K$20,1,IF(Z75=DataBase!$K$21,1,0)) -> 0 | AH75: =IF(Z75=DataBase!$K$20,DataBase!$M$20,IF(Z75=DataBase!$K$21,DataBase!$M$21,0)) -> 0 | AI75: =IF(AG75=1,IF(AH75<>0,AH75,AF75),AF75) -> 200 | AJ75: =IF(P75=DataBase!$B$30,DataBase!$H$30,IF(P75=DataBase!$B$31,DataBase!$H$31,IF(P75=DataBase!$B$32,DataBase!$H$32,IF(P75=DataBase!$B$33,DataBase!$H$33,IF(P75=DataBase!$B$34,DataBase!$H$34))))) -> 1 | AK75: =IF(O75=DataBase!$B$21,DataBase!$G$21,IF(O75=DataBase!$B$22,DataBase!$G$22,IF(O75=DataBase!$B$23,DataBase!$G$23,IF(O75=DataBase!$B$24,DataBase!$G$24,IF(O75=DataBase!$B$25,DataBase!$G$25))))) -> 1 | AL75: =IF(Y75=DataBase!$B$44,DataBase!$G$44,IF($F75=DataBase!$B$45,DataBase!$G$45,IF(Y75=DataBase!$B$46,DataBase!$G$46,IF(Y75=DataBase!$B$47,DataBase!$G$47,IF(Y75=DataBase!$B$48,DataBase!$G$48,IF(Y75=DataBase!$B$49,DataBase!$G$49))))))+AI75*AJ75*AK75 -> 200 | AM75: =AL75+AE75*BL75 -> 360200 | AN75: =((T75-1)/T75)/IF(S75=DataBase!$B$8,DataBase!$C$8,IF(S75=DataBase!$B$9,DataBase!$C$9,IF(S75=DataBase!$B$10,DataBase!$C$10)))*U75 -> 9.960784314 | AO75: =IF(R75=DataBase!$B$14,DataBase!$E$14,IF(R75=DataBase!$B$15,DataBase!$E$15,IF(R75=DataBase!$B$16,DataBase!$E$16))) -> 125 | AP75: =IF(O75=DataBase!$B$21,DataBase!$E$21,IF(O75=DataBase!$B$22,DataBase!$E$22,IF(O75=DataBase!$B$23,DataBase!$E$23,IF(O75=DataBase!$B$24,DataBase!$E$24,IF(O75=DataBase!$B$25,DataBase!$E$25))))) -> 0 | AQ75: =IF(S75=DataBase!$B$8,DataBase!$C$8,IF(S75=DataBase!$B$9,DataBase!$C$9,IF(S75=DataBase!$B$10,DataBase!$C$10))) -> 3 | AR75: =POWER(U75/((DataBase!$F$5*AQ75)),DataBase!$E$52)*DataBase!$F$5*AQ75/U75 -> 1.424291021 | AS75: =IF(P75=DataBase!$B$30,DataBase!$F$30,IF(P75=DataBase!$B$31,DataBase!$F$31,IF(P75=DataBase!$B$32,DataBase!$F$32,IF(P75=DataBase!$B$33,DataBase!$F$33,IF(P75=DataBase!$B$34,DataBase!$F$34))))) -> 1 | AT75: =AP75*AR75*AS75*BM75 -> 0 | AU75: =IF(R75=DataBase!$B$14,DataBase!$H$14,IF(R75=DataBase!$B$15,DataBase!$H$15,IF(R75=DataBase!$B$16,DataBase!$H$16)))*AI75 -> 100 | AV75: =IF(P75=DataBase!$B$30,DataBase!$H$30,IF(P75=DataBase!$B$31,DataBase!$H$31,IF(P75=DataBase!$B$32,DataBase!$H$32,IF(P75=DataBase!$B$33,DataBase!$H$33,IF(P75=DataBase!$B$34,DataBase!$H$34))))) -> 1 | AW75: =IF(O75=DataBase!$B$21,DataBase!$G$21,IF(O75=DataBase!$B$22,DataBase!$G$22,IF(O75=DataBase!$B$23,DataBase!$G$23,IF(O75=DataBase!$B$24,DataBase!$G$24,IF(O75=DataBase!$B$25,DataBase!$G$25))))) -> 1 | AX75: =AU75*AV75*AW75+IF(Y75=DataBase!$B$44,DataBase!$G$44,IF(Y75=DataBase!$B$45,DataBase!$G$45,IF(Y75=DataBase!$B$46,DataBase!$G$46,IF(Y75=DataBase!$B$47,DataBase!$G$47,IF(Y75=DataBase!$B$48,DataBase!$G$48,IF(Y75=DataBase!$B$49,DataBase!$G$49)))))) -> 100 | AY75: =AO75+AT75+AX75 -> 225 | AZ75: =IF(S75=DataBase!$B$8,0,((T75-1)/T75)/IF(S75=DataBase!$B$9,2,IF(S75=DataBase!$B$10,3/2))*U75) -> 19.92156863 | BA75: =IF(R75=DataBase!$B$14,DataBase!$F$14,IF(R75=DataBase!$B$15,DataBase!$F$15,IF(R75=DataBase!$B$16,DataBase!$F$16))) -> 125 | BB75: =IF(O75=DataBase!$B$21,DataBase!$F$21,IF(O75=DataBase!$B$22,DataBase!$F$22,IF(O75=DataBase!$B$23,DataBase!$F$23,IF(O75=DataBase!$B$24,DataBase!$F$24,IF(O75=DataBase!$B$25,DataBase!$F$25))))) -> 0 | BC75: =IF(S75=DataBase!$B$8,DataBase!$E$8,IF(S75=DataBase!$B$9,DataBase!$E$9,IF(S75=DataBase!$B$10,DataBase!$E$10))) -> 2 | BD75: =IF(BC75=0,0,POWER(U75/((DataBase!$F$5*BC75)),DataBase!$E$52)*DataBase!$F$5*BC75/U75) -> 1.25 | BE75: =IF(P75=DataBase!$B$30,DataBase!$G$30,IF(P75=DataBase!$B$31,DataBase!$G$31,IF(P75=DataBase!$B$32,DataBase!$G$32,IF(P75=DataBase!$B$33,DataBase!$G$33,IF(P75=DataBase!$B$34,DataBase!$G$34))))) -> 1 | BF75: =BB75*BD75*BE75*BM75 -> 0 | BG75: =IF(R75=DataBase!$B$14,DataBase!$J$14,IF(R75=DataBase!$B$15,DataBase!$J$15,IF(R75=DataBase!$B$16,DataBase!$J$16)))*AI75 -> 50 | BH75: =IF(P75=DataBase!$B$30,DataBase!$H$30,IF(P75=DataBase!$B$31,DataBase!$H$31,IF(P75=DataBase!$B$32,DataBase!$H$32,IF(P75=DataBase!$B$33,DataBase!$H$33,IF(P75=DataBase!$B$34,DataBase!$H$34))))) -> 1 | BI75: =IF(O75=DataBase!$B$21,DataBase!$G$21,IF(O75=DataBase!$B$22,DataBase!$G$22,IF(O75=DataBase!$B$23,DataBase!$G$23,IF(O75=DataBase!$B$24,DataBase!$G$24,IF(O75=DataBase!$B$25,DataBase!$G$25))))) -> 1 | BJ75: =BG75*BH75*BI75+IF(Y75=DataBase!$B$44,DataBase!$G$44,IF(Y75=DataBase!$B$45,DataBase!$G$45,IF(Y75=DataBase!$B$46,DataBase!$G$46,IF(Y75=DataBase!$B$47,DataBase!$G$47,IF(Y75=DataBase!$B$48,DataBase!$G$48,IF(Y75=DataBase!$B$49,DataBase!$G$49)))))) -> 50 | BK75: =BA75+BF75+BJ75 -> 175 | BL75: =IF(Y75=DataBase!$B$44,DataBase!$C$44,IF(Y75=DataBase!$B$45,DataBase!$C$45,IF(Y75=DataBase!$B$46,DataBase!$C$46,IF(Y75=DataBase!$B$47,DataBase!$C$47,IF(Y75=DataBase!$B$48,DataBase!$C$48,IF(Y75=DataBase!$B$49,DataBase!$C$49)))))) -> 1.2 | BM75: =IF(Y75=DataBase!$B$44,DataBase!$D$44,IF(Y75=DataBase!$B$45,DataBase!$D$45,IF(Y75=DataBase!$B$46,DataBase!$D$46,IF(Y75=DataBase!$B$47,DataBase!$D$47,IF(Y75=DataBase!$B$48,DataBase!$D$48,IF(Y75=DataBase!$B$49,DataBase!$D$49)))))) -> 1.4 | BN75: =BK75*8*AZ75+AY75*8*AN75+AM75*AB75*8 -> 384831.3725 | BO75: =POWER(((DataBase!$C$5*DataBase!$E$5)/(V75*W75)),DataBase!$E$53) -> 1 | BP75: =IF(X75=DataBase!$B$37,DataBase!$C$37,IF(X75=DataBase!$B$38,DataBase!$C$38)) -> 1 | BR75: =BP75*BO75*BN75 -> 384831.3725 | BS75: bit/s | BU75: =IF(C75=DataBase!$J$49,DataBase!$M$49,IF(C75=DataBase!$J$50,DataBase!$M$50,IF(C75=DataBase!$J$51,DataBase!$M$51,IF(C75=DataBase!$J$52,DataBase!$M$52)))) -> standard | BV75: =IF(D75=DataBase!$J$44,DataBase!$L$44,IF(D75=DataBase!$J$45,DataBase!$L$45,IF(D75=DataBase!$J$46,DataBase!$L$46))) -> medium | BX75: =$F75 -> normale z.B. typische parkplatz Straßenszene | BY75: =$G75 -> IBBP | BZ75: =$H75 -> 255 | CA75: =$I75 -> 30 | CB75: =$J75 -> 1920 | CC75: =$K75 -> 1080 | CD75: =$L75 -> h_264 | CE75: =$M75 -> CPP_7_3 | CF75: =$E75 -> 0 | CH75: =1/BZ75*CA75 -> 0.1176470588 | CI75: =IF(BX75=DataBase!$B$14,DataBase!$C$14,IF(BX75=DataBase!$B$15,DataBase!$C$15,IF(BX75=DataBase!$B$16,DataBase!$C$16))) -> 300000 | CJ75: =IF(BV75=DataBase!$B$30,DataBase!$C$30,IF(BV75=DataBase!$B$31,DataBase!$C$31,IF(BV75=DataBase!$B$32,DataBase!$C$32,IF(BV75=DataBase!$B$33,DataBase!$C$33,IF(BV75=DataBase!$B$34,DataBase!$C$34))))) -> 1 | CK75: =CI75*CJ75 -> 300000 | CL75: =IF(BX75=DataBase!$B$14,DataBase!$G$14,IF(BX75=DataBase!$B$15,DataBase!$G$15,IF(BX75=DataBase!$B$16,DataBase!$G$16))) -> 200 | CM75: =IF(CF75=DataBase!$K$20,1,IF(CF75=DataBase!$K$21,1,0)) -> 0 | CN75: =IF(CF75=DataBase!$K$20,DataBase!$M$20,IF(CF75=DataBase!$K$21,DataBase!$M$21,0)) -> 0 | CO75: =IF(CM75=1,IF(CN75<>0,CN75,CL75),CL75) -> 200 | CP75: =IF(BV75=DataBase!$B$30,DataBase!$H$30,IF(BV75=DataBase!$B$31,DataBase!$H$31,IF(BV75=DataBase!$B$32,DataBase!$H$32,IF(BV75=DataBase!$B$33,DataBase!$H$33,IF(BV75=DataBase!$B$34,DataBase!$H$34))))) -> 1 | CQ75: =IF(BU75=DataBase!$B$21,DataBase!$G$21,IF(BU75=DataBase!$B$22,DataBase!$G$22,IF(BU75=DataBase!$B$23,DataBase!$G$23,IF(BU75=DataBase!$B$24,DataBase!$G$24,IF(BU75=DataBase!$B$25,DataBase!$G$25))))) -> 1.4 | CR75: =IF(CE75=DataBase!$B$44,DataBase!$G$44,IF($F75=DataBase!$B$45,DataBase!$G$45,IF(CE75=DataBase!$B$46,DataBase!$G$46,IF(CE75=DataBase!$B$47,DataBase!$G$47,IF(CE75=DataBase!$B$48,DataBase!$G$48,IF(CE75=DataBase!$B$49,DataBase!$G$49))))))+CO75*CP75*CQ75 -> 280 | CS75: =CR75+CK75*DR75 -> 360280 | CT75: =((BZ75-1)/BZ75)/IF(BY75=DataBase!$B$8,DataBase!$C$8,IF(BY75=DataBase!$B$9,DataBase!$C$9,IF(BY75=DataBase!$B$10,DataBase!$C$10)))*CA75 -> 9.960784314 | CU75: =IF(BX75=DataBase!$B$14,DataBase!$E$14,IF(BX75=DataBase!$B$15,DataBase!$E$15,IF(BX75=DataBase!$B$16,DataBase!$E$16))) -> 125 | CV75: =IF(BU75=DataBase!$B$21,DataBase!$E$21,IF(BU75=DataBase!$B$22,DataBase!$E$22,IF(BU75=DataBase!$B$23,DataBase!$E$23,IF(BU75=DataBase!$B$24,DataBase!$E$24,IF(BU75=DataBase!$B$25,DataBase!$E$25))))) -> 2000 | CW75: =IF(BY75=DataBase!$B$8,DataBase!$C$8,IF(BY75=DataBase!$B$9,DataBase!$C$9,IF(BY75=DataBase!$B$10,DataBase!$C$10))) -> 3 | CX75: =POWER(CA75/((DataBase!$F$5*CW75)),DataBase!$E$52)*DataBase!$F$5*CW75/CA75 -> 1.424291021 | CY75: =IF(BV75=DataBase!$B$30,DataBase!$F$30,IF(BV75=DataBase!$B$31,DataBase!$F$31,IF(BV75=DataBase!$B$32,DataBase!$F$32,IF(BV75=DataBase!$B$33,DataBase!$F$33,IF(BV75=DataBase!$B$34,DataBase!$F$34))))) -> 1 | CZ75: =CV75*CX75*CY75*DS75 -> 3988.01486 | DA75: =IF(BX75=DataBase!$B$14,DataBase!$H$14,IF(BX75=DataBase!$B$15,DataBase!$H$15,IF(BX75=DataBase!$B$16,DataBase!$H$16)))*CO75 -> 100 | DB75: =IF(BV75=DataBase!$B$30,DataBase!$H$30,IF(BV75=DataBase!$B$31,DataBase!$H$31,IF(BV75=DataBase!$B$32,DataBase!$H$32,IF(BV75=DataBase!$B$33,DataBase!$H$33,IF(BV75=DataBase!$B$34,DataBase!$H$34))))) -> 1 | DC75: =IF(BU75=DataBase!$B$21,DataBase!$G$21,IF(BU75=DataBase!$B$22,DataBase!$G$22,IF(BU75=DataBase!$B$23,DataBase!$G$23,IF(BU75=DataBase!$B$24,DataBase!$G$24,IF(BU75=DataBase!$B$25,DataBase!$G$25))))) -> 1.4 | DD75: =DA75*DB75*DC75+IF(CE75=DataBase!$B$44,DataBase!$G$44,IF(CE75=DataBase!$B$45,DataBase!$G$45,IF(CE75=DataBase!$B$46,DataBase!$G$46,IF(CE75=DataBase!$B$47,DataBase!$G$47,IF(CE75=DataBase!$B$48,DataBase!$G$48,IF(CE75=DataBase!$B$49,DataBase!$G$49)))))) -> 140 | DE75: =CU75+CZ75+DD75 -> 4253.01486 | DF75: =IF(BY75=DataBase!$B$8,0,((BZ75-1)/BZ75)/IF(BY75=DataBase!$B$9,2,IF(BY75=DataBase!$B$10,3/2))*CA75) -> 19.92156863 | DG75: =IF(BX75=DataBase!$B$14,DataBase!$F$14,IF(BX75=DataBase!$B$15,DataBase!$F$15,IF(BX75=DataBase!$B$16,DataBase!$F$16))) -> 125 | DH75: =IF(BU75=DataBase!$B$21,DataBase!$F$21,IF(BU75=DataBase!$B$22,DataBase!$F$22,IF(BU75=DataBase!$B$23,DataBase!$F$23,IF(BU75=DataBase!$B$24,DataBase!$F$24,IF(BU75=DataBase!$B$25,DataBase!$F$25))))) -> 579 | DI75: =IF(BY75=DataBase!$B$8,DataBase!$E$8,IF(BY75=DataBase!$B$9,DataBase!$E$9,IF(BY75=DataBase!$B$10,DataBase!$E$10))) -> 2 | DJ75: =IF(DI75=0,0,POWER(CA75/((DataBase!$F$5*DI75)),DataBase!$E$52)*DataBase!$F$5*DI75/CA75) -> 1.25 | DK75: =IF(BV75=DataBase!$B$30,DataBase!$G$30,IF(BV75=DataBase!$B$31,DataBase!$G$31,IF(BV75=DataBase!$B$32,DataBase!$G$32,IF(BV75=DataBase!$B$33,DataBase!$G$33,IF(BV75=DataBase!$B$34,DataBase!$G$34))))) -> 1 | DL75: =DH75*DJ75*DK75*DS75 -> 1013.25 | DM75: =IF(BX75=DataBase!$B$14,DataBase!$J$14,IF(BX75=DataBase!$B$15,DataBase!$J$15,IF(BX75=DataBase!$B$16,DataBase!$J$16)))*CO75 -> 50 | DN75: =IF(BV75=DataBase!$B$30,DataBase!$H$30,IF(BV75=DataBase!$B$31,DataBase!$H$31,IF(BV75=DataBase!$B$32,DataBase!$H$32,IF(BV75=DataBase!$B$33,DataBase!$H$33,IF(BV75=DataBase!$B$34,DataBase!$H$34))))) -> 1 | DO75: =IF(BU75=DataBase!$B$21,DataBase!$G$21,IF(BU75=DataBase!$B$22,DataBase!$G$22,IF(BU75=DataBase!$B$23,DataBase!$G$23,IF(BU75=DataBase!$B$24,DataBase!$G$24,IF(BU75=DataBase!$B$25,DataBase!$G$25))))) -> 1.4 | DP75: =DM75*DN75*DO75+IF(CE75=DataBase!$B$44,DataBase!$G$44,IF(CE75=DataBase!$B$45,DataBase!$G$45,IF(CE75=DataBase!$B$46,DataBase!$G$46,IF(CE75=DataBase!$B$47,DataBase!$G$47,IF(CE75=DataBase!$B$48,DataBase!$G$48,IF(CE75=DataBase!$B$49,DataBase!$G$49)))))) -> 70 | DQ75: =DG75+DL75+DP75 -> 1208.25 | DR75: =IF(CE75=DataBase!$B$44,DataBase!$C$44,IF(CE75=DataBase!$B$45,DataBase!$C$45,IF(CE75=DataBase!$B$46,DataBase!$C$46,IF(CE75=DataBase!$B$47,DataBase!$C$47,IF(CE75=DataBase!$B$48,DataBase!$C$48,IF(CE75=DataBase!$B$49,DataBase!$C$49)))))) -> 1.2 | DS75: =IF(CE75=DataBase!$B$44,DataBase!$D$44,IF(CE75=DataBase!$B$45,DataBase!$D$45,IF(CE75=DataBase!$B$46,DataBase!$D$46,IF(CE75=DataBase!$B$47,DataBase!$D$47,IF(CE75=DataBase!$B$48,DataBase!$D$48,IF(CE75=DataBase!$B$49,DataBase!$D$49)))))) -> 1.4 | DT75: =DQ75*8*DF75+DE75*8*CT75+CS75*CH75*8 -> 870555.8508 | DU75: =POWER(((DataBase!$C$5*DataBase!$E$5)/(CB75*CC75)),DataBase!$E$53) -> 1 | DV75: =IF(CD75=DataBase!$B$37,DataBase!$C$37,IF(CD75=DataBase!$B$38,DataBase!$C$38)) -> 1 | DX75: =DV75*DU75*DT75 -> 870555.8508 | DY75: bit/s | EA75: =IF(C75=DataBase!$J$49,DataBase!$O$49,IF(C75=DataBase!$J$50,DataBase!$O$50,IF(C75=DataBase!$J$51,DataBase!$O$51,IF(C75=DataBase!$J$52,DataBase!$O$52)))) -> busy | EB75: =IF(D75=DataBase!$J$44,DataBase!$L$44,IF(D75=DataBase!$J$45,DataBase!$L$45,IF(D75=DataBase!$J$46,DataBase!$L$46))) -> medium | ED75: =$F75 -> normale z.B. typische parkplatz Straßenszene | EE75: =$G75 -> IBBP | EF75: =$H75 -> 255 | EG75: =$I75 -> 30 | EH75: =$J75 -> 1920 | EI75: =$K75 -> 1080 | EJ75: =$L75 -> h_264 | EK75: =$M75 -> CPP_7_3 | EL75: =$E75 -> 0 | EN75: =1/EF75*EG75 -> 0.1176470588 | EO75: =IF(ED75=DataBase!$B$14,DataBase!$C$14,IF(ED75=DataBase!$B$15,DataBase!$C$15,IF(ED75=DataBase!$B$16,DataBase!$C$16))) -> 300000 | EP75: =IF(EB75=DataBase!$B$30,DataBase!$C$30,IF(EB75=DataBase!$B$31,DataBase!$C$31,IF(EB75=DataBase!$B$32,DataBase!$C$32,IF(EB75=DataBase!$B$33,DataBase!$C$33,IF(EB75=DataBase!$B$34,DataBase!$C$34))))) -> 1 | EQ75: =EO75*EP75 -> 300000 | ER75: =IF(ED75=DataBase!$B$14,DataBase!$G$14,IF(ED75=DataBase!$B$15,DataBase!$G$15,IF(ED75=DataBase!$B$16,DataBase!$G$16))) -> 200 | ES75: =IF(EL75=DataBase!$K$20,1,IF(EL75=DataBase!$K$21,1,0)) -> 0 | ET75: =IF(EL75=DataBase!$K$20,DataBase!$M$20,IF(EL75=DataBase!$K$21,DataBase!$M$21,0)) -> 0 | EU75: =IF(ES75=1,IF(ET75<>0,ET75,ER75),ER75) -> 200 | EV75: =IF(EB75=DataBase!$B$30,DataBase!$H$30,IF(EB75=DataBase!$B$31,DataBase!$H$31,IF(EB75=DataBase!$B$32,DataBase!$H$32,IF(EB75=DataBase!$B$33,DataBase!$H$33,IF(EB75=DataBase!$B$34,DataBase!$H$34))))) -> 1 | EW75: =IF(EA75=DataBase!$B$21,DataBase!$G$21,IF(EA75=DataBase!$B$22,DataBase!$G$22,IF(EA75=DataBase!$B$23,DataBase!$G$23,IF(EA75=DataBase!$B$24,DataBase!$G$24,IF(EA75=DataBase!$B$25,DataBase!$G$25))))) -> 2 | EX75: =IF(EK75=DataBase!$B$44,DataBase!$G$44,IF($F75=DataBase!$B$45,DataBase!$G$45,IF(EK75=DataBase!$B$46,DataBase!$G$46,IF(EK75=DataBase!$B$47,DataBase!$G$47,IF(EK75=DataBase!$B$48,DataBase!$G$48,IF(EK75=DataBase!$B$49,DataBase!$G$49))))))+EU75*EV75*EW75 -> 400 | EY75: =EX75+EQ75*FX75 -> 360400 | EZ75: =((EF75-1)/EF75)/IF(EE75=DataBase!$B$8,DataBase!$C$8,IF(EE75=DataBase!$B$9,DataBase!$C$9,IF(EE75=DataBase!$B$10,DataBase!$C$10)))*EG75 -> 9.960784314 | FA75: =IF(ED75=DataBase!$B$14,DataBase!$E$14,IF(ED75=DataBase!$B$15,DataBase!$E$15,IF(ED75=DataBase!$B$16,DataBase!$E$16))) -> 125 | FB75: =IF(EA75=DataBase!$B$21,DataBase!$E$21,IF(EA75=DataBase!$B$22,DataBase!$E$22,IF(EA75=DataBase!$B$23,DataBase!$E$23,IF(EA75=DataBase!$B$24,DataBase!$E$24,IF(EA75=DataBase!$B$25,DataBase!$E$25))))) -> 10000 | FC75: =IF(EE75=DataBase!$B$8,DataBase!$C$8,IF(EE75=DataBase!$B$9,DataBase!$C$9,IF(EE75=DataBase!$B$10,DataBase!$C$10))) -> 3 | FD75: =POWER(EG75/((DataBase!$F$5*FC75)),DataBase!$E$52)*DataBase!$F$5*FC75/EG75 -> 1.424291021 | FE75: =IF(EB75=DataBase!$B$30,DataBase!$F$30,IF(EB75=DataBase!$B$31,DataBase!$F$31,IF(EB75=DataBase!$B$32,DataBase!$F$32,IF(EB75=DataBase!$B$33,DataBase!$F$33,IF(EB75=DataBase!$B$34,DataBase!$F$34))))) -> 1 | FF75: =FB75*FD75*FE75*FY75 -> 19940.0743 | FG75: =IF(ED75=DataBase!$B$14,DataBase!$H$14,IF(ED75=DataBase!$B$15,DataBase!$H$15,IF(ED75=DataBase!$B$16,DataBase!$H$16)))*EU75 -> 100 | FH75: =IF(EB75=DataBase!$B$30,DataBase!$H$30,IF(EB75=DataBase!$B$31,DataBase!$H$31,IF(EB75=DataBase!$B$32,DataBase!$H$32,IF(EB75=DataBase!$B$33,DataBase!$H$33,IF(EB75=DataBase!$B$34,DataBase!$H$34))))) -> 1 | FI75: =IF(EA75=DataBase!$B$21,DataBase!$G$21,IF(EA75=DataBase!$B$22,DataBase!$G$22,IF(EA75=DataBase!$B$23,DataBase!$G$23,IF(EA75=DataBase!$B$24,DataBase!$G$24,IF(EA75=DataBase!$B$25,DataBase!$G$25))))) -> 2 | FJ75: =FG75*FH75*FI75+IF(EK75=DataBase!$B$44,DataBase!$G$44,IF(EK75=DataBase!$B$45,DataBase!$G$45,IF(EK75=DataBase!$B$46,DataBase!$G$46,IF(EK75=DataBase!$B$47,DataBase!$G$47,IF(EK75=DataBase!$B$48,DataBase!$G$48,IF(EK75=DataBase!$B$49,DataBase!$G$49)))))) -> 200 | FK75: =FA75+FF75+FJ75 -> 20265.0743 | FL75: =IF(EE75=DataBase!$B$8,0,((EF75-1)/EF75)/IF(EE75=DataBase!$B$9,2,IF(EE75=DataBase!$B$10,3/2))*EG75) -> 19.92156863 | FM75: =IF(ED75=DataBase!$B$14,DataBase!$F$14,IF(ED75=DataBase!$B$15,DataBase!$F$15,IF(ED75=DataBase!$B$16,DataBase!$F$16))) -> 125 | FN75: =IF(EA75=DataBase!$B$21,DataBase!$F$21,IF(EA75=DataBase!$B$22,DataBase!$F$22,IF(EA75=DataBase!$B$23,DataBase!$F$23,IF(EA75=DataBase!$B$24,DataBase!$F$24,IF(EA75=DataBase!$B$25,DataBase!$F$25))))) -> 2500 | FO75: =IF(EE75=DataBase!$B$8,DataBase!$E$8,IF(EE75=DataBase!$B$9,DataBase!$E$9,IF(EE75=DataBase!$B$10,DataBase!$E$10))) -> 2 | FP75: =IF(FO75=0,0,POWER(EG75/((DataBase!$F$5*FO75)),DataBase!$E$52)*DataBase!$F$5*FO75/EG75) -> 1.25 | FQ75: =IF(EB75=DataBase!$B$30,DataBase!$G$30,IF(EB75=DataBase!$B$31,DataBase!$G$31,IF(EB75=DataBase!$B$32,DataBase!$G$32,IF(EB75=DataBase!$B$33,DataBase!$G$33,IF(EB75=DataBase!$B$34,DataBase!$G$34))))) -> 1 | FR75: =FN75*FP75*FQ75*FY75 -> 4375 | FS75: =IF(ED75=DataBase!$B$14,DataBase!$J$14,IF(ED75=DataBase!$B$15,DataBase!$J$15,IF(ED75=DataBase!$B$16,DataBase!$J$16)))*EU75 -> 50 | FT75: =IF(EB75=DataBase!$B$30,DataBase!$H$30,IF(EB75=DataBase!$B$31,DataBase!$H$31,IF(EB75=DataBase!$B$32,DataBase!$H$32,IF(EB75=DataBase!$B$33,DataBase!$H$33,IF(EB75=DataBase!$B$34,DataBase!$H$34))))) -> 1 | FU75: =IF(EA75=DataBase!$B$21,DataBase!$G$21,IF(EA75=DataBase!$B$22,DataBase!$G$22,IF(EA75=DataBase!$B$23,DataBase!$G$23,IF(EA75=DataBase!$B$24,DataBase!$G$24,IF(EA75=DataBase!$B$25,DataBase!$G$25))))) -> 2 | FV75: =FS75*FT75*FU75+IF(EK75=DataBase!$B$44,DataBase!$G$44,IF(EK75=DataBase!$B$45,DataBase!$G$45,IF(EK75=DataBase!$B$46,DataBase!$G$46,IF(EK75=DataBase!$B$47,DataBase!$G$47,IF(EK75=DataBase!$B$48,DataBase!$G$48,IF(EK75=DataBase!$B$49,DataBase!$G$49)))))) -> 100 | FW75: =FM75+FR75+FV75 -> 4600 | FX75: =IF(EK75=DataBase!$B$44,DataBase!$C$44,IF(EK75=DataBase!$B$45,DataBase!$C$45,IF(EK75=DataBase!$B$46,DataBase!$C$46,IF(EK75=DataBase!$B$47,DataBase!$C$47,IF(EK75=DataBase!$B$48,DataBase!$C$48,IF(EK75=DataBase!$B$49,DataBase!$C$49)))))) -> 1.2 | FY75: =IF(EK75=DataBase!$B$44,DataBase!$D$44,IF(EK75=DataBase!$B$45,DataBase!$D$45,IF(EK75=DataBase!$B$46,DataBase!$D$46,IF(EK75=DataBase!$B$47,DataBase!$D$47,IF(EK75=DataBase!$B$48,DataBase!$D$48,IF(EK75=DataBase!$B$49,DataBase!$D$49)))))) -> 1.4 | FZ75: =FW75*8*FL75+FK75*8*EZ75+EY75*EN75*8 -> 2687161.999 | GA75: =POWER(((DataBase!$C$5*DataBase!$E$5)/(EH75*EI75)),DataBase!$E$53) -> 1 | GB75: =IF(EJ75=DataBase!$B$37,DataBase!$C$37,IF(EJ75=DataBase!$B$38,DataBase!$C$38)) -> 1 | GD75: =GB75*GA75*FZ75 -> 2687161.999 | GE75: bit/s | GG75: =IF($C75=DataBase!$J$49,DataBase!$L$49,IF($C75=DataBase!$J$50,DataBase!$L$50,IF($C75=DataBase!$J$51,DataBase!$L$51,IF($C75=DataBase!$J$52,DataBase!$L$52)))) -> 0.89 | GH75: =IF($C75=DataBase!$J$49,DataBase!$N$49,IF($C75=DataBase!$J$50,DataBase!$N$50,IF($C75=DataBase!$J$51,DataBase!$N$51,IF($C75=DataBase!$J$52,DataBase!$N$52)))) -> 0.1 | GI75: =IF($C75=DataBase!$J$49,DataBase!$P$49,IF($C75=DataBase!$J$50,DataBase!$P$50,IF($C75=DataBase!$J$51,DataBase!$P$51,IF($C75=DataBase!$J$52,DataBase!$P$52)))) -> 0.01 | GK75: =$GG75*BR75 -> 342499.9216 | GL75: bit/s | GM75: =$DX75*GH75 -> 87055.58508 | GN75: bit/s | GO75: =$GD75*GI75 -> 26871.61999 | GP75: bit/s | GR75: =GO75+GM75+GK75 -> 456427.1266 | GS75: bit/s | GU75: =MAX($GD75,$DX75,$BR75) -> 2687161.999 | GV75: bit/s | GW75: =IF($M75=DataBase!$B$44,DataBase!$E$44,IF($M75=DataBase!$B$45,DataBase!$E$45,IF($M75=DataBase!$B$46,DataBase!$E$46,IF($M75=DataBase!$B$47,DataBase!$E$47,IF($M75=DataBase!$B$48,DataBase!$E$48,IF($M75=DataBase!$B$49,DataBase!$E$49)))))) -> 1 | GY75: =IF($D75=DataBase!$J$44,DataBase!$M$44,IF($D75=DataBase!$J$45,DataBase!$M$45,IF($D75=DataBase!$J$46,DataBase!$M$46))) -> 4 | GZ75: =IF($D75=DataBase!$J$44,DataBase!$K$44,IF($D75=DataBase!$J$45,DataBase!$K$45,IF($D75=DataBase!$J$46,DataBase!$K$46))) -> 1 | HA75: =IF($M75=DataBase!$B$44,DataBase!$F$44,IF($M75=DataBase!$B$45,DataBase!$F$45,IF($M75=DataBase!$B$46,DataBase!$F$46,IF($M75=DataBase!$B$47,DataBase!$F$47,IF($M75=DataBase!$B$48,DataBase!$F$48,IF($M75=DataBase!$B$49,DataBase!$F$49)))))) -> 32000000 | HB75: bit/s | HC75: =C75&D75&I75&J75&K75&M75 -> staticbitrate optimized3019201080CPP_7_3 | HD75: =MIN(HA75,MAX(GZ75*IF(0=GW75,GR75,IF(1=GW75,GR75,IF(2=GW75,GU75))))) -> 456427.1266 | HE75: bit/s | HG75: =IF(GW75=1,"SUPPORTED","NOT SUPPORTED") -> SUPPORTED | HH75: =HJ75 -> 2687161.999 | HI75: bit/s | HJ75: =MIN(HA75,GZ75*IF(GW75=0,2*GR75,GU75)) -> 2687161.999 | HK75: bit/s | HL75: =IF(GW75=1,IF($D75=DataBase!$J$44,DataBase!$L$44,IF($D75=DataBase!$J$45,DataBase!$L$45,IF($D75=DataBase!$J$46,DataBase!$L$46))),"OFF") -> medium | HM75: =0 -> 0 | HO75: =MIN(HA75,MAX(HQ75/GY75,GZ75*IF(0=GW75,GR75,IF(1=GW75,GR75,IF(2=GW75,GU75))))) -> 671790.4998 | HP75: bit/s | HQ75: =MIN(HA75,GZ75*IF(GW75=0,2*GR75,GU75)) -> 2687161.999 | HR75: bit/s | HS75: =IF(GW75=1,IF($D75=DataBase!$J$44,DataBase!$L$44,IF($D75=DataBase!$J$45,DataBase!$L$45,IF($D75=DataBase!$J$46,DataBase!$L$46))),"OFF") -> medium | HT75: =IF(GW75=1,3600*24*GW75,0) -> 86400
C76: static | D76: bitrate optimized | F76: normale z.B. typische parkplatz Straßenszene | G76: IBBP | H76: 255 | I76: 60 | J76: 1920 | K76: 1080 | L76: h_264 | M76: CPP_7_3 | O76: =IF(C76=DataBase!$J$49,DataBase!$K$49,IF(C76=DataBase!$J$50,DataBase!$K$50,IF(C76=DataBase!$J$51,DataBase!$K$51,IF(C76=DataBase!$J$52,DataBase!$K$52)))) -> static | P76: =IF(D76=DataBase!$J$44,DataBase!$L$44,IF(D76=DataBase!$J$45,DataBase!$L$45,IF(D76=DataBase!$J$46,DataBase!$L$46))) -> medium | R76: =$F76 -> normale z.B. typische parkplatz Straßenszene | S76: =$G76 -> IBBP | T76: =$H76 -> 255 | U76: =$I76 -> 60 | V76: =$J76 -> 1920 | W76: =$K76 -> 1080 | X76: =$L76 -> h_264 | Y76: =$M76 -> CPP_7_3 | Z76: =$E76 -> 0 | AB76: =1/T76*U76 -> 0.2352941176 | AC76: =IF(R76=DataBase!$B$14,DataBase!$C$14,IF(R76=DataBase!$B$15,DataBase!$C$15,IF(R76=DataBase!$B$16,DataBase!$C$16))) -> 300000 | AD76: =IF(P76=DataBase!$B$30,DataBase!$C$30,IF(P76=DataBase!$B$31,DataBase!$C$31,IF(P76=DataBase!$B$32,DataBase!$C$32,IF(P76=DataBase!$B$33,DataBase!$C$33,IF(P76=DataBase!$B$34,DataBase!$C$34))))) -> 1 | AE76: =AC76*AD76 -> 300000 | AF76: =IF(R76=DataBase!$B$14,DataBase!$G$14,IF(R76=DataBase!$B$15,DataBase!$G$15,IF(R76=DataBase!$B$16,DataBase!$G$16))) -> 200 | AG76: =IF(Z76=DataBase!$K$20,1,IF(Z76=DataBase!$K$21,1,0)) -> 0 | AH76: =IF(Z76=DataBase!$K$20,DataBase!$M$20,IF(Z76=DataBase!$K$21,DataBase!$M$21,0)) -> 0 | AI76: =IF(AG76=1,IF(AH76<>0,AH76,AF76),AF76) -> 200 | AJ76: =IF(P76=DataBase!$B$30,DataBase!$H$30,IF(P76=DataBase!$B$31,DataBase!$H$31,IF(P76=DataBase!$B$32,DataBase!$H$32,IF(P76=DataBase!$B$33,DataBase!$H$33,IF(P76=DataBase!$B$34,DataBase!$H$34))))) -> 1 | AK76: =IF(O76=DataBase!$B$21,DataBase!$G$21,IF(O76=DataBase!$B$22,DataBase!$G$22,IF(O76=DataBase!$B$23,DataBase!$G$23,IF(O76=DataBase!$B$24,DataBase!$G$24,IF(O76=DataBase!$B$25,DataBase!$G$25))))) -> 1 | AL76: =IF(Y76=DataBase!$B$44,DataBase!$G$44,IF($F76=DataBase!$B$45,DataBase!$G$45,IF(Y76=DataBase!$B$46,DataBase!$G$46,IF(Y76=DataBase!$B$47,DataBase!$G$47,IF(Y76=DataBase!$B$48,DataBase!$G$48,IF(Y76=DataBase!$B$49,DataBase!$G$49))))))+AI76*AJ76*AK76 -> 200 | AM76: =AL76+AE76*BL76 -> 360200 | AN76: =((T76-1)/T76)/IF(S76=DataBase!$B$8,DataBase!$C$8,IF(S76=DataBase!$B$9,DataBase!$C$9,IF(S76=DataBase!$B$10,DataBase!$C$10)))*U76 -> 19.92156863 | AO76: =IF(R76=DataBase!$B$14,DataBase!$E$14,IF(R76=DataBase!$B$15,DataBase!$E$15,IF(R76=DataBase!$B$16,DataBase!$E$16))) -> 125 | AP76: =IF(O76=DataBase!$B$21,DataBase!$E$21,IF(O76=DataBase!$B$22,DataBase!$E$22,IF(O76=DataBase!$B$23,DataBase!$E$23,IF(O76=DataBase!$B$24,DataBase!$E$24,IF(O76=DataBase!$B$25,DataBase!$E$25))))) -> 0 | AQ76: =IF(S76=DataBase!$B$8,DataBase!$C$8,IF(S76=DataBase!$B$9,DataBase!$C$9,IF(S76=DataBase!$B$10,DataBase!$C$10))) -> 3 | AR76: =POWER(U76/((DataBase!$F$5*AQ76)),DataBase!$E$52)*DataBase!$F$5*AQ76/U76 -> 1.139432817 | AS76: =IF(P76=DataBase!$B$30,DataBase!$F$30,IF(P76=DataBase!$B$31,DataBase!$F$31,IF(P76=DataBase!$B$32,DataBase!$F$32,IF(P76=DataBase!$B$33,DataBase!$F$33,IF(P76=DataBase!$B$34,DataBase!$F$34))))) -> 1 | AT76: =AP76*AR76*AS76*BM76 -> 0 | AU76: =IF(R76=DataBase!$B$14,DataBase!$H$14,IF(R76=DataBase!$B$15,DataBase!$H$15,IF(R76=DataBase!$B$16,DataBase!$H$16)))*AI76 -> 100 | AV76: =IF(P76=DataBase!$B$30,DataBase!$H$30,IF(P76=DataBase!$B$31,DataBase!$H$31,IF(P76=DataBase!$B$32,DataBase!$H$32,IF(P76=DataBase!$B$33,DataBase!$H$33,IF(P76=DataBase!$B$34,DataBase!$H$34))))) -> 1 | AW76: =IF(O76=DataBase!$B$21,DataBase!$G$21,IF(O76=DataBase!$B$22,DataBase!$G$22,IF(O76=DataBase!$B$23,DataBase!$G$23,IF(O76=DataBase!$B$24,DataBase!$G$24,IF(O76=DataBase!$B$25,DataBase!$G$25))))) -> 1 | AX76: =AU76*AV76*AW76+IF(Y76=DataBase!$B$44,DataBase!$G$44,IF(Y76=DataBase!$B$45,DataBase!$G$45,IF(Y76=DataBase!$B$46,DataBase!$G$46,IF(Y76=DataBase!$B$47,DataBase!$G$47,IF(Y76=DataBase!$B$48,DataBase!$G$48,IF(Y76=DataBase!$B$49,DataBase!$G$49)))))) -> 100 | AY76: =AO76+AT76+AX76 -> 225 | AZ76: =IF(S76=DataBase!$B$8,0,((T76-1)/T76)/IF(S76=DataBase!$B$9,2,IF(S76=DataBase!$B$10,3/2))*U76) -> 39.84313725 | BA76: =IF(R76=DataBase!$B$14,DataBase!$F$14,IF(R76=DataBase!$B$15,DataBase!$F$15,IF(R76=DataBase!$B$16,DataBase!$F$16))) -> 125 | BB76: =IF(O76=DataBase!$B$21,DataBase!$F$21,IF(O76=DataBase!$B$22,DataBase!$F$22,IF(O76=DataBase!$B$23,DataBase!$F$23,IF(O76=DataBase!$B$24,DataBase!$F$24,IF(O76=DataBase!$B$25,DataBase!$F$25))))) -> 0 | BC76: =IF(S76=DataBase!$B$8,DataBase!$E$8,IF(S76=DataBase!$B$9,DataBase!$E$9,IF(S76=DataBase!$B$10,DataBase!$E$10))) -> 2 | BD76: =IF(BC76=0,0,POWER(U76/((DataBase!$F$5*BC76)),DataBase!$E$52)*DataBase!$F$5*BC76/U76) -> 1 | BE76: =IF(P76=DataBase!$B$30,DataBase!$G$30,IF(P76=DataBase!$B$31,DataBase!$G$31,IF(P76=DataBase!$B$32,DataBase!$G$32,IF(P76=DataBase!$B$33,DataBase!$G$33,IF(P76=DataBase!$B$34,DataBase!$G$34))))) -> 1 | BF76: =BB76*BD76*BE76*BM76 -> 0 | BG76: =IF(R76=DataBase!$B$14,DataBase!$J$14,IF(R76=DataBase!$B$15,DataBase!$J$15,IF(R76=DataBase!$B$16,DataBase!$J$16)))*AI76 -> 50 | BH76: =IF(P76=DataBase!$B$30,DataBase!$H$30,IF(P76=DataBase!$B$31,DataBase!$H$31,IF(P76=DataBase!$B$32,DataBase!$H$32,IF(P76=DataBase!$B$33,DataBase!$H$33,IF(P76=DataBase!$B$34,DataBase!$H$34))))) -> 1 | BI76: =IF(O76=DataBase!$B$21,DataBase!$G$21,IF(O76=DataBase!$B$22,DataBase!$G$22,IF(O76=DataBase!$B$23,DataBase!$G$23,IF(O76=DataBase!$B$24,DataBase!$G$24,IF(O76=DataBase!$B$25,DataBase!$G$25))))) -> 1 | BJ76: =BG76*BH76*BI76+IF(Y76=DataBase!$B$44,DataBase!$G$44,IF(Y76=DataBase!$B$45,DataBase!$G$45,IF(Y76=DataBase!$B$46,DataBase!$G$46,IF(Y76=DataBase!$B$47,DataBase!$G$47,IF(Y76=DataBase!$B$48,DataBase!$G$48,IF(Y76=DataBase!$B$49,DataBase!$G$49)))))) -> 50 | BK76: =BA76+BF76+BJ76 -> 175 | BL76: =IF(Y76=DataBase!$B$44,DataBase!$C$44,IF(Y76=DataBase!$B$45,DataBase!$C$45,IF(Y76=DataBase!$B$46,DataBase!$C$46,IF(Y76=DataBase!$B$47,DataBase!$C$47,IF(Y76=DataBase!$B$48,DataBase!$C$48,IF(Y76=DataBase!$B$49,DataBase!$C$49)))))) -> 1.2 | BM76: =IF(Y76=DataBase!$B$44,DataBase!$D$44,IF(Y76=DataBase!$B$45,DataBase!$D$45,IF(Y76=DataBase!$B$46,DataBase!$D$46,IF(Y76=DataBase!$B$47,DataBase!$D$47,IF(Y76=DataBase!$B$48,DataBase!$D$48,IF(Y76=DataBase!$B$49,DataBase!$D$49)))))) -> 1.4 | BN76: =BK76*8*AZ76+AY76*8*AN76+AM76*AB76*8 -> 769662.7451 | BO76: =POWER(((DataBase!$C$5*DataBase!$E$5)/(V76*W76)),DataBase!$E$53) -> 1 | BP76: =IF(X76=DataBase!$B$37,DataBase!$C$37,IF(X76=DataBase!$B$38,DataBase!$C$38)) -> 1 | BR76: =BP76*BO76*BN76 -> 769662.7451 | BS76: bit/s | BU76: =IF(C76=DataBase!$J$49,DataBase!$M$49,IF(C76=DataBase!$J$50,DataBase!$M$50,IF(C76=DataBase!$J$51,DataBase!$M$51,IF(C76=DataBase!$J$52,DataBase!$M$52)))) -> standard | BV76: =IF(D76=DataBase!$J$44,DataBase!$L$44,IF(D76=DataBase!$J$45,DataBase!$L$45,IF(D76=DataBase!$J$46,DataBase!$L$46))) -> medium | BX76: =$F76 -> normale z.B. typische parkplatz Straßenszene | BY76: =$G76 -> IBBP | BZ76: =$H76 -> 255 | CA76: =$I76 -> 60 | CB76: =$J76 -> 1920 | CC76: =$K76 -> 1080 | CD76: =$L76 -> h_264 | CE76: =$M76 -> CPP_7_3 | CF76: =$E76 -> 0 | CH76: =1/BZ76*CA76 -> 0.2352941176 | CI76: =IF(BX76=DataBase!$B$14,DataBase!$C$14,IF(BX76=DataBase!$B$15,DataBase!$C$15,IF(BX76=DataBase!$B$16,DataBase!$C$16))) -> 300000 | CJ76: =IF(BV76=DataBase!$B$30,DataBase!$C$30,IF(BV76=DataBase!$B$31,DataBase!$C$31,IF(BV76=DataBase!$B$32,DataBase!$C$32,IF(BV76=DataBase!$B$33,DataBase!$C$33,IF(BV76=DataBase!$B$34,DataBase!$C$34))))) -> 1 | CK76: =CI76*CJ76 -> 300000 | CL76: =IF(BX76=DataBase!$B$14,DataBase!$G$14,IF(BX76=DataBase!$B$15,DataBase!$G$15,IF(BX76=DataBase!$B$16,DataBase!$G$16))) -> 200 | CM76: =IF(CF76=DataBase!$K$20,1,IF(CF76=DataBase!$K$21,1,0)) -> 0 | CN76: =IF(CF76=DataBase!$K$20,DataBase!$M$20,IF(CF76=DataBase!$K$21,DataBase!$M$21,0)) -> 0 | CO76: =IF(CM76=1,IF(CN76<>0,CN76,CL76),CL76) -> 200 | CP76: =IF(BV76=DataBase!$B$30,DataBase!$H$30,IF(BV76=DataBase!$B$31,DataBase!$H$31,IF(BV76=DataBase!$B$32,DataBase!$H$32,IF(BV76=DataBase!$B$33,DataBase!$H$33,IF(BV76=DataBase!$B$34,DataBase!$H$34))))) -> 1 | CQ76: =IF(BU76=DataBase!$B$21,DataBase!$G$21,IF(BU76=DataBase!$B$22,DataBase!$G$22,IF(BU76=DataBase!$B$23,DataBase!$G$23,IF(BU76=DataBase!$B$24,DataBase!$G$24,IF(BU76=DataBase!$B$25,DataBase!$G$25))))) -> 1.4 | CR76: =IF(CE76=DataBase!$B$44,DataBase!$G$44,IF($F76=DataBase!$B$45,DataBase!$G$45,IF(CE76=DataBase!$B$46,DataBase!$G$46,IF(CE76=DataBase!$B$47,DataBase!$G$47,IF(CE76=DataBase!$B$48,DataBase!$G$48,IF(CE76=DataBase!$B$49,DataBase!$G$49))))))+CO76*CP76*CQ76 -> 280 | CS76: =CR76+CK76*DR76 -> 360280 | CT76: =((BZ76-1)/BZ76)/IF(BY76=DataBase!$B$8,DataBase!$C$8,IF(BY76=DataBase!$B$9,DataBase!$C$9,IF(BY76=DataBase!$B$10,DataBase!$C$10)))*CA76 -> 19.92156863 | CU76: =IF(BX76=DataBase!$B$14,DataBase!$E$14,IF(BX76=DataBase!$B$15,DataBase!$E$15,IF(BX76=DataBase!$B$16,DataBase!$E$16))) -> 125 | CV76: =IF(BU76=DataBase!$B$21,DataBase!$E$21,IF(BU76=DataBase!$B$22,DataBase!$E$22,IF(BU76=DataBase!$B$23,DataBase!$E$23,IF(BU76=DataBase!$B$24,DataBase!$E$24,IF(BU76=DataBase!$B$25,DataBase!$E$25))))) -> 2000 | CW76: =IF(BY76=DataBase!$B$8,DataBase!$C$8,IF(BY76=DataBase!$B$9,DataBase!$C$9,IF(BY76=DataBase!$B$10,DataBase!$C$10))) -> 3 | CX76: =POWER(CA76/((DataBase!$F$5*CW76)),DataBase!$E$52)*DataBase!$F$5*CW76/CA76 -> 1.139432817 | CY76: =IF(BV76=DataBase!$B$30,DataBase!$F$30,IF(BV76=DataBase!$B$31,DataBase!$F$31,IF(BV76=DataBase!$B$32,DataBase!$F$32,IF(BV76=DataBase!$B$33,DataBase!$F$33,IF(BV76=DataBase!$B$34,DataBase!$F$34))))) -> 1 | CZ76: =CV76*CX76*CY76*DS76 -> 3190.411888 | DA76: =IF(BX76=DataBase!$B$14,DataBase!$H$14,IF(BX76=DataBase!$B$15,DataBase!$H$15,IF(BX76=DataBase!$B$16,DataBase!$H$16)))*CO76 -> 100 | DB76: =IF(BV76=DataBase!$B$30,DataBase!$H$30,IF(BV76=DataBase!$B$31,DataBase!$H$31,IF(BV76=DataBase!$B$32,DataBase!$H$32,IF(BV76=DataBase!$B$33,DataBase!$H$33,IF(BV76=DataBase!$B$34,DataBase!$H$34))))) -> 1 | DC76: =IF(BU76=DataBase!$B$21,DataBase!$G$21,IF(BU76=DataBase!$B$22,DataBase!$G$22,IF(BU76=DataBase!$B$23,DataBase!$G$23,IF(BU76=DataBase!$B$24,DataBase!$G$24,IF(BU76=DataBase!$B$25,DataBase!$G$25))))) -> 1.4 | DD76: =DA76*DB76*DC76+IF(CE76=DataBase!$B$44,DataBase!$G$44,IF(CE76=DataBase!$B$45,DataBase!$G$45,IF(CE76=DataBase!$B$46,DataBase!$G$46,IF(CE76=DataBase!$B$47,DataBase!$G$47,IF(CE76=DataBase!$B$48,DataBase!$G$48,IF(CE76=DataBase!$B$49,DataBase!$G$49)))))) -> 140 | DE76: =CU76+CZ76+DD76 -> 3455.411888 | DF76: =IF(BY76=DataBase!$B$8,0,((BZ76-1)/BZ76)/IF(BY76=DataBase!$B$9,2,IF(BY76=DataBase!$B$10,3/2))*CA76) -> 39.84313725 | DG76: =IF(BX76=DataBase!$B$14,DataBase!$F$14,IF(BX76=DataBase!$B$15,DataBase!$F$15,IF(BX76=DataBase!$B$16,DataBase!$F$16))) -> 125 | DH76: =IF(BU76=DataBase!$B$21,DataBase!$F$21,IF(BU76=DataBase!$B$22,DataBase!$F$22,IF(BU76=DataBase!$B$23,DataBase!$F$23,IF(BU76=DataBase!$B$24,DataBase!$F$24,IF(BU76=DataBase!$B$25,DataBase!$F$25))))) -> 579 | DI76: =IF(BY76=DataBase!$B$8,DataBase!$E$8,IF(BY76=DataBase!$B$9,DataBase!$E$9,IF(BY76=DataBase!$B$10,DataBase!$E$10))) -> 2 | DJ76: =IF(DI76=0,0,POWER(CA76/((DataBase!$F$5*DI76)),DataBase!$E$52)*DataBase!$F$5*DI76/CA76) -> 1 | DK76: =IF(BV76=DataBase!$B$30,DataBase!$G$30,IF(BV76=DataBase!$B$31,DataBase!$G$31,IF(BV76=DataBase!$B$32,DataBase!$G$32,IF(BV76=DataBase!$B$33,DataBase!$G$33,IF(BV76=DataBase!$B$34,DataBase!$G$34))))) -> 1 | DL76: =DH76*DJ76*DK76*DS76 -> 810.6 | DM76: =IF(BX76=DataBase!$B$14,DataBase!$J$14,IF(BX76=DataBase!$B$15,DataBase!$J$15,IF(BX76=DataBase!$B$16,DataBase!$J$16)))*CO76 -> 50 | DN76: =IF(BV76=DataBase!$B$30,DataBase!$H$30,IF(BV76=DataBase!$B$31,DataBase!$H$31,IF(BV76=DataBase!$B$32,DataBase!$H$32,IF(BV76=DataBase!$B$33,DataBase!$H$33,IF(BV76=DataBase!$B$34,DataBase!$H$34))))) -> 1 | DO76: =IF(BU76=DataBase!$B$21,DataBase!$G$21,IF(BU76=DataBase!$B$22,DataBase!$G$22,IF(BU76=DataBase!$B$23,DataBase!$G$23,IF(BU76=DataBase!$B$24,DataBase!$G$24,IF(BU76=DataBase!$B$25,DataBase!$G$25))))) -> 1.4 | DP76: =DM76*DN76*DO76+IF(CE76=DataBase!$B$44,DataBase!$G$44,IF(CE76=DataBase!$B$45,DataBase!$G$45,IF(CE76=DataBase!$B$46,DataBase!$G$46,IF(CE76=DataBase!$B$47,DataBase!$G$47,IF(CE76=DataBase!$B$48,DataBase!$G$48,IF(CE76=DataBase!$B$49,DataBase!$G$49)))))) -> 70 | DQ76: =DG76+DL76+DP76 -> 1005.6 | DR76: =IF(CE76=DataBase!$B$44,DataBase!$C$44,IF(CE76=DataBase!$B$45,DataBase!$C$45,IF(CE76=DataBase!$B$46,DataBase!$C$46,IF(CE76=DataBase!$B$47,DataBase!$C$47,IF(CE76=DataBase!$B$48,DataBase!$C$48,IF(CE76=DataBase!$B$49,DataBase!$C$49)))))) -> 1.2 | DS76: =IF(CE76=DataBase!$B$44,DataBase!$D$44,IF(CE76=DataBase!$B$45,DataBase!$D$45,IF(CE76=DataBase!$B$46,DataBase!$D$46,IF(CE76=DataBase!$B$47,DataBase!$D$47,IF(CE76=DataBase!$B$48,DataBase!$D$48,IF(CE76=DataBase!$B$49,DataBase!$D$49)))))) -> 1.4 | DT76: =DQ76*8*DF76+DE76*8*CT76+CS76*CH76*8 -> 1549401.989 | DU76: =POWER(((DataBase!$C$5*DataBase!$E$5)/(CB76*CC76)),DataBase!$E$53) -> 1 | DV76: =IF(CD76=DataBase!$B$37,DataBase!$C$37,IF(CD76=DataBase!$B$38,DataBase!$C$38)) -> 1 | DX76: =DV76*DU76*DT76 -> 1549401.989 | DY76: bit/s | EA76: =IF(C76=DataBase!$J$49,DataBase!$O$49,IF(C76=DataBase!$J$50,DataBase!$O$50,IF(C76=DataBase!$J$51,DataBase!$O$51,IF(C76=DataBase!$J$52,DataBase!$O$52)))) -> busy | EB76: =IF(D76=DataBase!$J$44,DataBase!$L$44,IF(D76=DataBase!$J$45,DataBase!$L$45,IF(D76=DataBase!$J$46,DataBase!$L$46))) -> medium | ED76: =$F76 -> normale z.B. typische parkplatz Straßenszene | EE76: =$G76 -> IBBP | EF76: =$H76 -> 255 | EG76: =$I76 -> 60 | EH76: =$J76 -> 1920 | EI76: =$K76 -> 1080 | EJ76: =$L76 -> h_264 | EK76: =$M76 -> CPP_7_3 | EL76: =$E76 -> 0 | EN76: =1/EF76*EG76 -> 0.2352941176 | EO76: =IF(ED76=DataBase!$B$14,DataBase!$C$14,IF(ED76=DataBase!$B$15,DataBase!$C$15,IF(ED76=DataBase!$B$16,DataBase!$C$16))) -> 300000 | EP76: =IF(EB76=DataBase!$B$30,DataBase!$C$30,IF(EB76=DataBase!$B$31,DataBase!$C$31,IF(EB76=DataBase!$B$32,DataBase!$C$32,IF(EB76=DataBase!$B$33,DataBase!$C$33,IF(EB76=DataBase!$B$34,DataBase!$C$34))))) -> 1 | EQ76: =EO76*EP76 -> 300000 | ER76: =IF(ED76=DataBase!$B$14,DataBase!$G$14,IF(ED76=DataBase!$B$15,DataBase!$G$15,IF(ED76=DataBase!$B$16,DataBase!$G$16))) -> 200 | ES76: =IF(EL76=DataBase!$K$20,1,IF(EL76=DataBase!$K$21,1,0)) -> 0 | ET76: =IF(EL76=DataBase!$K$20,DataBase!$M$20,IF(EL76=DataBase!$K$21,DataBase!$M$21,0)) -> 0 | EU76: =IF(ES76=1,IF(ET76<>0,ET76,ER76),ER76) -> 200 | EV76: =IF(EB76=DataBase!$B$30,DataBase!$H$30,IF(EB76=DataBase!$B$31,DataBase!$H$31,IF(EB76=DataBase!$B$32,DataBase!$H$32,IF(EB76=DataBase!$B$33,DataBase!$H$33,IF(EB76=DataBase!$B$34,DataBase!$H$34))))) -> 1 | EW76: =IF(EA76=DataBase!$B$21,DataBase!$G$21,IF(EA76=DataBase!$B$22,DataBase!$G$22,IF(EA76=DataBase!$B$23,DataBase!$G$23,IF(EA76=DataBase!$B$24,DataBase!$G$24,IF(EA76=DataBase!$B$25,DataBase!$G$25))))) -> 2 | EX76: =IF(EK76=DataBase!$B$44,DataBase!$G$44,IF($F76=DataBase!$B$45,DataBase!$G$45,IF(EK76=DataBase!$B$46,DataBase!$G$46,IF(EK76=DataBase!$B$47,DataBase!$G$47,IF(EK76=DataBase!$B$48,DataBase!$G$48,IF(EK76=DataBase!$B$49,DataBase!$G$49))))))+EU76*EV76*EW76 -> 400 | EY76: =EX76+EQ76*FX76 -> 360400 | EZ76: =((EF76-1)/EF76)/IF(EE76=DataBase!$B$8,DataBase!$C$8,IF(EE76=DataBase!$B$9,DataBase!$C$9,IF(EE76=DataBase!$B$10,DataBase!$C$10)))*EG76 -> 19.92156863 | FA76: =IF(ED76=DataBase!$B$14,DataBase!$E$14,IF(ED76=DataBase!$B$15,DataBase!$E$15,IF(ED76=DataBase!$B$16,DataBase!$E$16))) -> 125 | FB76: =IF(EA76=DataBase!$B$21,DataBase!$E$21,IF(EA76=DataBase!$B$22,DataBase!$E$22,IF(EA76=DataBase!$B$23,DataBase!$E$23,IF(EA76=DataBase!$B$24,DataBase!$E$24,IF(EA76=DataBase!$B$25,DataBase!$E$25))))) -> 10000 | FC76: =IF(EE76=DataBase!$B$8,DataBase!$C$8,IF(EE76=DataBase!$B$9,DataBase!$C$9,IF(EE76=DataBase!$B$10,DataBase!$C$10))) -> 3 | FD76: =POWER(EG76/((DataBase!$F$5*FC76)),DataBase!$E$52)*DataBase!$F$5*FC76/EG76 -> 1.139432817 | FE76: =IF(EB76=DataBase!$B$30,DataBase!$F$30,IF(EB76=DataBase!$B$31,DataBase!$F$31,IF(EB76=DataBase!$B$32,DataBase!$F$32,IF(EB76=DataBase!$B$33,DataBase!$F$33,IF(EB76=DataBase!$B$34,DataBase!$F$34))))) -> 1 | FF76: =FB76*FD76*FE76*FY76 -> 15952.05944 | FG76: =IF(ED76=DataBase!$B$14,DataBase!$H$14,IF(ED76=DataBase!$B$15,DataBase!$H$15,IF(ED76=DataBase!$B$16,DataBase!$H$16)))*EU76 -> 100 | FH76: =IF(EB76=DataBase!$B$30,DataBase!$H$30,IF(EB76=DataBase!$B$31,DataBase!$H$31,IF(EB76=DataBase!$B$32,DataBase!$H$32,IF(EB76=DataBase!$B$33,DataBase!$H$33,IF(EB76=DataBase!$B$34,DataBase!$H$34))))) -> 1 | FI76: =IF(EA76=DataBase!$B$21,DataBase!$G$21,IF(EA76=DataBase!$B$22,DataBase!$G$22,IF(EA76=DataBase!$B$23,DataBase!$G$23,IF(EA76=DataBase!$B$24,DataBase!$G$24,IF(EA76=DataBase!$B$25,DataBase!$G$25))))) -> 2 | FJ76: =FG76*FH76*FI76+IF(EK76=DataBase!$B$44,DataBase!$G$44,IF(EK76=DataBase!$B$45,DataBase!$G$45,IF(EK76=DataBase!$B$46,DataBase!$G$46,IF(EK76=DataBase!$B$47,DataBase!$G$47,IF(EK76=DataBase!$B$48,DataBase!$G$48,IF(EK76=DataBase!$B$49,DataBase!$G$49)))))) -> 200 | FK76: =FA76+FF76+FJ76 -> 16277.05944 | FL76: =IF(EE76=DataBase!$B$8,0,((EF76-1)/EF76)/IF(EE76=DataBase!$B$9,2,IF(EE76=DataBase!$B$10,3/2))*EG76) -> 39.84313725 | FM76: =IF(ED76=DataBase!$B$14,DataBase!$F$14,IF(ED76=DataBase!$B$15,DataBase!$F$15,IF(ED76=DataBase!$B$16,DataBase!$F$16))) -> 125 | FN76: =IF(EA76=DataBase!$B$21,DataBase!$F$21,IF(EA76=DataBase!$B$22,DataBase!$F$22,IF(EA76=DataBase!$B$23,DataBase!$F$23,IF(EA76=DataBase!$B$24,DataBase!$F$24,IF(EA76=DataBase!$B$25,DataBase!$F$25))))) -> 2500 | FO76: =IF(EE76=DataBase!$B$8,DataBase!$E$8,IF(EE76=DataBase!$B$9,DataBase!$E$9,IF(EE76=DataBase!$B$10,DataBase!$E$10))) -> 2 | FP76: =IF(FO76=0,0,POWER(EG76/((DataBase!$F$5*FO76)),DataBase!$E$52)*DataBase!$F$5*FO76/EG76) -> 1 | FQ76: =IF(EB76=DataBase!$B$30,DataBase!$G$30,IF(EB76=DataBase!$B$31,DataBase!$G$31,IF(EB76=DataBase!$B$32,DataBase!$G$32,IF(EB76=DataBase!$B$33,DataBase!$G$33,IF(EB76=DataBase!$B$34,DataBase!$G$34))))) -> 1 | FR76: =FN76*FP76*FQ76*FY76 -> 3500 | FS76: =IF(ED76=DataBase!$B$14,DataBase!$J$14,IF(ED76=DataBase!$B$15,DataBase!$J$15,IF(ED76=DataBase!$B$16,DataBase!$J$16)))*EU76 -> 50 | FT76: =IF(EB76=DataBase!$B$30,DataBase!$H$30,IF(EB76=DataBase!$B$31,DataBase!$H$31,IF(EB76=DataBase!$B$32,DataBase!$H$32,IF(EB76=DataBase!$B$33,DataBase!$H$33,IF(EB76=DataBase!$B$34,DataBase!$H$34))))) -> 1 | FU76: =IF(EA76=DataBase!$B$21,DataBase!$G$21,IF(EA76=DataBase!$B$22,DataBase!$G$22,IF(EA76=DataBase!$B$23,DataBase!$G$23,IF(EA76=DataBase!$B$24,DataBase!$G$24,IF(EA76=DataBase!$B$25,DataBase!$G$25))))) -> 2 | FV76: =FS76*FT76*FU76+IF(EK76=DataBase!$B$44,DataBase!$G$44,IF(EK76=DataBase!$B$45,DataBase!$G$45,IF(EK76=DataBase!$B$46,DataBase!$G$46,IF(EK76=DataBase!$B$47,DataBase!$G$47,IF(EK76=DataBase!$B$48,DataBase!$G$48,IF(EK76=DataBase!$B$49,DataBase!$G$49)))))) -> 100 | FW76: =FM76+FR76+FV76 -> 3725 | FX76: =IF(EK76=DataBase!$B$44,DataBase!$C$44,IF(EK76=DataBase!$B$45,DataBase!$C$45,IF(EK76=DataBase!$B$46,DataBase!$C$46,IF(EK76=DataBase!$B$47,DataBase!$C$47,IF(EK76=DataBase!$B$48,DataBase!$C$48,IF(EK76=DataBase!$B$49,DataBase!$C$49)))))) -> 1.2 | FY76: =IF(EK76=DataBase!$B$44,DataBase!$D$44,IF(EK76=DataBase!$B$45,DataBase!$D$45,IF(EK76=DataBase!$B$46,DataBase!$D$46,IF(EK76=DataBase!$B$47,DataBase!$D$47,IF(EK76=DataBase!$B$48,DataBase!$D$48,IF(EK76=DataBase!$B$49,DataBase!$D$49)))))) -> 1.4 | FZ76: =FW76*8*FL76+FK76*8*EZ76+EY76*EN76*8 -> 4459841.944 | GA76: =POWER(((DataBase!$C$5*DataBase!$E$5)/(EH76*EI76)),DataBase!$E$53) -> 1 | GB76: =IF(EJ76=DataBase!$B$37,DataBase!$C$37,IF(EJ76=DataBase!$B$38,DataBase!$C$38)) -> 1 | GD76: =GB76*GA76*FZ76 -> 4459841.944 | GE76: bit/s | GG76: =IF($C76=DataBase!$J$49,DataBase!$L$49,IF($C76=DataBase!$J$50,DataBase!$L$50,IF($C76=DataBase!$J$51,DataBase!$L$51,IF($C76=DataBase!$J$52,DataBase!$L$52)))) -> 0.89 | GH76: =IF($C76=DataBase!$J$49,DataBase!$N$49,IF($C76=DataBase!$J$50,DataBase!$N$50,IF($C76=DataBase!$J$51,DataBase!$N$51,IF($C76=DataBase!$J$52,DataBase!$N$52)))) -> 0.1 | GI76: =IF($C76=DataBase!$J$49,DataBase!$P$49,IF($C76=DataBase!$J$50,DataBase!$P$50,IF($C76=DataBase!$J$51,DataBase!$P$51,IF($C76=DataBase!$J$52,DataBase!$P$52)))) -> 0.01 | GK76: =$GG76*BR76 -> 684999.8431 | GL76: bit/s | GM76: =$DX76*GH76 -> 154940.1989 | GN76: bit/s | GO76: =$GD76*GI76 -> 44598.41944 | GP76: bit/s | GR76: =GO76+GM76+GK76 -> 884538.4614 | GS76: bit/s | GU76: =MAX($GD76,$DX76,$BR76) -> 4459841.944 | GV76: bit/s | GW76: =IF($M76=DataBase!$B$44,DataBase!$E$44,IF($M76=DataBase!$B$45,DataBase!$E$45,IF($M76=DataBase!$B$46,DataBase!$E$46,IF($M76=DataBase!$B$47,DataBase!$E$47,IF($M76=DataBase!$B$48,DataBase!$E$48,IF($M76=DataBase!$B$49,DataBase!$E$49)))))) -> 1 | GY76: =IF($D76=DataBase!$J$44,DataBase!$M$44,IF($D76=DataBase!$J$45,DataBase!$M$45,IF($D76=DataBase!$J$46,DataBase!$M$46))) -> 4 | GZ76: =IF($D76=DataBase!$J$44,DataBase!$K$44,IF($D76=DataBase!$J$45,DataBase!$K$45,IF($D76=DataBase!$J$46,DataBase!$K$46))) -> 1 | HA76: =IF($M76=DataBase!$B$44,DataBase!$F$44,IF($M76=DataBase!$B$45,DataBase!$F$45,IF($M76=DataBase!$B$46,DataBase!$F$46,IF($M76=DataBase!$B$47,DataBase!$F$47,IF($M76=DataBase!$B$48,DataBase!$F$48,IF($M76=DataBase!$B$49,DataBase!$F$49)))))) -> 32000000 | HB76: bit/s | HC76: =C76&D76&I76&J76&K76&M76 -> staticbitrate optimized6019201080CPP_7_3 | HD76: =MIN(HA76,MAX(GZ76*IF(0=GW76,GR76,IF(1=GW76,GR76,IF(2=GW76,GU76))))) -> 884538.4614 | HE76: bit/s | HG76: =IF(GW76=1,"SUPPORTED","NOT SUPPORTED") -> SUPPORTED | HH76: =HJ76 -> 4459841.944 | HI76: bit/s | HJ76: =MIN(HA76,GZ76*IF(GW76=0,2*GR76,GU76)) -> 4459841.944 | HK76: bit/s | HL76: =IF(GW76=1,IF($D76=DataBase!$J$44,DataBase!$L$44,IF($D76=DataBase!$J$45,DataBase!$L$45,IF($D76=DataBase!$J$46,DataBase!$L$46))),"OFF") -> medium | HM76: =0 -> 0 | HO76: =MIN(HA76,MAX(HQ76/GY76,GZ76*IF(0=GW76,GR76,IF(1=GW76,GR76,IF(2=GW76,GU76))))) -> 1114960.486 | HP76: bit/s | HQ76: =MIN(HA76,GZ76*IF(GW76=0,2*GR76,GU76)) -> 4459841.944 | HR76: bit/s | HS76: =IF(GW76=1,IF($D76=DataBase!$J$44,DataBase!$L$44,IF($D76=DataBase!$J$45,DataBase!$L$45,IF($D76=DataBase!$J$46,DataBase!$L$46))),"OFF") -> medium | HT76: =IF(GW76=1,3600*24*GW76,0) -> 86400
C77: Input | O77: INPUT variabel | AC77: I-Frame size static | AF77: I-Frame noise bitrate | AO77: Overhead | AP77: Dynamic frame size | AU77: Noise based frame size | BA77: Overhead | BB77: Dynamic frame size | BG77: Noise based frame size | BO77: global modifier | BU77: INPUT variabel | CI77: I-Frame size static | CL77: I-Frame noise bitrate | CU77: Overhead | CV77: Dynamic frame size | DA77: Noise based frame size | DG77: Overhead | DH77: Dynamic frame size | DM77: Noise based frame size | DU77: global modifier | EA77: INPUT variabel | EO77: I-Frame size static | ER77: I-Frame noise bitrate | FA77: Overhead | FB77: Dynamic frame size | FG77: Noise based frame size | FM77: Overhead | FN77: Dynamic frame size | FS77: Noise based frame size | GA77: global modifier | HD77: INFO | HH77: Output for quality driven mode | HO77: Output for long term rate control
C78: Scene profiles | D78: Recording quality | E78: isThermal | F78: static scene Type | G78: GOP Type | H78: I-Frame distance | I78: Framerate | J78: Width | K78: Height | L78: VideoStandard | M78: Platform | O78: dynamic scene type | P78: Bitrate reduction mode | R78: static scene Type | S78: GOP Type | T78: I-Frame distance | U78: Framerate | V78: Width | W78: Height | X78: VideoStandard | Y78: Platform | Z78: special camera | AB78: I-Frames/sec | AC78: Framesize Base | AD78: Modified by Bitrate red mode | AE78: Modified I-Framesize | AF78: noise base | AG78: is special Camera | AH78: overrule noise base | AI78: noise offset | AJ78: Framesize Base | AK78: Modified by bitrate red mode | AL78: Modified by dynamic scene | AM78: I-Frame size | AN78: P-Frames/sec | AO78: Framesize Base | AP78: Framesize Base | AQ78: Prediction Distance | AR78: Framerate modifier | AS78: Modified by Bitrate red mode | AT78: Modified Frame Size | AU78: Framesize Base | AV78: Modified by bitrate red mode | AW78: Modified by dynamic scene | AX78: Modified Frame Size | AY78: P-Frame Size | AZ78: B-Frames/sec | BA78: Framesize Base | BB78: Framesize Base | BC78: Prediction Distance | BD78: Framerate modifier | BE78: Modified by Bitrate red mode | BF78: Modified Frame Size | BG78: Framesize Base | BH78: Modified by bitrate red mode | BI78: Modified by dynamic scene | BJ78: Modified Frame Size | BK78: B-Framesize | BL78: static modifier | BM78: dynamic modifier | BN78: Bitrate | BO78: Resolution modifier | BP78: video standard modifier | BR78: Bitrate | BU78: dynamic scene type | BV78: Bitrate reduction mode | BX78: static scene Type | BY78: GOP Type | BZ78: I-Frame distance | CA78: Framerate | CB78: Width | CC78: Height | CD78: VideoStandard | CE78: Platform | CF78: special camera | CH78: I-Frames/sec | CI78: Framesize Base | CJ78: Modified by Bitrate red mode | CK78: Modified I-Framesize | CL78: noise base | CM78: is special Camera | CN78: overrule noise base | CO78: noise offset | CP78: Framesize Base | CQ78: Modified by bitrate red mode | CR78: Modified by dynamic scene | CS78: I-Frame size | CT78: P-Frames/sec | CU78: Framesize Base | CV78: Framesize Base | CW78: Prediction Distance | CX78: Framerate modifier | CY78: Modified by Bitrate red mode | CZ78: Modified Frame Size | DA78: Framesize Base | DB78: Modified by bitrate red mode | DC78: Modified by dynamic scene | DD78: Modified Frame Size | DE78: P-Frame Size | DF78: B-Frames/sec | DG78: Framesize Base | DH78: Framesize Base | DI78: Prediction Distance | DJ78: Framerate modifier | DK78: Modified by Bitrate red mode | DL78: Modified Frame Size | DM78: Framesize Base | DN78: Modified by bitrate red mode | DO78: Modified by dynamic scene | DP78: Modified Frame Size | DQ78: B-Framesize | DR78: static modifier | DS78: dynamic modifier | DT78: Bitrate | DU78: Resolution modifier | DV78: video standard modifier | DX78: Bitrate | EA78: dynamic scene type | EB78: Bitrate reduction mode | ED78: static scene Type | EE78: GOP Type | EF78: I-Frame distance | EG78: Framerate | EH78: Width | EI78: Height | EJ78: VideoStandard | EK78: Platform | EL78: special camera | EN78: I-Frames/sec | EO78: Framesize Base | EP78: Modified by Bitrate red mode | EQ78: Modified I-Framesize | ER78: noise base | ES78: is special Camera | ET78: overrule noise base | EU78: noise offset | EV78: Framesize Base | EW78: Modified by bitrate red mode | EX78: Modified by dynamic scene | EY78: I-Frame size | EZ78: P-Frames/sec | FA78: Framesize Base | FB78: Framesize Base | FC78: Prediction Distance | FD78: Framerate modifier | FE78: Modified by Bitrate red mode | FF78: Modified Frame Size | FG78: Framesize Base | FH78: Modified by bitrate red mode | FI78: Modified by dynamic scene | FJ78: Modified Frame Size | FK78: P-Frame Size | FL78: B-Frames/sec | FM78: Framesize Base | FN78: Framesize Base | FO78: Prediction Distance | FP78: Framerate modifier | FQ78: Modified by Bitrate red mode | FR78: Modified Frame Size | FS78: Framesize Base | FT78: Modified by bitrate red mode | FU78: Modified by dynamic scene | FV78: Modified Frame Size | FW78: B-Framesize | FX78: static modifier | FY78: dynamic modifier | FZ78: Bitrate | GA78: Resolution modifier | GB78: video standard modifier | GD78: Bitrate | GG78: Anteil Typ 0 | GH78: Anteil Typ 1 | GI78: Anteil Typ 2 | GK78: Bitrate Typ0 | GM78: Bitrate Typ1 | GO78: Bitrate Typ2 | GR78: expected Bitrate | GU78: maximum Bitrate | GW78: support long term rate control | GY78: max relation | GZ78: saftey factor | HA78: maximum platform bitrate | HD78: expected bitrate | HG78: quality driven mode is supported | HH78: target bitrate | HJ78: max bitrate | HL78: bitrate reduction mode | HM78: Averaging time | HO78: target bitrate | HQ78: max bitrate | HS78: bitrate reduction mode | HT78: Averaging time
HC80: =C80&D80&K80&M80 -> 
K82: 1920x1080 | L82: 1080p | M82: 19201080 | N82: 1920 | O82: 1080 | HC82: 1920 | HD82: 1080
K83: 1280x720 | L83: 720p | M83: 1280720 | N83: 1280 | O83: 720 | HC83: 1280 | HD83: 720
L84: SD | HC84: 2592 | HD84: 1680
K85: 2592x1680 | L85: 5 MP | M85: 25921680 | N85: 2592 | O85: 1680 | HC85: 3840 | HD85: 2160
K86: 3840x2160 | L86: 8 MP | M86: 38402160 | N86: 3840 | O86: 2160 | HC86: 4000 | HD86: 3000
K87: 4000x3000 | L87: 12 MP | M87: 40003000 | N87: 4000 | O87: 3000
F88: bitrate optimized quiet | G88: staticbitrate optimized | H88: static | I88: bitrate optimized
F89: bitrate optimized standard | G89: mediumbitrate optimized | H89: medium | I89: bitrate optimized | K89: SD | L89: Width | M89: =VLOOKUP(K89,L82:O87,3,0) -> 0
F90: bitrate optimized busy | G90: busybitrate optimized | H90: busy | I90: bitrate optimized | L90: Heigth | M90: =VLOOKUP(K89,L82:O87,4,0) -> 0
F91: balanced quiet | G91: staticBalanced | H91: static | I91: balanced
F92: balanced standard | G92: mediumBalanced | H92: medium | I92: balanced
F93: balanced busy | G93: busyBalanced | H93: busy | I93: balanced
F94: image optimized quiet | G94: staticimage optimized | H94: static | I94: image optimized
F95: image optimized standard | G95: mediumimage optimized | H95: medium | I95: image optimized
F96: image optimized busy | G96: busyimage optimized | H96: busy | I96: image optimized
F97: PTZ optimized
G98: resolution
C99: 30 | D99: 704 | E99: 288 | F99: CPP_3 | G99: =D99&E99&F99 -> 704288CPP_3
C100: 30 | D100: 704 | E100: 576 | F100: CPP_3 | G100: 704576CPP_3
C101: 30 | D101: 1280 | E101: 720 | F101: CPP_3 | G101: 1280720CPP_3
C102: 30 | D102: 1920 | E102: 1080 | F102: CPP_3 | G102: 19201080CPP_3
C103: 30 | D103: 704 | E103: 288 | F103: CPP_4 | G103: =D103&E103&F103 -> 704288CPP_4 | L103: bitrate optimized quiet
C104: 30 | D104: 704 | E104: 576 | F104: CPP_4 | G104: 704576CPP_4 | L104: bitrate optimized standard
C105: 30 | D105: 1280 | E105: 720 | F105: CPP_4 | G105: 1280720CPP_4 | L105: bitrate optimized busy
C106: 60 | D106: 1280 | E106: 720 | F106: CPP_4 | G106: 1280720CPP_4 | L106: balanced quiet
C107: 30 | D107: 1920 | E107: 1080 | F107: CPP_4 | G107: 19201080CPP_4 | L107: balanced standard
C108: 60 | D108: 1920 | E108: 1080 | F108: CPP_4 | G108: 19201080CPP_4 | H108: x | I108: 12 | L108: balanced busy
C109: 12 | D109: 2592 | E109: 1680 | F109: CPP_4 | G109: 25921680CPP_4 | L109: image optimized quiet
C110: 30 | D110: 704 | E110: 288 | F110: CPP_5 | G110: 704288CPP_5 | L110: image optimized standard
C111: 30 | D111: 704 | E111: 576 | F111: CPP_5 | G111: 704576CPP_5 | L111: image optimized busy
C112: 30 | D112: 768 | E112: 432 | F112: CPP_6 | G112: 768432CPP_6
C113: 30 | D113: 1280 | E113: 720 | F113: CPP_6 | G113: 1280720CPP_6
C114: 60 | D114: 1280 | E114: 720 | F114: CPP_6 | G114: 1280720CPP_6
C115: 30 | D115: 1920 | E115: 1080 | F115: CPP_6 | G115: 19201080CPP_6 | H115: x | I115: 30
C116: 60 | D116: 1920 | E116: 1080 | F116: CPP_6 | G116: 19201080CPP_6 | H116: x | I116: 30
C117: 30 | D117: 2592 | E117: 1680 | F117: CPP_6 | G117: 25921680CPP_6 | H117: x | I117: 20
C118: 30 | D118: 3840 | E118: 2160 | F118: CPP_6 | G118: 38402160CPP_6
C119: 20 | D119: 4000 | E119: 3000 | F119: CPP_6 | G119: 40003000CPP_6
C120: 30 | D120: 768 | E120: 432 | F120: CPP_7 | G120: 768432CPP_7
C121: 30 | D121: 1280 | E121: 720 | F121: CPP_7 | G121: 1280720CPP_7
C122: 60 | D122: 1280 | E122: 720 | F122: CPP_7 | G122: 1280720CPP_7
C123: 30 | D123: 1920 | E123: 1080 | F123: CPP_7 | G123: 19201080CPP_7 | H123: x | I123: 30
C124: 60 | D124: 1920 | E124: 1080 | F124: CPP_7 | G124: 19201080CPP_7 | H124: x | I124: 30
C125: 30 | D125: 2592 | E125: 1680 | F125: CPP_7 | G125: 25921680CPP_7 | H125: x | I125: 20
C126: 30 | D126: 3840 | E126: 2160 | F126: CPP_7 | G126: 38402160CPP_7
C127: 20 | D127: 4000 | E127: 3000 | F127: CPP_7 | G127: 40003000CPP_7
C128: 30 | D128: 768 | E128: 432 | F128: CPP_7_3 | G128: 768432CPP_7_3
C129: 30 | D129: 1280 | E129: 720 | F129: CPP_7_3 | G129: 1280720CPP_7_3
C130: 60 | D130: 1280 | E130: 720 | F130: CPP_7_3 | G130: 1280720CPP_7_3
C131: 30 | D131: 1920 | E131: 1080 | F131: CPP_7_3 | G131: 19201080CPP_7_3 | H131: x | I131: 30
C132: 60 | D132: 1920 | E132: 1080 | F132: CPP_7_3 | G132: 19201080CPP_7_3 | H132: x | I132: 30
C133: 30 | D133: 2592 | E133: 1680 | F133: CPP_7_3 | G133: 25921680CPP_7_3 | H133: x | I133: 20
C134: 30 | D134: 3840 | E134: 2160 | F134: CPP_7_3 | G134: 38402160CPP_7_3
C135: 20 | D135: 4000 | E135: 3000 | F135: CPP_7_3 | G135: 40003000CPP_7_3
E137: Encoding Interval | G137: not supported megapixel frame rates
E138: 60 | G138: 1525921680CPP_4
E139: 30 | G139: 2025921680CPP_4
E140: 20 | G140: 3025921680CPP_4
E141: 15 | G141: 6025921680CPP_4
E142: 12 | G142: 6025921680CPP_6
E143: 10 | G143: 6038402169CPP_6
E144: 7.5 | G144: 3040003000CPP_6
E145: 6 | G145: 6040003000CPP_6
E146: 5 | G146: 6025921680CPP_7
E147: 4 | G147: 6038402169CPP_7
E148: 3 | G148: 3040003000CPP_7
E149: 2 | G149: 6040003000CPP_7
E150: 1 | G150: 6025921680CPP_7_3
G151: 6038402169CPP_7_3 | H151: h_264 | I151: h_265
G152: 3040003000CPP_7_3 | H152: CPP_3 | I152: CPP_7_3 | K152: h_264 | L152: CPP_7_3
G153: 6040003000CPP_7_3 | H153: CPP_4
H154: CPP_5
H155: CPP_6
H156: CPP_7
H157: CPP_7_3
H160: CPP_3h_264
H161: CPP_4h_264
H162: CPP_5h_264
H163: CPP_6h_264
H164: CPP_7h_264
H165: CPP_7_3h_264
H166: CPP_7_3h_265
D170: SD | K170: Exceptions SD resolution
A171: =C171&D171&$D$170 -> bitrate optimized quietCPP_3SD | B171: =C171&D171&E171&F171 -> bitrate optimized quietCPP_3704288 | C171: bitrate optimized quiet | D171: CPP_3 | E171: 704 | F171: 288 | I171: =E171&F171 -> 704288 | K171: balanced standardCPP_5
A172: bitrate optimized quietCPP_4SD | B172: =C172&D172&E172&F172 -> bitrate optimized quietCPP_4704288 | C172: bitrate optimized quiet | D172: CPP_4 | E172: 704 | F172: 288 | I172: =E172&F172 -> 704288 | K172: balanced busyCPP_5
A173: bitrate optimized quietCPP_5SD | B173: bitrate optimized quietCPP_5704288 | C173: bitrate optimized quiet | D173: CPP_5 | E173: 704 | F173: 288 | I173: 704288 | K173: image optimized quietCPP_3
A174: bitrate optimized quietCPP_6SD | B174: bitrate optimized quietCPP_6768432 | C174: bitrate optimized quiet | D174: CPP_6 | E174: 768 | F174: 432 | I174: 768432 | K174: image optimized quietCPP_4
A175: bitrate optimized quietCPP_7SD | B175: bitrate optimized quietCPP_7768432 | C175: bitrate optimized quiet | D175: CPP_7 | E175: 768 | F175: 432 | I175: 768432 | K175: image optimized quietCPP_5
A176: bitrate optimized quietCPP_7_3SD | B176: bitrate optimized quietCPP_7_3768432 | C176: bitrate optimized quiet | D176: CPP_7_3 | E176: 768 | F176: 432 | I176: 768432 | K176: image optimized standardCPP_3
A177: bitrate optimized standardCPP_3SD | B177: bitrate optimized standardCPP_3704288 | C177: bitrate optimized standard | D177: CPP_3 | E177: 704 | F177: 288 | I177: 704288 | K177: image optimized standardCPP_4
A178: bitrate optimized standardCPP_4SD | B178: bitrate optimized standardCPP_4704288 | C178: bitrate optimized standard | D178: CPP_4 | E178: 704 | F178: 288 | I178: 704288 | K178: image optimized standardCPP_5
A179: bitrate optimized standardCPP_5SD | B179: bitrate optimized standardCPP_5704288 | C179: bitrate optimized standard | D179: CPP_5 | E179: 704 | F179: 288 | I179: 704288 | K179: image optimized busyCPP_3
A180: bitrate optimized standardCPP_6SD | B180: bitrate optimized standardCPP_6768432 | C180: bitrate optimized standard | D180: CPP_6 | E180: 768 | F180: 432 | I180: 768432 | K180: image optimized busyCPP_4
A181: bitrate optimized standardCPP_7SD | B181: bitrate optimized standardCPP_7768432 | C181: bitrate optimized standard | D181: CPP_7 | E181: 768 | F181: 432 | I181: 768432 | K181: image optimized busyCPP_5
A182: bitrate optimized standardCPP_7_3SD | B182: bitrate optimized standardCPP_7_3768432 | C182: bitrate optimized standard | D182: CPP_7_3 | E182: 768 | F182: 432 | I182: 768432
A183: bitrate optimized busyCPP_3SD | B183: bitrate optimized busyCPP_3704288 | C183: bitrate optimized busy | D183: CPP_3 | E183: 704 | F183: 288 | I183: 704288
A184: bitrate optimized busyCPP_4SD | B184: bitrate optimized busyCPP_4704288 | C184: bitrate optimized busy | D184: CPP_4 | E184: 704 | F184: 288 | I184: 704288
A185: bitrate optimized busyCPP_5SD | B185: bitrate optimized busyCPP_5704288 | C185: bitrate optimized busy | D185: CPP_5 | E185: 704 | F185: 288 | I185: 704288
A186: bitrate optimized busyCPP_6SD | B186: bitrate optimized busyCPP_6768432 | C186: bitrate optimized busy | D186: CPP_6 | E186: 768 | F186: 432 | I186: 768432
A187: bitrate optimized busyCPP_7SD | B187: bitrate optimized busyCPP_7768432 | C187: bitrate optimized busy | D187: CPP_7 | E187: 768 | F187: 432 | I187: 768432
A188: bitrate optimized busyCPP_7_3SD | B188: bitrate optimized busyCPP_7_3768432 | C188: bitrate optimized busy | D188: CPP_7_3 | E188: 768 | F188: 432 | I188: 768432
A189: balanced quietCPP_3SD | B189: balanced quietCPP_3704288 | C189: balanced quiet | D189: CPP_3 | E189: 704 | F189: 288 | I189: 704288
A190: balanced quietCPP_4SD | B190: balanced quietCPP_4704288 | C190: balanced quiet | D190: CPP_4 | E190: 704 | F190: 288 | I190: 704288
A191: balanced quietCPP_5SD | B191: balanced quietCPP_5704288 | C191: balanced quiet | D191: CPP_5 | E191: 704 | F191: 288 | I191: 704288
A192: balanced quietCPP_6SD | B192: balanced quietCPP_6768432 | C192: balanced quiet | D192: CPP_6 | E192: 768 | F192: 432 | I192: 768432
A193: balanced quietCPP_7SD | B193: balanced quietCPP_7768432 | C193: balanced quiet | D193: CPP_7 | E193: 768 | F193: 432 | I193: 768432
A194: balanced quietCPP_7_3SD | B194: balanced quietCPP_7_3768432 | C194: balanced quiet | D194: CPP_7_3 | E194: 768 | F194: 432 | I194: 768432
A195: balanced standardCPP_3SD | B195: balanced standardCPP_3704288 | C195: balanced standard | D195: CPP_3 | E195: 704 | F195: 288 | I195: 704288
A196: balanced standardCPP_4SD | B196: balanced standardCPP_4704288 | C196: balanced standard | D196: CPP_4 | E196: 704 | F196: 288 | I196: 704288
A197: balanced standardCPP_5SD | B197: balanced standardCPP_5704288 | C197: balanced standard | D197: CPP_5 | E197: 704 | F197: 288 | G197: 2000000 | H197: 2000000 | I197: 704288
A198: balanced standardCPP_6SD | B198: balanced standardCPP_6768432 | C198: balanced standard | D198: CPP_6 | E198: 768 | F198: 432 | I198: 768432
A199: balanced standardCPP_7SD | B199: balanced standardCPP_7768432 | C199: balanced standard | D199: CPP_7 | E199: 768 | F199: 432 | I199: 768432
A200: balanced standardCPP_7_3SD | B200: balanced standardCPP_7_3768432 | C200: balanced standard | D200: CPP_7_3 | E200: 768 | F200: 432 | I200: 768432
A201: balanced busyCPP_3SD | B201: balanced busyCPP_3704288 | C201: balanced busy | D201: CPP_3 | E201: 704 | F201: 288 | I201: 704288
A202: balanced busyCPP_4SD | B202: balanced busyCPP_4704288 | C202: balanced busy | D202: CPP_4 | E202: 704 | F202: 288 | I202: 704288
A203: =C203&D203&$D$170 -> balanced busyCPP_5SD | B203: balanced busyCPP_5704288 | C203: balanced busy | D203: CPP_5 | E203: 704 | F203: 288 | G203: 2000000 | H203: 2000000 | I203: 704288
A204: balanced busyCPP_6SD | B204: balanced busyCPP_6768432 | C204: balanced busy | D204: CPP_6 | E204: 768 | F204: 432 | I204: 768432
A205: balanced busyCPP_7SD | B205: balanced busyCPP_7768432 | C205: balanced busy | D205: CPP_7 | E205: 768 | F205: 432 | I205: 768432
A206: balanced busyCPP_7_3SD | B206: balanced busyCPP_7_3768432 | C206: balanced busy | D206: CPP_7_3 | E206: 768 | F206: 432 | I206: 768432
A207: image optimized quietCPP_3SD | B207: image optimized quietCPP_3704576 | C207: image optimized quiet | D207: CPP_3 | E207: 704 | F207: 576 | G207: 4858053 | H207: 6000000 | I207: 704576
A208: image optimized quietCPP_4SD | B208: image optimized quietCPP_4704576 | C208: image optimized quiet | D208: CPP_4 | E208: 704 | F208: 576 | G208: 2859061 | H208: 5718122 | I208: 704576
A209: image optimized quietCPP_5SD | B209: image optimized quietCPP_5704576 | C209: image optimized quiet | D209: CPP_5 | E209: 704 | F209: 576 | G209: 2000000 | H209: 2000000 | I209: 704576
A210: image optimized quietCPP_6SD | B210: image optimized quietCPP_6768432 | C210: image optimized quiet | D210: CPP_6 | E210: 768 | F210: 432 | I210: 768432
A211: image optimized quietCPP_7SD | B211: image optimized quietCPP_7768432 | C211: image optimized quiet | D211: CPP_7 | E211: 768 | F211: 432 | I211: 768432
A212: image optimized quietCPP_7_3SD | B212: image optimized quietCPP_7_3768432 | C212: image optimized quiet | D212: CPP_7_3 | E212: 768 | F212: 432 | I212: 768432
A213: image optimized standardCPP_3SD | B213: image optimized standardCPP_3704576 | C213: image optimized standard | D213: CPP_3 | E213: 704 | F213: 576 | G213: 5294.51 | H213: 6000 | I213: 704576
A214: image optimized standardCPP_4SD | B214: image optimized standardCPP_4704576 | C214: image optimized standard | D214: CPP_4 | E214: 704 | F214: 576 | G214: 3355739 | H214: 6711477 | I214: 704576
... 16 more rows

Sheet Licenses
B1: Readable Name | C1: Type ID | D1: ______________ max values in brackets ______________
D2: Channels | E2: Workstations | F2: DVRs | G2: Keyboards | H2: MVS | I2: Subsystem | J2: Intrusion P. | K2: Fail. VRM Ch. | L2: Dual VRM Ch. | M2: Stitched Chan. | N2: Augm. Realty | O2: Unmanaged S. | P2: E-prise Upgr. | Q2: ATM | R2: POS | S2: Allegiant | T2: OPC | U2: for DIVAR IP
B3: Base Packages
B4: Professional Edition 9.0 | C4: MBV-BPRO-90 | D4: 8(-) | E4: 2 | F4: 1 | G4: 1 | J4: 0 | K4: 8 | L4: 8 | O4: 1 | Q4: Yes | R4: Yes | S4: Yes | T4: Yes | U4: no
B5: Plus Edition 9.0 | C5: MBV-BPLU-90 | D5: 8(256) | E5: 5(10) | F5: 1(10) | G5: 5(10) | H5: 1(4) | J5: 0(10) | K5: 0(256) | L5: 0(256) | M5: 0(100) | N5: 0(100) | Q5: Yes | R5: Yes | S5: Yes | T5: Yes | U5: no
B6: Enterprise Edition 9.0 | C6: MBV-BENT-90 | D6: 8(-) | E6: 2 | F6: 1 | G6: 1 | I6: 2 | J6: 0 | K6: 8 | L6: 8 | O6: 1 | P6: Yes | Q6: Yes | R6: Yes | S6: Yes | T6: Yes | U6: no
B7: Demo 9.0 (non-expandable) | C7: MBV-BDEM-90 | D7: 3(3) | E7: 2 | F7: 2 | G7: 2 | J7: 1 | K7: 3(3) | L7: 3(3) | O7: 1 | U7: no
B8: Lite 32 Edition 9.0 (non-expandable) | C8: MBV-BLIT32-90 | D8: 32(32) | E8: 2 | G8: 2 | H8: 1 | J8: 2 | O8: 1 | U8: no
B9: Lite 64 Edition 9.0 (non-expandable) | C9: MBV-BLIT64-90 | D9: 64(64) | E9: 4 | G9: 4 | H9: 1 | J9: 4 | O9: 1 | U9: no
B10: DIPs only
B11: DIVAR IP Professional Edition Max32 | C11: BVMS-PROS-DIP | D11: 32(32) | E11: 5(5) | F11: 1(5) | G11: 1(5) | H11: 1(1) | I11: 0(1) | J11: 0(5) | K11: 0(1) | L11: 0(1) | M11: 0(100) | N11: 0(100) | Q11: Yes | R11: Yes | U11: yes
B12: DIVAR IP Professional Edition Max64 | C12: BVMS-PROM-DIP | D12: 32(64) | E12: 5(10) | F12: 1(10) | G12: 1(10) | H12: 1(2) | I12: 0(1) | J12: 0(10) | K12: 0(1) | L12: 0(1) | M12: 0(100) | N12: 0(100) | Q12: Yes | R12: Yes | U12: yes
B13: DIVAR IP Professional Edition Max128 | C13: MBV-BXPAN-DIP | D13: 32(128) | E13: 5(10) | F13: 1(10) | G13: 1(10) | H13: 1(4) | I13: 0(1) | J13: 0(10) | K13: 0(1) | L13: 0(1) | M13: 0(100) | N13: 0(100) | Q13: Yes | R13: Yes | U13: yes
B14: Optional Packages
B15: Enterprise Upgrade License for Pro 9.0 | C15: MBV-FEUP-90 | P15: Yes | U15: no
B16: PC only
B17: POS/ATM License | C17: MBV-FATM-90 | Q17: Yes | R17: Yes | U17: no
B18: Allegiant License | C18: MBV-FALG-90 | S18: Yes | U18: no
B19: OPC Server License | C19: MBV-FOPC-90 | T19: Yes | U19: no
B20: Expansion Packages
B21: Enterprise Subsystem Expansion (1) | C21: MBV-XSUB-90 | I21: 1 | U21: no
B22: Channel (Enc/Dec) Expansion (1) | C22: MBV-XCHAN-90 | D22: 1 | U22: no
B23: Workstation Expansion (1) | C23: MBV-XWST-90 | E23: 1 | U23: no
B24: DVR Expansion (1) | C24: MBV-XDVR-90 | F24: 1 | U24: no
B25: CCTV Keyboard Expansion (1) | C25: MBV-XKBD-90 | G25: 1 | U25: no
B26: Mobile Video Service Expansion (1) | C26: MBV-XMVS-90 | H26: 1 | U26: no
B27: Failover VRM Channel Expansion (1) | C27: MBV-XFOV-90 | K27: 1 | U27: no
B28: Dual Recording VRM Channel Expansion (1) | C28: MBV-XDUR-90 | L28: 1 | U28: no
B29: Intrusion Panel Expansion (1) | C29: MBV-XINT-90 | J29: 1 | U29: no
B30: Unmanaged Site Expansion (1) | C30: MBV-XSITE-90 | O30: 1 | U30: no
B31: Stitched Channel Expansion (1) | C31: MBV-XSTCH-90 | M31: 1 | U31: no
B32: Augmented Reality Expansion (1) | C32: MBV-XAGR-90 | N32: 1 | U32: no
B33: Channel (Enc/Dec) Expansion Plus (1) | C33: MBV-XCHANPLU-90 | D33: 1 | U33: no
B34: Workstation Expansion Plus (1) | C34: MBV-XWSTPLU-90 | E34: 1 | U34: no
B35: DVR Expansion Plus (1) | C35: MBV-XDVRPLU-90 | F35: 1 | U35: no
B36: CCTV Keyboard Expansion Plus (1) | C36: MBV-XKBDPLU-90 | G36: 1 | U36: no
B37: Mobile Video Service Expansion Plus (1) | C37: MBV-XMVSPLU-90 | H37: 1 | U37: no
B38: Failover VRM Channel Expansion Plus (1) | C38: MBV-XFOVPLU-90 | K38: 1 | U38: no
B39: Dual Recording VRM Channel Expansion Plus (1) | C39: MBV-XDURPLU-90 | L39: 1 | U39: no
B40: Stitched Channel Expansion Plus (1) | C40: MBV-XSTCHPLU-90 | M40: 1 | U40: no
B41: Augmented Reality Expansion Plus (1) | C41: MBV-XAGRPLU-90 | N41: 1 | U41: no
B42: Intrusion Panel Expansion Plus (1) | C42: MBV-XINTPLU-90 | J42: 1 | U42: no
B43: Upgrade BLITE64 to BPro w. 64 channels | C43: BVMS-LITEPRO-64 | U43: no
B44: DIPs only
B45: DIVAR IP Channel (Enc/Dec) Expans. (8) | C45: MBV-XCHAN-DIP | D45: 8 | U45: yes
B46: DIVAR IP Workstation Expansion (1) | C46: MBV-XWST-DIP | E46: 1 | U46: yes
B47: DIVAR IP DVR Expansion (1) | C47: MBV-XDVR-DIP | F47: 1 | U47: yes
B48: DIVAR IP Keyboard Expansion (1) | C48: MBV-XKBD-DIP | G48: 1 | U48: yes
B49: DIVAR IP Mobile Video Service Expan. (1) | C49: MBV-XMVS-DIP | H49: 1 | U49: yes
B50: DIVAR IP Intrusion Panel Expansion (1) | C50: MBV-XINT-DIP | J50: 1 | U50: yes
B51: DIVAR IP License Stitching channel expansion | C51: MBV-1STCH-DIP | M51: 1 | U51: yes
B52: DIVAR IP License Augmented reality expansion | C52: MBV-5AGR-DIP | N52: 1 | U52: yes
B53: DIVAR IP POS/ATM License | C53: MBV-FATM-DIP | Q53: Yes | R53: Yes | U53: yes
B54: DIVAR IP Allegiant License | C54: MBV-FALG-DIP | S54: Yes | U54: yes
B55: DIVAR IP OPC Server License | C55: MBV-FOPC-DIP | T55: Yes | U55: yes
B56: Maintenance Agreements
B57: BVMS Demo SMA 1yr | C57: MBV-MDEM
B58: BVMS Lite-32 Edition SMA 1yr | C58: MBV-MLIT32
B59: BVMS Lite 32 Edition SMA 3yrs | C59: MBV-MLIT32-3YR
B60: BVMS Lite-64 Edition SMA 1yr | C60: MBV-MLIT64
B61: BVMS Lite 64 Edition SMA 3yrs | C61: MBV-MLIT64-3YR
B62: BVMS Professional Edition SMA 1yr | C62: MBV-MPRO
B63: BVMS Professional Edition SMA 3yrs | C63: MBV-MPRO-3YR
B64: BVMS Enterprise Edition SMA 1yr | C64: MBV-MENT
B65: BVMS Enterprise Edition SMA 3yrs | C65: MBV-MENT-3YR
B66: BVSM Enterprise Subsystem SMA 1yr | C66: MBV-MSUB
B67: BVMS Enterprise Subsystem SMA 3yrs | C67: MBV-MSUB-3YR
B68: BVSM Enterprise Upgrade for Pro SMA 1yr | C68: MBV-MEUP
B69: BVMS Enterprise Upgrade for Pro SMA 3yrs | C69: MBV-MEUP-3YR
B70: BVMS Channel Expansion SMA 1yr | C70: MBV-MCHAN
B71: BVMS Channel Expansion SMA 3yrs | C71: MBV-MCHAN-3YR
B72: BVMS Workstation Expansion SMA 1yr | C72: MBV-MWST
B73: BVMS Workstation Expansion SMA 3yrs | C73: MBV-MWST-3YR
B74: BVMS DVR Expansion SMA 1yr | C74: MBV-MDVR
B75: BVMS DVR Exp SMA 3yrs | C75: MBV-MDVR-3YR
B76: BVMS CCTV Keyboard Expansion SMA 1yr | C76: MBV-MKBD
B77: BVMS CCTV Keyboard Expansion SMA 3yrs | C77: MBV-MKBD-3YR
B78: BVMS Forensic Search Expansion SMA 1 yr | C78: MBV-MFOREN
B79: BVMS Forensic Search Expansion SMA 3yrs | C79: MBV-MFOREN-3YR
B80: BVMS Allegiant Feature SMA 1 yr | C80: MBV-MALG
B81: BVMS Allegiant Feature SMA 3yrs | C81: MBV-MALG-3YR
B82: BVMS ATM Feature SMA 1 yr | C82: MBV-MATM
B83: BVMS ATM Feature SMA 3yrs | C83: MBV-MATM-3YR
B84: BVMS OPC Feature SMA 1 yr | C84: MBV-MOPC
B85: BVMS OPC Feature SMA 3yrs | C85: MBV-MOPC-3YR
B86: BVMS Mobile Video Service SMA 1 yr | C86: MBV-MMVS
B87: BVMS Mobile Video Service SMA 3yrs | C87: MBV-MMVS-3YR
B88: BVMS Failover VRM Expans. (1Ch) SMA 1yr | C88: MBV-MFOV
B89: BVMS Failover VRM Expans. (1Ch) SMA 3yr | C89: MBV-MFOV-3YR
B90: BVMS Dual R. VRM Expans. (1Ch) SMA 1yr | C90: MBV-MDUR
B91: BVMS Dual R. VRM Expans (1Ch) SMA 3yrs | C91: MBV-MDUR-3YR
B92: BVMS Intrusion Panel Expansion SMA 1yr | C92: MBV-MINT
B93: BVMS Intrusion Panel Expansion SMA 3yrs | C93: MBV-MINT-3YR
B94: BVMS Site Expansion SMA 1yr | C94: MBV-MSITE
B95: BVMS Site Expansion SMA 3yrs | C95: MBV-MSITE-3YR
B96: BVMS Stitched Channel Expansion SMA 1 yr | C96: MBV-XSTCH
B97: BVMS Stitched Channel Expansion SMA 3 yrs | C97: MBV-XSTCH-3YR
B98: BVMS Augmented Reality Expansion SMA 1 yr | C98: MBV-XAGR
B99: BVMS Augmented Reality Expansion SMA 3 yrs | C99: MBV-XAGR-3YR
B100: BVMS Plus Edition SMA 1 yr | C100: MBV-MPLU
B101: BVMS Plus Edition SMA 3 yr | C101: MBV-MPLU-3YR
B102: BVMS Plus channel expansion SMA 1 yr | C102: MBV-MCHANPLU
B103: BVMS Plus channel expansion SMA 3 yr | C103: MBV-MCHANPLU-3YR
B104: BVMS Plus failover VRM SMA 1 yr | C104: MBV-MFOVPLU
B105: BVMS Plus failover VRM SMA 3 yr | C105: MBV-MFOVPLU-3YR
B106: BVMS Plus Dual R. VRM Expans. (1Ch) SMA 1yr | C106: MBV-MDURPLU
B107: BVMS Plus Dual R. VRM Expans. (1Ch) SMA 3yr | C107: MBV-MDURPLU-3YR
B110: Increased version number to 9.0
B112: Note:
B113: Licenses marked with "no" in column "for Divar IP" cannot be used on DIVAR IP 3000 / 7000 devices!

Sheet Workstations Matrix
B6: Model | C6: Base Unit | D6: HDD | F6: DVD Drive | J6: Processor | N6: Memory | R6: Service | U6: OS
C7: Base Unit
C8: Base Unit
B9: Z240 SFF | C9: HP Z240 240W 92% Efficient Chassis | D9: 500GB 7200 RPM SATA | E9: SuperMulti DVD RW SATA | J9: Intel Core i7-6700 CPU @ 3.40 GHz | N9: 8GB DDR4-2133 (2x4GB) RAM | R9: HP 3‑year Next Business Day on-site hardware support | U9: Microsoft Windows 10 Pro Edition, 64-bit OS
B10: Z440 NG | C10: HP Z440 700W 90% Efficient Chassis | D10: 500GB 7200 RPM SATA | E10: SuperMulti DVD RW SATA | J10: Intel Xeon E5-1620 v4 3.5 10M 2133 4C CPU | N10: 8GB DDR4-2400 ECC (2x4GB) RAM | R10: HP 3‑year Next Business Day on-site hardware support | U10: Microsoft Windows 10 Pro Edition, 64-bit OS
B11: Z440 EE | C11: HP Z440 700W 90% Efficient Chassis | D11: 500GB 7200 RPM SATA | E11: Blu-ray Writer SATA | J11: Intel Xeon E5-1650 v4 3.6 15M 2400 6C CPU | N11: 8GB DDR4-2400 ECC (2x4GB) RAM | R11: HP 3‑year Next Business Day on-site hardware support | U11: Microsoft Windows 10 Pro Edition, 64-bit OS
B12: Z4G4 | C12: HP Z4 G4 750 W 90% Efficient Chassis | D12: 500GB 7200 RPM SATA | E12: HP Slim DVD-Writer | J12: Intel Xeon W-2123 3.6 GHz, 8.25 MB cache, 4C CPU | N12: 8 GB (1 x 8 GB) DDR4 2666 DIMM | R12: HP 3‑year Next Business Day on-site hardware support | U12: Microsoft Windows 10 Pro Edition, 64-bit OS
B36: Model | C36: Graphics cards | D36: Application | F36: Description | K36: No of cards supported | P36: Maximum monitors per card | S36: Max monitors per WS (1) | V36: GPU decoding supported
B37: CTN | C37: CTN
B38: CTN | C38: CTN
B39: Z240 SFF | C39: MHW-AWGC-K620 | D39: Entry 3D Graphics Card | F39: NVIDIA Quadro K620 (2 GB) | K39: No 2nd card supported | P39: 2 | S39: 2 | V39: yes
B40: Z440 NG | C40: MHW-AWGC-M2000 | D40: Mid-Range 3D Graphics Card | F40: NVIDIA Quadro M2000 (4 GB) | K40: 1 or 2 of these cards are supported—2nd card must match 1st | P40: 4 (2) | S40: 4 (2) | V40: yes
C41: MHW-AWGC-M4000 | D41: High-End 3D Graphics Card | F41: NVIDIA Quadro M4000 (8GB) | K41: No 2nd card supported | P41: 4 | S41: 4 | V41: yes
C42: n/a | D42: Mid-Range 3D Graphics Card | F42: NVIDIA Quadro P 2000 (5GB) | K42: NVIDIA Quadro P 2000 (5GB) | P42: 4 | S42: 4 | V42: yes
C43: n/a | D43: High-End 3D Graphics Card | F43: NVIDIA Quadro P 4000 (8GB) | K43: No 2nd card supported | P43: 4 | S43: 4 | V43: yes
B44: Z440 EE | C44: MHW-AWGC-M4000 | D44: High-End 3D Graphics Card | F44: NVIDIA Quadro M4000 (8GB) | K44: No 2nd card supported | P44: 4 | S44: 4 | V44: yes
B45: Z4G4 | C45: n/a | D45: Mid-Range 3D Graphics Card | F45: NVIDIA Quadro P 2000 (5GB) | K45: No 2nd card supported | P45: 4 | S45: 4 | V45: yes
C46: n/a | D46: High-End 3D Graphics Card | F46: NVIDIA Quadro P 4000 (8GB) | K46: No 2nd card supported | P46: 4 | S46: 4 | V46: yes
C47: (1) BVMS uses a maximum of 4 montiors (2) multiple cards of the similar type
A69: Note: The following performance values were measured in Bosch labs under ideal test conditions in live mode using a standard scene. Real life results may differ depending on the camera and stream settings, the scenes and their conditions, as well as additional workstation load.
E74: H.264 , Default Profile "Balanced standard" | S74: H.265, Default Profile "Balanced standard"
B75: Model | C75: Graphic cards | D75: Description | E75: 480p/2CIF | G75: 720p | K75: 1080p | O75: 5MP | Q75: 4K | S75: 720p | U75: 1080p | W75: 5MP
B76: CTN | C76: CTN | E76: 25 fps | G76: 30 fps | I76: 60 fps | K76: 30 fps | M76: 60 fps | O76: 12 fps | Q76: (3840x 2160) | S76: 30 fps | U76: 30 fps | W76: 30 fps
B77: Z240 SFF | C77: MHW-AWGC-K620 | D77: NVIDIA Quadro K620 (2 GB) | E77: 60 | G77: 28 | H77: +G | I77: 12 | J77: +G | K77: 20 | L77: +G | M77: 8 | N77: +G | O77: 18 | P77: +G | Q77: 7 | R77: +G | S77: 26 | U77: 12 | W77: 4 | Y77: (1)
C78: n.a. | D78: Intel HD Graphics 530 | E78: 60 | G78: 26 | H78: +G | I78: 12 | J78: +G | K78: 17 | L78: +G | M78: 6 | N78: +G | O78: 15 | P78: +G | Q78: 3 | S78: 30 | T78: +G | U78: 12 | V78: +G | W78: 6 | X78: +G
B79: Z440 NG | C79: MHW-AWGC-M2000 | D79: NVIDIA Quadro M2000 (4GB) | E79: 120 | G79: 38 | H79: +G | I79: 16 | J79: +G | K79: 24 | L79: +G | M79: 13 | N79: +G | O79: 16 | P79: +G | Q79: 7 | R79: +G | S79: 38 | T79: +G | U79: 20 | V79: +G | W79: 7 | X79: +G
C80: MHW-AWGC-M4000 | D80: NVIDIA Quadro M4000 (8GB) | E80: 120 | G80: 38 | H80: +G | I80: 18 | J80: +G | K80: 22 | L80: +G | M80: 11 | N80: +G | O80: 16 | P80: +G | Q80: 6 | R80: +G | S80: 26 | U80: 12 | W80: 4 | Y80: (1)
C81: n/a | D81: NVIDIA Quadro P2000 (5GB) | E81: 120 | G81: 40 | H81: +G | I81: 14 | J81: +G | K81: 26 | L81: +G | M81: 12 | N81: +G | O81: 13 | P81: +G | Q81: 6 | R81: +G | S81: 40 | T81: +G | U81: 22 | V81: +G | W81: 10 | X81: +G
C82: n/a | D82: NVIDIA Quadro P4000 (8GB) | E82: 120 | G82: 40 | H82: +G | I82: 15 | J82: +G | K82: 26 | L82: +G | M82: 12 | N82: +G | O82: 13 | P82: +G | Q82: 6 | R82: +G | S82: 38 | T82: +G | U82: 22 | V82: +G | W82: 10 | X82: +G
B83: Z440 EE | C83: MHW-AWGC-M4000 | D83: NVIDIA Quadro M4000 (8GB) | E83: 120 | G83: 44 | H83: +G | I83: 22 | J83: +G | K83: 25 | L83: +G | M83: 13 | N83: +G | O83: 20 | P83: +G | Q83: 6 | R83: +G | S83: 30 | U83: 14 | W83: 5 | Y83: (1)
C84: n/a | D84: NVIDIA Quadro P4000 (8GB) | E84: 120 | G84: 45 | H84: +G | I84: 20 | J84: +G | K84: 28 | L84: +G | M84: 15 | N84: +G | O84: 20 | P84: +G | Q84: 7 | R84: +G | S84: 44 | T84: +G | U84: 24 | V84: +G | W84: 10 | X84: +G
B85: Z4G4 | C85: n/a | D85: NVIDIA Quadro P2000 (5GB) | E85: 120 | G85: 36 | H85: +G | I85: 15 | J85: +G | K85: 22 | L85: +G | M85: 12 | N85: +G | O85: 16 | P85: +G | Q85: 6 | R85: +G | S85: 34 | T85: +G | U85: 19 | V85: +G | W85: 9 | X85: +G
C86: n/a | D86: NVIDIA Quadro P4000 (8GB) | E86: 120 | G86: 36 | H86: +G | I86: 16 | J86: +G | K86: 24 | L86: +G | M86: 13 | N86: +G | O86: 17 | P86: +G | Q86: 6 | R86: +G | S86: 34 | T86: +G | U86: 20 | V86: +G | W86: 9 | X86: +G
B87: Divar IP 7000 R2 | C87: AMD FirePro W4100 | D87: AMD FirePro W4100 (2 GB) | E87: 40 | G87: 15 | I87: 8 | K87: 8 | M87: 4 | O87: 4 | Q87: 0 | S87: 8 | U87: 6 | W87: 1
X89: Test limit is exceeded whenever CPU Load >90% or frame drop >5% or the live stream judders
B90: Attention: | C90: Since BVMS 9.0 the values have been measured with different settings than in previous versions.
B91: +G | C91: Utilizes GPU and CPU decoding; if GPU decoding is disabled lower values will be achieved; GPU decoding is only available on certain NVIDIA graphics cards.
B92: (1) | C92: Not all NVIDIA graphics cards are capable of hardware accelerated decoding of H.265 streams.
B93: Note 2: | C93: Maximum values must be under 90% CPU-load and under 5% frame drops in more than 5 out of 10 measurements, and live streams must not judder.
B94: Note 3: | C94: 480p/2CIF (25fps) is limited by the maximum number of available cameos on the workstation (60 on a 2 monitor system, 120 on a 4 monitor system, 50 on 2 monitors attached to a DIP 7000 R2)
B95: Note 4: | C95: Each cell value in a column is to be viewed in isolation as the maximum number of simultaneously viewable cameras per workstation. Sums of values across columns are meaningless.
B96: Note 5: | C96: Values have been determined by using the default stream settings profile "Balanced standard"
B104: Model | C104: Graphic cards | D104: Description | E104: H.264 , Default Profile "Balanced standard" | S104: H.265, Default Profile "Balanced standard"
B105: CTN | C105: CTN | E105: 480p/2CIF | G105: 720p | K105: 1080p | O105: 5MP | Q105: 4K | S105: 720p | U105: 1080p | W105: 5MP
B106: CTN | C106: CTN | E106: 25 fps | G106: 30 fps | I106: 60 fps | K106: 30 fps | M106: 60 fps | O106: 12 fps | Q106: (3840x 2160) | S106: 30 fps | U106: 30 fps | W106: 30 fps
B107: Z440 NG | C107: 2 x MHW-AWGC-K620 | D107: NVIDIA Quadro K620 (2 GB) | E107: 120 | G107: 38 | H107: +G | I107: 22 | J107: +G | K107: 30 | L107: +G | M107: 11 | N107: +G | O107: 25 | P107: +G | Q107: 10 | R107: +G | S107: 26 | U107: 12 | W107: 5
C108: 2 x MHW-AWGC-M2000 | D108: NVIDIA Quadro M2000 (4 GB) | E108: 120 | G108: 54 | H108: +G | I108: 24 | J108: +G | K108: 30 | L108: +G | M108: 18 | N108: +G | O108: 22 | P108: +G | Q108: 10 | R108: +G | S108: 50 | T108: +G | U108: 32 | V108: +G | W108: 11 | X108: +G
D110: Test limit is exceeded whenever CPU Load >90% or frame drop >5% or the live stream judders
B111: Attention: | C111: Since BVMS 9.0 the values have been measured with different settings than in previous versions.
B112: Note: | C112: Graphics card usage: All cameras are opened on monitors connected to the first graphics card. When the limit is exceeded for first GPU and CPU, two CPU cameos are closed, then possibly three or four until below the limit again. Cameras are then opened on monitors attached to the second graphics card, until the limit is reached again.

Sheet SD lifetime
A2: SD Card Lifetime Estimator
G3: SD card size
A4: Enter your values of choice in the orange fields. | G4: 1
G5: 2
B6: SD Card size | C6: 32 | D6: GB | G6: 4
G7: 8
B8: Maximum write cycles | C8: 2000 | G8: 16
G9: 32
B10: Recording bit rate | C10: 6000 | D10: kbps | G10: 64
C12: Calculate
B14: Estimated maximum SD Card life time
B15: Endurance time [days] | C15: =C23/24 -> 987.654321
B16: Endurance time [weeks] | C16: =C15/7 -> 141.0934744
B17: Endurance time [months] | C17: =C15/30 -> 32.9218107
B20: Bytes / second | C20: =C10/8*1000 -> 750000
B22: Endurance time [sec] | C22: =C6*1000000000/C20*C8 -> 85333333.33
B23: Endurance time [hours] | C23: =C22/3600 -> 23703.7037

Sheet local recording
A1: Bosch IP networked video - local recording
B4: Local recording
B5: Video data rate | C5: 6000 | D5: Kbits/s
B6: SD/CF/hard disk total disk space | C6: 40 | D6: Gigabytes
B7: No.of cameras | C7: 1
B9: Recording duration per camera | C9: =INT(C12/60/60/24) -> 0 | D9: days and | E9: =(C12-C9*24*60*60)/60/60 -> 14.7577363 | F9: hours
B12: which is | C12: =C6*C13*1024*1024*8/C5/C7 -> 53127.85067 | D12: seconds
B13: Headroom | C13: 0.95

Sheet MPEG4 Data Rate_PAL (hidden)
A1: MPEG 4 bitrates
A2: Video Resolution | B2: Video fram-rate (IPS) | C2: Quiet | F2: Medium | I2: Busy
C3: Video Quality | F3: Video Quality | I3: Video Quality
C4: optimised | D4: medium | E4: high | F4: optimised | G4: medium | H4: high | I4: optimised | J4: medium | K4: high
A5: QCIF | B5: 25 | C5: 36 | D5: 65 | E5: 94 | F5: 54 | G5: 105.5 | H5: 157 | I5: 109 | J5: 224.5 | K5: 340
A6: QCIF | B6: 13 | C6: 33 | D6: 36 | E6: 39 | F6: 37 | G6: 60 | H6: 83 | I6: 84 | J6: 150.5 | K6: 217
A7: QCIF | B7: 8 | C7: 22 | D7: 35.5 | E7: 49 | F7: 27 | G7: 44.5 | H7: 62 | I7: 55 | J7: 101 | K7: 147
A8: QCIF | B8: 6 | C8: 18 | D8: 31 | E8: 44 | F8: 23 | G8: 38 | H8: 53 | I8: 58 | J8: 87.5 | K8: 117
A9: QCIF | B9: 5 | C9: 18 | D9: 24.5 | E9: 31 | F9: 20 | G9: 30.5 | H9: 41 | I9: 41 | J9: 72.5 | K9: 104
A10: QCIF | B10: 4 | C10: 17 | D10: 22 | E10: 27 | F10: 17 | G10: 27 | H10: 37 | I10: 33 | J10: 56.5 | K10: 80
A11: QCIF | B11: 3 | C11: 16 | D11: 17.5 | E11: 19 | F11: 16 | G11: 25.5 | H11: 35 | I11: 35 | J11: 53.5 | K11: 72
A12: QCIF | B12: 2 | C12: 13 | D12: 18 | E12: 23 | F12: 13 | G12: 19 | H12: 25 | I12: 28 | J12: 45 | K12: 62
A13: QCIF | B13: 1 | C13: 11 | D13: 10.5 | E13: 10 | F13: 9 | G13: 11.5 | H13: 14 | I13: 24 | J13: 39 | K13: 54
A14: CIF | B14: 25 | C14: 94 | D14: 159.5 | E14: 225 | F14: 221 | G14: 399.5 | H14: 578 | I14: 420 | J14: 633.5 | K14: 847
A15: CIF | B15: 13 | C15: 110 | D15: 143 | E15: 176 | F15: 156 | G15: 260 | H15: 364 | I15: 338 | J15: 580 | K15: 822
A16: CIF | B16: 8 | C16: 67 | D16: 124.5 | E16: 182 | F16: 107 | G16: 193 | H16: 279 | I16: 268 | J16: 431.5 | K16: 595
A17: CIF | B17: 6 | C17: 62 | D17: 97.5 | E17: 133 | F17: 98 | G17: 164.5 | H17: 231 | I17: 201 | J17: 341 | K17: 481
A18: CIF | B18: 5 | C18: 48 | D18: 72 | E18: 96 | F18: 85 | G18: 127 | H18: 169 | I18: 186 | J18: 297 | K18: 408
A19: CIF | B19: 4 | C19: 55 | D19: 70.5 | E19: 86 | F19: 67 | G19: 108 | H19: 149 | I19: 236 | J19: 363.5 | K19: 491
A20: CIF | B20: 3 | C20: 46 | D20: 65.5 | E20: 85 | F20: 61 | G20: 97.5 | H20: 134 | I20: 205 | J20: 321.5 | K20: 438
A21: CIF | B21: 2 | C21: 35 | D21: 53.5 | E21: 72 | F21: 44 | G21: 73 | H21: 102 | I21: 166 | J21: 250 | K21: 334
A22: CIF | B22: 1 | C22: 26 | D22: 31.5 | E22: 37 | F22: 29 | G22: 44 | H22: 59 | I22: 100 | J22: 142.5 | K22: 185
A23: 2CIF | B23: 25 | C23: 307 | D23: 651 | E23: 995 | F23: 549 | G23: 993.5 | H23: 1438 | I23: 795 | J23: 1362 | K23: 1929
A24: 2CIF | B24: 13 | C24: 258 | D24: 492.5 | E24: 727 | F24: 331 | G24: 616.5 | H24: 902 | I24: 679 | J24: 1173 | K24: 1667
A25: 2CIF | B25: 8 | C25: 179 | D25: 383 | E25: 587 | F25: 244 | G25: 446 | H25: 648 | I25: 581 | J25: 963 | K25: 1345
A26: 2CIF | B26: 6 | C26: 125 | D26: 228 | E26: 331 | F26: 207 | G26: 353 | H26: 499 | I26: 660 | J26: 1043.5 | K26: 1427
A27: 2CIF | B27: 5 | C27: 127 | D27: 239 | E27: 351 | F27: 154 | G27: 294.5 | H27: 435 | I27: 648 | J27: 904 | K27: 1160
A28: 2CIF | B28: 4 | C28: 110 | D28: 191 | E28: 272 | F28: 142 | G28: 244 | H28: 346 | I28: 497 | J28: 713 | K28: 929
A29: 2CIF | B29: 3 | C29: 75 | D29: 144.5 | E29: 214 | F29: 128 | G29: 209 | H29: 290 | I29: 421 | J29: 629.5 | K29: 838
A30: 2CIF | B30: 2 | C30: 69 | D30: 116 | E30: 163 | F30: 100 | G30: 160 | H30: 220 | I30: 324 | J30: 453.5 | K30: 583
A31: 2CIF | B31: 1 | C31: 53 | D31: 70 | E31: 87 | F31: 53 | G31: 83 | H31: 113 | I31: 177 | J31: 259 | K31: 341
A32: 4CIF | B32: 25 | C32: 614 | D32: 1318 | E32: 2022 | F32: 1084 | G32: 2005 | H32: 2926 | I32: 1596 | J32: 2654.5 | K32: 3713
A33: 4CIF | B33: 13 | C33: 505 | D33: 981.5 | E33: 1458 | F33: 664 | G33: 1217.5 | H33: 1771 | I33: 1357 | J33: 2198 | K33: 3039
A34: 4CIF | B34: 8 | C34: 344 | D34: 736.5 | E34: 1129 | F34: 492 | G34: 929 | H34: 1366 | I34: 1048 | J34: 1954 | K34: 2860
A35: 4CIF | B35: 6 | C35: 298 | D35: 458 | E35: 618 | F35: 404 | G35: 674.5 | H35: 945 | I35: 1375 | J35: 2004 | K35: 2633
A36: 4CIF | B36: 5 | C36: 257 | D36: 492.5 | E36: 728 | F36: 326 | G36: 577.5 | H36: 829 | I36: 1198 | J36: 1905.5 | K36: 2613
A37: 4CIF | B37: 4 | C37: 221 | D37: 403.5 | E37: 586 | F37: 289 | G37: 477.5 | H37: 666 | I37: 911 | J37: 1420 | K37: 1929
A38: 4CIF | B38: 3 | C38: 152 | D38: 297 | E38: 442 | F38: 227 | G38: 413 | H38: 599 | I38: 859 | J38: 1244.5 | K38: 1630
A39: 4CIF | B39: 2 | C39: 129 | D39: 211.5 | E39: 294 | F39: 184 | G39: 315.5 | H39: 447 | I39: 625 | J39: 915.5 | K39: 1206
A40: 4CIF | B40: 1 | C40: 95 | D40: 134 | E40: 173 | F40: 108 | G40: 180 | H40: 252 | I40: 371 | J40: 547 | K40: 723
A41: HALF-D1 | B41: 25 | C41: 223 | D41: 361 | E41: 499 | F41: 454 | G41: 796 | H41: 1138 | I41: 833 | J41: 1261 | K41: 1689
A42: HALF-D1 | B42: 13 | C42: 187 | D42: 302.5 | E42: 418 | F42: 279 | G42: 521.5 | H42: 764 | I42: 649 | J42: 1186.5 | K42: 1724
A43: HALF-D1 | B43: 8 | C43: 133 | D43: 237 | E43: 341 | F43: 223 | G43: 394 | H43: 565 | I43: 522 | J43: 829 | K43: 1136
A44: HALF-D1 | B44: 6 | C44: 133 | D44: 173.5 | E44: 214 | F44: 190 | G44: 320.5 | H44: 451 | I44: 424 | J44: 714 | K44: 1004
A45: HALF-D1 | B45: 5 | C45: 137 | D45: 164 | E45: 191 | F45: 166 | G45: 276.5 | H45: 387 | I45: 364 | J45: 572.5 | K45: 781
A46: HALF-D1 | B46: 4 | C46: 101 | D46: 150.5 | E46: 200 | F46: 130 | G46: 208.5 | H46: 287 | I46: 432 | J46: 678 | K46: 924
A47: HALF-D1 | B47: 3 | C47: 70 | D47: 132.5 | E47: 195 | F47: 105 | G47: 188 | H47: 271 | I47: 447 | J47: 656 | K47: 865
A48: HALF-D1 | B48: 2 | C48: 58 | D48: 87 | E48: 116 | F48: 92 | G48: 140.5 | H48: 189 | I48: 328 | J48: 493.5 | K48: 659
A49: HALF-D1 | B49: 1 | C49: 50 | D49: 60.5 | E49: 71 | F49: 53 | G49: 84 | H49: 115 | I49: 208 | J49: 293 | K49: 378
A50: 2/3D1 | B50: 25 | C50: 295 | D50: 511.5 | E50: 728 | F50: 631 | G50: 1110 | H50: 1589 | I50: 1040 | J50: 1615 | K50: 2190
A51: 2/3D1 | B51: 13 | C51: 224 | D51: 412.5 | E51: 601 | F51: 377 | G51: 724 | H51: 1071 | I51: 836 | J51: 1560 | K51: 2284
A52: 2/3D1 | B52: 8 | C52: 165 | D52: 345.5 | E52: 526 | F52: 295 | G52: 496.5 | H52: 698 | I52: 666 | J52: 1058.5 | K52: 1451
A53: 2/3D1 | B53: 6 | C53: 166 | D53: 220 | E53: 274 | F53: 245 | G53: 420.5 | H53: 596 | I53: 562 | J53: 916.5 | K53: 1271
A54: 2/3D1 | B54: 5 | C54: 102 | D54: 215 | E54: 328 | F54: 192 | G54: 349.5 | H54: 507 | I54: 628 | J54: 966 | K54: 1304
A55: 2/3D1 | B55: 4 | C55: 127 | D55: 201 | E55: 275 | F55: 152 | G55: 270 | H55: 388 | I55: 677 | J55: 950.5 | K55: 1224
A56: 2/3D1 | B56: 3 | C56: 79 | D56: 167 | E56: 255 | F56: 166 | G56: 269.5 | H56: 373 | I56: 567 | J56: 858 | K56: 1149
A57: 2/3D1 | B57: 2 | C57: 80 | D57: 119 | E57: 158 | F57: 121 | G57: 196 | H57: 271 | I57: 440 | J57: 622.5 | K57: 805
A58: 2/3D1 | B58: 1 | C58: 43 | D58: 82.5 | E58: 122 | F58: 75 | G58: 112 | H58: 149 | I58: 234 | J58: 370 | K58: 506
A62: All the tests were done with the VCS test DVD.
A63: The following scenes where selected:
A65: Quiet | B65: Scene 9
A66: Medium | B66: Scene 14
A67: Busy | B67: Scene 15
A69: Tests are based on the VIP-1600 version 2.50 B30.
A70: Testdate: 22nd February 2007

Sheet PAL_NTSC (hidden)
B1: NTSC | C1: PAL
A2: SKIP | B2: 30 | C2: 25 | I2: PALTONTSC
A3: 1 | B3: =$B$2/A3 -> 30 | C3: =$C$2/A3 -> 25 | I3: 25 | J3: 30 | K3: 30 | N3: =ROUNDUP($I3*1.2,1) -> 30 | O3: =ROUNDDOWN($I3*1.23,1) -> 30.7 | P3: =ROUND($I3*1.21,0) -> 30
A4: 2 | B4: =$B$2/A4 -> 15 | C4: =$C$2/A4 -> 12.5 | I4: 12.5 | J4: 15 | K4: 15 | N4: 15 | O4: =ROUNDDOWN($I4*1.25,1) -> 15.6 | P4: =ROUND($I4*1.21,0) -> 15
A5: 3 | B5: 10 | C5: 8.333333333 | I5: 8 | J5: 10 | K5: 10 | N5: 9.6 | O5: 10 | P5: 10
A6: 4 | B6: 7.5 | C6: 6.25 | I6: 6 | J6: 7.5 | K6: 8 | N6: 7.2 | O6: 7.5 | P6: 7
A7: 5 | B7: 6 | C7: 5 | I7: 5 | J7: 6 | K7: 6 | N7: 6 | O7: 6.2 | P7: 6
A8: 6 | B8: 5 | C8: 4.166666667 | I8: 4 | J8: 5 | K8: 5 | N8: 4.8 | O8: 5 | P8: 5
A9: 7 | B9: 4.285714286 | C9: 3.571428571 | I9: 3 | J9: 3.75 | K9: 4 | N9: 3.6 | O9: 3.7 | P9: 4
A10: 8 | B10: 3.75 | C10: 3.125 | I10: 2 | J10: 2 | K10: 2 | N10: 2.4 | O10: 2.5 | P10: 2
A11: 9 | B11: 3.333333333 | C11: 2.777777778 | I11: 1 | J11: 1 | K11: 1 | N11: 1.2 | O11: 1.2 | P11: 1
A12: 10 | B12: 3 | C12: 2.5
A13: 11 | B13: 2.727272727 | C13: 2.272727273 | I13: 1,2,3,4,5,6,8,12,25 1,2,4,5,6,7,10,15,30
A14: 12 | B14: 2.5 | C14: 2.083333333
A15: 13 | B15: 2.307692308 | C15: 1.923076923
A16: 14 | B16: 2.142857143 | C16: 1.785714286
A17: 15 | B17: 2 | C17: 1.666666667
A18: 16 | B18: 1.875 | C18: 1.5625
A19: 17 | B19: 1.764705882 | C19: 1.470588235
A20: 18 | B20: 1.666666667 | C20: 1.388888889
A21: 19 | B21: 1.578947368 | C21: 1.315789474
A22: 20 | B22: 1.5 | C22: =$C$2/A22 -> 1.25
A23: 21 | B23: 1.428571429 | C23: 1.19047619
A24: 22 | B24: 1.363636364 | C24: 1.136363636
A25: 23 | B25: 1.304347826 | C25: 1.086956522
A26: 24 | B26: 1.25 | C26: 1.041666667
A27: 25 | B27: 1.2 | C27: 1
A28: 26 | B28: 1.153846154 | C28: 0.9615384615
A29: 27 | B29: 1.111111111 | C29: 0.9259259259
A30: 28 | B30: 1.071428571 | C30: =$C$2/A30 -> 0.8928571429
A31: 29 | B31: 1.034482759 | C31: =$C$2/A31 -> 0.8620689655
A32: 30 | B32: 1 | C32: =$C$2/A32 -> 0.8333333333

Sheet Sheet1 (hidden)
B1: DIVAR IP 3000 (already includes BVMS for 32ch)
B2: DIVAR IP 7000 (already includes BVMS for 32ch, expandable to 128ch)
B3: BVMS Lite-32 9.0,NonEx 32Ch 2WS 0DVR 1Kb
B4: BVMS Lite-64 9.0,NonEx 64Ch 4WS 0DVR 2Kb
B5: BVMS Professional 9.0, 8Ch 2WS 1DVR 1Kb
B6: BVMS Enterprise 9.0, 8Ch 2WS 2Sub 1DVR 1kb
B7: BVMS Plus 9.0, 8CH 5WS 1DVR 5Kb
B9: Dinion | G9: MPEG-4
B10: Dinion IP | G10: H.264
B11: Flexidome
B12: Flexidome IP
B13: Autodome
B14: Autodome IP
B15: Extreme
B16: Extreme IP
B17: 3rd party Analog Fixed-Camera
B18: 3rd party Analog PTZ / Dome
G20: MHW-W67M2D4-AE (less then 32 cameras)
G21: MHW-W67M2-NG + MHW-AWGC-NVS450 (less then 32 cameras)
G22: MHW-W67M2-NG + MHW-AWGC-FX1700E (less then 32 cameras)
G23: MHW-W67M2-NG + MHW-AWGC-FX4800 (less then 32 cameras)
G24: MHW-SM5M2-DE | N24: None | O24: 0
G25: MHW-SM5M2-UK | N25: VJD-3000 | O25: 1
B26: VIPX1600M4S | G26: MHW-SM5M2-FR | N26: VJD-8000 (single monitor mode;release:2016Q1) | O26: 1
B27: VIPX1600M4SA | G27: MHW-SL5M4-DE | N27: VJD-8000 (dual monitor mode;release:2016Q1) | O27: 2
B28: VJT-X40S | G28: MHW-SL5M4-UK | N28: HP ProDesk 600G1 (single monitor mode) | O28: 1
B29: VJT-X40SN | G29: MHW-SL5M4-FR | N29: HP ProDesk 600G1 (Dual monitor mode) | O29: 2
N30: EOL - VIP-XDHD | O30: 1
N31: EOL - VJD-7000 (single monitor mode) | O31: 1
D32: VIPX1(A) | E32: VIPX2(A) | G32: MHW-SM5M2-DE | K32: MHW-SL5M4-DE | N32: EOL - VJD-7000 (dual monitor mode) | O32: 2
D33: VJT-X10S | E33: VJT-X20S | G33: MHW-SM5M2-UK | K33: MHW-SL5M4-UK | N33: VIP-XD | O33: 1
D34: VJT-X10SN | E34: VJT-X20SN | G34: MHW-SM5M2-FR | K34: MHW-SL5M4-FR | N34: VIP-XDA | O34: 1
K35: MHW-SM5M2-DE | N35: EOL - VIP-X1600-XFMD | O35: 4
K36: MHW-SM5M2-UK
K37: MHW-SM5M2-FR
B38: ü
G39: MHW-W67M2-HE
G40: MHW-WQ67M4-EE
G41: MHW-W67M2-NG + MHW-AWGC-NVS450
G42: MHW-W67M2-NG + MHW-AWGC-FX1800 | M42: none
G43: MHW-W67M2-NG + MHW-AWGC-FX4800 | M43: DB06C1050R2
B44: VIPXD | G44: 3rd party - According minimal system specifications | M44: DB12C2050R2
B45: VIP-X1600-XFMD | G45: Same as Central server as this in an All-in-one system | M45: DB06C1075R2
B46: VIPXDA | M46: DB12C2075R2
G47: SCSI | M47: DB12C2200R2
B48: CIF | G48: iSCSI | M48: DB18C3025R2
B49: 2CIF | M49: DB18C3050R2
B50: 4CIF | D50: 0 | G50: Standalone | M50: DB18C3100R2
D51: 25 | G51: Redundancy | M51: DB18C3200R2
D52: 12.5 | M52: DB24C4025R2
D53: 8 | M53: DB24C4050R2
B54: NVR | D54: 6 | M54: DB24C4100R2
B55: VRM | D55: 5 | M55: DB24C4200R2
B56: DiBOS | D56: 4 | G56: NetApp 2020 Base Unit 6x1000GB | M56: DB30C5025R2
D57: 3 | G57: NetApp 2020 Base Unit 12x1000GB | M57: DB30C5050R2
D58: 2 | G58: NetApp 2050 Base Unit 20x1000GB | M58: DB30C5100R2
D59: 1 | G59: DVA-12T-04075RA | M59: DB30C5200R2
B60: Continues | G60: DVA-12T-12075RA | M60: DB06C1025D2
B61: Alarm | M61: DB06C1050D2
G62: None | M62: DB12C2025D2
G63: None (recording on internal HDD drives) | M63: DB12C2050D2
B64: Export | G64: DVA-08E-04050RA - EOL
B65: Tape | G65: DVA-08E-08050RA - EOL
B66: Back Up | G66: DVA-08E-04075RA - EOL | K66: DVA-12T-04075RA
G67: DVA-08E-08075RA - EOL | K67: DVA-12T-12075RA
B68: DSL 0-500kbps | G68: DVA-08E-04100RA | K68: FAS2020 Base Unit 6x1000GB
B69: DSL 0.5-1Mbps | G69: DVA-08E-08100RA | K69: FAS2020 Base Unit 12x1000GB
B70: DSL 1-2Mbps | G70: DVA-08K-04050RA - EOL | K70: FAS2020 XStage1 26x1000GB
B71: DSL 2-5Mbps | G71: DVA-08K-08050RA - EOL | K71: FAS2020 XStage1 40x1000GB
B72: 100Mbps FD | G72: DVA-08K-04075RA - EOL | K72: FAS2050 Base Unit 20x750GB
B73: 100Mbps HD | G73: DVA-08K-08075RA - EOL | K73: FAS2050 XStage1 34x1000GB
B74: 1000Mbps FD | D74: One Way | G74: DVA-08K-04100RA | K74: FAS2050 XStage2 48x1000GB
D75: Two Way | G75: DVA-08K-08100RA | K75: FAS2050 XStage3 62x1000GB
G76: DVA-16K-08050RA - EOL | K76: FAS2050 XStage4 76x1000GB
G77: DVA-16K-16050RA - EOL | K77: FAS2050 XStage5 90x1000GB
G78: DVA-16K-08075RA - EOL | K78: FAS2050 XStage6 104x1000GB
G79: DVA-16K-16075RA - EOL
G80: DVA-16K-08100RA
G81: DVA-16K-16100RA | K81: MHW-AWM1E-DE | M81: 1 GB Memory Expansion Workstation for DE
K82: MHW-AWM2E-DE | M82: 2 GB Memory Expansion Workstation for DE
K83: MHW-ASM1E-DE | M83: 1 GB Memory Expansion Server for DE
K84: MHW-ASM2E-DE | M84: 2 GB Memory Expansion Server for DE
B86: VRM service running on DLA 1200 series (std 32ch / max 64ch)
B87: VRM service running on DLA 1400 series (std 64ch / max 128ch)
B88: MHW.S360R7-LL Entry-level server - Standard Performance | K88: MHW-WZ2R0-EL HP Z200 Entry-level workstation
B89: MHW.S380R7.EL Midrange server - advanced performance | K89: MHW-WZ2R0-PE HP Z200 Premium workstation
B90: MHW.S380R7.MC Upper Midrange server - High performance | K90: MHW-WZ4R0-HE HP Z400 High-end workstation
B91: MHW.S380R7.HC High End server - Highest performance | K91: MHW-WZ4R0-EE HP Z400 Extreme edition workstation
B92: EOL- MHW.S360R6-LL Entry-level server - Standard Performance | K92: MHW-WZ2R0-NG HP Z200 Premium workstation NG + MHW-AWGC-FX1800
B93: EOL- MHW.S380R6.EL Midrange server - advanced performance | K93: MHW-WZ4R0-NG HP Z400 High-end workstation NG + MHW-AWGC-FX1800
B94: EOL- MHW.S380R6.MC Upper Midrange server - High performance | K94: 3rd party - According minimal system specifications
B95: EOL- MHW.S380R6.HC High End server - Highest performance | K95: Same as Central server as this in an All-in-one system
B96: EOL- MHW.S380R6.IDN Midrange server - standard performance (internal hard disks)
B97: MHW-WZ4R0-EE HP Z400 Extreme edition workstation (less then 64 cameras)
B98: MHW-WZ2R0-NG HP Z200 Premium workstation NG + MHW-AWGC-FX1800 (less then 32 cameras) | L98: MHW.S360R7-LL Entry-level server - Standard Performance
B99: MHW-WZ4R0-NG HP Z400 High-end workstation NG + MHW-AWGC-FX580 (less then 32 cameras) | L99: MHW.S380R7.EL Midrange server - advanced performance
B100: MHW-WZ4R0-NG HP Z400 High-end workstation NG + MHW-AWGC-FX1800 (less then 32 cameras) | L100: MHW.S380R7.MC Upper Midrange server - High performance
B101: 3rd party - According minimal system specifications | L101: MHW.S380R7.HC High End server - Highest performance
L102: 3rd party - According minimal system specifications
L103: EOL- MHW.S360R6-LL Entry-level server - Standard Performance
L104: EOL- MHW.S380R6.EL Midrange server - advanced performance
B105: Old | D105: New | L105: EOL- MHW.S380R6.MC Upper Midrange server - High performance
B106: MHW-AWGC-FX370 | D106: MHW-AWGC-FX580 | L106: EOL- MHW.S380R6.HC High End server - Highest performance
B107: MHW-AWGC-FX570 | D107: MHW-AWGC-FX580 | L107: EOL- MHW.S380R6.IDN Midrange server - standard performance (internal hard disks)
B108: MHW-AWGC-FX1700 | D108: MHW-AWGC-FX1800 | T108: MHW-S380R8-SC | U108: Bosch Standard Application Server (WW) | V108: HP DL380 | W108: =V108&" | "&T108&" - "&U108 -> HP DL380 | MHW-S380R8-SC - Bosch Standard Application Server (WW)
B109: MHW-AWGC-ATIV56 | D109: MHW-AWGC-ATIV57
B110: MHW-AWGC-ATIV72 | D110: MHW-AWGC-ATIV77
D111: MHW-AWGC-FX3800
L112: WS
L113: MHW-WZ2R1-EL HP Z210 Entry-level workstation | T113: MHW-WZ2R3-PEUK | U113: MHW-AWGC-K600 | V113: HP Z230 | W113: HP Z230 | MHW-WZ2R3-PE incl. MHW-AWGC-K600 (up to 64 cameras)
L114: MHW-WZ2R1-PE HP Z210 Premium workstation | T114: MHW-WZ4R2-NG | U114: MHW-AWGC-K600 | V114: HP Z420 | W114: HP Z440 | MHW-WZ4R4-NG + 1x MHW-AWGC-K620 (up to 64 cameras)
L115: MHW-WZ4R0-HE HP Z400 High-end workstation | T115: MHW-WZ4R2-NG | U115: MHW-AWGC-K2000 | V115: HP Z420 | W115: HP Z440 | MHW-WZ4R4-NG + 1x MHW-AWGC-K2200 (up to 64 cameras)
L116: MHW-WZ4R0-EE HP Z400 Extreme edition workstation | T116: MHW-WZ4R2-NG | U116: MHW-AWGC-K4000 | V116: HP Z420 | W116: HP Z440 | MHW-WZ4R4-NG + 1x MHW-AWGC-K4200 (up to 64 cameras)
L117: MHW-WZ2R1-NG HP Z210 Premium workstation NG + MHW-AWGC-Q600 | T117: MHW-WZ4R2-NG | U117: MHW-AWGC-K5000 | V117: HP Z420 | W117: HP Z440 | MHW-WZ4R4-NG + 1x MHW-AWGC-ATIW51 (up to 64 cameras)
L118: MHW-WZ2R1-NG HP Z210 Premium workstation NG + MHW-AWGC-Q2000 | T118: MHW-WZ4R2-EEUK | U118: AMD FirePro W7000 (4 monitor support) | V118: HP Z420 | W118: HP Z440 | MHW-WZ4R2-EE incl. AMD FirePro W7100 (4 monitor support)
L119: MHW-WZ2R1-NG HP Z210 Premium workstation NG + MHW-AWGC-ATI38 | T119: DIP-3042 | U119: Intel HD Graphics | V119: DIVAR IP 3000 | W119: =V119&" | "&T119&" incl. "&U119 -> DIVAR IP 3000 | DIP-3042 incl. Intel HD Graphics
L120: MHW-WZ4R0-NG HP Z400 High-end workstation NG + MHW-AWGC-Q2000 | T120: DIP-7082 | U120: AMD FirePro V3900 | V120: DIVAR IP 7000 | W120: =V120&" | "&T120&" incl. "&U120 -> DIVAR IP 7000 | DIP-7082 incl. AMD FirePro V3900
L121: MHW-WZ4R0-NG HP Z400 High-end workstation NG + MHW-AWGC-Q4000 | T121: HW-WZ4R2-NG | U121: 2x MHW-AWGC-K600 | V121: HP Z420 | W121: HP Z440 | MHW-WZ4R4-NG + 2x MHW-AWGC-K620 (up to 64 cameras)
L122: MHW-WZ4R0-NG HP Z400 High-end workstation NG + MHW-AWGC-Q5000 | T122: HW-WZ4R2-NG | U122: 2x MHW-AWGC-K2000 | V122: HP Z420 | W122: HP Z440 | MHW-WZ4R4-NG + 2x MHW-AWGC-K2200 (up to 64 cameras)
W123: HP Z440 | MHW-WZ4R4-NG + 2x MHW-AWGC-ATIW51 (up to 64 cameras)
L124: MHW-WZ4R0-NG HP Z400 High-end workstation NG + MHW-AWGC-ATI38 | W124: 3rd party - According minimal system specifications
L125: MHW-WZ4R0-NG HP Z400 High-end workstation NG + MHW-AWGC-ATI58 | W125: Same as Central server as this in an All-in-one system
AC129: VRM service running on DIVAR IP 2000 (max16ch) | AJ129: VRM service running on DIVAR IP 2000 (max 16ch)
AC130: VRM service running on DIVAR IP 3000 (max 32ch) | AJ130: VRM service running on DIVAR IP 3000 (max 32ch)
AC131: VRM service running on DIVAR IP 6000 (std 64ch / max 128ch) | AJ131: VRM service running on DIVAR IP 6000 (std 64ch / max 128ch)
B132: ARCHIVE | C132: =Sheet1!$B$61:$B$63 | AC132: VRM service running on DIVAR IP 7000 (std 32ch / max 128ch) | AJ132: VRM service running on DIVAR IP 7000 (std 32ch / max 128ch)
B133: ARRAYS | C133: =Sheet1!$G$53:$G$57 | L133: VRM service running on DLA 1200 series (std 32ch / max 64ch) | AC133: VRM service running on DLA 1200 series (std 32ch / max 64ch) | AJ133: EOL - VRM service running on DLA 1200 series (std 32ch / max 64ch)
B134: AUDIO | C134: =Sheet1!$D$71:$D$72 | L134: VRM service running on DLA 1400 series (std 64ch / max 128ch) | AC134: VRM service running on DLA 1400 series (std 64ch / max 128ch) | AJ134: EOL - VRM service running on DLA 1400 series (std 64ch / max 128ch)
B135: BVMS | C135: =Sheet1!$B$2:$B$4 | L135: MHW.S360R7-LL Entry-level server - Standard Performance | AC135: EOL - HP DL380 | MHW-S380R8-SC - Bosch Standard Application Server (WW) | AJ135: EOL - HP DL380 | MHW-S380R8-SC - Bosch Standard Application Server (WW)
B136: cam1 | C136: =benchmark_records!$A$1:$A$6693 | L136: MHW.S380R7.EL Midrange server - advanced performance | W136: HP Z220 | MHW-WZ2R2-PE incl. MHW-AWGC-Q2000 | AC136: HP DL380 | MHW-S380R9-SC - Bosch Standard Application Server (WW) | AJ136: HP DL380 | MHW-S380R9-SC - Bosch Standard Application Server (WW)
B137: cam1_enc1_dr | C137: =benchmark_records!$L:$L | L137: MHW.S380R7.MC Upper Midrange server - High performance | W137: HP Z420 | MHW-WZ4R2-NG + 1x MHW-AWGC-Q600 | AC137: HP Z230 | MHW-WZ2R3-PE incl. MHW-AWGC-K600 (up to 64 cameras) | AJ137: HP Z230 | MHW-WZ2R3-PE incl. MHW-AWGC-K600 (up to 64 cameras)
B138: cam1_enc1_fr | C138: =benchmark_records!$M:$M | L138: MHW.S380R7.HC High End server - Highest performance | W138: HP Z420 | MHW-WZ4R2-NG + 1x MHW-AWGC-Q2000 | AC138: HP Z440 | MHW-WZ4R4-NG + 1x MHW-AWGC-K620 (up to 64 cameras) | AJ138: HP Z440 | MHW-WZ4R4-NG + 1x MHW-AWGC-K620 (up to 64 cameras)
B139: cam1_enc2_dr | C139: =benchmark_records!$N:$N | L139: MHW-WZ4R0-EE HP Z400 Extreme edition workstation (less then 64 cameras) | W139: HP Z420 | MHW-WZ4R2-NG + 1x MHW-AWGC-Q4000 | AC139: HP Z440 | MHW-WZ4R4-NG + 1x MHW-AWGC-K2200 (up to 64 cameras) | AJ139: HP Z440 | MHW-WZ4R4-NG + 1x MHW-AWGC-K2200 (up to 64 cameras)
B140: cam1_enc2_fr | C140: =benchmark_records!$O:$O | L140: EOL- MHW.S360R6-LL Entry-level server - Standard Performance | W140: HP Z420 | MHW-WZ4R2-NG + 1x MHW-AWGC-Q5000 | AC140: HP Z440 | MHW-WZ4R4-NG + 1x MHW-AWGC-K4200 (up to 64 cameras) | AJ140: HP Z440 | MHW-WZ4R4-NG + 1x MHW-AWGC-K4200 (up to 64 cameras)
B141: cam2 | C141: =benchmark_records!$B$1:$B$6693 | L141: EOL- MHW.S380R6.EL Midrange server - advanced performance | W141: HP Z420 | MHW-WZ4R2-EE incl. AMD FirePro V7900 | AC141: HP Z440 | MHW-WZ4R4-NG + 1x MHW-AWGC-ATIW51 (up to 64 cameras) | AJ141: HP Z440 | MHW-WZ4R4-NG + 1x MHW-AWGC-ATIW51 (up to 64 cameras)
B142: cam2_enc1_dr | C142: =benchmark_records!$P:$P | L142: EOL- MHW.S380R6.MC Upper Midrange server - High performance | W142: DIVAR IP 3000 | DIP-3042 incl. Intel HD Graphics | AC142: HP Z440 | MHW-WZ4R2-EE incl. AMD FirePro W7100 (up to 64 cameras) | AJ142: HP Z440 | MHW-WZ4R2-EE incl. AMD FirePro W7100 (up to 64 cameras)
B143: cam2_enc1_fr | C143: =benchmark_records!$Q:$Q | L143: EOL- MHW.S380R6.HC High End server - Highest performance | W143: DIVAR IP 7000 | DIP-7082 incl. AMD FirePro V3900 | AC143: =W142&" (up to 32 cameras)" -> DIVAR IP 3000 | DIP-3042 incl. Intel HD Graphics (up to 32 cameras) | AJ143: HP Z440 | MHW-WZ4R4-NG + 2x MHW-AWGC-K620 (up to 64 cameras)
B144: cam2_enc2_dr | C144: =benchmark_records!$R:$R | L144: EOL- MHW.S380R6.IDN Midrange server - standard performance (internal hard disks) | W144: HP Z420 | HW-WZ4R2-NG + 2x MHW-AWGC-Q600 | AC144: =W143&" (default 64, up to 128 cameras)" -> DIVAR IP 7000 | DIP-7082 incl. AMD FirePro V3900 (default 64, up to 128 cameras) | AJ144: HP Z440 | MHW-WZ4R4-NG + 2x MHW-AWGC-K2200 (up to 64 cameras)
B145: cam2_enc2_fr | C145: =benchmark_records!$S:$S | L145: MHW-WZ4R0-NG HP Z400 High-end workstation NG + MHW-AWGC-Q2000 (less then 64 cameras) | W145: HP Z420 | HW-WZ4R2-NG + 2x MHW-AWGC-Q2000 | AC145: HP Z440 | MHW-WZ4R4-NG + 2x MHW-AWGC-K620 (up to 64 cameras) | AJ145: HP Z440 | MHW-WZ4R4-NG + 2x MHW-AWGC-ATIW51 (up to 64 cameras)
B146: cam3 | C146: =benchmark_records!$C$1:$C$6693 | L146: MHW-WZ4R0-NG HP Z400 High-end workstation NG + MHW-AWGC-Q4000 (less then 64 cameras) | W146: 3rd party - According minimal system specifications | AC146: HP Z440 | MHW-WZ4R4-NG + 2x MHW-AWGC-K2200 (up to 64 cameras) | AJ146: 3rd party - According minimal system specifications
B147: cam3_enc1_dr | C147: =benchmark_records!$T:$T | L147: MHW-WZ4R0-NG HP Z400 High-end workstation NG + MHW-AWGC-Q5000 (less then 64 cameras) | W147: EOL - MHW.S360R7-LL Entry-level server - Standard Performance | AC147: HP Z440 | MHW-WZ4R4-NG + 2x MHW-AWGC-ATIW51 (up to 64 cameras) | AJ147: EOL - MHW.S360R7-LL Entry-level server - Standard Performance
B148: cam3_enc1_fr | C148: =benchmark_records!$U:$U | L148: MHW-WZ4R0-NG HP Z400 High-end workstation NG + MHW-AWGC-ATI38 (less then 64 cameras) | W148: EOL - MHW.S380R7.EL Midrange server - advanced performance | AC148: =W146 -> 3rd party - According minimal system specifications | AJ148: EOL - MHW.S380R7.EL Midrange server - advanced performance
B149: cam3_enc2_dr | C149: =benchmark_records!$V:$V | L149: MHW-WZ4R0-NG HP Z400 High-end workstation NG + MHW-AWGC-ATI58 (less then 64 cameras) | W149: EOL - MHW.S380R7.MC Upper Midrange server - High performance | AC149: =W147 -> EOL - MHW.S360R7-LL Entry-level server - Standard Performance | AJ149: EOL - MHW.S380R7.MC Upper Midrange server - High performance
B150: cam3_enc2_fr | C150: =benchmark_records!$W:$W | L150: MHW-WZ2R1-NG HP Z210 Premium workstation NG + MHW-AWGC-Q600 (less then 32 cameras) | W150: EOL - MHW.S380R7.HC High End server - Highest performance | AC150: =W148 -> EOL - MHW.S380R7.EL Midrange server - advanced performance | AJ150: EOL - MHW.S380R7.HC High End server - Highest performance
B151: cam4 | C151: =benchmark_records!$D$1:$D$6693 | L151: MHW-WZ2R1-NG HP Z210 Premium workstation NG + MHW-AWGC-Q2000 (less then 32 cameras) | AC151: =W149 -> EOL - MHW.S380R7.MC Upper Midrange server - High performance
B152: cam4_enc1_dr | C152: =benchmark_records!$X:$X | L152: MHW-WZ2R1-NG HP Z210 Premium workstation NG + MHW-AWGC-ATI38 (less then 32 cameras) | AC152: =W150 -> EOL - MHW.S380R7.HC High End server - Highest performance | AJ152: None - Not applicable
B153: cam4_enc1_fr | C153: =benchmark_records!$Y:$Y | L153: 3rd party - According minimal system specifications | AJ153: EOL - HP DL380 | MHW-S380R8-SC - Bosch Standard Application Server (WW)
B154: cam4_enc2_dr | C154: =benchmark_records!$Z:$Z | AJ154: HP DL380 | MHW-S380R9-SC - Bosch Standard Application Server (WW)
B155: cam4_enc2_fr | C155: =benchmark_records!$AA:$AA | W155: none | AJ155: 3rd party - According minimal system specifications
B156: CAMERA | C156: =Sheet1!$B$6:$B$15 | W156: VJT-XTC-XF
B157: codec | C157: =benchmark_records!$H$1:$H$9801 | W157: Build in DIVAR IP
B158: DECODERS | C158: =Sheet1!$N$21:$N$25
B159: DIBOS | C159: =Sheet1!$M$39:$M$60
B160: diskarrays | C160: =Sheet1!$K$63:$K$75 | R160: 2000 | S160: GB | T160: =R160*1000*1000*1000 -> 2000000000000 | U160: byte | V160: =T160/1024/1024/1024 -> 1862.645149
B161: DLAplusservers | C161: =Sheet1!$B$83:$B$98 | R161: 3000 | S161: GB | T161: =R161*1000*1000*1000 -> 3000000000000 | U161: byte | V161: =T161/1024/1024/1024 -> 2793.967724
B162: ENCODER | C162: =Sheet1!$B$23:$B$30 | R162: 4000 | S162: GB | T162: =R162*1000*1000*1000 -> 4000000000000 | U162: byte | V162: =T162/1024/1024/1024 -> 3725.290298
B163: encoding_standaard | C163: =Sheet1!$G$6:$G$7
B164: H.263 | C164: ='BVMS checklist'!$I$362:$I$367
B165: H.263_str1 | C165: ='BVMS checklist'!$I$355:$I$360
B166: H.264 | C166: ='BVMS checklist'!$K$362:$K$363
B167: H.264_1080p | C167: ='BVMS checklist'!$O$362:$O$367
B168: H.264_1080p_str1 | C168: ='BVMS checklist'!$O$355:$O$357
B169: H.264_720p | C169: ='BVMS checklist'!$N$362:$N$365
B170: H.264_720p_str1 | C170: ='BVMS checklist'!$N$355
B171: H.264_NBC200 | C171: ='BVMS checklist'!$L$362:$L$363
B172: H.264_NBC200_720p | C172: ='BVMS checklist'!$M$362:$M$365
B173: H.264_NBC200_720p_str1 | C173: ='BVMS checklist'!$M$355
B174: H.264_NBC200_str1 | C174: ='BVMS checklist'!$L$355:$L$356
B175: H.264_str1 | C175: ='BVMS checklist'!$K$355:$K$356
B176: H.264_XFM4 | C176: ='BVMS checklist'!$J$362:$J$367
B177: H.264_XFM4_str1 | C177: ='BVMS checklist'!$J$355:$J$360
B178: HD1080p | C178: ='BVMS checklist'!$E$325:$E$328
B179: HD720p | C179: ='BVMS checklist'!$E$322:$E$324
B180: IPS | C180: =Sheet1!$D$47:$D$56
B181: iSCSI | C181: =Sheet1!$G$52:$G$52
B182: iscsi_on | C182: =benchmark_records!$J$1:$J$6693
B183: none | C183: ='BVMS checklist'!$E$299
B184: NVR | C184: =Sheet1!$G$29:$G$31
B185: NVRserver | C185: =Sheet1!$L$95:$L$104
B186: RECORDING | C186: =Sheet1!$B$51:$B$54
B187: RECTYPE | C187: =Sheet1!$B$57:$B$58
B188: res_enc1 | C188: =benchmark_records!$E$1:$E$6693
B189: res_enc2 | C189: =benchmark_records!$F$1:$F$6693
B190: RESOLUTION | C190: =Sheet1!$B$45:$B$47
B191: scene_activity | C191: =benchmark_records!$I$1:$I$6693
B192: SCSI | C192: =Sheet1!$G$59:$G$78
B193: SD | C193: ='BVMS checklist'!$E$300:$E$320
B194: serverg6 | C194: =Sheet1!$B$85:$B$98
B195: SPEED | C195: =Sheet1!$B$65:$B$71
B196: STRUCTURE | C196: =Sheet1!$G$44:$G$45
B197: SVSTRUC | C197: =Sheet1!$G$47:$G$50
B198: table | C198: =benchmark_records!$L$6693:A177
B199: TEST | C199: =Sheet1!$D$29:$D$31
B200: vca_on | C200: =benchmark_records!$K$1:$K$6693
B201: VGA | C201: ='BVMS checklist'!$E$321
B202: video_standard | C202: =benchmark_records!$G$1:$G$6693
B203: VINK | C203: =Sheet1!$B$35
B204: VRM | C204: =Sheet1!$K$29
B205: VRM1 | C205: =Sheet1!$K$29:$K$34
B206: WORKSTATION | C206: =Sheet1!$K$85:$K$92
... 1 more rows

Sheet changelog
A1: Changelog:
A2: 11.0.73 | B2: 2018-08-27 | C2: updated workstation matrix
A3: 11.0.72 | B3: 2018-08-16 | C3: updated workstation matrix
A4: 11.0.71 | B4: 2018-08-14 | C4: added example videos
A5: 11.0.70 | B5: 2018-08-13 | C5: automatic saving deactivated
A6: 11.0.69 | B6: 2018-08-08 | C6: Updated bit rate guide
A7: 11.0.67 | B7: 2018-07-31 | C7: Updated new bitrate guide
A8: 11.0.61 | B8: 2018-07-13 | C8: Added new bitrate guide
A9: 11.0.55 | B9: 2018-02-27 | C9: Corrected HDD label
A10: 11.0.54 | B10: 2018-01-26 | C10: Added Netapp E-Series 2800, corrected max VRM Server, added unmanaged site licenses
A11: 11.0.53 | B11: 2018-01-15 | C11: Corrected iSCSI session error for DIP 7000 combination
A12: 11.0.52 | B12: 2017-12-01 | C12: VIP XD channel calculation corrected
A13: 11.0.51 | B13: 2017-11-21 | C13: updated bitrate guide, complete calculation reworked, VIPXD note
A14: 11.0.49 | B14: 2017-11-08 | C14: updated workstation matrix
A15: 11.0.48 | B15: 2017-11-03 | C15: updated workstation matrix
A16: 11.0.47 | B16: 2017-10-05 | C16: updated bitrate guide
A17: 11.0.46 | B17: 2017-09-22 | C17: add CPP7 bitrate guide
A18: 11.0.45 | B18: 2017-08-16 | C18: added bitrate guide for cpp7.3 platform
A19: 11.0.44 | B19: 2017-08-11 | C19: added CPP7.3_1080p and CPP7.3_1080p60 cameras and benchmarks, increased BVMS Version to 8.0
A20: 11.0.43 | B20: 2017-08-09 | C20: added camera Flexidome 5000i and CPP7.3_MP, benchmark records missing for the cameras, check with sachin
A21: 11.0.42 | B21: 2017-08-08 | C21: Changes manual check logic to allow up to 5000 channels without showing must be checked manually, increase limit of VRM max storage to 2 petabyte
A22: 11.0.41 | B22: 2017-07-28 | C22: Added Autodome 4000i und 5000i
A23: 11.0.40 | B23: 2017-04-04 | C23: Corrected worst case iSCSI session calculation on DIP 7000.
A24: 11.0.39 | B24: 2017-03-23 | C24: Corrected iSCSI session calculation for all in one units, corrected storage capactiy for E-Series 6TB drives.
A25: 11.0.38 | B25: 2017-03-02 | C25: Update to BVMS 7.5
A26: 11.0.37 | B26: 2017-02-20 | C26: bug fixed RAID 6 storage calculation
A27: 11.0.36 | B27: 2017-02-08 | C27: added RAID 6 option for all DIP 7000 + DIP 6000 combinations
A28: 11.0.34 | B28: 2017-02-07 | C28: added 6 and 8 TB drives to all pools
A29: 11.0.32 | B29: 2017-02-03 | C29: Removed EOL storage units
A30: 11.0.31 | B30: 2017-02-03 | C30: added DIP 7000 6 and 8 TB drives, DSA 8 TB for Pool 0
A31: 11.0.30 | B31: 2016-11-22 | C31: corrected Pixie cameras
A32: 11.0.27 | B32: 2016-11-14 | C32: corrected IVA enabling
A33: 11.0.26 | B33: 2016-10-19 | C33: fixed problem with "Allow >1 Divar IP 3000/7000 systems"
A34: 11.0.25 | B34: 2016-09-14 | C34: corrected iSCSI session calculation, updated to BVMS 7.0, camera update
A35: 11.0.24 | B35: 2016-06-01 | C35: Added Autodome 5000
A36: 11.0.23 | B36: 2016-05-31 | C36: Workstation matrix updated
A37: 11.0.22 | B37: 2016-05-23 | C37: Added DIP 7000 R2 combinations and DIP 5000
A38: 11.0.19 | B38: 2016-05-13 | C38: Added DIP 7000 R2 + DIP 6000 R2 combination
A39: 11.0.18 | B39: 2016-05-11 | C39: EOL DIP 7000
A40: 11.0.17 | B40: 2016-05-04 | C40: Corrected number of storage units in quantity field of (Manuel)
A41: 11.0.16 | B41: 2016-04-20 | C41: DIP 7000 R2 added
A42: 11.0.14 | B42: 2016-04-12 | C42: Update to BVMS 6.5, DIP-6000R2 iSCSI session update
A43: 11.0.13 | B43: 2016-01-15 | C43: Changed software licenses to BVMS 6.0 (Manuel)
A44: 11.0.12 | B44: 2015-12-03 | C44: Fixed gross storage value to 64TB on the DIP-6000R2 16x4TB (was incorrectly stating 48TB)
A45: 11.0.11 | B45: 2015-11-25 | C45: Changed decoder license consumption (fixed: Manual H)
C46: DIP-6000 R2 performance data reworked and added HS and RAID 6 modes.
C47: Removed DLA-1400 and DIP-6000 (R1) from AIO mode (VRM included) to shorten the list.
A48: 11.0.10 | B48: 2015-11-02 | C48: Added Panoramic bitrates (same as Datasheets)
C49: Added panoramic 5000/7000 series of cameras
C50: Fixed typo onto the E2700 HD shelf (4TB instead of 6TB; Source: Uwe K)
C51: Hotspare option on 4 disk DIVAR IP systems removed (not supported)
C52: DIP-6000R2 added 3TB / 4TB
C53: DIP-2000 RAID1 option added
C54: Workstation matrix updated
C55: Workstations in dropdown selections updated
A56: 11.0.09 | B56: 2015-08-20 | C56: RT: Removed NetApp E2600 series (to make the list shorter)
A57: 11.0.08 | B57: 2015-08-20 | C57: RT: Added NetApp E2700 series (note: performance data used in full port utilisation, so both iSCSI ports/hosts connected on each controller)
A58: 11.0.07 | B58: 2015-07-12 | C58: RT: small bug smashed
A59: 11.0.06 | B59: 2015-03-20 | C59: Rosenstiel - removed wrong email addresses and corrected value of # of BRS systems
A60: 11.0.06 | B60: 2015-03-02 | C60: Rosenstiel - added subsystem extension type and upgrade from Pro to the tab "Licenses"
A61: 11.0.05 | B61: 2015-01-22 | C61: Rosenstiel - Simplified layout and appearence with input from APR
A62: 11.0.04 | B62: 2015-01-07 | C62: Reworked dual recording implementation on secondary recording to select alternative camera qty
C63: Reworked quiet time implementation on the secondary recording to inherit the quiet time reduction factor from the primary recording group.
A64: 11.0.03 | B64: 2014-12-11 | C64: Added the VRM pool selection None
C65: Corrected the warning for DIP 7000 channel expansion (32ch is default, not 8ch)
C66: Reworked the dual recording implementation to include bandwidth and quiet time for the secondary recording.
C67: fixed orange color warning for expansion licenses
C68: orange warning fixed on "Check manualy BU-ESS expert" field
C69: bug fixed on pool handling
C70: Warning added on pools when changing camera count (and consequently storage capabilities change.)
C71: added the SD lifetime calculator
A72: 11.0.02 | B72: 2014-11-05 | C72: Added DIP 2000/3000 3TB versions
C73: Added DIP 6000 3TB versions (iSCSI target only mode)
C74: DIP2000: changed OS partition size reservation to 200GB
C75: DIP7000: removed OS partition size reservation (OS running on separate SSD)
C76: Workstation matrix updated
C77: Implemented mirrored/secondary/failover recording; reworked pool implementation
C78: Added secondary VRM server selection
C79: Added 2 decoder groups; added single and dual monitor support for the VJD-7000 seperately
C80: Added warning for the Workstation expansion licenses against the workstation count
C81: VSG PC/server hardware comment field added
C82: Added MBV-XSUB-50, MBV-XMVS-50, MBV-FEUP-50, MBV-XFOV-50, MBV-XDUR-50 licenses
C83: Added warning for MBV-BXPAN-DIP license when 64channels are reached
C84: Added BVMS licensing overview to the checklist workbook
A85: 11.0.01 | B85: 2014-10-10 | C85: Reworked to BVMS 5.0
C86: workstation/graphics card options reworked
C87: 4TB E-series added
C88: Dinion IP ultra 8000 cameras added
C89: Dinion IP starlight 8000 cameras added
C90: MIC IP starlight/dynamic 7000 added
A91: 10.0.18 | B91: 2013-09-06 | C91: Changed default setting: "Allow >1 Divar IP 3000/7000 systems" to false
A92: 10.0.17 | B92: 2013-09-05 | C92: Fixed bug: Gross storage wrong assigned for the DIP-2000
A93: 10.0.17 | B93: 2013-09-05 | C93: Fixed bug: error SCSI sessiosn using the multi-pool assignment
A94: 10.0.16 | B94: 2013-08-30 | C94: E-Series - 3TB versions added
A95: 10.0.15 | B95: 2013-08-30 | C95: internal
A96: 10.0.14 | B96: 2013-08-29 | C96: DIP-6000/7000 3TB versions added
A97: 10.0.13 | B97: 2013-08-23 | C97: N-1 redundancy reworked for Divar IP range
A98: 10.0.12 | B98: 2013-08-23 | C98: DIVAR IP 3000+2000 and DIVAR IP 7000+6000 iSCSI sessions and bandwidth fixed
A99: 10.0.11 | B99: 2013-08-23 | C99: VSG channels are fixed
A100: 10.0.10 | B100: 2013-07-04 | C100: Changed DIVAR IP 3000 with one slave DIVAR IP 2000
A101: 10.0.09 | B101: 2013-07-01 | C101: Storage pools implemented
C102: VRM 3.0 based storage calculation (incl sanity check)
C103: New encoder/camera series/families/platforms implemented
C104: Gross storage size presentation (due to competition is always offering on basis of Gross)
C105: DIVAR IP added (reworked as a single management system with optional storage extension of x number of 2000/6000 units)
C106: E-Series Phase II added
C107: Graphical overview of overcapacity
C108: Graphical overview of price point comparison
C109: Enterprise subsystem licenses entry field
C110: Transcoder entry field
C111: New decoders added
C112: fixed 5MP bug
C113: added subsystem extension type
C114: other minor bug fixes
A115: 10.0.5 | B115: 2013-05-15 | C115: VIP X1600 XF/VJ X20XF-E/VJ X40XF-E resolutions didn’t work well (thanks Jeremy)
C116: VIP X1600 XF channel count was faulty (thanks Jeremy)
C117: Minor changes to the Divar IP iSCSI session usage.
A118: 9.0.5 | B118: 2012-07-17 | C118: Netapp E-series added
C119: New bitrate and encoder capability sheet added
C120: Additional camera group added specially for ONVIF

Sheet --Bit Rate Quick Guide old ----
B71: Resolution | C71: ips | D71: Static Scene (iDNR enabled) | E71: Standard Surveillance Scene | F71: Busy Scene
C72: images per second
A73: Common Product Platform 7_3 H.265 mode only
B74: 5MP 16:9 | C74: 30 | D74: 2000 | E74: 4000 | F74: 8000
C75: 25 | D75: =E75/2 -> 1892.789782 | E75: =$E$74*0.946394891 -> 3785.579564 | F75: =E75*2 -> 7571.159128
C76: 20 | D76: =E76/2 -> 1761.57508 | E76: =$E$74*0.88078754 -> 3523.15016 | F76: =E76*2 -> 7046.30032
C77: 15 | D77: 1592.409906 | E77: =$E$74*0.796204953 -> 3184.819812 | F77: 6369.639624
C78: 10 | D78: 1353.984986 | E78: =$E$74*0.676992493 -> 2707.969972 | F78: 5415.939944
C79: 5 | D79: 946.39489 | E79: =$E$74*0.473197445 -> 1892.78978 | F79: 3785.57956
C80: 3 | D80: 646.015014 | E80: =$E$74*0.323007507 -> 1292.030028 | F80: 2584.060056
C81: 2 | D81: 407.590094 | E81: =$E$74*0.203795047 -> 815.180188 | F81: 1630.360376
C82: 1 | D82: =D81/2 -> 203.795047 | E82: =E81/2 -> 407.590094 | F82: 815.180188
B84: 720p30 | C84: 30 | D84: =E84/2 -> 500 | E84: 1000 | F84: =E84*2 -> 2000
C85: 25 | D85: =E85/2 -> 473.1974455 | E85: =$E$84*0.946394891 -> 946.394891 | F85: =E85*2 -> 1892.789782
C86: 20 | D86: =E86/2 -> 440.39377 | E86: =$E$84*0.88078754 -> 880.78754 | F86: =E86*2 -> 1761.57508
C87: 15 | D87: 398.1024765 | E87: =$E$84*0.796204953 -> 796.204953 | F87: 1592.409906
C88: 10 | D88: 338.4962465 | E88: =$E$84*0.676992493 -> 676.992493 | F88: 1353.984986
C89: 5 | D89: 236.5987225 | E89: =$E$84*0.473197445 -> 473.197445 | F89: 946.39489
C90: 3 | D90: 161.5037535 | E90: =$E$84*0.323007507 -> 323.007507 | F90: 646.015014
C91: 2 | D91: 101.8975235 | E91: =$E$84*0.203795047 -> 203.795047 | F91: 407.590094
C92: 1 | D92: =D91/2 -> 50.94876175 | E92: =E91/2 -> 101.8975235 | F92: 203.795047
B94: 720p60 | C94: 60 | D94: =E94/2 -> 600 | E94: 1200 | F94: =E94*2 -> 2400
C95: 30 | D95: 500 | E95: 1000 | F95: 2000
C96: 25 | D96: 473.1974455 | E96: =$E$95*0.946394891 -> 946.394891 | F96: 1892.789782
C97: 20 | D97: 440.39377 | E97: =$E$95*0.88078754 -> 880.78754 | F97: 1761.57508
C98: 15 | D98: 398.1024765 | E98: =$E$95*0.796204953 -> 796.204953 | F98: 1592.409906
C99: 10 | D99: 338.4962465 | E99: =$E$95*0.676992493 -> 676.992493 | F99: 1353.984986
C100: 5 | D100: 236.5987225 | E100: =$E$95*0.473197445 -> 473.197445 | F100: 946.39489
C101: 3 | D101: 161.5037535 | E101: =$E$95*0.323007507 -> 323.007507 | F101: 646.015014
C102: 2 | D102: 101.8975235 | E102: =$E$95*0.203795047 -> 203.795047 | F102: 407.590094
C103: 1 | D103: 50.94876175 | E103: =E102/2 -> 101.8975235 | F103: 203.795047
B105: 1080p30 | C105: 30 | D105: =E105/2 -> 700 | E105: 1400 | F105: =E105*2 -> 2800
C106: 25 | D106: =E106/2 -> 662.4764237 | E106: =$E$105*0.946394891 -> 1324.952847 | F106: =E106*2 -> 2649.905695
C107: 20 | D107: =E107/2 -> 616.551278 | E107: =$E$105*0.88078754 -> 1233.102556 | F107: =E107*2 -> 2466.205112
C108: 15 | D108: 557.3434671 | E108: =$E$105*0.796204953 -> 1114.686934 | F108: 2229.373868
C109: 10 | D109: 473.8947451 | E109: =$E$105*0.676992493 -> 947.7894902 | F109: 1895.57898
C110: 5 | D110: 331.2382115 | E110: =$E$105*0.473197445 -> 662.476423 | F110: 1324.952846
C111: 3 | D111: 226.1052549 | E111: =$E$105*0.323007507 -> 452.2105098 | F111: 904.4210196
C112: 2 | D112: 142.6565329 | E112: =$E$105*0.203795047 -> 285.3130658 | F112: 570.6261316
C113: 1 | D113: 11.2 | E113: =$E$105*0.016 -> 22.4 | F113: 44.8
B115: 1080p60 | C115: 60 | D115: =E115/2 -> 850 | E115: 1700 | F115: =E115*2 -> 3400
C116: 30 | D116: =E116/2 -> 700 | E116: 1400 | F116: =E116*2 -> 2800
C117: 25 | D117: =E117/2 -> 662.4764237 | E117: =$E$116*0.946394891 -> 1324.952847 | F117: =E117*2 -> 2649.905695
C118: 20 | D118: 616.551278 | E118: =$E$116*0.88078754 -> 1233.102556 | F118: 2466.205112
C119: 15 | D119: 557.3434671 | E119: =$E$116*0.796204953 -> 1114.686934 | F119: 2229.373868
C120: 10 | D120: 473.8947451 | E120: =$E$116*0.676992493 -> 947.7894902 | F120: 1895.57898
C121: 5 | D121: 331.2382115 | E121: =$E$116*0.473197445 -> 662.476423 | F121: 1324.952846
C122: 3 | D122: 226.1052549 | E122: =$E$116*0.323007507 -> 452.2105098 | F122: 904.4210196
C123: 2 | D123: 142.6565329 | E123: =$E$116*0.203795047 -> 285.3130658 | F123: 570.6261316
C124: 1 | D124: 71.32826645 | E124: =E123/2 -> 142.6565329 | F124: 285.3130658
B126: UHD | C126: 30 | D126: =E126/2 -> 3000 | E126: 6000 | F126: =E126*2 -> 12000
C127: 25 | D127: 2839.185 | E127: =E126*0.946395 -> 5678.37 | F127: 11356.74
C128: 20 | D128: 2642.364 | E128: =E126*0.880788 -> 5284.728 | F128: 10569.456
C129: 15 | D129: 2388.615 | E129: =E126*0.796205 -> 4777.23 | F129: 9554.46
C130: 10 | D130: 2030.976 | E130: =E126*0.676992 -> 4061.952 | F130: 8123.904
C131: 5 | D131: 1419.591 | E131: =E126*0.473197 -> 2839.182 | F131: 5678.364
C132: 3 | D132: 969.024 | E132: =E126*0.323008 -> 1938.048 | F132: 3876.096
C133: 2 | D133: 611.385 | E133: =E126*0.203795 -> 1222.77 | F133: 2445.54
C134: 1 | D134: 48 | E134: =E126*0.016 -> 96 | F134: 192
B135: Note: For CPP 7.3 devices running in H.264 mode please use CPP 7 values!
B141: Resolution | C141: ips | D141: static scene | E141: Standard Surveillance Scene | F141: Busy Scene
C142: images per second
A143: Common Product Platform 7_3 H.265 mode only (AutoDome) | B143: 1080p30 | C143: 30 | D143: - | E143: =1400*1.5625 -> 2187.5 | F143: =E143*1.8 -> 3937.5
C144: 25 | D144: - | E144: =$E$143*0.946394891 -> 2070.238824 | F144: =E144*1.8 -> 3726.429883
C145: 20 | D145: - | E145: =$E$143*0.88078754 -> 1926.722744 | F145: 3468.100939
C146: 15 | D146: - | E146: =$E$143*0.796204953 -> 1741.698335 | F146: 3135.057002
C147: 10 | D147: - | E147: =$E$143*0.676992493 -> 1480.921078 | F147: 2665.657941
C148: 5 | D148: - | E148: =$E$143*0.473197445 -> 1035.119411 | F148: 1863.21494
C149: 3 | D149: - | E149: =$E$143*0.323007507 -> 706.5789216 | F149: 1271.842059
C150: 2 | D150: - | E150: =$E$143*0.203795047 -> 445.8016653 | F150: 802.4429976
C151: 1 | D151: - | E151: =E150/2 -> 222.9008327 | F151: 401.2214988
B153: 1080p60 | C153: 60 | D153: - | E153: =1700*1.5625 -> 2656.25 | F153: =E153*1.8 -> 4781.25
C154: 30 | D154: - | E154: 2188 | F154: =E154*1.8 -> 3938.4
C155: 25 | D155: - | E155: =$E$154*0.946394891 -> 2070.712022 | F155: =E155*1.8 -> 3727.281639
C156: 20 | D156: - | E156: =$E$154*0.88078754 -> 1927.163138 | F156: 3468.893648
C157: 15 | D157: - | E157: =$E$154*0.796204953 -> 1742.096437 | F157: 3135.773587
C158: 10 | D158: - | E158: =$E$154*0.676992493 -> 1481.259575 | F158: 2666.267234
C159: 5 | D159: - | E159: =$E$154*0.473197445 -> 1035.35601 | F159: 1863.640817
C160: 3 | D160: - | E160: =$E$154*0.323007507 -> 706.7404253 | F160: 1272.132766
C161: 2 | D161: - | E161: =$E$154*0.203795047 -> 445.9035628 | F161: 802.6264131
C162: 1 | D162: - | E162: =E161/2 -> 222.9517814 | F162: 401.3132066
B167: Resolution | C167: ips | D167: Static Scene (iDNR enabled) | E167: Standard Surveillance Scene | F167: Busy Scene
C168: images per second
A169: Common Product Platform 7
B171: 720p30 | C171: 30 | D171: 600 | E171: 1200 | F171: 2400
C172: 25 | D172: 567.8369345 | E172: 1135.673869 | F172: 2271.347738
C173: 20 | D173: 528.4725238 | E173: 1056.945048 | F173: 2113.890095
C174: 15 | D174: 477.7229717 | E174: 955.4459435 | F174: 1910.891887
C175: 10 | D175: 406.1954955 | E175: 812.390991 | F175: 1624.781982
C176: 5 | D176: 283.9184673 | E176: 567.8369345 | F176: 1135.673869
C177: 3 | D177: 193.8045045 | E177: 387.609009 | F177: 775.2180179
C178: 2 | D178: 122.2770283 | E178: 244.5540565 | F178: 489.108113
C179: 1 | D179: 20 | E179: 40 | F179: 40
B181: 720p60 | C181: 60 | D181: 700 | E181: 1400 | F181: 2800
C182: 30 | D182: 581.4943347 | E182: 1162.988669 | F182: 2325.977339
C183: 25 | D183: 550.3232674 | E183: 1100.646535 | F183: 2201.29307
C184: 20 | D184: 512.1729643 | E184: 1024.345929 | F184: 2048.691857
C185: 15 | D185: 462.9886694 | E185: 925.9773387 | F185: 1851.954677
C186: 10 | D186: 393.667299 | E186: 787.3345981 | F186: 1574.669196
C187: 5 | D187: 275.1616337 | E187: 550.3232674 | F187: 1100.646535
C188: 3 | D188: 187.8270357 | E188: 375.6540713 | F188: 751.3081426
C189: 2 | D189: 118.5056653 | E189: 237.0113306 | F189: 474.0226613
C190: 1 | D190: 20 | E190: 40 | F190: 40
B192: 1080p30 | C192: 30 | D192: 800 | E192: 1600 | F192: 3200
C193: 25 | D193: 757.1159127 | E193: 1514.231825 | F193: 3028.463651
C194: 20 | D194: 704.6300317 | E194: 1409.260063 | F194: 2818.520127
C195: 15 | D195: 636.9639623 | E195: 1273.927925 | F195: 2547.855849
C196: 10 | D196: 541.593994 | E196: 1083.187988 | F196: 2166.375976
C197: 5 | D197: 378.5579564 | E197: 757.1159127 | F197: 1514.231825
C198: 3 | D198: 258.406006 | E198: 516.812012 | F198: 1033.624024
C199: 2 | D199: 163.0360377 | E199: 326.0720753 | F199: 652.1441507
C200: 1 | D200: 20 | E200: 40 | F200: 40
B204: Resolution | C204: ips | D204: Static Scene (iDNR enabled) | E204: Standard Surveillance Scene | F204: Busy Scene
C205: images per second
A206: Common Product Platform 6 | B206: 5MP 4:3 | C206: 30 | D206: 2475 | E206: 4950 | F206: 8800
C207: 25 | D207: 2342.327355 | E207: 4684.65471 | F207: 8328.27504
C208: 20 | D208: 2179.949161 | E208: 4359.898321 | F208: 7750.930349
C209: 15 | D209: 1970.607258 | E209: 3941.214517 | F209: 7006.603586
C210: 10 | D210: 1675.556419 | E210: 3351.112838 | F210: 5957.533934
C211: 5 | D211: 1171.163677 | E211: 2342.327355 | F211: 4164.13752
C212: 3 | D212: 799.443581 | E212: 1598.887162 | F212: 2842.466066
C213: 2 | D213: 504.3927415 | E213: 1008.785483 | F213: 1793.396414
C214: 1 | D214: 20 | E214: 40 | F214: 40
B216: 5MP 16:9 | C216: 30 | D216: 2250 | E216: 4500 | F216: 8000
C217: 25 | D217: 2129.388504 | E217: 4258.777009 | F217: 7571.159127
C218: 20 | D218: 1981.771964 | E218: 3963.543928 | F218: 7046.300317
C219: 15 | D219: 1791.461144 | E219: 3582.922288 | F219: 6369.639623
C220: 10 | D220: 1523.233108 | E220: 3046.466216 | F220: 5415.93994
C221: 5 | D221: 1064.694252 | E221: 2129.388504 | F221: 3785.579564
C222: 3 | D222: 726.7668918 | E222: 1453.533784 | F222: 2584.06006
C223: 2 | D223: 458.538856 | E223: 917.0777119 | F223: 1630.360377
C224: 1 | D224: 20 | E224: 40 | F224: 40
B226: UHD | C226: 30 | D226: 3000 | E226: 6000 | F226: 12000
C227: 25 | D227: 2839.184673 | E227: 5678.369345 | F227: 11356.73869
C228: 20 | D228: 2642.362619 | E228: 5284.725238 | F228: 10569.45048
C229: 15 | D229: 2388.614859 | E229: 4777.229717 | F229: 9554.459435
C230: 10 | D230: 2030.977478 | E230: 4061.954955 | F230: 8123.90991
C231: 5 | D231: 1419.592336 | E231: 2839.184673 | F231: 5678.369345
C232: 3 | D232: 969.0225224 | E232: 1938.045045 | F232: 3876.09009
C233: 2 | D233: 611.3851413 | E233: 1222.770283 | F233: 2445.540565
C234: 1 | D234: 20 | E234: 40 | F234: 40
B236: 12MP | C236: 20 | D236: 3000 | E236: 6000 | F236: 12000
C237: 10 | D237: 2305.865361 | E237: 4611.730721 | F237: 9223.461442
C238: 5 | D238: 1611.730721 | E238: 3223.461442 | F238: 6446.922884
C239: 3 | D239: 1100.177374 | E239: 2200.354748 | F239: 4400.709496
C240: 2 | D240: 694.1346395 | E240: 1388.269279 | F240: 2776.538558
C241: 1 | D241: 20 | E241: 40 | F241: 40
B243: Panoramic 7000 | C243: 30 | D243: 3000 | E243: 6000 | F243: 12000
C244: 25 | D244: 2839.184673 | E244: 5678.369345 | F244: 11356.73869
C245: 20 | D245: 2642.362619 | E245: 5284.725238 | F245: 10569.45048
C246: 15 | D246: 2388.614859 | E246: 4777.229717 | F246: 9554.459435
C247: 12.5 | D247: 2228 | E247: 4456 | F247: 8912
C248: 10 | D248: 1419.592336 | E248: 4062 | F248: 5678.369345
C249: 5 | D249: 992.2414581 | E249: 2839.184673 | F249: 3968.965832
C250: 2 | D250: 611.3851413 | E250: 1222.770283 | F250: 2445.540565
C251: 1 | D251: 20 | E251: 40 | F251: 40
K275: resolution | L275: recording quality | M275: scene type
B276: Resolution | C276: ips | D276: Static Scene (iDNR enabled) | E276: Standard Surveillance Scene | F276: Busy Scene | K276: 1080p60 | L276: bitrate optiimzed | M276: static
C277: images per second
A278: Common Product Platform 4 | B278: 5MP up to 12 ips | C278: 12 | D278: 1200 | E278: 2400 | F278: 4000 | J278: CPP_7_3
C279: 6 | D279: 865.2684652 | E279: 1730.53693 | F279: 2884.228217 | J279: CPP_7
C280: 3 | D280: 530.5369304 | E280: 1061.073861 | F280: 1768.456435 | J280: CPP_6
C281: 2 | D281: 334.7315348 | E281: 669.4630696 | F281: 1115.771783 | J281: CPP_5
C282: 1 | D282: 20 | E282: 40 | F282: 40 | J282: CPP_4
J283: CPP_3
B284: 1080p30 | C284: 30 | D284: 800 | E284: 1600 | F284: 3200
C285: 25 | D285: 757.1159127 | E285: 1514.231825 | F285: 3028.463651
C286: 20 | D286: 704.6300317 | E286: 1409.260063 | F286: 2818.520127
C287: 15 | D287: 636.9639623 | E287: 1273.927925 | F287: 2547.855849
C288: 10 | D288: 541.593994 | E288: 1083.187988 | F288: 2166.375976
C289: 5 | D289: 378.5579564 | E289: 757.1159127 | F289: 1514.231825
C290: 3 | D290: 258.406006 | E290: 516.812012 | F290: 1033.624024
C291: 2 | D291: 163.0360377 | E291: 326.0720753 | F291: 652.1441507
C292: 1 | D292: 20 | E292: 40 | F292: 40
B294: 720p30 | C294: 30 | D294: 600 | E294: 1200 | F294: 2400
C295: 25 | D295: 567.8369345 | E295: 1135.673869 | F295: 2271.347738
C296: 20 | D296: 528.4725238 | E296: 1056.945048 | F296: 2113.890095
C297: 15 | D297: 477.7229717 | E297: 955.4459435 | F297: 1910.891887
C298: 10 | D298: 406.1954955 | E298: 812.390991 | F298: 1624.781982
C299: 5 | D299: 283.9184673 | E299: 567.8369345 | F299: 1135.673869
C300: 3 | D300: 193.8045045 | E300: 387.609009 | F300: 775.2180179
